Workbook

Sheet START

Sheet Instructions
D2: 2020
X4: Yes
X5: No
W7: Type of Entities Range:
X8: Parent Municipality
X9: Consolidated Information
F14: START
F15: Instructions
F16: Template names
F17: Lookup and lists | W17: MTREF Range: | X17: 2013
F18: Org structure | X18: 2014
F19: Contacts | X19: 2015
F20: A1-Sum | X20: 2016
F21: A2-FinPerf SC | X21: 2017
F22: A2A | X22: 2018
F23: A3-FinPerf V | X23: 2019
F24: A3A | X24: 2020
F25: A4-FinPerf RE | X25: 2021
F26: A5-Capex | X26: 2022
F27: A5A | X27: 2023
F28: A6-FinPos | X28: 2024
F29: A7-CFlow | X29: 2025
F30: A8-ResRecon | X30: 2026
F31: A9-Asset | X31: 2027
F32: A10-SerDel
F33: SA1 | W33: MTREF Linked: | X33: 10
F34: SA2 | W34: MTREF: | X34: =INDEX(X17:X26,X33,1) -> 2022
F35: SA3
F36: SA4 | W36: Fin Year: | X36: =MTREF&"/"&RIGHT(MTREF,2)+1 -> 2022/23
F37: SA5
F38: SA6
F39: SA7
F40: SA8
F41: SA9
F42: SA10
F43: SA11
F44: SA12a
F45: SA12b
F46: SA13a
F47: SA13b
F48: SA14
F49: SA15
F50: SA16
F51: SA17
F52: SA18
F53: SA19
F54: SA20
F55: SA21
F56: SA22
F57: SA23
F58: SA24
F59: SA25
F60: SA26
F61: SA27
F62: SA28
F63: SA29
F64: SA30
F65: SA31
F66: SA32
F67: SA33
F68: SA34a
F69: SA34b
F70: SA34c
F71: SA34d
F72: SA34e
F73: SA35
F74: SA36
F75: SA37
F76: SA38
F77: LGDB_EXPORT

Sheet Template names
A1: Common sheet headings
A2: Head1 | B2: =HLOOKUP(MTREF,Headings,2) -> 2020/21 | C2: Prior year -1
A3: Head1A | B3: =HLOOKUP(MTREF,Headings,3) -> 2019/20 | C3: Prior year -2
A4: Head1B | B4: =HLOOKUP(MTREF,Headings,4) -> 2018/19 | C4: Prior year -3
A5: Head2 | B5: =HLOOKUP(MTREF,Headings,5) -> Current Year 2021/22 | C5: Year in which budget is being prepared
A6: Head2A | B6: =HLOOKUP(MTREF,Headings,6) -> 2021/22 | C6: Year in which budget is being prepared
A7: Head3 | B7: =HLOOKUP(MTREF,Headings,7) -> 2022/23 Medium Term Revenue & Expenditure Framework | C7: MTREF name
A8: Head4 | B8: LTFS | C8: Long term financial strategy
A9: Head5 | B9: Audited Outcome
A10: Head5A | B10: Outcome
A11: Head5B | B11: Pre-audit outcome
A12: Head6 | B12: Original Budget
A13: Head7 | B13: Adjusted Budget
A14: Head8 | B14: Full Year Forecast
A15: Head9 | B15: =HLOOKUP(MTREF,Headings,8) -> Budget Year 2022/23 | C15: 1st year of MTREF | D15: Year1
A16: Head10 | B16: =HLOOKUP(MTREF,Headings,9) -> Budget Year +1 2023/24 | C16: 2nd year of MTREF | D16: Year2
A17: Head11 | B17: =HLOOKUP(MTREF,Headings,10) -> Budget Year +2 2024/25 | C17: 3rd year of MTREF | D17: Year3
A18: Head12 | B18: =HLOOKUP(MTREF,Headings,11) -> Forecast 2025/26 | C18: 1st yr of long term forecast | D18: Year4
A19: Head13 | B19: =HLOOKUP(MTREF,Headings,12) -> Forecast 2026/27 | C19: Next yr of long term forecast | D19: Year5
A20: Head14 | B20: =HLOOKUP(MTREF,Headings,13) -> Forecast 2027/28 | C20: Next yr of long term forecast | D20: Year6
A21: Head15 | B21: =HLOOKUP(MTREF,Headings,14) -> Forecast 2028/29 | C21: Next yr of long term forecast | D21: Year7
A22: Head16 | B22: =HLOOKUP(MTREF,Headings,15) -> Forecast 2029/30 | C22: Next yr of long term forecast | D22: Year8
A23: Head17 | B23: =HLOOKUP(MTREF,Headings,16) -> Forecast 2030/31 | C23: Next yr of long term forecast | D23: Year9
A24: Head18 | B24: =HLOOKUP(MTREF,Headings,17) -> Forecast 2031/32 | C24: Next yr of long term forecast | D24: Year10
A25: Head19 | B25: =HLOOKUP(MTREF,Headings,18) -> Forecast 2032/33 | C25: Next yr of long term forecast | D25: Year11
A26: Head20 | B26: =HLOOKUP(MTREF,Headings,19) -> Forecast 2033/34 | C26: Next yr of long term forecast | D26: Year12
A27: Head21 | B27: =HLOOKUP(MTREF,Headings,20) -> Forecast 2034/35 | C27: Next yr of long term forecast | D27: Year13
A28: Head22 | B28: =HLOOKUP(MTREF,Headings,21) -> Forecast 2035/36 | C28: Next yr of long term forecast | D28: Year14
A29: Head23 | B29: =HLOOKUP(MTREF,Headings,22) -> Forecast 2036/37 | C29: Next yr of long term forecast | D29: Year15
A30: Head24 | B30: Description
A31: Head25
A32: Head26 | B32: Vote Description
A33: Head27 | B33: Ref
A34: Head27a | B34: References
A35: Head28 | B35: Surplus/(Deficit) for the year | D35: Result
A36: Head29 | B36: =HLOOKUP(MTREF,Headings,23) -> Annual target 2022/23
A37: Head30 | B37: =HLOOKUP(MTREF,Headings,24) -> Revised target 2022/23
A38: Head31 | B38: Quarter ended 30 September
A39: Head32 | B39: Quarter ended 31 December
A40: Head33 | B40: Quarter ended 31 March
A41: Head34 | B41: Quarter ended 30 June
A42: Head35 | B42: Variance explanation
A43: Head36 | B43: YTD Actual 31 Dec
A44: Head37 | B44: YTD Budget 31 Dec
A45: Head38 | B45: Monthly actual
A46: Head39 | B46: YTD actual
A47: Head40 | B47: YTD budget
A48: Head41 | B48: YTD variance
A49: Head42 | B49: Surplus/ (Deficit) for the yr/period
A50: Head43 | B50: =Head3&" Summary" -> 2022/23 Medium Term Revenue & Expenditure Framework Summary
A51: Head44 | B51: 2001 Census
A52: Head45 | B52: 2011 Census
A53: Head46 | B53: - Adjustments Budget - January 2007
A54: Head47 | B54: Previous target year to complete
A55: Head48 | B55: Present value
A56: Head49
A57: Head50 | B57: Other Adjusts.
A58: Head51 | B58: Accum. Funds
A59: Head52 | B59: Multi-year capital
A60: Head53 | B60: Unfore. Unavoid.
A61: Head54 | B61: Prior Adjusted
A62: Head55 | B62: Nat. or Prov. Govt
A63: Head56 | B63: Total Adjusts.
A64: SFPerf1 | B64: Budgeted Financial Performance
A65: SFPerf2 | B65: Forecast Financial Performance
A66: SFPos1 | B66: Budgeted Financial Position
A67: SFPos2 | B67: Forecast Financial Position
A68: Cash1 | B68: Budget Cash Flow
A69: Cash2 | B69: Forecast Cash Flow
A70: RandM | B70: Expenditure includes repairs & maintenance of R'000
A71: Depart1 | B71: Department 1 - | D71: DEP1
A72: Depart2 | B72: Department 2 - | D72: DEP2
A73: Depart3 | B73: Department 3 - | D73: DEP3
A74: Depart4 | B74: Department 4 - | D74: DEP4
A75: Depart5 | B75: Department 5 - | D75: DEP5
A76: Depart6 | B76: Department 6 - | D76: DEP6
A77: Depart7 | B77: Department 7 - | D77: DEP7
A78: Depart8 | B78: Department 8 - | D78: DEP8
A79: Depart9 | B79: Department 9 - | D79: DEP9
A80: Depart10 | B80: Department 10 - | D80: DEP10
A81: Depart11 | B81: Department 11 - | D81: DEP11
A82: Depart12 | B82: Department 12 - | D82: DEP12
A83: Depart13 | B83: Department 13 - | D83: DEP13
A84: Depart14 | B84: Department 14 - | D84: DEP14
A87: Base year of forecast column selection names
A88: Choose | B88: ACT
B89: APP
B90: ADJ
A92: Standard nomenclature
A93: Muni | B93: ='Lookup and lists'!B28 -> Choose name from list
A94: Municipal Entities | B94: 2 | C94: Type of report: | D94: 1
A95: =IF((MuniEntities=1)*(MuniType=2),"YES","NO") -> NO | B95: Does this municipality have entities (consolidated budget and entity budgets required)? YES/NO
A96: Entity 1 | B96: (Pty) Ltd Example 1 - Municipal entity - | D96: Ent1
A97: Entity 2 | B97: (Pty) Ltd Example 2 - Municipal entity - | D97: Ent2
A98: Entity 3 | B98: Municipal Entity Example 3 | D98: Ent3
A99: Budget approval tables | C99: Chart x-ref | D99: Sch/Tab/Ch | E99: Alternative for municipalities without entities | F99: Alternative for municipalities without entities
B100: =IF(Consolques="YES",E100,F100) -> Table A1 Budget Summary | D100: Table A1 | E100: =D100&"Consolidated Budget Summary" -> Table A1 Consolidated Budget Summary | F100: =D100&"Budget Summary" -> Table A1 Budget Summary
B101: Table A2 Budgeted Financial Performance (revenue and expenditure by functional classification) | C101: Charts 5, 6 | D101: Table A2 | E101: =D101&"Consolidated Budgeted Financial Performance (revenue and expenditure by functional classification)" -> Table A2 Consolidated Budgeted Financial Performance (revenue and expenditure by functional classification) | F101: =D101&"Budgeted Financial Performance (revenue and expenditure by functional classification)" -> Table A2 Budgeted Financial Performance (revenue and expenditure by functional classification)
B102: Table A3 Budgeted Financial Performance (revenue and expenditure by municipal vote) | D102: Table A3 | E102: =D102&"Consolidated Budgeted Financial Performance (revenue and expenditure by municipal vote)" -> Table A3 Consolidated Budgeted Financial Performance (revenue and expenditure by municipal vote) | F102: =D102&"Budgeted Financial Performance (revenue and expenditure by municipal vote)" -> Table A3 Budgeted Financial Performance (revenue and expenditure by municipal vote)
B103: Table A4 Budgeted Financial Performance (revenue and expenditure) | C103: Charts 1, 2, 3, 4 | D103: Table A4 | E103: =D103&"Consolidated Budgeted Financial Performance (revenue and expenditure)" -> Table A4 Consolidated Budgeted Financial Performance (revenue and expenditure) | F103: =D103&"Budgeted Financial Performance (revenue and expenditure)" -> Table A4 Budgeted Financial Performance (revenue and expenditure)
B104: Table A5 Budgeted Capital Expenditure by vote, functional classification and funding | C104: Charts 7, 8, 9, 10, 20 | D104: Table A5 | E104: =D104&"Consolidated Budgeted Capital Expenditure by vote, functional classification and funding" -> Table A5 Consolidated Budgeted Capital Expenditure by vote, functional classification and funding | F104: =D104&"Budgeted Capital Expenditure by vote, functional classification and funding" -> Table A5 Budgeted Capital Expenditure by vote, functional classification and funding
B105: Table A6 Budgeted Financial Position | D105: Table A6 | E105: =D105&"Consolidated Budgeted Financial Position" -> Table A6 Consolidated Budgeted Financial Position | F105: =D105&"Budgeted Financial Position" -> Table A6 Budgeted Financial Position
B106: Table A7 Budgeted Cash Flows | D106: Table A7 | E106: =D106&"Consolidated Budgeted Cash Flows" -> Table A7 Consolidated Budgeted Cash Flows | F106: =D106&"Budgeted Cash Flows" -> Table A7 Budgeted Cash Flows
B107: Table A8 Cash backed reserves/accumulated surplus reconciliation | D107: Table A8 | E107: =D107&"Consolidated Cash backed reserves/accumulated surplus reconciliation" -> Table A8 Consolidated Cash backed reserves/accumulated surplus reconciliation | F107: =D107&"Cash backed reserves/accumulated surplus reconciliation" -> Table A8 Cash backed reserves/accumulated surplus reconciliation
B108: Table A9 Asset Management | D108: Table A9 | E108: =D108&"Consolidated Asset Management" -> Table A9 Consolidated Asset Management | F108: =D108&"Asset Management" -> Table A9 Asset Management
B109: Table A10 Basic service delivery measurement | D109: Table A10 | E109: =D109&"Consolidated basic service delivery measurement" -> Table A10 Consolidated basic service delivery measurement | F109: =D109&"Basic service delivery measurement" -> Table A10 Basic service delivery measurement
A110: Supportinging Tables to the Budget Approval Tables | C110: =$C$99 -> Chart x-ref | D110: =$D$99 -> Sch/Tab/Ch
A111: Supporting Table SA1 | B111: =A111&" Supportinging detail to 'Budgeted Financial Performance'" -> Supporting Table SA1 Supportinging detail to 'Budgeted Financial Performance'
A112: Supporting Table SA2 | B112: =IF(Consolques="YES",E112,F112) -> Supporting Table SA2 Matrix Financial Performance Budget (revenue source/expenditure type and dept.) | E112: =A112&"Consolidated Matrix Financial Performance Budget (revenue source/expenditure type & dept.)" -> Supporting Table SA2 Consolidated Matrix Financial Performance Budget (revenue source/expenditure type & dept.) | F112: =A112&"Matrix Financial Performance Budget (revenue source/expenditure type and dept.)" -> Supporting Table SA2 Matrix Financial Performance Budget (revenue source/expenditure type and dept.)
A113: Supporting Table SA3 | B113: =A113&"Supportinging detail to 'Budgeted Financial Position'" -> Supporting Table SA3 Supportinging detail to 'Budgeted Financial Position'
A114: Supporting Table SA4 | B114: =A114&"Reconciliation of IDP strategic objectives and budget (revenue)" -> Supporting Table SA4 Reconciliation of IDP strategic objectives and budget (revenue) | C114: Chart 11
A115: Supporting Table SA5 | B115: =A115&"Reconciliation of IDP strategic objectives and budget (operating expenditure)" -> Supporting Table SA5 Reconciliation of IDP strategic objectives and budget (operating expenditure) | C115: Chart 12
A116: Supporting Table SA6 | B116: =A116&"Reconciliation of IDP strategic objectives and budget (capital expenditure)" -> Supporting Table SA6 Reconciliation of IDP strategic objectives and budget (capital expenditure) | C116: Chart 13
A117: Supporting Table SA7 | B117: =A117&" Measureable performance objectives" -> Supporting Table SA7 Measureable performance objectives
A118: Supporting Table SA8 | B118: =A118&" Performance indicators and benchmarks" -> Supporting Table SA8 Performance indicators and benchmarks | C118: Chts 15-19
A119: Supporting Table SA9 | B119: =A119&" Social, economic and demographic statistics and assumptions" -> Supporting Table SA9 Social, economic and demographic statistics and assumptions
A120: Supporting Table SA10 | B120: =A120&" Funding measurement" -> Supporting Table SA10 Funding measurement | C120: Chart 14
A121: Supporting Table SA11 | B121: =A121&" Property rates summary" -> Supporting Table SA11 Property rates summary
A122: Supporting Table SA12a | B122: =A122&" Property rates by category (current year)" -> Supporting Table SA12a Property rates by category (current year)
A123: Supporting Table SA12b | B123: =A123&" Property rates by category (budget year)" -> Supporting Table SA12b Property rates by category (budget year)
A124: Supporting Table SA13a | B124: =A124&" Service Tariffs by category" -> Supporting Table SA13a Service Tariffs by category
A125: Supporting Table SA13b | B125: =A125&" Service Tariffs by category - explanatory" -> Supporting Table SA13b Service Tariffs by category - explanatory
A126: Supporting Table SA14 | B126: =A126&" Household bills" -> Supporting Table SA14 Household bills
A127: Supporting Table SA15 | B127: =A127&" Investment particulars by type" -> Supporting Table SA15 Investment particulars by type
A128: Supporting Table SA16 | B128: =A128&" Investment particulars by maturity" -> Supporting Table SA16 Investment particulars by maturity
A129: Supporting Table SA17 | B129: =A129&" Borrowing" -> Supporting Table SA17 Borrowing
A130: Supporting Table SA18 | B130: =A130&" Transfers and grant receipts" -> Supporting Table SA18 Transfers and grant receipts
A131: Supporting Table SA19 | B131: =A131&" Expenditure on transfers and grant programme" -> Supporting Table SA19 Expenditure on transfers and grant programme
A132: Supporting Table SA20 | B132: =A132&" Reconciliation of transfers, grant receipts and unspent funds" -> Supporting Table SA20 Reconciliation of transfers, grant receipts and unspent funds
A133: Supporting Table SA21 | B133: =A133&" Transfers and grants made by the municipality" -> Supporting Table SA21 Transfers and grants made by the municipality
A134: Supporting Table SA22 | B134: =A134&" Summary councillor and staff benefits" -> Supporting Table SA22 Summary councillor and staff benefits
A135: Supporting Table SA23 | B135: =A135&" Salaries, allowances & benefits (political office bearers/councillors/senior managers)" -> Supporting Table SA23 Salaries, allowances & benefits (political office bearers/councillors/senior managers)
A136: Supporting Table SA24 | B136: =A136&" Summary of personnel numbers" -> Supporting Table SA24 Summary of personnel numbers
A137: Supporting Table SA25 | B137: =IF(Consolques="YES",E137,F137) -> Supporting Table SA25 Budgeted monthly revenue and expenditure | E137: =A137&" Consolidated budgeted monthly revenue and expenditure" -> Supporting Table SA25 Consolidated budgeted monthly revenue and expenditure | F137: =A137&" Budgeted monthly revenue and expenditure" -> Supporting Table SA25 Budgeted monthly revenue and expenditure
A138: Supporting Table SA26 | B138: Supporting Table SA26 Budgeted monthly revenue and expenditure (municipal vote) | E138: =A138&" Consolidated budgeted monthly revenue and expenditure (municipal vote)" -> Supporting Table SA26 Consolidated budgeted monthly revenue and expenditure (municipal vote) | F138: =A138&" Budgeted monthly revenue and expenditure (municipal vote)" -> Supporting Table SA26 Budgeted monthly revenue and expenditure (municipal vote)
A139: Supporting Table SA27 | B139: Supporting Table SA27 Budgeted monthly revenue and expenditure (functional classification) | E139: =A139&" Consolidated budgeted monthly revenue and expenditure (functional classification)" -> Supporting Table SA27 Consolidated budgeted monthly revenue and expenditure (functional classification) | F139: =A139&" Budgeted monthly revenue and expenditure (functional classification)" -> Supporting Table SA27 Budgeted monthly revenue and expenditure (functional classification)
A140: Supporting Table SA28 | B140: Supporting Table SA28 Budgeted monthly capital expenditure (municipal vote) | E140: =A140&" Consolidated budgeted monthly capital expenditure (municipal vote)" -> Supporting Table SA28 Consolidated budgeted monthly capital expenditure (municipal vote) | F140: =A140&" Budgeted monthly capital expenditure (municipal vote)" -> Supporting Table SA28 Budgeted monthly capital expenditure (municipal vote)
A141: Supporting Table SA29 | B141: Supporting Table SA29 Budgeted monthly capital expenditure (functional classification) | E141: =A141&" Consolidated budgeted monthly capital expenditure (functional classification)" -> Supporting Table SA29 Consolidated budgeted monthly capital expenditure (functional classification) | F141: =A141&" Budgeted monthly capital expenditure (functional classification)" -> Supporting Table SA29 Budgeted monthly capital expenditure (functional classification)
A142: Supporting Table SA30 | B142: Supporting Table SA30 Budgeted monthly cash flow | E142: =A142&" Consolidated budgeted monthly cash flow" -> Supporting Table SA30 Consolidated budgeted monthly cash flow | F142: =A142&" Budgeted monthly cash flow" -> Supporting Table SA30 Budgeted monthly cash flow
A143: Supporting Table SA31 | B143: NOT REQUIRED - municipality does not have entities | E143: =A143&" Aggregated entity budget" -> Supporting Table SA31 Aggregated entity budget | F143: NOT REQUIRED - municipality does not have entities
A144: Supporting Table SA32 | B144: =A144&" List of external mechanisms" -> Supporting Table SA32 List of external mechanisms
A145: Supporting Table SA33 | B145: =A145&" Contracts having future budgetary implications" -> Supporting Table SA33 Contracts having future budgetary implications
A146: Supporting Table SA34a | B146: =IF(Consolques="YES",E146,F146) -> Supporting Table SA34a Capital expenditure on new assets by asset class | E146: =A146&" Consolidated capital expenditure on new assets by asset class" -> Supporting Table SA34a Consolidated capital expenditure on new assets by asset class | F146: =A146&" Capital expenditure on new assets by asset class" -> Supporting Table SA34a Capital expenditure on new assets by asset class
A147: Supporting Table SA34b | B147: Supporting Table SA34b Capital expenditure on the renewal of existing assets by asset class | E147: =A147&" Consolidated capital expenditure on the renewal of existing assets by asset class" -> Supporting Table SA34b Consolidated capital expenditure on the renewal of existing assets by asset class | F147: =A147&" Capital expenditure on the renewal of existing assets by asset class" -> Supporting Table SA34b Capital expenditure on the renewal of existing assets by asset class
A148: Supporting Table SA34c | B148: Supporting Table SA34c Repairs and maintenance expenditure by asset class | E148: =A148&" Consolidated repairs and maintenance by asset class" -> Supporting Table SA34c Consolidated repairs and maintenance by asset class | F148: =A148&" Repairs and maintenance expenditure by asset class" -> Supporting Table SA34c Repairs and maintenance expenditure by asset class
A149: Supporting Table SA34d | B149: =IF(Consolques="YES",E149,F149) -> Supporting Table SA34d Depreciation by asset class | E149: =A149&" Consolidated Depreciation by asset class" -> Supporting Table SA34d Consolidated Depreciation by asset class | F149: =A149&" Depreciation by asset class" -> Supporting Table SA34d Depreciation by asset class
A150: Supporting Table SA34e | B150: =IF(Consolques="YES",E150,F150) -> Supporting Table SA34e Capital expenditure on the upgrading of existing assets by asset class | E150: =A150&" Consolidated capital expenditure on the upgrading of existing assets by asset class" -> Supporting Table SA34e Consolidated capital expenditure on the upgrading of existing assets by asset class | F150: =A150&" Capital expenditure on the upgrading of existing assets by asset class" -> Supporting Table SA34e Capital expenditure on the upgrading of existing assets by asset class
A151: Supporting Table SA35 | B151: Supporting Table SA35 Future financial implications of the capital budget | E151: =A151&" Consolidated future financial implications of the capital budget" -> Supporting Table SA35 Consolidated future financial implications of the capital budget | F151: =A151& " Future financial implications of the capital budget" -> Supporting Table SA35 Future financial implications of the capital budget
A152: Supporting Table SA36 | B152: Supporting Table SA36 Detailed capital budget | E152: =A152&" Consolidated detailed capital budget" -> Supporting Table SA36 Consolidated detailed capital budget | F152: =A152& " Detailed capital budget" -> Supporting Table SA36 Detailed capital budget
A153: Supporting Table SA37 | B153: Supporting Table SA37 Projects delayed from previous financial year/s | E153: =A153&" Consolidated projects delayed from previous financial year/s" -> Supporting Table SA37 Consolidated projects delayed from previous financial year/s | F153: =A153& " Projects delayed from previous financial year/s" -> Supporting Table SA37 Projects delayed from previous financial year/s
A154: Supporting Table SA38 | B154: =IF(Consolques="YES",E154,F154) -> Supporting Table SA38 Detailed operational projects | E154: =A154&" Consolidated detailed operational projects" -> Supporting Table SA38 Consolidated detailed operational projects | F154: =A154& " Detailed operational projects" -> Supporting Table SA38 Detailed operational projects
A156: Budget Charts | B156: Charts | C156: Cross reference
A157: Chart A1 | B157: =A157&"Revenue by Municipal Vote" -> Chart A1 Revenue by Municipal Vote
A158: Chart A2 | B158: =A158&"Expenditure by Municipal Vote" -> Chart A2 Expenditure by Municipal Vote
A159: Chart A3 | B159: =A159&"Revenue by Standard Classification" -> Chart A3 Revenue by Standard Classification | C159: A2
A160: Chart A4 | B160: =A160&"Expenditure by Standard Classification" -> Chart A4 Expenditure by Standard Classification | C160: A2
A161: Chart A5 | B161: =A161&"Revenue by Major Source (refer 'Minor' source for 'Other Revenue' allocation" -> Chart A5 Revenue by Major Source (refer 'Minor' source for 'Other Revenue' allocation | C161: A3
A162: Chart A6 | B162: =A162&"Revenue by Minor Source (Other)" -> Chart A6 Revenue by Minor Source (Other) | C162: A3
A163: Chart A7 | B163: =A163&"Expenditure by Major Type" -> Chart A7 Expenditure by Major Type | C163: A3
A164: Chart A8 | B164: =A164&"Expenditure by Minor Type (Other)" -> Chart A8 Expenditure by Minor Type (Other) | C164: A3
A165: Chart A9 | B165: =A165&"Capital Expenditure by Municipal Vote/Appropriation (Major)" -> Chart A9 Capital Expenditure by Municipal Vote/Appropriation (Major) | C165: A5
A166: Chart A10 | B166: =A166&"Capital Expenditure by Municipal Vote/Appropriation (Minor)" -> Chart A10 Capital Expenditure by Municipal Vote/Appropriation (Minor) | C166: A5
A167: Chart A11 | B167: =A166&"Capital Expenditure by Standard Classification" -> Chart A10 Capital Expenditure by Standard Classification | C167: A5
A168: Chart A12 | B168: =A168&"Capital expenditure performance trend" -> Chart A12 Capital expenditure performance trend | C168: A5
A169: Chart A13 | B169: =A169&"Capital funding by Source" -> Chart A13 Capital funding by Source | C169: A5
A170: Chart A14 | B170: =A170&"Cash flow trend" -> Chart A14 Cash flow trend | C170: A7
A171: Chart A15 | B171: =A171&"IDP Strategic Objective - Revenue" -> Chart A15 IDP Strategic Objective - Revenue | C171: Table A4
A172: Chart A16 | B172: =A172&"IDP Strategic Objective - Expenditure" -> Chart A16 IDP Strategic Objective - Expenditure | C172: Table A5
A173: Chart A17 | B173: =A173&"IDP Strategic Objective - Capital Expenditure" -> Chart A17 IDP Strategic Objective - Capital Expenditure | C173: Table A6
A174: Chart A18 | B174: =A174&"Debt (borrowing to Total Revenue)" -> Chart A18 Debt (borrowing to Total Revenue) | C174: Table A8
A175: Chart A19 | B175: =A175&"Debtors' trend analysis" -> Chart A19 Debtors' trend analysis | C175: Table A8
A176: Chart A20 | B176: =A176&"Distribution losses" -> Chart A20 Distribution losses | C176: Table A8
A177: Chart A21 | B177: =A177&"Borrowed funding of capital expenditure" -> Chart A21 Borrowed funding of capital expenditure | C177: Table A8
A178: Chart A22 | B178: =A178&"Expenditure analysis (% of Revenue)" -> Chart A22 Expenditure analysis (% of Revenue) | C178: Table A8
A179: Chart A23 | B179: =A179&"Increases in service charges" -> Chart A23 Increases in service charges | C179: Table A10

Sheet Lookup and lists
A1: Description | B1: 2013 | C1: 2014 | D1: 2015 | E1: 2016 | F1: 2017 | G1: 2018 | H1: 2019 | I1: 2020 | J1: 2021 | K1: 2022 | L1: 2023 | M1: 2024 | N1: 2025 | O1: 2026 | Q1: Lists | Y1: Grants: | Z1: National - opex | AA1: Provincial - opex | AB1: National - capex | AC1: Provincial - capex
A2: ='Template names'!C2 -> Prior year -1 | B2: =B1-2&"/"&RIGHT(B1,2)-1 -> 2011/12 | C2: 2012/13 | D2: 2013/14 | E2: 2014/15 | F2: 2015/16 | G2: 2016/17 | H2: 2017/18 | I2: 2018/19 | J2: =J1-2&"/"&RIGHT(J1,2)-1 -> 2019/20 | K2: 2020/21 | L2: 2021/22 | M2: 2022/23 | N2: 2023/24 | O2: 2024/25 | Q2: Yes | R2: <1 | S2: <4 | T2: Market | U2: Land & impr. | V2: Yes | W2: Uniform | X2: Yrs | Z2: Local Government Equitable Share | AA2: Health subsidy | AB2: Municipal Infrastructure Grant (MIG) | AC2: Agriculture
A3: ='Template names'!C3 -> Prior year -2 | B3: =B1-3&"/"&RIGHT(B1,2)-2 -> 2010/11 | C3: 2011/12 | D3: 2012/13 | E3: 2013/14 | F3: 2014/15 | G3: 2015/16 | H3: 2016/17 | I3: 2017/18 | J3: =J1-3&"/"&RIGHT(J1,2)-2 -> 2018/19 | K3: 2019/20 | L3: 2020/21 | M3: 2021/22 | N3: 2022/23 | O3: 2023/24 | Q3: No | R3: 1 | S3: 4 | T3: Dep.Replace | U3: Land only | V3: No | W3: Variable | X3: Mths | Z3: RSC Levy Replacement | AA3: Ambulance subsidy | AB3: Public Transport and Systems | AC3: Education
A4: ='Template names'!C4 -> Prior year -3 | B4: =B1-4&"/"&RIGHT(B1,2)-3 -> 2009/10 | C4: 2010/11 | D4: 2011/12 | E4: 2012/13 | F4: 2013/14 | G4: 2014/15 | H4: 2015/16 | I4: 2016/17 | J4: =J1-4&"/"&RIGHT(J1,2)-3 -> 2017/18 | K4: 2018/19 | L4: 2019/20 | M4: 2020/21 | N4: 2021/22 | O4: 2022/23 | R4: 2 | S4: 5 | T4: Other | U4: Other | Z4: Finance Management | AA4: Housing | AB4: Rural Transport Services and Infrastructure | AC4: Health
A5: ='Template names'!C5 -> Year in which budget is being prepared | B5: ="Current Year "& B1-1&"/"&RIGHT(B1,2) -> Current Year 2012/13 | C5: Current Year 2013/14 | D5: Current Year 2014/15 | E5: Current Year 2015/16 | F5: Current Year 2016/17 | G5: Current Year 2017/18 | H5: Current Year 2018/19 | I5: Current Year 2019/20 | J5: ="Current Year "& J1-1&"/"&RIGHT(J1,2) -> Current Year 2020/21 | K5: Current Year 2021/22 | L5: Current Year 2022/23 | M5: Current Year 2023/24 | N5: Current Year 2024/25 | O5: Current Year 2025/26 | R5: 3 | S5: 6 | Z5: Municipal Systems Improvement | AA5: Sport and Recreation | AB5: Regional Bulk Infrastructure | AC5: Housing and Local Government
A6: ='Template names'!C6 -> Year in which budget is being prepared | B6: =B1-1&"/"&RIGHT(B1,2) -> 2012/13 | C6: 2013/14 | D6: 2014/15 | E6: 2015/16 | F6: 2016/17 | G6: 2017/18 | H6: 2018/19 | I6: 2019/20 | J6: =J1-1&"/"&RIGHT(J1,2) -> 2020/21 | K6: 2021/22 | L6: 2022/23 | M6: 2023/24 | N6: 2024/25 | O6: 2025/26 | R6: 4 | S6: 6-10 | Z6: Water Services Operating Subsidy | AB6: Rural Households Infrastructure | AC6: Other Departments
A7: ='Template names'!C7 -> MTREF name | B7: =B1&"/"&RIGHT(B1,2)+1&" Medium Term Revenue & Expenditure Framework" -> 2013/14 Medium Term Revenue & Expenditure Framework | C7: 2014/15 Medium Term Revenue & Expenditure Framework | D7: 2015/16 Medium Term Revenue & Expenditure Framework | E7: 2016/17 Medium Term Revenue & Expenditure Framework | F7: 2017/18 Medium Term Revenue & Expenditure Framework | G7: 2018/19 Medium Term Revenue & Expenditure Framework | H7: 2019/20 Medium Term Revenue & Expenditure Framework | I7: 2020/21 Medium Term Revenue & Expenditure Framework | J7: =J1&"/"&RIGHT(J1,2)+1&" Medium Term Revenue & Expenditure Framework" -> 2021/22 Medium Term Revenue & Expenditure Framework | K7: 2022/23 Medium Term Revenue & Expenditure Framework | L7: 2023/24 Medium Term Revenue & Expenditure Framework | M7: 2024/25 Medium Term Revenue & Expenditure Framework | N7: 2025/26 Medium Term Revenue & Expenditure Framework | O7: 2026/27 Medium Term Revenue & Expenditure Framework | R7: 5 | S7: >10 | Z7: Energy Efficiency and Demand Management | AB7: Neighbourhood Development Partnership | AC7: Public Works, Roads, Transport
A8: ='Template names'!C15 -> 1st year of MTREF | B8: ="Budget Year "&B1&"/"&RIGHT(B1,2)+1 -> Budget Year 2013/14 | C8: Budget Year 2014/15 | D8: Budget Year 2015/16 | E8: Budget Year 2016/17 | F8: Budget Year 2017/18 | G8: Budget Year 2018/19 | H8: Budget Year 2019/20 | I8: Budget Year 2020/21 | J8: ="Budget Year "&J1&"/"&RIGHT(J1,2)+1 -> Budget Year 2021/22 | K8: Budget Year 2022/23 | L8: Budget Year 2023/24 | M8: Budget Year 2024/25 | N8: Budget Year 2025/26 | O8: Budget Year 2026/27 | R8: >5 | Z8: Integrated National Electrification Programme | AB8: 2010 FIFA World Cup Stadiums Development | AC8: Sport and Recreation
A9: ='Template names'!C16 -> 2nd year of MTREF | B9: ="Budget Year +1 "&B1+1&"/"&RIGHT(B1,2)+2 -> Budget Year +1 2014/15 | C9: Budget Year +1 2015/16 | D9: Budget Year +1 2016/17 | E9: Budget Year +1 2017/18 | F9: Budget Year +1 2018/19 | G9: Budget Year +1 2019/20 | H9: Budget Year +1 2020/21 | I9: Budget Year +1 2021/22 | J9: ="Budget Year +1 "&J1+1&"/"&RIGHT(J1,2)+2 -> Budget Year +1 2022/23 | K9: Budget Year +1 2023/24 | L9: Budget Year +1 2024/25 | M9: Budget Year +1 2025/26 | N9: Budget Year +1 2026/27 | O9: Budget Year +1 2027/28 | Z9: Municipal Drought Relief
A10: ='Template names'!C17 -> 3rd year of MTREF | B10: ="Budget Year +2 "&B1+2&"/"&RIGHT(B1,2)+3 -> Budget Year +2 2015/16 | C10: Budget Year +2 2016/17 | D10: Budget Year +2 2017/18 | E10: Budget Year +2 2018/19 | F10: Budget Year +2 2019/20 | G10: Budget Year +2 2020/21 | H10: Budget Year +2 2021/22 | I10: Budget Year +2 2022/23 | J10: ="Budget Year +2 "&J1+2&"/"&RIGHT(J1,2)+3 -> Budget Year +2 2023/24 | K10: Budget Year +2 2024/25 | L10: Budget Year +2 2025/26 | M10: Budget Year +2 2026/27 | N10: Budget Year +2 2027/28 | O10: Budget Year +2 2028/29 | Z10: 2010 FIFA World Cup Operating
A11: ='Template names'!C18 -> 1st yr of long term forecast | B11: ="Forecast "&B1+3&"/"&RIGHT(B1,2)+4 -> Forecast 2016/17 | C11: Forecast 2017/18 | D11: Forecast 2018/19 | E11: Forecast 2019/20 | F11: Forecast 2020/21 | G11: Forecast 2021/22 | H11: Forecast 2022/23 | I11: Forecast 2023/24 | J11: ="Forecast "&J1+3&"/"&RIGHT(J1,2)+4 -> Forecast 2024/25 | K11: Forecast 2025/26 | L11: Forecast 2026/27 | M11: Forecast 2027/28 | N11: Forecast 2028/29 | O11: Forecast 2029/30 | Z11: Electricity Demand Side Management
A12: ='Template names'!C19 -> Next yr of long term forecast | B12: ="Forecast "&B1+4&"/"&RIGHT(B1,2)+5 -> Forecast 2017/18 | C12: Forecast 2018/19 | D12: Forecast 2019/20 | E12: Forecast 2020/21 | F12: Forecast 2021/22 | G12: Forecast 2022/23 | H12: Forecast 2023/24 | I12: Forecast 2024/25 | J12: ="Forecast "&J1+4&"/"&RIGHT(J1,2)+5 -> Forecast 2025/26 | K12: Forecast 2026/27 | L12: Forecast 2027/28 | M12: Forecast 2028/29 | N12: Forecast 2029/30 | O12: Forecast 2030/31 | Z12: EPWP Incentive
A13: ='Template names'!C20 -> Next yr of long term forecast | B13: ="Forecast "&B1+5&"/"&RIGHT(B1,2)+6 -> Forecast 2018/19 | C13: Forecast 2019/20 | D13: Forecast 2020/21 | E13: Forecast 2021/22 | F13: Forecast 2022/23 | G13: Forecast 2023/24 | H13: Forecast 2024/25 | I13: Forecast 2025/26 | J13: ="Forecast "&J1+5&"/"&RIGHT(J1,2)+6 -> Forecast 2026/27 | K13: Forecast 2027/28 | L13: Forecast 2028/29 | M13: Forecast 2029/30 | N13: Forecast 2030/31 | O13: Forecast 2031/32
A14: ='Template names'!C21 -> Next yr of long term forecast | B14: ="Forecast "&B1+6&"/"&RIGHT(B1,2)+7 -> Forecast 2019/20 | C14: Forecast 2020/21 | D14: Forecast 2021/22 | E14: Forecast 2022/23 | F14: Forecast 2023/24 | G14: Forecast 2024/25 | H14: Forecast 2025/26 | I14: Forecast 2026/27 | J14: ="Forecast "&J1+6&"/"&RIGHT(J1,2)+7 -> Forecast 2027/28 | K14: Forecast 2028/29 | L14: Forecast 2029/30 | M14: Forecast 2030/31 | N14: Forecast 2031/32 | O14: Forecast 2032/33 | Z14: Asset Class | AA14: Asset sub-class old | AB14: Asset sub-class | AC14: IUDF | AD14: MTSF
A15: ='Template names'!C22 -> Next yr of long term forecast | B15: ="Forecast "&B1+7&"/"&RIGHT(B1,2)+8 -> Forecast 2020/21 | C15: Forecast 2021/22 | D15: Forecast 2022/23 | E15: Forecast 2023/24 | F15: Forecast 2024/25 | G15: Forecast 2025/26 | H15: Forecast 2026/27 | I15: Forecast 2027/28 | J15: ="Forecast "&J1+7&"/"&RIGHT(J1,2)+8 -> Forecast 2028/29 | K15: Forecast 2029/30 | L15: Forecast 2030/31 | M15: Forecast 2031/32 | N15: Forecast 2032/33 | O15: Forecast 2033/34
A16: ='Template names'!C23 -> Next yr of long term forecast | B16: ="Forecast "&B1+8&"/"&RIGHT(B1,2)+9 -> Forecast 2021/22 | C16: Forecast 2022/23 | D16: Forecast 2023/24 | E16: Forecast 2024/25 | F16: Forecast 2025/26 | G16: Forecast 2026/27 | H16: Forecast 2027/28 | I16: Forecast 2028/29 | J16: ="Forecast "&J1+8&"/"&RIGHT(J1,2)+9 -> Forecast 2029/30 | K16: Forecast 2030/31 | L16: Forecast 2031/32 | M16: Forecast 2032/33 | N16: Forecast 2033/34 | O16: Forecast 2034/35 | Z16: Roads Infrastructure | AA16: Roads, Pavements & Bridges | AB16: Roads | AC16: Spatial integration | AD16: Quality basic education
A17: ='Template names'!C24 -> Next yr of long term forecast | B17: ="Forecast "&B1+9&"/"&RIGHT(B1,2)+10 -> Forecast 2022/23 | C17: Forecast 2023/24 | D17: Forecast 2024/25 | E17: Forecast 2025/26 | F17: Forecast 2026/27 | G17: Forecast 2027/28 | H17: Forecast 2028/29 | I17: Forecast 2029/30 | J17: ="Forecast "&J1+9&"/"&RIGHT(J1,2)+10 -> Forecast 2030/31 | K17: Forecast 2031/32 | L17: Forecast 2032/33 | M17: Forecast 2033/34 | N17: Forecast 2034/35 | O17: Forecast 2035/36 | Z17: Storm water Infrastructure | AA17: Storm water | AB17: Road Structures | AC17: Inclusion and access | AD17: A long and healthy life for all South Africans
A18: ='Template names'!C25 -> Next yr of long term forecast | B18: ="Forecast "&B1+10&"/"&RIGHT(B1,2)+11 -> Forecast 2023/24 | C18: Forecast 2024/25 | D18: Forecast 2025/26 | E18: Forecast 2026/27 | F18: Forecast 2027/28 | G18: Forecast 2028/29 | H18: Forecast 2029/30 | I18: Forecast 2030/31 | J18: ="Forecast "&J1+10&"/"&RIGHT(J1,2)+11 -> Forecast 2031/32 | K18: Forecast 2032/33 | L18: Forecast 2033/34 | M18: Forecast 2034/35 | N18: Forecast 2035/36 | O18: Forecast 2036/37 | Z18: Electrical Infrastructure | AA18: Generation | AB18: Road Furniture | AC18: Growth | AD18: All people in South Africa are and feel safe
A19: ='Template names'!C26 -> Next yr of long term forecast | B19: ="Forecast "&B1+11&"/"&RIGHT(B1,2)+12 -> Forecast 2024/25 | C19: Forecast 2025/26 | D19: Forecast 2026/27 | E19: Forecast 2027/28 | F19: Forecast 2028/29 | G19: Forecast 2029/30 | H19: Forecast 2030/31 | I19: Forecast 2031/32 | J19: ="Forecast "&J1+11&"/"&RIGHT(J1,2)+12 -> Forecast 2032/33 | K19: Forecast 2033/34 | L19: Forecast 2034/35 | M19: Forecast 2035/36 | N19: Forecast 2036/37 | O19: Forecast 2037/38 | Z19: Water Supply Infrastructure | AA19: Transmission & Reticulation | AB19: Capital Spares | AC19: Governance | AD19: Decent employment through inclusive growth
A20: ='Template names'!C27 -> Next yr of long term forecast | B20: ="Forecast "&B1+12&"/"&RIGHT(B1,2)+13 -> Forecast 2025/26 | C20: Forecast 2026/27 | D20: Forecast 2027/28 | E20: Forecast 2028/29 | F20: Forecast 2029/30 | G20: Forecast 2030/31 | H20: Forecast 2031/32 | I20: Forecast 2032/33 | J20: ="Forecast "&J1+12&"/"&RIGHT(J1,2)+13 -> Forecast 2033/34 | K20: Forecast 2034/35 | L20: Forecast 2035/36 | M20: Forecast 2036/37 | N20: Forecast 2037/38 | O20: Forecast 2038/39 | Z20: Sanitation Infrastructure | AA20: Street Lighting | AB20: Drainage Collection | AD20: A skilled and capable workforce to support an inclusive growth path
A21: ='Template names'!C28 -> Next yr of long term forecast | B21: ="Forecast "&B1+13&"/"&RIGHT(B1,2)+14 -> Forecast 2026/27 | C21: Forecast 2027/28 | D21: Forecast 2028/29 | E21: Forecast 2029/30 | F21: Forecast 2030/31 | G21: Forecast 2031/32 | H21: Forecast 2032/33 | I21: Forecast 2033/34 | J21: ="Forecast "&J1+13&"/"&RIGHT(J1,2)+14 -> Forecast 2034/35 | K21: Forecast 2035/36 | L21: Forecast 2036/37 | M21: Forecast 2037/38 | N21: Forecast 2038/39 | O21: Forecast 2039/40 | Z21: Solid Waste Infrastructure | AA21: Dams & Reservoirs | AB21: Storm water Conveyance | AD21: An efficient, competitive and responsive economic infrastructure network
A22: ='Template names'!C29 -> Next yr of long term forecast | B22: ="Forecast "&B1+14&"/"&RIGHT(B1,2)+15 -> Forecast 2027/28 | C22: Forecast 2028/29 | D22: Forecast 2029/30 | E22: Forecast 2030/31 | F22: Forecast 2031/32 | G22: Forecast 2032/33 | H22: Forecast 2033/34 | I22: Forecast 2034/35 | J22: ="Forecast "&J1+14&"/"&RIGHT(J1,2)+15 -> Forecast 2035/36 | K22: Forecast 2036/37 | L22: Forecast 2037/38 | M22: Forecast 2038/39 | N22: Forecast 2039/40 | O22: Forecast 2040/41 | Z22: Rail Infrastructure | AA22: Water purification | AB22: Attenuation | AD22: Vibrant, equitable, sustainable rural communities contributing towards food security for all
A23: Adjustments Budget | B23: ="Annual target " & B1&"/"&RIGHT(B1,2)+1 -> Annual target 2013/14 | C23: Annual target 2014/15 | D23: Annual target 2015/16 | E23: Annual target 2016/17 | F23: Annual target 2017/18 | G23: Annual target 2018/19 | H23: Annual target 2019/20 | I23: Annual target 2020/21 | J23: ="Annual target " & J1&"/"&RIGHT(J1,2)+1 -> Annual target 2021/22 | K23: Annual target 2022/23 | L23: Annual target 2023/24 | M23: Annual target 2024/25 | N23: Annual target 2025/26 | O23: Annual target 2026/27 | Z23: Coastal Infrastructure | AA23: Reticulation | AB23: Power Plants | AD23: Sustainable human settlements and improved quality of household life
A24: =A23 -> Adjustments Budget | B24: ="Revised target "& B1&"/"&RIGHT(B1,2)+1 -> Revised target 2013/14 | C24: Revised target 2014/15 | D24: Revised target 2015/16 | E24: Revised target 2016/17 | F24: Revised target 2017/18 | G24: Revised target 2018/19 | H24: Revised target 2019/20 | I24: Revised target 2020/21 | J24: ="Revised target "& J1&"/"&RIGHT(J1,2)+1 -> Revised target 2021/22 | K24: Revised target 2022/23 | L24: Revised target 2023/24 | M24: Revised target 2024/25 | N24: Revised target 2025/26 | O24: Revised target 2026/27 | Z24: Information and Communication Infrastructure | AA24: Sewerage purification | AB24: HV Substations | AD24: Responsive, accountable, effective and efficient local government
A25: NOTE: This sheet should not be directly amended - select headings from sheet 'S' | Z25: Community Facilities | AA25: Waste Management | AB25: HV Switching Station | AD25: Protect and enhance our environmental assets and natural resources
Z26: Sport and Recreation Facilities | AA26: Transportation | AB26: HV Transmission Conductors | AD26: Create a better South Africa and contribute to a better Africa and a better world
A27: Name link | B27: 1 | Z27: Heritage assets | AA27: Gas | AB27: MV Substations | AD27: An efficient, effective and development-oriented public service
A28: Name of Muni | B28: =INDEX(B29:B307,B27,1) -> Choose name from list | Z28: Revenue Generating | AA28: Parks & gardens | AB28: MV Switching Stations | AD28: A comprehensive, responsive and sustainable social protection system
B29: Choose name from list | C29: Set name on 'Instructions' sheet | Z29: Non-revenue Generating | AA29: Sportsfields & stadia | AB29: MV Networks | AD29: A diverse, socially cohesive society with a common national identity
B30: BUF Buffalo City | C30: EC EASTERN CAPE | Z30: Operational Buildings | AA30: Swimming pools | AB30: LV Networks
B31: NMA Nelson Mandela Bay | C31: EC EASTERN CAPE | Z31: Housing | AA31: Community halls | AB31: Capital Spares
B32: EC101 Dr Beyers Naude | C32: EC EASTERN CAPE | Z32: Biological or Cultivated Assets | AA32: Libraries | AB32: Dams and Weirs
B33: EC102 Blue Crane Route | C33: EC EASTERN CAPE | Z33: Servitudes | AA33: Recreational facilities | AB33: Boreholes
B34: EC104 Makana | C34: EC EASTERN CAPE | Z34: Licences and Rights | AA34: Fire, safety & emergency | AB34: Reservoirs
B35: EC105 Ndlambe | C35: EC EASTERN CAPE | Z35: Computer Equipment | AA35: Security and policing | AB35: Pump Stations
B36: EC106 Sundays River Valley | C36: EC EASTERN CAPE | Z36: Furniture and Office Equipment | AA36: Buses | AB36: Water Treatment Works
B37: EC108 Kouga | C37: EC EASTERN CAPE | Z37: Machinery and Equipment | AA37: Clinics | AB37: Bulk Mains
B38: EC109 Kou-Kamma | C38: EC EASTERN CAPE | Z38: Transport Assets | AA38: Museums & Art Galleries | AB38: Distribution
B39: DC10 Sarah Baartman | C39: EC EASTERN CAPE | Z39: Land | AA39: Cemeteries | AB39: Distribution Points
B40: EC121 Mbhashe | C40: EC EASTERN CAPE | Z40: Zoo's, Marine and Non-biological Animals | AA40: Social rental housing | AB40: PRV Stations
B41: EC122 Mnquma | C41: EC EASTERN CAPE | AA41: Buildings | AB41: Capital Spares
B42: EC123 Great Kei | C42: EC EASTERN CAPE | AA42: Housing development | AB42: Pump Station
B43: EC124 Amahlathi | C43: EC EASTERN CAPE | AA43: General vehicles | AB43: Reticulation
B44: EC126 Ngqushwa | C44: EC EASTERN CAPE | AA44: Specialised vehicles - Refuse | AB44: Waste Water Treatment Works
B45: EC129 Raymond Mhlaba | C45: EC EASTERN CAPE | AA45: Specialised vehicles - Fire | AB45: Outfall Sewers
B46: DC12 Amathole | C46: EC EASTERN CAPE | AA46: Specialised vehicles - Conservancy | AB46: Toilet Facilities
B47: EC131 Inxuba Yethemba | C47: EC EASTERN CAPE | AA47: Specialised vehicles - Ambulances | AB47: Capital Spares
B48: EC135 Intsika Yethu | C48: EC EASTERN CAPE | AA48: Plant & equipment | AB48: Landfill Sites
B49: EC136 Emalahleni (Ec) | C49: EC EASTERN CAPE | AA49: Computers - hardware/equipment | AB49: Waste Transfer Stations
B50: EC137 Engcobo | C50: EC EASTERN CAPE | AA50: Furniture and other office equipment | AB50: Waste Processing Facilities
B51: EC138 Sakhisizwe | C51: EC EASTERN CAPE | AA51: Abattoirs | AB51: Waste Drop-off Points
B52: EC139 Enoch Mgijima | C52: EC EASTERN CAPE | AA52: Markets | AB52: Waste Separation Facilities
B53: DC13 Chris Hani | C53: EC EASTERN CAPE | AA53: Civic Land and Buildings | AB53: Electricity Generation Facilities
B54: EC141 Elundini | C54: EC EASTERN CAPE | AA54: Other Buildings | AB54: Capital Spares
B55: EC142 Senqu | C55: EC EASTERN CAPE | AA55: Other Land | AB55: Rail Lines
B56: EC145 Walter Sisulu | C56: EC EASTERN CAPE | AA56: Surplus Assets - (Investment or Inventory) | AB56: Rail Structures
B57: DC14 Joe Gqabi | C57: EC EASTERN CAPE | AA57: Computers - software & programming | AB57: Rail Furniture
B58: EC153 Ngquza Hills | C58: EC EASTERN CAPE | AA58: Other | AB58: Drainage Collection
B59: EC154 Port St Johns | C59: EC EASTERN CAPE | AB59: Storm water Conveyance
B60: EC155 Nyandeni | C60: EC EASTERN CAPE | Z60: SA16 - Investments | AB60: Attenuation
B61: EC156 Mhlontlo | C61: EC EASTERN CAPE | Z61: Security | AA61: Interest rate | AB61: MV Substations
B62: EC157 King Sabata Dalindyebo | C62: EC EASTERN CAPE | Z62: Yes | AA62: Fixed | AB62: LV Networks
B63: DC15 O .R. Tambo | C63: EC EASTERN CAPE | Z63: No | AA63: Variable | AB63: Capital Spares
B64: EC441 Matatiele | C64: EC EASTERN CAPE | AB64: Sand Pumps
B65: EC442 Umzimvubu | C65: EC EASTERN CAPE | AB65: Piers
B66: EC443 Winnie Madikizela Mandela | C66: EC EASTERN CAPE | Z66: SA36, SA37 - Capital projects | AB66: Revetments
B67: EC444 Ntabankulu | C67: EC EASTERN CAPE | Z67: Yes | AB67: Promenades
B68: DC44 Alfred Nzo | C68: EC EASTERN CAPE | Z68: No | AB68: Capital Spares
B69: MAN Mangaung | C69: FS FREE STATE | AB69: Data Centres
B70: FS161 Letsemeng | C70: FS FREE STATE | AB70: Core Layers
B71: FS162 Kopanong | C71: FS FREE STATE | AB71: Distribution Layers
B72: FS163 Mohokare | C72: FS FREE STATE | AB72: Capital Spares
B73: DC16 Xhariep | C73: FS FREE STATE | AB73: Halls
B74: FS181 Masilonyana | C74: FS FREE STATE | AB74: Centres
B75: FS182 Tokologo | C75: FS FREE STATE | AB75: Crèches
B76: FS183 Tswelopele | C76: FS FREE STATE | AB76: Clinics/Care Centres
B77: FS184 Matjhabeng | C77: FS FREE STATE | AB77: Fire/Ambulance Stations
B78: FS185 Nala | C78: FS FREE STATE | AB78: Testing Stations
B79: DC18 Lejweleputswa | C79: FS FREE STATE | AB79: Museums
B80: FS191 Setsoto | C80: FS FREE STATE | AB80: Galleries
B81: FS192 Dihlabeng | C81: FS FREE STATE | AB81: Theatres
B82: FS193 Nketoana | C82: FS FREE STATE | AB82: Libraries
B83: FS194 Maluti-a-Phofung | C83: FS FREE STATE | AB83: Cemeteries/Crematoria
B84: FS195 Phumelela | C84: FS FREE STATE | AB84: Police
B85: FS196 Mantsopa | C85: FS FREE STATE | AB85: Purls
B86: DC19 Thabo Mofutsanyana | C86: FS FREE STATE | AB86: Public Open Space
B87: FS201 Moqhaka | C87: FS FREE STATE | AB87: Nature Reserves
B88: FS203 Ngwathe | C88: FS FREE STATE | AB88: Public Ablution Facilities
B89: FS204 Metsimaholo | C89: FS FREE STATE | AB89: Markets
B90: FS205 Mafube | C90: FS FREE STATE | AB90: Stalls
B91: DC20 Fezile Dabi | C91: FS FREE STATE | AB91: Abattoirs
B92: EKU City of Ekurhuleni | C92: GT GAUTENG | AB92: Airports
B93: JHB City Of Johannesburg | C93: GT GAUTENG | AB93: Taxi Ranks/Bus Terminals
B94: TSH City Of Tshwane | C94: GT GAUTENG | AB94: Capital Spares
B95: GT421 Emfuleni | C95: GT GAUTENG | AB95: Indoor Facilities
B96: GT422 Midvaal | C96: GT GAUTENG | AB96: Outdoor Facilities
B97: GT423 Lesedi | C97: GT GAUTENG | AB97: Capital Spares
B98: DC42 Sedibeng | C98: GT GAUTENG | AB98: Monuments
B99: GT481 Mogale City | C99: GT GAUTENG | AB99: Historic Buildings
B100: GT484 Merafong City | C100: GT GAUTENG | AB100: Works of Art
B101: GT485 Rand West City | C101: GT GAUTENG | AB101: Conservation Areas
B102: DC48 West Rand | C102: GT GAUTENG | AB102: Other Heritage
B103: ETH eThekwini | C103: KZN KWAZULU-NATAL | AB103: Improved Property
B104: KZN212 Umdoni | C104: KZN KWAZULU-NATAL | AB104: Unimproved Property
B105: KZN213 Umzumbe | C105: KZN KWAZULU-NATAL | AB105: Municipal Offices
B106: KZN214 uMuziwabantu | C106: KZN KWAZULU-NATAL | AB106: Pay/Enquiry Points
B107: KZN216 Ray Nkonyeni | C107: KZN KWAZULU-NATAL | AB107: Building Plan Offices
B108: DC21 Ugu | C108: KZN KWAZULU-NATAL | AB108: Workshops
B109: KZN221 uMshwathi | C109: KZN KWAZULU-NATAL | AB109: Yards
B110: KZN222 uMngeni | C110: KZN KWAZULU-NATAL | AB110: Stores
B111: KZN223 Mpofana | C111: KZN KWAZULU-NATAL | AB111: Laboratories
B112: KZN224 Impendle | C112: KZN KWAZULU-NATAL | AB112: Training Centres
B113: KZN225 Msunduzi | C113: KZN KWAZULU-NATAL | AB113: Manufacturing Plant
B114: KZN226 Mkhambathini | C114: KZN KWAZULU-NATAL | AB114: Depots
B115: KZN227 Richmond | C115: KZN KWAZULU-NATAL | AB115: Capital Spares
B116: DC22 uMgungundlovu | C116: KZN KWAZULU-NATAL | AB116: Staff Housing
B117: KZN235 Okhahlamba | C117: KZN KWAZULU-NATAL | AB117: Social Housing
B118: KZN237 Inkosi Langalibalele | C118: KZN KWAZULU-NATAL | AB118: Capital Spares
B119: KZN238 Alfred Duma | C119: KZN KWAZULU-NATAL | AB119: Water Rights
B120: DC23 Uthukela | C120: KZN KWAZULU-NATAL | AB120: Effluent Licenses
B121: KZN241 Endumeni | C121: KZN KWAZULU-NATAL | AB121: Solid Waste Licenses
B122: KZN242 Nquthu | C122: KZN KWAZULU-NATAL | AB122: Computer Software and Applications
B123: KZN244 Msinga | C123: KZN KWAZULU-NATAL | AB123: Load Settlement Software Applications
B124: KZN245 Umvoti | C124: KZN KWAZULU-NATAL | AB124: Unspecified
B125: DC24 Umzinyathi | C125: KZN KWAZULU-NATAL
B126: KZN252 Newcastle | C126: KZN KWAZULU-NATAL
B127: KZN253 Emadlangeni | C127: KZN KWAZULU-NATAL
B128: KZN254 Dannhauser | C128: KZN KWAZULU-NATAL
B129: DC25 Amajuba | C129: KZN KWAZULU-NATAL
B130: KZN261 eDumbe | C130: KZN KWAZULU-NATAL
B131: KZN262 uPhongolo | C131: KZN KWAZULU-NATAL
B132: KZN263 Abaqulusi | C132: KZN KWAZULU-NATAL
B133: KZN265 Nongoma | C133: KZN KWAZULU-NATAL
B134: KZN266 Ulundi | C134: KZN KWAZULU-NATAL
B135: DC26 Zululand | C135: KZN KWAZULU-NATAL
B136: KZN271 Umhlabuyalingana | C136: KZN KWAZULU-NATAL
B137: KZN272 Jozini | C137: KZN KWAZULU-NATAL
B138: KZN275 Mtubatuba | C138: KZN KWAZULU-NATAL
B139: KZN276 Hlabisa Big Five | C139: KZN KWAZULU-NATAL
B140: DC27 Umkhanyakude | C140: KZN KWAZULU-NATAL
B141: KZN281 Mfolozi | C141: KZN KWAZULU-NATAL
B142: KZN282 uMhlathuze | C142: KZN KWAZULU-NATAL
B143: KZN284 uMlalazi | C143: KZN KWAZULU-NATAL
B144: KZN285 Mthonjaneni | C144: KZN KWAZULU-NATAL
B145: KZN286 Nkandla | C145: KZN KWAZULU-NATAL
B146: DC28 King Cetshwayo | C146: KZN KWAZULU-NATAL
B147: KZN291 Mandeni | C147: KZN KWAZULU-NATAL
B148: KZN292 KwaDukuza | C148: KZN KWAZULU-NATAL
B149: KZN293 Ndwedwe | C149: KZN KWAZULU-NATAL
B150: KZN294 Maphumulo | C150: KZN KWAZULU-NATAL
B151: DC29 iLembe | C151: KZN KWAZULU-NATAL
B152: KZN433 Greater Kokstad | C152: KZN KWAZULU-NATAL
B153: KZN434 Ubuhlebezwe | C153: KZN KWAZULU-NATAL
B154: KZN435 Umzimkhulu | C154: KZN KWAZULU-NATAL
B155: KZN436 Dr Nkosazana Dlamini Zuma | C155: KZN KWAZULU-NATAL
B156: DC43 Harry Gwala | C156: KZN KWAZULU-NATAL
B157: LIM331 Greater Giyani | C157: LIM LIMPOPO
B158: LIM332 Greater Letaba | C158: LIM LIMPOPO
B159: LIM333 Greater Tzaneen | C159: LIM LIMPOPO
B160: LIM334 Ba-Phalaborwa | C160: LIM LIMPOPO
B161: LIM335 Maruleng | C161: LIM LIMPOPO
B162: DC33 Mopani | C162: LIM LIMPOPO
B163: LIM341 Musina | C163: LIM LIMPOPO
B164: LIM343 Thulamela | C164: LIM LIMPOPO
B165: LIM344 Makhado | C165: LIM LIMPOPO
B166: LIM345 Collins Chabane | C166: LIM LIMPOPO
B167: DC34 Vhembe | C167: LIM LIMPOPO
B168: LIM351 Blouberg | C168: LIM LIMPOPO
B169: LIM353 Molemole | C169: LIM LIMPOPO
B170: LIM354 Polokwane | C170: LIM LIMPOPO
B171: LIM355 Lepelle-Nkumpi | C171: LIM LIMPOPO
B172: DC35 Capricorn | C172: LIM LIMPOPO
B173: LIM361 Thabazimbi | C173: LIM LIMPOPO
B174: LIM362 Lephalale | C174: LIM LIMPOPO
B175: LIM366 Bela Bela | C175: LIM LIMPOPO
B176: LIM367 Mogalakwena | C176: LIM LIMPOPO
B177: LIM368 Modimolle-Mookgopong | C177: LIM LIMPOPO
B178: DC36 Waterberg | C178: LIM LIMPOPO
B179: LIM471 Ephraim Mogale | C179: LIM LIMPOPO
B180: LIM472 Elias Motsoaledi | C180: LIM LIMPOPO
B181: LIM473 Makhuduthamaga | C181: LIM LIMPOPO
B182: LIM476 Tubatse Fetakgomo | C182: LIM LIMPOPO
B183: DC47 Sekhukhune | C183: LIM LIMPOPO
B184: MP301 Albert Luthuli | C184: MP MPUMALANGA
B185: MP302 Msukaligwa | C185: MP MPUMALANGA
B186: MP303 Mkhondo | C186: MP MPUMALANGA
B187: MP304 Pixley Ka Seme (MP) | C187: MP MPUMALANGA
B188: MP305 Lekwa | C188: MP MPUMALANGA
B189: MP306 Dipaleseng | C189: MP MPUMALANGA
B190: MP307 Govan Mbeki | C190: MP MPUMALANGA
B191: DC30 Gert Sibande | C191: MP MPUMALANGA
B192: MP311 Victor Khanye | C192: MP MPUMALANGA
B193: MP312 Emalahleni (Mp) | C193: MP MPUMALANGA
B194: MP313 Steve Tshwete | C194: MP MPUMALANGA
B195: MP314 Emakhazeni | C195: MP MPUMALANGA
B196: MP315 Thembisile Hani | C196: MP MPUMALANGA
B197: MP316 Dr J.S. Moroka | C197: MP MPUMALANGA
B198: DC31 Nkangala | C198: MP MPUMALANGA
B199: MP321 Thaba Chweu | C199: MP MPUMALANGA
B200: MP324 Nkomazi | C200: MP MPUMALANGA
... 87 more rows

Sheet Org structure
A1: Organisational Structure Votes | C1: Organisational Structure Sub-Votes | E1: Display Sub-Votes
A2: =B2&" - "&C2 -> Vote 1 - Office of Municipal Manager | B2: Vote 1 | C2: Office of Municipal Manager
A3: =B13&" - "& C13 -> Vote 2 - Budget and Treasury | B3: 1.1 | C3: [Name of sub-vote] | D3: =CONCATENATE(B3, " - ", C3) -> 1.1 - [Name of sub-vote] | E3: 1.1 - [Name of sub-vote]
A4: =B24&" - "&C24 -> Vote 3 - Corporate Services | B4: 1.2 | C4: [Name of sub-vote] | D4: 1.2 - [Name of sub-vote]
A5: =B35&" - "&C35 -> Vote 4 - Social Service | B5: 1.3 | C5: [Name of sub-vote] | D5: 1.3 - [Name of sub-vote]
A6: =B46&" - "&C46 -> Vote 5 - Technical and Engineering Services | B6: 1.4 | C6: [Name of sub-vote] | D6: 1.4 - [Name of sub-vote]
A7: =B57&" - "&C57 -> Vote 6 - Property, Planning & Development | B7: 1.5 | C7: [Name of sub-vote] | D7: 1.5 - [Name of sub-vote]
A8: =B68&" - "&C68 -> Vote 7 - Office of the Mayor/Strategic Office | B8: 1.6 | C8: [Name of sub-vote] | D8: 1.6 - [Name of sub-vote]
A9: =B79&" - "&C79 -> Vote 8 - COMMUNITY & SOCIAL SERVICES | B9: 1.7 | C9: [Name of sub-vote] | D9: 1.7 - [Name of sub-vote]
A10: =B90&" - "&C90 -> Vote 9 - [NAME OF VOTE 9] | B10: 1.8 | C10: [Name of sub-vote] | D10: 1.8 - [Name of sub-vote]
A11: =B101&" - "&C101 -> Vote 10 - [NAME OF VOTE 10] | B11: 1.9 | C11: [Name of sub-vote] | D11: 1.9 - [Name of sub-vote]
A12: =B112&" - "&C112 -> Vote 11 - [NAME OF VOTE 11] | B12: 1.10 | C12: [Name of sub-vote] | D12: 1.10 - [Name of sub-vote]
A13: =B123&" - "&C123 -> Vote 12 - [NAME OF VOTE 12] | B13: Vote 2 | C13: Budget and Treasury
A14: =B134&" - "&C134 -> Vote 13 - [NAME OF VOTE 13] | B14: 2.1 | C14: [Name of sub-vote] | D14: =CONCATENATE(B14, " - ", C14) -> 2.1 - [Name of sub-vote] | E14: 2.1 - [Name of sub-vote]
A15: =B145&" - "&C145 -> Vote 14 - [NAME OF VOTE 14] | B15: 2.2 | C15: [Name of sub-vote] | D15: 2.2 - [Name of sub-vote]
A16: =B156&" - "&C156 -> Vote 15 - [NAME OF VOTE 15] | B16: 2.3 | C16: [Name of sub-vote] | D16: 2.3 - [Name of sub-vote]
B17: 2.4 | C17: [Name of sub-vote] | D17: 2.4 - [Name of sub-vote]
B18: 2.5 | C18: [Name of sub-vote] | D18: 2.5 - [Name of sub-vote]
B19: 2.6 | C19: [Name of sub-vote] | D19: 2.6 - [Name of sub-vote]
B20: 2.7 | C20: [Name of sub-vote] | D20: 2.7 - [Name of sub-vote]
B21: 2.8 | C21: [Name of sub-vote] | D21: 2.8 - [Name of sub-vote]
B22: 2.9 | C22: [Name of sub-vote] | D22: 2.9 - [Name of sub-vote]
B23: 2.10 | C23: [Name of sub-vote] | D23: 2.10 - [Name of sub-vote]
B24: Vote 3 | C24: Corporate Services
B25: 3.1 | C25: [Name of sub-vote] | D25: =CONCATENATE(B25, " - ", C25) -> 3.1 - [Name of sub-vote] | E25: 3.1 - [Name of sub-vote]
B26: 3.2 | C26: [Name of sub-vote] | D26: 3.2 - [Name of sub-vote]
B27: 3.3 | C27: [Name of sub-vote] | D27: 3.3 - [Name of sub-vote]
B28: 3.4 | C28: [Name of sub-vote] | D28: 3.4 - [Name of sub-vote]
B29: 3.5 | C29: [Name of sub-vote] | D29: 3.5 - [Name of sub-vote]
B30: 3.6 | C30: [Name of sub-vote] | D30: 3.6 - [Name of sub-vote]
B31: 3.7 | C31: [Name of sub-vote] | D31: 3.7 - [Name of sub-vote]
B32: 3.8 | C32: [Name of sub-vote] | D32: 3.8 - [Name of sub-vote]
B33: 3.9 | C33: [Name of sub-vote] | D33: 3.9 - [Name of sub-vote]
B34: 3.10 | C34: [Name of sub-vote] | D34: 3.10 - [Name of sub-vote]
B35: Vote 4 | C35: Social Service
B36: 4.1 | C36: [Name of sub-vote] | D36: =CONCATENATE(B36, " - ", C36) -> 4.1 - [Name of sub-vote] | E36: 4.1 - [Name of sub-vote]
B37: 4.2 | C37: [Name of sub-vote] | D37: 4.2 - [Name of sub-vote]
B38: 4.3 | C38: [Name of sub-vote] | D38: 4.3 - [Name of sub-vote]
B39: 4.4 | C39: [Name of sub-vote] | D39: 4.4 - [Name of sub-vote]
B40: 4.5 | C40: [Name of sub-vote] | D40: 4.5 - [Name of sub-vote]
B41: 4.6 | C41: [Name of sub-vote] | D41: 4.6 - [Name of sub-vote]
B42: 4.7 | C42: [Name of sub-vote] | D42: 4.7 - [Name of sub-vote]
B43: 4.8 | C43: [Name of sub-vote] | D43: 4.8 - [Name of sub-vote]
B44: 4.9 | C44: [Name of sub-vote] | D44: 4.9 - [Name of sub-vote]
B45: 4.10 | C45: [Name of sub-vote] | D45: 4.10 - [Name of sub-vote]
B46: Vote 5 | C46: Technical and Engineering Services
B47: 5.1 | C47: [Name of sub-vote] | D47: =CONCATENATE(B47, " - ", C47) -> 5.1 - [Name of sub-vote] | E47: 5.1 - [Name of sub-vote]
B48: 5.2 | C48: [Name of sub-vote] | D48: 5.2 - [Name of sub-vote]
B49: 5.3 | C49: [Name of sub-vote] | D49: 5.3 - [Name of sub-vote]
B50: 5.4 | C50: [Name of sub-vote] | D50: 5.4 - [Name of sub-vote]
B51: 5.5 | C51: [Name of sub-vote] | D51: 5.5 - [Name of sub-vote]
B52: 5.6 | C52: [Name of sub-vote] | D52: 5.6 - [Name of sub-vote]
B53: 5.7 | C53: [Name of sub-vote] | D53: 5.7 - [Name of sub-vote]
B54: 5.8 | C54: [Name of sub-vote] | D54: 5.8 - [Name of sub-vote]
B55: 5.9 | C55: [Name of sub-vote] | D55: 5.9 - [Name of sub-vote]
B56: 5.10 | C56: [Name of sub-vote] | D56: 5.10 - [Name of sub-vote]
B57: Vote 6 | C57: Property, Planning & Development
B58: 6.1 | C58: [Name of sub-vote] | D58: =CONCATENATE(B58, " - ", C58) -> 6.1 - [Name of sub-vote] | E58: 6.1 - [Name of sub-vote]
B59: 6.2 | C59: [Name of sub-vote] | D59: 6.2 - [Name of sub-vote]
B60: 6.3 | C60: [Name of sub-vote] | D60: 6.3 - [Name of sub-vote]
B61: 6.4 | C61: [Name of sub-vote] | D61: 6.4 - [Name of sub-vote]
B62: 6.5 | C62: [Name of sub-vote] | D62: 6.5 - [Name of sub-vote]
B63: 6.6 | C63: [Name of sub-vote] | D63: 6.6 - [Name of sub-vote]
B64: 6.7 | C64: [Name of sub-vote] | D64: 6.7 - [Name of sub-vote]
B65: 6.8 | C65: [Name of sub-vote] | D65: 6.8 - [Name of sub-vote]
B66: 6.9 | C66: [Name of sub-vote] | D66: 6.9 - [Name of sub-vote]
B67: 6.10 | C67: [Name of sub-vote] | D67: 6.10 - [Name of sub-vote]
B68: Vote 7 | C68: Office of the Mayor/Strategic Office
B69: 7.1 | C69: [Name of sub-vote] | D69: =CONCATENATE(B69, " - ", C69) -> 7.1 - [Name of sub-vote] | E69: 7.1 - [Name of sub-vote]
B70: 7.2 | C70: [Name of sub-vote] | D70: 7.2 - [Name of sub-vote]
B71: 7.3 | C71: [Name of sub-vote] | D71: 7.3 - [Name of sub-vote]
B72: 7.4 | C72: [Name of sub-vote] | D72: 7.4 - [Name of sub-vote]
B73: 7.5 | C73: [Name of sub-vote] | D73: 7.5 - [Name of sub-vote]
B74: 7.6 | C74: [Name of sub-vote] | D74: 7.6 - [Name of sub-vote]
B75: 7.7 | C75: [Name of sub-vote] | D75: 7.7 - [Name of sub-vote]
B76: 7.8 | C76: [Name of sub-vote] | D76: 7.8 - [Name of sub-vote]
B77: 7.9 | C77: [Name of sub-vote] | D77: 7.9 - [Name of sub-vote]
B78: 7.10 | C78: [Name of sub-vote] | D78: 7.10 - [Name of sub-vote]
B79: Vote 8 | C79: COMMUNITY & SOCIAL SERVICES
B80: 8.1 | C80: [Name of sub-vote] | D80: =CONCATENATE(B80, " - ", C80) -> 8.1 - [Name of sub-vote] | E80: 8.1 - [Name of sub-vote]
B81: 8.2 | C81: [Name of sub-vote] | D81: 8.2 - [Name of sub-vote]
B82: 8.3 | C82: [Name of sub-vote] | D82: 8.3 - [Name of sub-vote]
B83: 8.4 | C83: [Name of sub-vote] | D83: 8.4 - [Name of sub-vote]
B84: 8.5 | C84: [Name of sub-vote] | D84: 8.5 - [Name of sub-vote]
B85: 8.6 | C85: [Name of sub-vote] | D85: 8.6 - [Name of sub-vote]
B86: 8.7 | C86: [Name of sub-vote] | D86: 8.7 - [Name of sub-vote]
B87: 8.8 | C87: [Name of sub-vote] | D87: 8.8 - [Name of sub-vote]
B88: 8.9 | C88: [Name of sub-vote] | D88: 8.9 - [Name of sub-vote]
B89: 8.10 | C89: [Name of sub-vote] | D89: 8.10 - [Name of sub-vote]
B90: Vote 9 | C90: [NAME OF VOTE 9]
B91: 9.1 | C91: [Name of sub-vote] | D91: =CONCATENATE(B91, " - ", C91) -> 9.1 - [Name of sub-vote] | E91: 9.1 - [Name of sub-vote]
B92: 9.2 | C92: [Name of sub-vote] | D92: 9.2 - [Name of sub-vote]
B93: 9.3 | C93: [Name of sub-vote] | D93: 9.3 - [Name of sub-vote]
B94: 9.4 | C94: [Name of sub-vote] | D94: 9.4 - [Name of sub-vote]
B95: 9.5 | C95: [Name of sub-vote] | D95: 9.5 - [Name of sub-vote]
B96: 9.6 | C96: [Name of sub-vote] | D96: 9.6 - [Name of sub-vote]
B97: 9.7 | C97: [Name of sub-vote] | D97: 9.7 - [Name of sub-vote]
B98: 9.8 | C98: [Name of sub-vote] | D98: 9.8 - [Name of sub-vote]
B99: 9.9 | C99: [Name of sub-vote] | D99: 9.9 - [Name of sub-vote]
B100: 9.10 | C100: [Name of sub-vote] | D100: 9.10 - [Name of sub-vote]
B101: Vote 10 | C101: [NAME OF VOTE 10]
B102: 10.1 | C102: [Name of sub-vote] | D102: =CONCATENATE(B102, " - ", C102) -> 10.1 - [Name of sub-vote] | E102: 10.1 - [Name of sub-vote]
B103: 10.2 | C103: [Name of sub-vote] | D103: 10.2 - [Name of sub-vote]
B104: 10.3 | C104: [Name of sub-vote] | D104: 10.3 - [Name of sub-vote]
B105: 10.4 | C105: [Name of sub-vote] | D105: 10.4 - [Name of sub-vote]
B106: 10.5 | C106: [Name of sub-vote] | D106: 10.5 - [Name of sub-vote]
B107: 10.6 | C107: [Name of sub-vote] | D107: 10.6 - [Name of sub-vote]
B108: 10.7 | C108: [Name of sub-vote] | D108: 10.7 - [Name of sub-vote]
B109: 10.8 | C109: [Name of sub-vote] | D109: 10.8 - [Name of sub-vote]
B110: 10.9 | C110: [Name of sub-vote] | D110: 10.9 - [Name of sub-vote]
B111: 10.10 | C111: [Name of sub-vote] | D111: 10.10 - [Name of sub-vote]
B112: Vote 11 | C112: [NAME OF VOTE 11]
B113: 11.1 | C113: [Name of sub-vote] | D113: =CONCATENATE(B113, " - ", C113) -> 11.1 - [Name of sub-vote] | E113: 11.1 - [Name of sub-vote]
B114: 11.2 | C114: [Name of sub-vote] | D114: 11.2 - [Name of sub-vote]
B115: 11.3 | C115: [Name of sub-vote] | D115: 11.3 - [Name of sub-vote]
B116: 11.4 | C116: [Name of sub-vote] | D116: 11.4 - [Name of sub-vote]
B117: 11.5 | C117: [Name of sub-vote] | D117: 11.5 - [Name of sub-vote]
B118: 11.6 | C118: [Name of sub-vote] | D118: 11.6 - [Name of sub-vote]
B119: 11.7 | C119: [Name of sub-vote] | D119: 11.7 - [Name of sub-vote]
B120: 11.8 | C120: [Name of sub-vote] | D120: 11.8 - [Name of sub-vote]
B121: 11.9 | C121: [Name of sub-vote] | D121: 11.9 - [Name of sub-vote]
B122: 11.10 | C122: [Name of sub-vote] | D122: 11.10 - [Name of sub-vote]
B123: Vote 12 | C123: [NAME OF VOTE 12]
B124: 12.1 | C124: [Name of sub-vote] | D124: =CONCATENATE(B124, " - ", C124) -> 12.1 - [Name of sub-vote] | E124: 12.1 - [Name of sub-vote]
B125: 12.2 | C125: [Name of sub-vote] | D125: 12.2 - [Name of sub-vote]
B126: 12.3 | C126: [Name of sub-vote] | D126: 12.3 - [Name of sub-vote]
B127: 12.4 | C127: [Name of sub-vote] | D127: 12.4 - [Name of sub-vote]
B128: 12.5 | C128: [Name of sub-vote] | D128: 12.5 - [Name of sub-vote]
B129: 12.6 | C129: [Name of sub-vote] | D129: 12.6 - [Name of sub-vote]
B130: 12.7 | C130: [Name of sub-vote] | D130: 12.7 - [Name of sub-vote]
B131: 12.8 | C131: [Name of sub-vote] | D131: 12.8 - [Name of sub-vote]
B132: 12.9 | C132: [Name of sub-vote] | D132: 12.9 - [Name of sub-vote]
B133: 12.10 | C133: [Name of sub-vote] | D133: 12.10 - [Name of sub-vote]
B134: Vote 13 | C134: [NAME OF VOTE 13]
B135: 13.1 | C135: [Name of sub-vote] | D135: =CONCATENATE(B135, " - ", C135) -> 13.1 - [Name of sub-vote] | E135: 13.1 - [Name of sub-vote]
B136: 13.2 | C136: [Name of sub-vote] | D136: 13.2 - [Name of sub-vote]
B137: 13.3 | C137: [Name of sub-vote] | D137: 13.3 - [Name of sub-vote]
B138: 13.4 | C138: [Name of sub-vote] | D138: 13.4 - [Name of sub-vote]
B139: 13.5 | C139: [Name of sub-vote] | D139: 13.5 - [Name of sub-vote]
B140: 13.6 | C140: [Name of sub-vote] | D140: 13.6 - [Name of sub-vote]
B141: 13.7 | C141: [Name of sub-vote] | D141: 13.7 - [Name of sub-vote]
B142: 13.8 | C142: [Name of sub-vote] | D142: 13.8 - [Name of sub-vote]
B143: 13.9 | C143: [Name of sub-vote] | D143: 13.9 - [Name of sub-vote]
B144: 13.10 | C144: [Name of sub-vote] | D144: 13.10 - [Name of sub-vote]
B145: Vote 14 | C145: [NAME OF VOTE 14]
B146: 14.1 | C146: [Name of sub-vote] | D146: =CONCATENATE(B146, " - ", C146) -> 14.1 - [Name of sub-vote] | E146: 14.1 - [Name of sub-vote]
B147: 14.2 | C147: [Name of sub-vote] | D147: 14.2 - [Name of sub-vote]
B148: 14.3 | C148: [Name of sub-vote] | D148: 14.3 - [Name of sub-vote]
B149: 14.4 | C149: [Name of sub-vote] | D149: 14.4 - [Name of sub-vote]
B150: 14.5 | C150: [Name of sub-vote] | D150: 14.5 - [Name of sub-vote]
B151: 14.6 | C151: [Name of sub-vote] | D151: 14.6 - [Name of sub-vote]
B152: 14.7 | C152: [Name of sub-vote] | D152: 14.7 - [Name of sub-vote]
B153: 14.8 | C153: [Name of sub-vote] | D153: 14.8 - [Name of sub-vote]
B154: 14.9 | C154: [Name of sub-vote] | D154: 14.9 - [Name of sub-vote]
B155: 14.10 | C155: [Name of sub-vote] | D155: 14.10 - [Name of sub-vote]
B156: Vote 15 | C156: [NAME OF VOTE 15]
B157: 15.1 | C157: [Name of sub-vote] | D157: =CONCATENATE(B157, " - ", C157) -> 15.1 - [Name of sub-vote] | E157: 15.1 - [Name of sub-vote]
B158: 15.2 | C158: [Name of sub-vote] | D158: 15.2 - [Name of sub-vote]
B159: 15.3 | C159: [Name of sub-vote] | D159: 15.3 - [Name of sub-vote]
B160: 15.4 | C160: [Name of sub-vote] | D160: 15.4 - [Name of sub-vote]
B161: 15.5 | C161: [Name of sub-vote] | D161: 15.5 - [Name of sub-vote]
B162: 15.6 | C162: [Name of sub-vote] | D162: 15.6 - [Name of sub-vote]
B163: 15.7 | C163: [Name of sub-vote] | D163: 15.7 - [Name of sub-vote]
B164: 15.8 | C164: [Name of sub-vote] | D164: 15.8 - [Name of sub-vote]
B165: 15.9 | C165: [Name of sub-vote] | D165: 15.9 - [Name of sub-vote]
B166: 15.10 | C166: [Name of sub-vote] | D166: 15.10 - [Name of sub-vote]

Sheet Contacts
A1: =muni&" - "&" Contact Information" -> Choose name from list - Contact Information
A3: A. GENERAL INFORMATION
A4: Municipality | B4: =muni -> Choose name from list | C4: =IF(B4="Choose name from List","Set name on 'Instructions' sheet", "") -> Set name on 'Instructions' sheet
A6: Grade | C6: 1 Grade in terms of the Remuneration of Public Office Bearers Act.
A8: Province | B8: =IF(B4>" ",VLOOKUP(B4,'Lookup and lists'!B29:C307,2, FALSE)," ") -> Set name on 'Instructions' sheet
A10: Web Address
A12: e-mail Address
A14: B. CONTACT INFORMATION
A15: Postal address:
A16: P.O. Box
A17: City / Town
A18: Postal Code
A20: Street address
A21: Building
A22: Street No. & Name
A23: City / Town
A24: Postal Code
A26: General Contacts
A27: Telephone number
A28: Fax number
A30: C. POLITICAL LEADERSHIP
A31: Speaker: | C31: Secretary/PA to the Speaker:
A32: ID Number | C32: ID Number
A33: Title | C33: Title
A34: Name | C34: Name
A35: Telephone number | C35: Telephone number
A36: Cell number | C36: Cell number
A37: Fax number | C37: Fax number
A38: E-mail address | C38: E-mail address
A40: Mayor/Executive Mayor: | C40: Secretary/PA to the Mayor/Executive Mayor:
A41: ID Number | C41: ID Number
A42: Title | C42: Title
A43: Name | C43: Name
A44: Telephone number | C44: Telephone number
A45: Cell number | C45: Cell number
A46: Fax number | C46: Fax number
A47: E-mail address | C47: E-mail address
A49: Deputy Mayor/Executive Mayor: | C49: Secretary/PA to the Deputy Mayor/Executive Mayor:
A50: ID Number | C50: ID Number
A51: Title | C51: Title
A52: Name | C52: Name
A53: Telephone number | C53: Telephone number
A54: Cell number | C54: Cell number
A55: Fax number | C55: Fax number
A56: E-mail address | C56: E-mail address
A58: D. MANAGEMENT LEADERSHIP
A59: Municipal Manager: | C59: Secretary/PA to the Municipal Manager:
A60: ID Number | C60: ID Number
A61: Title | C61: Title
A62: Name | C62: Name
A63: Telephone number | C63: Telephone number
A64: Cell number | C64: Cell number
A65: Fax number | C65: Fax number
A66: E-mail address | C66: E-mail address
A68: Chief Financial Officer | C68: Secretary/PA to the Chief Financial Officer
A69: ID Number | C69: ID Number
A70: Title | C70: Title
A71: Name | C71: Name
A72: Telephone number | C72: Telephone number
A73: Cell number | C73: Cell number
A74: Fax number | C74: Fax number
A75: E-mail address | C75: E-mail address
A77: Official responsible for submitting financial information | C77: Official responsible for submitting financial information
A78: ID Number | C78: ID Number
A79: Title | C79: Title
A80: Name | C80: Name
A81: Telephone number | C81: Telephone number
A82: Cell number | C82: Cell number
A83: Fax number | C83: Fax number
A84: E-mail address | C84: E-mail address
A85: Official responsible for submitting financial information | C85: Official responsible for submitting financial information
A86: ID Number | C86: ID Number
A87: Title | C87: Title
A88: Name | C88: Name
A89: Telephone number | C89: Telephone number
A90: Cell number | C90: Cell number
A91: Fax number | C91: Fax number
A92: E-mail address | C92: E-mail address
A93: Official responsible for submitting financial information | C93: Official responsible for submitting financial information
A94: ID Number | C94: ID Number
A95: Title | C95: Title
A96: Name | C96: Name
A97: Telephone number | C97: Telephone number
A98: Cell number | C98: Cell number
A99: Fax number | C99: Fax number
A100: E-mail address | C100: E-mail address
A101: Official responsible for submitting financial information | C101: Official responsible for submitting financial information
A102: ID Number | C102: ID Number
A103: Title | C103: Title
A104: Name | C104: Name
A105: Telephone number | C105: Telephone number
A106: Cell number | C106: Cell number
A107: Fax number | C107: Fax number
A108: E-mail address | C108: E-mail address
A109: Official responsible for submitting financial information | C109: Official responsible for submitting financial information
A110: ID Number | C110: ID Number
A111: Title | C111: Title
A112: Name | C112: Name
A113: Telephone number | C113: Telephone number
A114: Cell number | C114: Cell number
A115: Fax number | C115: Fax number
A116: E-mail address | C116: E-mail address
A117: Official responsible for submitting financial information | C117: Official responsible for submitting financial information
A118: ID Number | C118: ID Number
A119: Title | C119: Title
A120: Name | C120: Name
A121: Telephone number | C121: Telephone number
A122: Cell number | C122: Cell number
A123: Fax number | C123: Fax number
A124: E-mail address | C124: E-mail address
A125: Official responsible for submitting financial information | C125: Official responsible for submitting financial information
A126: ID Number | C126: ID Number
A127: Title | C127: Title
A128: Name | C128: Name
A129: Telephone number | C129: Telephone number
A130: Cell number | C130: Cell number
A131: Fax number | C131: Fax number
A132: E-mail address | C132: E-mail address
A133: Official responsible for submitting financial information
A134: ID Number
A135: Title
A136: Name
A137: Telephone number
A138: Cell number
A139: Fax number
A140: E-mail address

Sheet A1-Sum
A1: =muni&" - "&Approve1 -> Choose name from list - Table A1 Budget Summary
A2: =desc -> Description | B2: =head1b -> 2018/19 | C2: =head1A -> 2019/20 | D2: =Head1 -> 2020/21 | E2: =Head2 -> Current Year 2021/22 | I2: =Head3 -> 2022/23 Medium Term Revenue & Expenditure Framework
A3: R thousands | B3: =Head5 -> Audited Outcome | C3: =Head5 -> Audited Outcome | D3: =Head5 -> Audited Outcome | E3: =Head6 -> Original Budget | F3: =Head7 -> Adjusted Budget | G3: =Head8 -> Full Year Forecast | H3: =Head5b -> Pre-audit outcome | I3: =Head9 -> Budget Year 2022/23 | J3: =Head10 -> Budget Year +1 2023/24 | K3: =Head11 -> Budget Year +2 2024/25
A4: Financial Performance
A5: Property rates | B5: ='A4-FinPerf RE'!C5 -> 83321588.71 | C5: ='A4-FinPerf RE'!D5 -> 73517010.81 | D5: ='A4-FinPerf RE'!E5 -> 101682966.3 | E5: ='A4-FinPerf RE'!F5 -> 106591056 | F5: ='A4-FinPerf RE'!G5 -> 106591056 | G5: ='A4-FinPerf RE'!H5 -> 106591056 | H5: ='A4-FinPerf RE'!I5 -> 106591056 | I5: ='A4-FinPerf RE'!J5 -> 112986506 | J5: ='A4-FinPerf RE'!K5 -> 117957913 | K5: ='A4-FinPerf RE'!L5 -> 123266019
A6: Service charges | B6: =SUM('A4-FinPerf RE'!C6:C9) -> 100347596.9 | C6: =SUM('A4-FinPerf RE'!D6:D9) -> 255307432.4 | D6: =SUM('A4-FinPerf RE'!E6:E9) -> 262447652.5 | E6: =SUM('A4-FinPerf RE'!F6:F9) -> 330663870 | F6: =SUM('A4-FinPerf RE'!G6:G9) -> 330663870 | G6: =SUM('A4-FinPerf RE'!H6:H9) -> 330663870 | H6: =SUM('A4-FinPerf RE'!I6:I9) -> 333170873 | I6: =SUM('A4-FinPerf RE'!J6:J9) -> 367925033 | J6: =SUM('A4-FinPerf RE'!K6:K9) -> 384113737 | K6: =SUM('A4-FinPerf RE'!L6:L9) -> 401399214
A7: Investment revenue | B7: ='A4-FinPerf RE'!C12 -> 300622.03 | C7: ='A4-FinPerf RE'!D12 -> 5775874.17 | D7: ='A4-FinPerf RE'!E12 -> 4550785.14 | E7: ='A4-FinPerf RE'!F12 -> 2168475 | F7: ='A4-FinPerf RE'!G12 -> 2168475 | G7: ='A4-FinPerf RE'!H12 -> 2168475 | H7: ='A4-FinPerf RE'!I12 -> 2168475 | I7: ='A4-FinPerf RE'!J12 -> 2298580 | J7: ='A4-FinPerf RE'!K12 -> 2399719 | K7: ='A4-FinPerf RE'!L12 -> 2507706
A8: Transfers recognised - operational | B8: ='A4-FinPerf RE'!C18 -> 101053981.5 | C8: ='A4-FinPerf RE'!D18 -> 153235440 | D8: ='A4-FinPerf RE'!E18 -> 190086687.3 | E8: ='A4-FinPerf RE'!F18 -> 179916700 | F8: ='A4-FinPerf RE'!G18 -> 191116700 | G8: ='A4-FinPerf RE'!H18 -> 191116700 | H8: ='A4-FinPerf RE'!I18 -> 191116700 | I8: ='A4-FinPerf RE'!J18 -> 207992600 | J8: ='A4-FinPerf RE'!K18 -> 227216490 | K8: ='A4-FinPerf RE'!L18 -> 250874582
A9: Other own revenue | B9: ='A4-FinPerf RE'!C11+'A4-FinPerf RE'!C13+'A4-FinPerf RE'!C14+'A4-FinPerf RE'!C15+'A4-FinPerf RE'!C16+'A4-FinPerf RE'!C17+'A4-FinPerf RE'!C19+'A4-FinPerf RE'!C20 -> 20647613.57 | C9: ='A4-FinPerf RE'!D11+'A4-FinPerf RE'!D13+'A4-FinPerf RE'!D14+'A4-FinPerf RE'!D15+'A4-FinPerf RE'!D16+'A4-FinPerf RE'!D17+'A4-FinPerf RE'!D19+'A4-FinPerf RE'!D20 -> 31017139.86 | D9: ='A4-FinPerf RE'!E11+'A4-FinPerf RE'!E13+'A4-FinPerf RE'!E14+'A4-FinPerf RE'!E15+'A4-FinPerf RE'!E16+'A4-FinPerf RE'!E17+'A4-FinPerf RE'!E19+'A4-FinPerf RE'!E20 -> 51634911.28 | E9: ='A4-FinPerf RE'!F11+'A4-FinPerf RE'!F13+'A4-FinPerf RE'!F14+'A4-FinPerf RE'!F15+'A4-FinPerf RE'!F16+'A4-FinPerf RE'!F17+'A4-FinPerf RE'!F19+'A4-FinPerf RE'!F20 -> 47616686 | F9: ='A4-FinPerf RE'!G11+'A4-FinPerf RE'!G13+'A4-FinPerf RE'!G14+'A4-FinPerf RE'!G15+'A4-FinPerf RE'!G16+'A4-FinPerf RE'!G17+'A4-FinPerf RE'!G19+'A4-FinPerf RE'!G20 -> 47616667 | G9: ='A4-FinPerf RE'!H11+'A4-FinPerf RE'!H13+'A4-FinPerf RE'!H14+'A4-FinPerf RE'!H15+'A4-FinPerf RE'!H16+'A4-FinPerf RE'!H17+'A4-FinPerf RE'!H19+'A4-FinPerf RE'!H20 -> 47616667 | H9: ='A4-FinPerf RE'!I11+'A4-FinPerf RE'!I13+'A4-FinPerf RE'!I14+'A4-FinPerf RE'!I15+'A4-FinPerf RE'!I16+'A4-FinPerf RE'!I17+'A4-FinPerf RE'!I19+'A4-FinPerf RE'!I20 -> 47616667 | I9: ='A4-FinPerf RE'!J11+'A4-FinPerf RE'!J13+'A4-FinPerf RE'!J14+'A4-FinPerf RE'!J15+'A4-FinPerf RE'!J16+'A4-FinPerf RE'!J17+'A4-FinPerf RE'!J19+'A4-FinPerf RE'!J20 -> 50466843 | J9: ='A4-FinPerf RE'!K11+'A4-FinPerf RE'!K13+'A4-FinPerf RE'!K14+'A4-FinPerf RE'!K15+'A4-FinPerf RE'!K16+'A4-FinPerf RE'!K17+'A4-FinPerf RE'!K19+'A4-FinPerf RE'!K20 -> 52687378 | K9: ='A4-FinPerf RE'!L11+'A4-FinPerf RE'!L13+'A4-FinPerf RE'!L14+'A4-FinPerf RE'!L15+'A4-FinPerf RE'!L16+'A4-FinPerf RE'!L17+'A4-FinPerf RE'!L19+'A4-FinPerf RE'!L20 -> 55058307
A10: ='A4-FinPerf RE'!A21 -> Total Revenue (excluding capital transfers and contributions) | B10: =SUM(B5:B9) -> 305671402.7 | C10: 518852897.3 | D10: 610403002.4 | E10: 666956787 | F10: 678156768 | G10: 678156768 | H10: 680663771 | I10: 741669562 | J10: 784375237 | K10: 833105828
A11: Employee costs | B11: ='A4-FinPerf RE'!C24 -> 72637081.47 | C11: ='A4-FinPerf RE'!D24 -> 191557891.4 | D11: ='A4-FinPerf RE'!E24 -> 212324457.7 | E11: ='A4-FinPerf RE'!F24 -> 228865302 | F11: ='A4-FinPerf RE'!G24 -> 225707477 | G11: ='A4-FinPerf RE'!H24 -> 225707477 | H11: ='A4-FinPerf RE'!I24 -> 225707477 | I11: ='A4-FinPerf RE'!J24 -> 236854111 | J11: ='A4-FinPerf RE'!K24 -> 247275738 | K11: ='A4-FinPerf RE'!L24 -> 258403139
A12: Remuneration of councillors | B12: ='A4-FinPerf RE'!C25 -> 4166128.35 | C12: ='A4-FinPerf RE'!D25 -> 10922233.46 | D12: ='A4-FinPerf RE'!E25 -> 10912366.72 | E12: ='A4-FinPerf RE'!F25 -> 11686653 | F12: ='A4-FinPerf RE'!G25 -> 12189596 | G12: ='A4-FinPerf RE'!H25 -> 12189596 | H12: ='A4-FinPerf RE'!I25 -> 12189596 | I12: ='A4-FinPerf RE'!J25 -> 12921079 | J12: ='A4-FinPerf RE'!K25 -> 13489604 | K12: ='A4-FinPerf RE'!L25 -> 14096638
A13: Depreciation & asset impairment | B13: ='A4-FinPerf RE'!C27 -> 2345634.73 | C13: ='A4-FinPerf RE'!D27 -> 91190780.22 | D13: ='A4-FinPerf RE'!E27 -> 84394856.93 | E13: ='A4-FinPerf RE'!F27 -> 92704836 | F13: ='A4-FinPerf RE'!G27 -> 92704906 | G13: ='A4-FinPerf RE'!H27 -> 92704906 | H13: ='A4-FinPerf RE'!I27 -> 92704906 | I13: ='A4-FinPerf RE'!J27 -> 97057059 | J13: ='A4-FinPerf RE'!K27 -> 101271206 | K13: ='A4-FinPerf RE'!L27 -> 105301370
A14: Finance charges | B14: ='A4-FinPerf RE'!C28 -> 3739848.37 | C14: ='A4-FinPerf RE'!D28 -> 19407626.48 | D14: ='A4-FinPerf RE'!E28 -> 19516753.35 | E14: ='A4-FinPerf RE'!F28 -> 19213294 | F14: ='A4-FinPerf RE'!G28 -> 16132294 | G14: ='A4-FinPerf RE'!H28 -> 16132294 | H14: ='A4-FinPerf RE'!I28 -> 16132294 | I14: ='A4-FinPerf RE'!J28 -> 14895531 | J14: ='A4-FinPerf RE'!K28 -> 15550934 | K14: ='A4-FinPerf RE'!L28 -> 16250726
A15: Inventory consumed and bulk purchases | B15: ='A4-FinPerf RE'!C29+'A4-FinPerf RE'!C30 -> 50014270.27 | C15: ='A4-FinPerf RE'!D29+'A4-FinPerf RE'!D30 -> 115869244.9 | D15: ='A4-FinPerf RE'!E29+'A4-FinPerf RE'!E30 -> 162909184.8 | E15: ='A4-FinPerf RE'!F29+'A4-FinPerf RE'!F30 -> 171802714 | F15: ='A4-FinPerf RE'!G29+'A4-FinPerf RE'!G30 -> 161403024 | G15: ='A4-FinPerf RE'!H29+'A4-FinPerf RE'!H30 -> 161403024 | H15: ='A4-FinPerf RE'!I29+'A4-FinPerf RE'!I30 -> 161403024 | I15: ='A4-FinPerf RE'!J29+'A4-FinPerf RE'!J30 -> 205289045 | J15: ='A4-FinPerf RE'!K29+'A4-FinPerf RE'!K30 -> 214412763 | K15: ='A4-FinPerf RE'!L29+'A4-FinPerf RE'!L30 -> 223966242
A16: Transfers and grants | B16: ='A4-FinPerf RE'!C32 -> 233192.3 | C16: ='A4-FinPerf RE'!D32 -> 1433678.2 | D16: ='A4-FinPerf RE'!E32 -> 681126.44 | E16: ='A4-FinPerf RE'!F32 -> 976879 | F16: ='A4-FinPerf RE'!G32 -> 3087298 | G16: ='A4-FinPerf RE'!H32 -> 3087298 | H16: ='A4-FinPerf RE'!I32 -> 3087298 | I16: ='A4-FinPerf RE'!J32 -> 1024086 | J16: ='A4-FinPerf RE'!K32 -> 1069148 | K16: ='A4-FinPerf RE'!L32 -> 1117259
A17: Other expenditure | B17: ='A4-FinPerf RE'!C26+'A4-FinPerf RE'!C31+'A4-FinPerf RE'!C33+'A4-FinPerf RE'!C34 -> 30742793.64 | C17: ='A4-FinPerf RE'!D26+'A4-FinPerf RE'!D31+'A4-FinPerf RE'!D33+'A4-FinPerf RE'!D34 -> 117938566 | D17: ='A4-FinPerf RE'!E26+'A4-FinPerf RE'!E31+'A4-FinPerf RE'!E33+'A4-FinPerf RE'!E34 -> 111465021.9 | E17: ='A4-FinPerf RE'!F26+'A4-FinPerf RE'!F31+'A4-FinPerf RE'!F33+'A4-FinPerf RE'!F34 -> 137863683 | F17: ='A4-FinPerf RE'!G26+'A4-FinPerf RE'!G31+'A4-FinPerf RE'!G33+'A4-FinPerf RE'!G34 -> 153286876 | G17: ='A4-FinPerf RE'!H26+'A4-FinPerf RE'!H31+'A4-FinPerf RE'!H33+'A4-FinPerf RE'!H34 -> 153286876 | H17: ='A4-FinPerf RE'!I26+'A4-FinPerf RE'!I31+'A4-FinPerf RE'!I33+'A4-FinPerf RE'!I34 -> 153286876 | I17: ='A4-FinPerf RE'!J26+'A4-FinPerf RE'!J31+'A4-FinPerf RE'!J33+'A4-FinPerf RE'!J34 -> 171632278 | J17: ='A4-FinPerf RE'!K26+'A4-FinPerf RE'!K31+'A4-FinPerf RE'!K33+'A4-FinPerf RE'!K34 -> 184417766 | K17: ='A4-FinPerf RE'!L26+'A4-FinPerf RE'!L31+'A4-FinPerf RE'!L33+'A4-FinPerf RE'!L34 -> 192720921
A18: ='A4-FinPerf RE'!A35 -> Total Expenditure | B18: =SUM(B11:B17) -> 163878949.1 | C18: =SUM(C11:C17) -> 548320020.7 | D18: 602203767.8 | E18: 663113361 | F18: 664511471 | G18: 664511471 | H18: 664511471 | I18: 739673189 | J18: 777487159 | K18: 811856295
A19: ='A4-FinPerf RE'!A37 -> Surplus/(Deficit) | B19: =B10-B18 -> 141792453.6 | C19: -29467123.38 | D19: 8199234.66 | E19: 3843426 | F19: 13645297 | G19: 13645297 | H19: 16152300 | I19: 1996373 | J19: 6888078 | K19: 21249533
A20: ='A4-FinPerf RE'!A38 -> Transfers and subsidies - capital (monetary allocations) (National / Provincial and District) | B20: ='A4-FinPerf RE'!C38 -> 17193235.74 | C20: ='A4-FinPerf RE'!D38 -> 67276666.32 | D20: ='A4-FinPerf RE'!E38 -> 112085135.7 | E20: ='A4-FinPerf RE'!F38 -> 90868301 | F20: ='A4-FinPerf RE'!G38 -> 96071429 | G20: ='A4-FinPerf RE'!H38 -> 96071429 | H20: ='A4-FinPerf RE'!I38 -> 96071429 | I20: ='A4-FinPerf RE'!J38 -> 147772400 | J20: ='A4-FinPerf RE'!K38 -> 193698650 | K20: ='A4-FinPerf RE'!L38 -> 183010050
A21: ='A4-FinPerf RE'!A39&" & "&'A4-FinPerf RE'!A40 -> Transfers and subsidies - capital (monetary allocations) (National / Provincial Departmental Agencies, Households, Non-profit Institutions, Private Enterprises, Public Corporatons, Higher Educational Institutions) & Transfers and subsidies - capital (in-kind - all) | B21: ='A4-FinPerf RE'!C39+'A4-FinPerf RE'!C40 -> 0 | C21: ='A4-FinPerf RE'!D39+'A4-FinPerf RE'!D40 -> 0 | D21: ='A4-FinPerf RE'!E39+'A4-FinPerf RE'!E40 -> 0 | E21: ='A4-FinPerf RE'!F39+'A4-FinPerf RE'!F40 -> 0 | F21: ='A4-FinPerf RE'!G39+'A4-FinPerf RE'!G40 -> 0 | G21: ='A4-FinPerf RE'!H39+'A4-FinPerf RE'!H40 -> 0 | H21: ='A4-FinPerf RE'!I39+'A4-FinPerf RE'!I40 -> 0 | I21: ='A4-FinPerf RE'!J39+'A4-FinPerf RE'!J40 -> 0 | J21: ='A4-FinPerf RE'!K39+'A4-FinPerf RE'!K40 -> 0 | K21: ='A4-FinPerf RE'!L39+'A4-FinPerf RE'!L40 -> 0
A22: ='A4-FinPerf RE'!A41 -> Surplus/(Deficit) after capital transfers & contributions | B22: =B19+SUM(B20:B21) -> 158985689.3 | C22: =C19+SUM(C20:C21) -> 37809542.94 | E22: 94711727 | F22: 109716726 | G22: 109716726 | H22: 112223729 | I22: 149768773 | J22: 200586728 | K22: 204259583
A23: ='A4-FinPerf RE'!A46 -> Share of surplus/ (deficit) of associate | B23: ='A4-FinPerf RE'!C46 -> 0 | C23: ='A4-FinPerf RE'!D46 -> 0 | D23: ='A4-FinPerf RE'!E46 -> 0 | E23: ='A4-FinPerf RE'!F46 -> 0 | F23: ='A4-FinPerf RE'!G46 -> 0 | G23: ='A4-FinPerf RE'!H46 -> 0 | H23: ='A4-FinPerf RE'!I46 -> 0 | I23: ='A4-FinPerf RE'!J46 -> 0 | J23: ='A4-FinPerf RE'!K46 -> 0 | K23: ='A4-FinPerf RE'!L46 -> 0
A24: ='A4-FinPerf RE'!A47 -> Surplus/(Deficit) for the year | B24: =B22+B23 -> 158985689.3 | C24: =C22+C23 -> 37809542.94 | D24: 0 | E24: 94711727 | F24: 109716726 | G24: 109716726 | H24: 112223729 | I24: 149768773 | J24: 200586728 | K24: 204259583
A26: Capital expenditure & funds sources
A27: Capital expenditure | B27: ='A5-Capex'!C63 -> 17932218.15 | C27: ='A5-Capex'!D63 -> 63242383.87 | D27: ='A5-Capex'!E63 -> 117127719.4 | E27: ='A5-Capex'!F63 -> 113661306 | F27: ='A5-Capex'!G63 -> 183812390 | G27: ='A5-Capex'!H63 -> 183812390 | H27: ='A5-Capex'!I63 -> 183812390 | I27: ='A5-Capex'!J63 -> 183027399 | J27: ='A5-Capex'!K63 -> 193698653 | K27: ='A5-Capex'!L63 -> 183010052
A28: Transfers recognised - capital | B28: ='A5-Capex'!C70 -> 7924878.04 | C28: ='A5-Capex'!D70 -> 53209802.46 | D28: ='A5-Capex'!E70 -> 88774727.49 | E28: ='A5-Capex'!F70 -> 90868303 | F28: ='A5-Capex'!G70 -> 147384938 | G28: ='A5-Capex'!H70 -> 147384938 | H28: ='A5-Capex'!I70 -> 147384938 | I28: ='A5-Capex'!J70 -> 147772399 | J28: ='A5-Capex'!K70 -> 193698651 | K28: ='A5-Capex'!L70 -> 183010050
A30: ='A5-Capex'!A72 -> Borrowing | B30: ='A5-Capex'!C72 -> 0 | C30: ='A5-Capex'!D72 -> 0 | D30: ='A5-Capex'!E72 -> 0 | E30: ='A5-Capex'!F72 -> 0 | F30: ='A5-Capex'!G72 -> 0 | G30: ='A5-Capex'!H72 -> 0 | H30: ='A5-Capex'!I72 -> 0 | I30: ='A5-Capex'!J72 -> 0 | J30: ='A5-Capex'!K72 -> 0 | K30: ='A5-Capex'!L72 -> 0
A31: ='A5-Capex'!A73 -> Internally generated funds | B31: ='A5-Capex'!C73 -> 10007340.11 | C31: ='A5-Capex'!D73 -> 6492279.92 | D31: ='A5-Capex'!E73 -> 28352991.87 | E31: ='A5-Capex'!F73 -> 22793003 | F31: ='A5-Capex'!G73 -> 33162766 | G31: ='A5-Capex'!H73 -> 33162766 | H31: ='A5-Capex'!I73 -> 33162766 | I31: ='A5-Capex'!J73 -> 35255000 | J31: ='A5-Capex'!K73 -> 2 | K31: ='A5-Capex'!L73 -> 2
A32: Total sources of capital funds | B32: =+B28+B30+B31 -> 17932218.15 | C32: =+C28+C30+C31 -> 59702082.38 | D32: 117127719.4 | E32: 113661306 | F32: 180547704 | G32: 180547704 | H32: 180547704 | I32: 183027399 | J32: 193698653 | K32: 183010052
A34: Financial position
A35: ='A6-FinPos'!A12 -> Total current assets | B35: ='A6-FinPos'!C12 -> 148573629.1 | C35: ='A6-FinPos'!D12 -> 330270260.6 | D35: ='A6-FinPos'!E12 -> 357642757.9 | E35: ='A6-FinPos'!F12 -> 354003862 | F35: ='A6-FinPos'!G12 -> 424803871 | G35: ='A6-FinPos'!H12 -> 424803871 | H35: ='A6-FinPos'!I12 -> 424803871 | I35: ='A6-FinPos'!J12 -> 536178467 | J35: ='A6-FinPos'!K12 -> 599911903 | K35: ='A6-FinPos'!L12 -> 680075151
A36: ='A6-FinPos'!A24 -> Total non current assets | B36: ='A6-FinPos'!C24 -> -40357041.49 | C36: ='A6-FinPos'!D24 -> 1503785871 | D36: ='A6-FinPos'!E24 -> 1479264652 | E36: ='A6-FinPos'!F24 -> 1652799640 | F36: ='A6-FinPos'!G24 -> 1726550663 | G36: ='A6-FinPos'!H24 -> 1726550663 | H36: ='A6-FinPos'!I24 -> 1726550663 | I36: ='A6-FinPos'!J24 -> 1565508038 | J36: ='A6-FinPos'!K24 -> 1503515101 | K36: ='A6-FinPos'!L24 -> 1647272108
A37: ='A6-FinPos'!A34 -> Total current liabilities | B37: ='A6-FinPos'!C34 -> 19393283.01 | C37: ='A6-FinPos'!D34 -> 161274983.7 | D37: ='A6-FinPos'!E34 -> 151619167.7 | E37: ='A6-FinPos'!F34 -> 56006776 | F37: ='A6-FinPos'!G34 -> 296618779 | G37: ='A6-FinPos'!H34 -> 296618779 | H37: ='A6-FinPos'!I34 -> 296618779 | I37: ='A6-FinPos'!J34 -> 298365993 | J37: ='A6-FinPos'!K34 -> 312590101 | K37: ='A6-FinPos'!L34 -> 327518111
A38: ='A6-FinPos'!A39 -> Total non current liabilities | B38: ='A6-FinPos'!C39 -> -70162393.6 | C38: ='A6-FinPos'!D39 -> 229595419.9 | D38: ='A6-FinPos'!E39 -> 198771116.6 | E38: ='A6-FinPos'!F39 -> 176556839 | F38: ='A6-FinPos'!G39 -> 176556839 | G38: ='A6-FinPos'!H39 -> 176556839 | H38: ='A6-FinPos'!I39 -> 176556839 | I38: ='A6-FinPos'!J39 -> 193880000 | J38: ='A6-FinPos'!K39 -> 202410718 | K38: ='A6-FinPos'!L39 -> 211519197
A39: Community wealth/Equity | B39: ='A6-FinPos'!C48 -> 158985689.3 | C39: ='A6-FinPos'!D48 -> 2380376.09 | D39: ='A6-FinPos'!E48 -> 1456866924 | E39: ='A6-FinPos'!F48 -> 1774239818 | F39: ='A6-FinPos'!G48 -> 1789244817 | G39: ='A6-FinPos'!H48 -> 1789244817 | H39: ='A6-FinPos'!I48 -> 1789244817 | I39: ='A6-FinPos'!J48 -> 1596215863 | J39: ='A6-FinPos'!K48 -> 1575201539 | K39: ='A6-FinPos'!L48 -> 1775085308
A41: Cash flows
A42: Net cash from (used) operating | B42: ='A7-CFlow'!C17 -> -448565.5 | C42: ='A7-CFlow'!D17 -> 0 | D42: ='A7-CFlow'!E17 -> 119660414 | E42: ='A7-CFlow'!F17 -> 157790167 | F42: ='A7-CFlow'!G17 -> 223902167 | G42: ='A7-CFlow'!H17 -> 223902167 | H42: ='A7-CFlow'!I17 -> 223902167 | I42: ='A7-CFlow'!J17 -> 186909781 | J42: ='A7-CFlow'!K17 -> 244017486 | K42: ='A7-CFlow'!L17 -> 249179535
A43: Net cash from (used) investing | B43: ='A7-CFlow'!C27 -> 0 | C43: ='A7-CFlow'!D27 -> 0 | D43: ='A7-CFlow'!E27 -> -90135 | E43: ='A7-CFlow'!F27 -> -113649300 | F43: ='A7-CFlow'!G27 -> -110049299 | G43: ='A7-CFlow'!H27 -> -110049299 | H43: ='A7-CFlow'!I27 -> -110049299 | I43: ='A7-CFlow'!J27 -> -186627401 | J43: ='A7-CFlow'!K27 -> -193698650 | K43: ='A7-CFlow'!L27 -> -183010050
A44: Net cash from (used) financing | B44: ='A7-CFlow'!C36 -> 0 | C44: ='A7-CFlow'!D36 -> -4896181.95 | D44: ='A7-CFlow'!E36 -> -7095328.01 | E44: ='A7-CFlow'!F36 -> -19058950 | F44: ='A7-CFlow'!G36 -> -19058950 | G44: ='A7-CFlow'!H36 -> -19058950 | H44: ='A7-CFlow'!I36 -> -19058950 | I44: ='A7-CFlow'!J36 -> 451998 | J44: ='A7-CFlow'!K36 -> 171233 | K44: ='A7-CFlow'!L36 -> -146543
A45: =LEFT('A7-CFlow'!A40,37) -> Cash/cash equivalents at the year end | B45: ='A7-CFlow'!C40 -> 68973714.72 | C45: ='A7-CFlow'!D40 -> 3862588.05 | D45: ='A7-CFlow'!E40 -> 196991161.6 | E45: ='A7-CFlow'!F40 -> 173646170 | F45: ='A7-CFlow'!G40 -> 243358171 | G45: ='A7-CFlow'!H40 -> 243358171 | H45: ='A7-CFlow'!I40 -> 243358171 | I45: ='A7-CFlow'!J40 -> 219468266 | J45: ='A7-CFlow'!K40 -> 269958335 | K45: ='A7-CFlow'!L40 -> 335981277
A47: Cash backing/surplus reconciliation
A48: ='A8-ResRecon'!A4 -> Cash and investments available | B48: ='A8-ResRecon'!C8 -> 3840004.37 | C48: ='A8-ResRecon'!D8 -> 84535743.25 | D48: ='A8-ResRecon'!E8 -> 92954450.05 | E48: ='A8-ResRecon'!F8 -> 128744702 | F48: ='A8-ResRecon'!G8 -> 203144703 | G48: ='A8-ResRecon'!H8 -> 203144703 | H48: ='A8-ResRecon'!I8 -> 203144703 | I48: ='A8-ResRecon'!J8 -> 266628266 | J48: ='A8-ResRecon'!K8 -> 319193374 | K48: ='A8-ResRecon'!L8 -> 387431894
A49: ='A8-ResRecon'!A10 -> Application of cash and investments | B49: ='A8-ResRecon'!C18 -> 26201674.79 | C49: ='A8-ResRecon'!D18 -> 93776841.84 | D49: ='A8-ResRecon'!E18 -> 54393935.03 | E49: ='A8-ResRecon'!F18 -> -118286030 | F49: ='A8-ResRecon'!G18 -> 122325973 | G49: ='A8-ResRecon'!H18 -> 122325973 | H49: ='A8-ResRecon'!I18 -> 123150973 | I49: ='A8-ResRecon'!J18 -> 75104225 | J49: ='A8-ResRecon'!K18 -> 79648229 | K49: ='A8-ResRecon'!L18 -> 84217653
A50: Balance - surplus (shortfall) | B50: =B48-B49 -> -22361670.42 | C50: =C48-C49 -> -9241098.59 | D50: 38560515.02 | E50: 247030732 | F50: 80818730 | G50: 80818730 | H50: 79993730 | I50: 191524041 | J50: 239545145 | K50: 303214241
A52: Asset management
A53: Asset register summary (WDV) | B53: ='A9-Asset'!C165 -> 25165209.22 | C53: ='A9-Asset'!D165 -> 1351501105 | D53: ='A9-Asset'!E165 -> 1319015878 | E53: ='A9-Asset'!F165 -> 114869674 | F53: ='A9-Asset'!G165 -> 185020696 | G53: ='A9-Asset'!H165 -> 185020696 | H53: ='A9-Asset'!H165 -> 185020696 | I53: ='A9-Asset'!I165 -> -78489940 | J53: ='A9-Asset'!J165 -> -67726455 | K53: ='A9-Asset'!K165 -> -78316585
A54: ='A9-Asset'!A168 -> Depreciation | B54: ='A9-Asset'!C168 -> 2345634.73 | C54: ='A9-Asset'!D168 -> 91190780.22 | D54: ='A9-Asset'!E168 -> 84394856.93 | E54: ='A9-Asset'!F168 -> 92704836 | F54: ='A9-Asset'!G168 -> 92704878 | G54: ='A9-Asset'!H168 -> 92704878 | H54: ='A9-Asset'!H168 -> 92704878 | I54: ='A9-Asset'!I168 -> 97057059 | J54: ='A9-Asset'!J168 -> 101271206 | K54: ='A9-Asset'!K168 -> 105301370
A55: Renewal and Upgrading of Existing Assets | B55: ='A9-Asset'!C37+'A9-Asset'!C69 -> 7900878.04 | C55: ='A9-Asset'!D37+'A9-Asset'!D69 -> 7263237.4 | D55: ='A9-Asset'!E37+'A9-Asset'!E69 -> 819473.65 | E55: ='A9-Asset'!F37+'A9-Asset'!F69 -> 2 | F55: ='A9-Asset'!G37+'A9-Asset'!G69 -> 2 | G55: ='A9-Asset'!H37+'A9-Asset'!H69 -> 2 | H55: ='A9-Asset'!H37+'A9-Asset'!H69 -> 2 | I55: ='A9-Asset'!I37+'A9-Asset'!I69 -> 6400000 | J55: ='A9-Asset'!J37+'A9-Asset'!J69 -> 0 | K55: ='A9-Asset'!K37+'A9-Asset'!K69 -> 0
A56: Repairs and Maintenance | B56: ='A9-Asset'!C169 -> 5502625.47 | C56: ='A9-Asset'!D169 -> 3725080.87 | D56: ='A9-Asset'!E169 -> 3604718.55 | E56: ='A9-Asset'!F169 -> 24152742 | F56: ='A9-Asset'!G169 -> 28715913 | G56: ='A9-Asset'!H169 -> 28715913 | H56: ='A9-Asset'!H169 -> 28715913 | I56: ='A9-Asset'!I169 -> 27025258 | J56: ='A9-Asset'!J169 -> 28230909 | K56: ='A9-Asset'!K169 -> 29501402
A58: Free services
A59: Cost of Free Basic Services provided | B59: ='A10-SerDel'!C60 -> 0 | C59: ='A10-SerDel'!D60 -> 0 | D59: ='A10-SerDel'!E60 -> 0 | E59: ='A10-SerDel'!F60 -> 0 | F59: ='A10-SerDel'!G60 -> 0 | G59: ='A10-SerDel'!H60 -> 0 | H59: ='A10-SerDel'!I60 -> 0 | I59: ='A10-SerDel'!I60 -> 0 | J59: ='A10-SerDel'!J60 -> 0 | K59: ='A10-SerDel'!K60 -> 0
A60: Revenue cost of free services provided | B60: ='A10-SerDel'!C79 -> 0 | C60: ='A10-SerDel'!D79 -> 0 | D60: ='A10-SerDel'!E79 -> 0 | E60: ='A10-SerDel'!F79 -> 0 | F60: ='A10-SerDel'!G79 -> 0 | G60: ='A10-SerDel'!H79 -> 0 | H60: ='A10-SerDel'!I79 -> 0 | I60: ='A10-SerDel'!I79 -> 0 | J60: ='A10-SerDel'!J79 -> 0 | K60: ='A10-SerDel'!K79 -> 0
A61: Households below minimum service level
A62: ='A10-SerDel'!A5 -> Water: | B62: ='A10-SerDel'!C14 -> 66299 | C62: ='A10-SerDel'!D14 -> 66299 | D62: ='A10-SerDel'!E14 -> 90399 | E62: ='A10-SerDel'!F14 -> 66299 | F62: ='A10-SerDel'!G14 -> 90399 | G62: ='A10-SerDel'!H14 -> 90399 | H62: ='A10-SerDel'!I14 -> 90399 | I62: ='A10-SerDel'!I14 -> 90399 | J62: ='A10-SerDel'!J14 -> 92479 | K62: ='A10-SerDel'!K14 -> 95119
A63: ='A10-SerDel'!A16 -> Sanitation/sewerage: | B63: ='A10-SerDel'!C26 -> 66299 | C63: ='A10-SerDel'!D26 -> 66299 | D63: ='A10-SerDel'!E26 -> 90399 | E63: ='A10-SerDel'!F26 -> 66299 | F63: ='A10-SerDel'!G26 -> 90399 | G63: ='A10-SerDel'!H26 -> 90399 | H63: ='A10-SerDel'!I26 -> 90399 | I63: ='A10-SerDel'!I26 -> 90399 | J63: ='A10-SerDel'!J26 -> 92479 | K63: ='A10-SerDel'!K26 -> 95119
A64: ='A10-SerDel'!A28 -> Energy: | B64: ='A10-SerDel'!C35 -> 66299 | C64: ='A10-SerDel'!D35 -> 66299 | D64: ='A10-SerDel'!E35 -> 90399 | E64: ='A10-SerDel'!F35 -> 66299 | F64: ='A10-SerDel'!G35 -> 90399 | G64: ='A10-SerDel'!H35 -> 90399 | H64: ='A10-SerDel'!I35 -> 90399 | I64: ='A10-SerDel'!I35 -> 90399 | J64: ='A10-SerDel'!J35 -> 92479 | K64: ='A10-SerDel'!K35 -> 95119
A65: ='A10-SerDel'!A37 -> Refuse: | B65: ='A10-SerDel'!C45 -> 66299 | C65: ='A10-SerDel'!D45 -> 66299 | D65: ='A10-SerDel'!E45 -> 90399 | E65: ='A10-SerDel'!F45 -> 66299 | F65: ='A10-SerDel'!G45 -> 90399 | G65: ='A10-SerDel'!H45 -> 90399 | H65: ='A10-SerDel'!I45 -> 90399 | I65: ='A10-SerDel'!I45 -> 90399 | J65: ='A10-SerDel'!J45 -> 92479 | K65: ='A10-SerDel'!K45 -> 95119

Sheet A2-FinPerf SC
A1: =muni&" - "&Approve3 -> Choose name from list - Table A2 Budgeted Financial Performance (revenue and expenditure by functional classification)
A2: ="Functional Classification "&desc -> Functional Classification Description | B2: =head27 -> Ref | C2: =head1b -> 2018/19 | D2: =head1A -> 2019/20 | E2: =Head1 -> 2020/21 | F2: =Head2 -> Current Year 2021/22 | I2: =Head3 -> 2022/23 Medium Term Revenue & Expenditure Framework
A3: R thousand | B3: 1 | C3: =Head5 -> Audited Outcome | D3: =Head5 -> Audited Outcome | E3: =Head5 -> Audited Outcome | F3: =Head6 -> Original Budget | G3: =Head7 -> Adjusted Budget | H3: =Head8 -> Full Year Forecast | I3: =Head9 -> Budget Year 2022/23 | J3: =Head10 -> Budget Year +1 2023/24 | K3: =Head11 -> Budget Year +2 2024/25
A4: Revenue - Functional
A5: Governance and administration | C5: =SUM(C6:C8) -> 17478050.5 | D5: =SUM(D6:D8) -> 105276263.1 | E5: 311832644.4 | F5: 341471876 | G5: 357912865 | H5: 357912865 | I5: 332946329 | J5: 359017027 | K5: 388606141
A6: Executive and council | C6: =A2A!C6 -> 17478050.5 | D6: =A2A!D6 -> 15301990.89 | E6: =A2A!E6 -> 188658222.4 | F6: =A2A!F6 -> 3948313 | G6: =A2A!G6 -> 3986194 | H6: =A2A!H6 -> 3986194 | I6: =A2A!I6 -> 4225356 | J6: =A2A!J6 -> 6657756 | K6: =A2A!K6 -> 6957353
A7: Finance and administration | C7: =A2A!C9 -> 0 | D7: =A2A!D9 -> 89974272.25 | E7: =A2A!E9 -> 123174422.1 | F7: =A2A!F9 -> 337523563 | G7: =A2A!G9 -> 353926671 | H7: =A2A!H9 -> 353926671 | I7: =A2A!I9 -> 328720973 | J7: =A2A!J9 -> 352359271 | K7: =A2A!K9 -> 381648788
A8: Internal audit | C8: =A2A!C23 -> 0 | D8: =A2A!D23 -> 0 | E8: =A2A!E23 -> 0 | F8: =A2A!F23 -> 0 | G8: =A2A!G23 -> 0 | H8: =A2A!H23 -> 0 | I8: =A2A!I23 -> 0 | J8: =A2A!J23 -> 0 | K8: =A2A!K23 -> 0
A9: Community and public safety | C9: =SUM(C10:C14) -> 36316989.84 | D9: =SUM(D10:D14) -> 7575833.66 | E9: 10215516.62 | F9: 9003177 | G9: 9003177 | H9: 9003177 | I9: 9543352 | J9: 9963259 | K9: 10411604
A10: Community and social services | C10: =A2A!C26 -> 15462.09 | D10: =A2A!D26 -> 412894.72 | E10: =A2A!E26 -> 88317.21 | F10: =A2A!F26 -> 216573 | G10: =A2A!G26 -> 216573 | H10: =A2A!H26 -> 216573 | I10: =A2A!I26 -> 229565 | J10: =A2A!J26 -> 239666 | K10: =A2A!K26 -> 250449
A11: Sport and recreation | C11: =A2A!C48 -> 62753.81 | D11: =A2A!D48 -> 0 | E11: =A2A!E48 -> 0 | F11: =A2A!F48 -> 0 | G11: =A2A!G48 -> 0 | H11: =A2A!H48 -> 0 | I11: =A2A!I48 -> 0 | J11: =A2A!J48 -> 0 | K11: =A2A!K48 -> 0
A12: Public safety | C12: =A2A!C54 -> 0 | D12: =A2A!D54 -> 7162938.94 | E12: =A2A!E54 -> 10127199.41 | F12: =A2A!F54 -> 8786592 | G12: =A2A!G54 -> 8786592 | H12: =A2A!H54 -> 8786592 | I12: =A2A!I54 -> 9313787 | J12: =A2A!J54 -> 9723593 | K12: =A2A!K54 -> 10161155
A13: Housing | C13: =A2A!C63 -> 36238773.94 | D13: =A2A!D63 -> 0 | E13: =A2A!E63 -> 0 | F13: =A2A!F63 -> 12 | G13: =A2A!G63 -> 12 | H13: =A2A!H63 -> 12 | I13: =A2A!I63 -> 0 | J13: =A2A!J63 -> 0 | K13: =A2A!K63 -> 0
A14: Health | C14: =A2A!C66 -> 0 | D14: =A2A!D66 -> 0 | E14: =A2A!E66 -> 0 | F14: =A2A!F66 -> 0 | G14: =A2A!G66 -> 0 | H14: =A2A!H66 -> 0 | I14: =A2A!I66 -> 0 | J14: =A2A!J66 -> 0 | K14: =A2A!K66 -> 0
A15: Economic and environmental services | C15: =SUM(C16:C18) -> 19973429.79 | D15: =SUM(D16:D18) -> 37821568.43 | E15: 38323242.81 | F15: 1621422 | G15: 1583541 | H15: 1583541 | I15: 58284123 | J15: 50885929 | K15: 53122867
A16: Planning and development | C16: =A2A!C75 -> 2361943.88 | D16: =A2A!D75 -> 353846.57 | E16: =A2A!E75 -> 770281.17 | F16: =A2A!F75 -> 923325 | G16: =A2A!G75 -> 923325 | H16: =A2A!H75 -> 923325 | I16: =A2A!I75 -> 978723 | J16: =A2A!J75 -> 1021787 | K16: =A2A!K75 -> 1067767
A17: Road transport | C17: =A2A!C86 -> 17611485.91 | D17: =A2A!D86 -> 37467721.86 | E17: =A2A!E86 -> 37552961.64 | F17: =A2A!F86 -> 698097 | G17: =A2A!G86 -> 660216 | H17: =A2A!H86 -> 660216 | I17: =A2A!I86 -> 57305400 | J17: =A2A!J86 -> 49864142 | K17: =A2A!K86 -> 52055100
A18: Environmental protection | C18: =A2A!C91 -> 0 | D18: =A2A!D91 -> 0 | E18: =A2A!E91 -> 0 | F18: =A2A!F91 -> 0 | G18: =A2A!G91 -> 0 | H18: =A2A!H91 -> 0 | I18: =A2A!I91 -> 0 | J18: =A2A!J91 -> 0 | K18: =A2A!K91 -> 0
A19: Trading services | C19: =SUM(C20:C23) -> 192783150 | D19: =SUM(D20:D23) -> 435455898.4 | E19: 362116734.3 | F19: 405728613 | G19: 405728613 | H19: 405728613 | I19: 488668158 | J19: =SUM(J20:J23) -> 558207672 | K19: 563975266
A20: Energy sources | C20: =A2A!C99 -> 100069172.2 | D20: =A2A!D99 -> 182673027.4 | E20: =A2A!E99 -> 191086521 | F20: =A2A!F99 -> 275716698 | G20: =A2A!G99 -> 275716698 | H20: =A2A!H99 -> 275716698 | I20: =A2A!I99 -> 288169688 | J20: =A2A!J99 -> 298293156 | K20: =A2A!K99 -> 304175209
A21: Water management | C21: =A2A!C103 -> 31306825.67 | D21: =A2A!D103 -> 93833999.96 | E21: =A2A!E103 -> 116686392.6 | F21: =A2A!F103 -> 76674394 | G21: =A2A!G103 -> 76674394 | H21: =A2A!H103 -> 76674394 | I21: =A2A!I103 -> 143961901 | J21: =A2A!J103 -> 202239184 | K21: =A2A!K103 -> 199529337
A22: Waste water management | C22: =A2A!C107 -> 40203232.53 | D22: =A2A!D107 -> 33661741.24 | E22: =A2A!E107 -> 33723710.33 | F22: =A2A!F107 -> 29347765 | G22: =A2A!G107 -> 29347765 | H22: =A2A!H107 -> 29347765 | I22: =A2A!I107 -> 31108630 | J22: =A2A!J107 -> 32477411 | K22: =A2A!K107 -> 33938893
A23: Waste management | C23: =A2A!C112 -> 21203919.53 | D23: =A2A!D112 -> 125287129.8 | E23: =A2A!E112 -> 20620110.33 | F23: =A2A!F112 -> 23989756 | G23: =A2A!G112 -> 23989756 | H23: =A2A!H112 -> 23989756 | I23: =A2A!I112 -> 25427939 | J23: =A2A!J112 -> 25197921 | K23: =A2A!K112 -> 26331827
A24: Other | B24: 4 | C24: =A2A!C117 -> 5644176.79 | D24: =A2A!D117 -> 0 | E24: =A2A!E117 -> 0 | F24: =A2A!F117 -> 0 | G24: =A2A!G117 -> 1 | H24: =A2A!H117 -> 1 | I24: =A2A!I117 -> 0 | J24: =A2A!J117 -> 0 | K24: =A2A!K117 -> 0
A25: ="Total "&A4 -> Total Revenue - Functional | B25: 2 | C25: =C5+C9+C15+C19+C24 -> 272195796.9 | D25: =D5+D9+D15+D19+D24 -> 586129563.6 | E25: =E5+E9+E15+E19+E24 -> 722488138.2 | F25: 757825088 | G25: 774228197 | H25: 774228197 | I25: =I5+I9+I15+I19+I24 -> 889441962 | J25: 978073887 | K25: 1016115878
A27: Expenditure - Functional
A28: Governance and administration | C28: =SUM(C29:C31) -> 32410648.05 | D28: =SUM(D29:D31) -> 255575406.6 | E28: 261212830.2 | F28: 201338012 | G28: 299354986 | H28: 299354986 | I28: 251645708 | J28: 265929330 | K28: 279990452
A29: Executive and council | C29: =A2A!C128 -> 16709994.43 | D29: =A2A!D128 -> 169399650.8 | E29: =A2A!E128 -> 151593501 | F29: =A2A!F128 -> 77031788 | G29: =A2A!G128 -> 162933130 | H29: =A2A!H128 -> 162933130 | I29: =A2A!I128 -> 90467091 | J29: =A2A!J128 -> 99831103 | K29: =A2A!K128 -> 105868539
A30: Finance and administration | C30: =A2A!C131 -> 14956188.66 | D30: =A2A!D131 -> 79919602.28 | E30: =A2A!E131 -> 107948094.6 | F30: =A2A!F131 -> 122305039 | G30: =A2A!G131 -> 133273818 | H30: =A2A!H131 -> 133273818 | I30: =A2A!I131 -> 158243369 | J30: =A2A!J131 -> 163033787 | K30: =A2A!K131 -> 170919616
A31: Internal audit | C31: =A2A!C145 -> 744464.96 | D31: =A2A!D145 -> 6256153.56 | E31: =A2A!E145 -> 1671234.59 | F31: =A2A!F145 -> 2001185 | G31: =A2A!G145 -> 3148038 | H31: =A2A!H145 -> 3148038 | I31: =A2A!I145 -> 2935248 | J31: =A2A!J145 -> 3064440 | K31: =A2A!K145 -> 3202297
A32: Community and public safety | C32: =SUM(C33:C37) -> 13142701.9 | D32: =SUM(D33:D37) -> 44133022.33 | E32: 46208399.53 | F32: 60615745 | G32: 50829262 | H32: 50829262 | I32: 52930376 | J32: 55258237 | K32: 57743761
A33: Community and social services | C33: =A2A!C148 -> 3118373.03 | D33: =A2A!D148 -> 21190088.78 | E33: =A2A!E148 -> 21982121.14 | F33: =A2A!F148 -> 29520371 | G33: =A2A!G148 -> 23786845 | H33: =A2A!H148 -> 23786845 | I33: =A2A!I148 -> 25194291 | J33: =A2A!J148 -> 26302742 | K33: =A2A!K148 -> 27486370
A34: Sport and recreation | C34: =A2A!C170 -> 4798733.43 | D34: =A2A!D170 -> 0 | E34: =A2A!E170 -> 50519.96 | F34: =A2A!F170 -> 0 | G34: =A2A!G170 -> 115529 | H34: =A2A!H170 -> 115529 | I34: =A2A!I170 -> 250347 | J34: =A2A!J170 -> 261362 | K34: =A2A!K170 -> 273119
A35: Public safety | C35: =A2A!C176 -> 3949065.51 | D35: =A2A!D176 -> 19677713.27 | E35: =A2A!E176 -> 20371279.45 | F35: =A2A!F176 -> 26866122 | G35: =A2A!G176 -> 22767633 | H35: =A2A!H176 -> 22767633 | I35: =A2A!I176 -> 23546053 | J35: =A2A!J176 -> 24581102 | K35: =A2A!K176 -> 25686153
A36: Housing | C36: =A2A!C185 -> 1276529.93 | D36: =A2A!D185 -> 3265220.28 | E36: =A2A!E185 -> 3804478.98 | F36: =A2A!F185 -> 4229252 | G36: =A2A!G185 -> 4159255 | H36: =A2A!H185 -> 4159255 | I36: =A2A!I185 -> 3939685 | J36: =A2A!J185 -> 4113031 | K36: =A2A!K185 -> 4298119
A37: Health | C37: =A2A!C188 -> 0 | D37: =A2A!D188 -> 0 | E37: =A2A!E188 -> 0 | F37: =A2A!F188 -> 0 | G37: =A2A!G188 -> 0 | H37: =A2A!H188 -> 0 | I37: =A2A!I188 -> 0 | J37: =A2A!J188 -> 0 | K37: =A2A!K188 -> 0
A38: Economic and environmental services | C38: =SUM(C39:C41) -> 11824561.38 | D38: =SUM(D39:D41) -> 25304952.07 | E38: 30311492.79 | F38: 74703565 | G38: 42306785 | H38: 42306785 | I38: 79021920 | J38: 84505782 | K38: 86219355
A39: Planning and development | C39: =A2A!C197 -> 6557384.18 | D39: =A2A!D197 -> 14224702.61 | E39: =A2A!E197 -> 14407200.73 | F39: =A2A!F197 -> 16025076 | G39: =A2A!G197 -> 17030855 | H39: =A2A!H197 -> 17030855 | I39: =A2A!I197 -> 19077619 | J39: =A2A!J197 -> 21918500 | K39: =A2A!K197 -> 20815643
A40: Road transport | C40: =A2A!C208 -> 5267177.2 | D40: =A2A!D208 -> 11080249.46 | E40: =A2A!E208 -> 15904292.06 | F40: =A2A!F208 -> 58678489 | G40: =A2A!G208 -> 25275930 | H40: =A2A!H208 -> 25275930 | I40: =A2A!I208 -> 59944301 | J40: =A2A!J208 -> 62587282 | K40: =A2A!K208 -> 65403712
A41: Environmental protection | C41: =A2A!C213 -> 0 | D41: =A2A!D213 -> 0 | E41: =A2A!E213 -> 0 | F41: =A2A!F213 -> 0 | G41: =A2A!G213 -> 0 | H41: =A2A!H213 -> 0 | I41: =A2A!I213 -> 0 | J41: =A2A!J213 -> 0 | K41: =A2A!K213 -> 0
A42: Trading services | C42: =SUM(C43:C46) -> 88670642.81 | D42: =SUM(D43:D46) -> 223306639.6 | E42: 264445569.2 | F42: =SUM(F43:F46) -> 326456038 | G42: 272020430 | H42: 272020430 | I42: 356075185 | J42: 371793810 | K42: =SUM(K43:K46) -> 387902727
A43: Energy sources | C43: =A2A!C221 -> 53829104.93 | D43: =A2A!D221 -> 122301493.6 | E43: =A2A!E221 -> 160185827.5 | F43: =A2A!F221 -> 189301514 | G43: =A2A!G221 -> 169061968 | H43: =A2A!H221 -> 169061968 | I43: =A2A!I221 -> 193165355 | J43: =A2A!J221 -> 201607872 | K43: =A2A!K221 -> 210153604
A44: Water management | C44: =A2A!C225 -> 19374425.25 | D44: =A2A!D225 -> 66860260.25 | E44: =A2A!E225 -> 68384609.14 | F44: =A2A!F225 -> 83956751 | G44: =A2A!G225 -> 57872994 | H44: =A2A!H225 -> 57872994 | I44: =A2A!I225 -> 105465816 | J44: =A2A!J225 -> 110197407 | K44: =A2A!K225 -> 115061181
A45: Waste water management | C45: =A2A!C229 -> 7648344.94 | D45: =A2A!D229 -> 17354421.38 | E45: =A2A!E229 -> 13823224.07 | F45: =A2A!F229 -> 32225602 | G45: =A2A!G229 -> 22872396 | H45: =A2A!H229 -> 22872396 | I45: =A2A!I229 -> 35085538 | J45: =A2A!J229 -> 36646203 | K45: =A2A!K229 -> 38295316
A46: Waste management | C46: =A2A!C234 -> 7818767.69 | D46: =A2A!D234 -> 16790464.38 | E46: =A2A!E234 -> 22051908.42 | F46: =A2A!F234 -> 20972171 | G46: =A2A!G234 -> 22213072 | H46: =A2A!H234 -> 22213072 | I46: =A2A!I234 -> 22358476 | J46: =A2A!J234 -> 23342328 | K46: =A2A!K234 -> 24392626
A47: Other | B47: 4 | C47: =A2A!C239 -> 0 | D47: =A2A!D239 -> 0 | E47: =A2A!E239 -> 0 | F47: =A2A!F239 -> 0 | G47: =A2A!G239 -> 0 | H47: =A2A!H239 -> 0 | I47: =A2A!I239 -> 0 | J47: =A2A!J239 -> 0 | K47: =A2A!K239 -> 0
A48: ="Total "&A27 -> Total Expenditure - Functional | B48: 3 | C48: =C28+C32+C38+C42+C47 -> 146048554.1 | D48: =D28+D32+D38+D42+D47 -> 548320020.6 | E48: =E28+E32+E38+E42+E47 -> 602178291.7 | F48: =F28+F32+F38+F42+F47 -> 663113360 | G48: 664511463 | H48: 664511463 | I48: 739673189 | J48: 777487159 | K48: 811856295
A49: =result -> Surplus/(Deficit) for the year | C49: =C25-C48 -> 126147242.7 | D49: =D25-D48 -> 37809542.94 | E49: 120309846.5 | F49: 94711728 | G49: 109716734 | H49: 109716734 | I49: 149768773 | J49: 200586728 | K49: 204259583
A50: =head27a -> References
A51: 1. Government Finance Statistics Functions and Sub-functions are standardised to assist the compilation of national and international accounts for comparison purposes
A52: 2. Total Revenue by functional classification must reconcile to Total Operating Revenue shown in Budgeted Financial Performance (revenue and expenditure)
A53: 3. Total Expenditure by Functional Classification must reconcile to Total Operating Expenditure shown in Budgeted Financial Performance (revenue and expenditure)
A54: 4. All amounts must be classified under a functional classification . The GFS function 'Other' is only for Abbatoirs, Air Transport, Forestry, Licensing and Regulation, Markets and Tourism - and if used must be supported by footnotes. Nothing else may be placed under 'Other'. Assign associate share to relevant classification.
A57: check oprev balance | C57: =C25-'A4-FinPerf RE'!C59 -> -50668841.55 | D57: =D25-'A4-FinPerf RE'!D59 -> 0 | E57: =E25-'A4-FinPerf RE'!E59 -> 0 | F57: =F25-'A4-FinPerf RE'!F59 -> 0 | G57: =G25-'A4-FinPerf RE'!G59 -> 0 | H57: =H25-'A4-FinPerf RE'!H59 -> 0 | I57: =I25-'A4-FinPerf RE'!J59 -> 0 | J57: =J25-'A4-FinPerf RE'!K59 -> 0 | K57: =K25-'A4-FinPerf RE'!L59 -> 0
A58: check opexp balance | C58: =C48-'A4-FinPerf RE'!C35 -> -17830394.99 | D58: =D48-'A4-FinPerf RE'!D35 -> 0 | E58: =E48-'A4-FinPerf RE'!E35 -> -25476.09 | F58: =F48-'A4-FinPerf RE'!F35 -> -1 | G58: =G48-'A4-FinPerf RE'!G35 -> -8 | H58: =H48-'A4-FinPerf RE'!H35 -> -8 | I58: =I48-'A4-FinPerf RE'!J35 -> 0 | J58: =J48-'A4-FinPerf RE'!K35 -> 0 | K58: =K48-'A4-FinPerf RE'!L35 -> 0

Sheet A2A
A1: =muni&" - "&Approve3 -> Choose name from list - Table A2 Budgeted Financial Performance (revenue and expenditure by functional classification)
A2: ="Functional Classification "&desc -> Functional Classification Description | B2: =head27 -> Ref | C2: =head1b -> 2018/19 | D2: =head1A -> 2019/20 | E2: =Head1 -> 2020/21 | F2: =Head2 -> Current Year 2021/22 | I2: =Head3 -> 2022/23 Medium Term Revenue & Expenditure Framework
A3: R thousand | B3: 1 | C3: =Head5 -> Audited Outcome | D3: =Head5 -> Audited Outcome | E3: =Head5 -> Audited Outcome | F3: =Head6 -> Original Budget | G3: =Head7 -> Adjusted Budget | H3: =Head8 -> Full Year Forecast | I3: =Head9 -> Budget Year 2022/23 | J3: =Head10 -> Budget Year +1 2023/24 | K3: =Head11 -> Budget Year +2 2024/25
A4: Revenue - Functional
A5: Municipal governance and administration | C5: =C6+C9+C23 -> 17478050.5 | D5: 105276263.1 | E5: 311832644.4 | F5: 341471876 | G5: 357912865 | H5: 357912865 | I5: 332946329 | J5: 359017027 | K5: 388606141
A6: Executive and council | C6: =SUM(C7:C8) -> 17478050.5 | D6: =SUM(D7:D8) -> 15301990.89 | E6: 188658222.4 | F6: 3948313 | G6: 3986194 | H6: 3986194 | I6: 4225356 | J6: 6657756 | K6: 6957353
A7: Mayor and Council | C7: 4956722.78 | D7: 13602493.99 | E7: 185867590.9 | F7: 567041 | G7: 604922 | H7: 604922 | I7: 641211 | J7: 669425 | K7: 699547
A8: Municipal Manager, Town Secretary and Chief Executive | C8: 12521327.72 | D8: 1699496.9 | E8: 2790631.42 | F8: 3381272 | G8: 3381272 | H8: 3381272 | I8: 3584145 | J8: 5988331 | K8: 6257806
A9: Finance and administration | C9: =SUM(C10:C22) -> 0 | D9: 89974272.25 | E9: 123174422.1 | F9: 337523563 | G9: 353926671 | H9: 353926671 | I9: 328720973 | J9: 352359271 | K9: 381648788
A10: Administrative and Corporate Support | C10: 0 | D10: 0 | E10: 0 | F10: 0 | G10: 0 | H10: 0 | I10: 0 | J10: 0 | K10: 0
A11: Asset Management | C11: 0 | D11: 0 | E11: 0 | F11: 0 | G11: 0 | H11: 0 | I11: 0 | J11: 0 | K11: 0
A12: Finance | C12: 0 | D12: 89639864.54 | E12: 123089494.7 | F12: 337068649 | G12: 353471757 | H12: 353471757 | I12: 328238765 | J12: 351855845 | K12: 381122708
A13: Fleet Management | C13: 0 | D13: 0 | E13: 0 | F13: 0 | G13: 0 | H13: 0 | I13: 0 | J13: 0 | K13: 0
A14: Human Resources | C14: 0 | D14: 334407.71 | E14: 84927.42 | F14: 454914 | G14: 454914 | H14: 454914 | I14: 482208 | J14: 503426 | K14: 526080
A15: Information Technology | C15: 0 | D15: 0 | E15: 0 | F15: 0 | G15: 0 | H15: 0 | I15: 0 | J15: 0 | K15: 0
A16: Legal Services | C16: 0 | D16: 0 | E16: 0 | F16: 0 | G16: 0 | H16: 0 | I16: 0 | J16: 0 | K16: 0
A17: Marketing, Customer Relations, Publicity and Media Co-ordination | C17: 0 | D17: 0 | E17: 0 | F17: 0 | G17: 0 | H17: 0 | I17: 0 | J17: 0 | K17: 0
A18: Property Services | C18: 0 | D18: 0 | E18: 0 | F18: 0 | G18: 0 | H18: 0 | I18: 0 | J18: 0 | K18: 0
A19: Risk Management | C19: 0 | D19: 0 | E19: 0 | F19: 0 | G19: 0 | H19: 0 | I19: 0 | J19: 0 | K19: 0
A20: Security Services | C20: 0 | D20: 0 | E20: 0 | F20: 0 | G20: 0 | H20: 0 | I20: 0 | J20: 0 | K20: 0
A21: Supply Chain Management | C21: 0 | D21: 0 | E21: 0 | F21: 0 | G21: 0 | H21: 0 | I21: 0 | J21: 0 | K21: 0
A22: Valuation Service | C22: 0 | D22: 0 | E22: 0 | F22: 0 | G22: 0 | H22: 0 | I22: 0 | J22: 0 | K22: 0
A23: Internal audit | C23: =SUM(C24:C24) -> 0 | D23: 0 | E23: 0 | F23: 0 | G23: 0 | H23: 0 | I23: 0 | J23: 0 | K23: 0
A24: Governance Function | C24: 0 | D24: 0 | E24: 0 | F24: 0 | G24: 0 | H24: 0 | I24: 0 | J24: 0 | K24: 0
A25: Community and public safety | C25: =C26+C48+C54+C63+C66 -> 36316989.84 | D25: 7575833.66 | E25: 10215516.62 | F25: 9003177 | G25: 9003177 | H25: 9003177 | I25: 9543352 | J25: 9963259 | K25: 10411604
A26: Community and social services | C26: =SUM(C27:C47) -> 15462.09 | D26: =SUM(D27:D47) -> 412894.72 | E26: 88317.21 | F26: 216573 | G26: 216573 | H26: 216573 | I26: 229565 | J26: 239666 | K26: 250449
A27: Aged Care | C27: 0 | D27: 0 | E27: 0 | F27: 0 | G27: 0 | H27: 0 | I27: 0 | J27: 0 | K27: 0
A28: Agricultural | C28: 0 | D28: 0 | E28: 0 | F28: 0 | G28: 0 | H28: 0 | I28: 0 | J28: 0 | K28: 0
A29: Animal Care and Diseases | C29: 0 | D29: 0 | E29: 0 | F29: 0 | G29: 0 | H29: 0 | I29: 0 | J29: 0 | K29: 0
A30: Cemeteries, Funeral Parlours and Crematoriums | C30: 0 | D30: 0 | E30: 0 | F30: 0 | G30: 0 | H30: 0 | I30: 0 | J30: 0 | K30: 0
A31: Child Care Facilities | C31: 0 | D31: 0 | E31: 0 | F31: 0 | G31: 0 | H31: 0 | I31: 0 | J31: 0 | K31: 0
A32: Community Halls and Facilities | C32: 0 | D32: 87337.47 | E32: 433056.34 | F32: 180926 | G32: 180926 | H32: 180926 | I32: 191781 | J32: 200219 | K32: 209228
A33: Consumer Protection | C33: 0 | D33: 0 | E33: 0 | F33: 0 | G33: 0 | H33: 0 | I33: 0 | J33: 0 | K33: 0
A34: Cultural Matters | C34: 0 | D34: 0 | E34: 0 | F34: 0 | G34: 0 | H34: 0 | I34: 0 | J34: 0 | K34: 0
A35: Disaster Management | C35: 0 | D35: 298000 | E35: 0 | F35: 0 | G35: 0 | H35: 0 | I35: 0 | J35: 0 | K35: 0
A36: Education | C36: 0 | D36: 0 | E36: 0 | F36: 0 | G36: 0 | H36: 0 | I36: 0 | J36: 0 | K36: 0
A37: Indigenous and Customary Law | C37: 0 | D37: 0 | E37: 0 | F37: 0 | G37: 0 | H37: 0 | I37: 0 | J37: 0 | K37: 0
A38: Industrial Promotion | C38: 0 | D38: 0 | E38: 0 | F38: 0 | G38: 0 | H38: 0 | I38: 0 | J38: 0 | K38: 0
A39: Language Policy | C39: 0 | D39: 0 | E39: 0 | F39: 0 | G39: 0 | H39: 0 | I39: 0 | J39: 0 | K39: 0
A40: Libraries and Archives | C40: 15462.09 | D40: 27557.25 | E40: -344739.13 | F40: 35647 | G40: 35647 | H40: 35647 | I40: 37784 | J40: 39447 | K40: 41221
A41: Literacy Programmes | C41: 0 | D41: 0 | E41: 0 | F41: 0 | G41: 0 | H41: 0 | I41: 0 | J41: 0 | K41: 0
A42: Media Services | C42: 0 | D42: 0 | E42: 0 | F42: 0 | G42: 0 | H42: 0 | I42: 0 | J42: 0 | K42: 0
A43: Museums and Art Galleries | C43: 0 | D43: 0 | E43: 0 | F43: 0 | G43: 0 | H43: 0 | I43: 0 | J43: 0 | K43: 0
A44: Population Development | C44: 0 | D44: 0 | E44: 0 | F44: 0 | G44: 0 | H44: 0 | I44: 0 | J44: 0 | K44: 0
A45: Provincial Cultural Matters | C45: 0 | D45: 0 | E45: 0 | F45: 0 | G45: 0 | H45: 0 | I45: 0 | J45: 0 | K45: 0
A46: Theatres | C46: 0 | D46: 0 | E46: 0 | F46: 0 | G46: 0 | H46: 0 | I46: 0 | J46: 0 | K46: 0
A47: Zoo's | C47: 0 | D47: 0 | E47: 0 | F47: 0 | G47: 0 | H47: 0 | I47: 0 | J47: 0 | K47: 0
A48: Sport and recreation | C48: =SUM(C49:C53) -> 62753.81 | D48: =SUM(D49:D53) -> 0 | E48: 0 | F48: 0 | G48: 0 | H48: 0 | I48: 0 | J48: 0 | K48: 0
A49: Beaches and Jetties | C49: 0 | D49: 0 | E49: 0 | F49: 0 | G49: 0 | H49: 0 | I49: 0 | J49: 0 | K49: 0
A50: Casinos, Racing, Gambling, Wagering | C50: 0 | D50: 0 | E50: 0 | F50: 0 | G50: 0 | H50: 0 | I50: 0 | J50: 0 | K50: 0
A51: Community Parks (including Nurseries) | C51: 0 | D51: 0 | E51: 0 | F51: 0 | G51: 0 | H51: 0 | I51: 0 | J51: 0 | K51: 0
A52: Recreational Facilities | C52: 0 | D52: 0 | E52: 0 | F52: 0 | G52: 0 | H52: 0 | I52: 0 | J52: 0 | K52: 0
A53: Sports Grounds and Stadiums | C53: 62753.81 | D53: 0 | E53: 0 | F53: 0 | G53: 0 | H53: 0 | I53: 0 | J53: 0 | K53: 0
A54: Public safety | C54: =SUM(C55:C62) -> 0 | D54: 7162938.94 | E54: 10127199.41 | F54: 8786592 | G54: 8786592 | H54: 8786592 | I54: 9313787 | J54: 9723593 | K54: 10161155
A55: Civil Defence | C55: 0 | D55: 0 | E55: 0 | F55: 0 | G55: 0 | H55: 0 | I55: 0 | J55: 0 | K55: 0
A56: Cleansing | C56: 0 | D56: 0 | E56: 0 | F56: 0 | G56: 0 | H56: 0 | I56: 0 | J56: 0 | K56: 0
A57: Control of Public Nuisances | C57: 0 | D57: 0 | E57: 0 | F57: 0 | G57: 0 | H57: 0 | I57: 0 | J57: 0 | K57: 0
A58: Fencing and Fences | C58: 0 | D58: 0 | E58: 0 | F58: 0 | G58: 0 | H58: 0 | I58: 0 | J58: 0 | K58: 0
A59: Fire Fighting and Protection | C59: 0 | D59: 0 | E59: 0 | F59: 0 | G59: 0 | H59: 0 | I59: 0 | J59: 0 | K59: 0
A60: Licensing and Control of Animals | C60: 0 | D60: 6589533.79 | E60: 9195083.61 | F60: 8218473 | G60: 8218473 | H60: 8218473 | I60: 8711581 | J60: 9094890 | K60: 9504161
A61: Police Forces, Traffic and Street Parking Control | C61: 0 | D61: 573405.15 | E61: 932115.8 | F61: 568119 | G61: 568119 | H61: 568119 | I61: 602206 | J61: 628703 | K61: 656994
A62: Pounds | C62: 0 | D62: 0 | E62: 0 | F62: 0 | G62: 0 | H62: 0 | I62: 0 | J62: 0 | K62: 0
A63: Housing | C63: =SUM(C64:C65) -> 36238773.94 | D63: =SUM(D64:D65) -> 0 | E63: 0 | F63: 12 | G63: 12 | H63: 12 | I63: 0 | J63: 0 | K63: 0
A64: Housing | C64: 36238773.94 | D64: 0 | E64: 0 | F64: 12 | G64: 12 | H64: 12 | I64: 0 | J64: 0 | K64: 0
A65: Informal Settlements | C65: 0 | D65: 0 | E65: 0 | F65: 0 | G65: 0 | H65: 0 | I65: 0 | J65: 0 | K65: 0
A66: Health | C66: =SUM(C67:C73) -> 0 | D66: =SUM(D67:D73) -> 0 | E66: 0 | F66: 0 | G66: 0 | H66: 0 | I66: 0 | J66: 0 | K66: 0
A67: Ambulance | C67: 0 | D67: 0 | E67: 0 | F67: 0 | G67: 0 | H67: 0 | I67: 0 | J67: 0 | K67: 0
A68: Health Services | C68: 0 | D68: 0 | E68: 0 | F68: 0 | G68: 0 | H68: 0 | I68: 0 | J68: 0 | K68: 0
A69: Laboratory Services | C69: 0 | D69: 0 | E69: 0 | F69: 0 | G69: 0 | H69: 0 | I69: 0 | J69: 0 | K69: 0
A70: Food Control | C70: 0 | D70: 0 | E70: 0 | F70: 0 | G70: 0 | H70: 0 | I70: 0 | J70: 0 | K70: 0
A71: Health Surveillance and Prevention of Communicable Diseases including immunizations | C71: 0 | D71: 0 | E71: 0 | F71: 0 | G71: 0 | H71: 0 | I71: 0 | J71: 0 | K71: 0
A72: Vector Control | C72: 0 | D72: 0 | E72: 0 | F72: 0 | G72: 0 | H72: 0 | I72: 0 | J72: 0 | K72: 0
A73: Chemical Safety | C73: 0 | D73: 0 | E73: 0 | F73: 0 | G73: 0 | H73: 0 | I73: 0 | J73: 0 | K73: 0
A74: Economic and environmental services | C74: =C75+C86+C91 -> 19973429.79 | D74: 37821568.43 | E74: 38323242.81 | F74: 1621422 | G74: 1583541 | H74: 1583541 | I74: 58284123 | J74: 50885929 | K74: 53122867
A75: Planning and development | C75: =SUM(C76:C85) -> 2361943.88 | D75: =SUM(D76:D85) -> 353846.57 | E75: 770281.17 | F75: 923325 | G75: 923325 | H75: 923325 | I75: 978723 | J75: 1021787 | K75: 1067767
A76: Billboards | C76: 0 | D76: 0 | E76: 0 | F76: 0 | G76: 0 | H76: 0 | I76: 0 | J76: 0 | K76: 0
A77: Corporate Wide Strategic Planning (IDPs, LEDs) | C77: 0 | D77: 0 | E77: 0 | F77: 0 | G77: 0 | H77: 0 | I77: 0 | J77: 0 | K77: 0
A78: Central City Improvement District | C78: 0 | D78: 0 | E78: 0 | F78: 0 | G78: 0 | H78: 0 | I78: 0 | J78: 0 | K78: 0
A79: Development Facilitation | C79: 0 | D79: 0 | E79: 0 | F79: 0 | G79: 0 | H79: 0 | I79: 0 | J79: 0 | K79: 0
A80: Economic Development/Planning | C80: 0 | D80: 0 | E80: 0 | F80: 0 | G80: 0 | H80: 0 | I80: 0 | J80: 0 | K80: 0
A81: Regional Planning and Development | C81: 0 | D81: 0 | E81: 0 | F81: 0 | G81: 0 | H81: 0 | I81: 0 | J81: 0 | K81: 0
A82: Town Planning, Building Regulations and Enforcement, and City Engineer | C82: 221428.33 | D82: 353846.57 | E82: 770281.17 | F82: 923325 | G82: 923325 | H82: 923325 | I82: 978723 | J82: 1021787 | K82: 1067767
A83: Project Management Unit | C83: 2140515.55 | D83: 0 | E83: 0 | F83: 0 | G83: 0 | H83: 0 | I83: 0 | J83: 0 | K83: 0
A84: Provincial Planning | C84: 0 | D84: 0 | E84: 0 | F84: 0 | G84: 0 | H84: 0 | I84: 0 | J84: 0 | K84: 0
A85: Support to Local Municipalities | C85: 0 | D85: 0 | E85: 0 | F85: 0 | G85: 0 | H85: 0 | I85: 0 | J85: 0 | K85: 0
A86: Road transport | C86: =SUM(C87:C90) -> 17611485.91 | D86: 37467721.86 | E86: 37552961.64 | F86: 698097 | G86: 660216 | H86: 660216 | I86: 57305400 | J86: 49864142 | K86: 52055100
A87: Public Transport | C87: 0 | D87: 0 | E87: 0 | F87: 0 | G87: 0 | H87: 0 | I87: 0 | J87: 0 | K87: 0
A88: Road and Traffic Regulation | C88: 0 | D88: 0 | E88: 0 | F88: 0 | G88: 0 | H88: 0 | I88: 0 | J88: 0 | K88: 0
A89: Roads | C89: 17611485.91 | D89: 37467721.86 | E89: 37552961.64 | F89: 698097 | G89: 660216 | H89: 660216 | I89: 57305400 | J89: 49864142 | K89: 52055100
A90: Taxi Ranks | C90: 0 | D90: 0 | E90: 0 | F90: 0 | G90: 0 | H90: 0 | I90: 0 | J90: 0 | K90: 0
A91: Environmental protection | C91: =SUM(C92:C97) -> 0 | D91: =SUM(D92:D97) -> 0 | E91: 0 | F91: 0 | G91: 0 | H91: 0 | I91: 0 | J91: 0 | K91: 0
A92: Biodiversity and Landscape | C92: 0 | D92: 0 | E92: 0 | F92: 0 | G92: 0 | H92: 0 | I92: 0 | J92: 0 | K92: 0
A93: Coastal Protection | C93: 0 | D93: 0 | E93: 0 | F93: 0 | G93: 0 | H93: 0 | I93: 0 | J93: 0 | K93: 0
A94: Indigenous Forests | C94: 0 | D94: 0 | E94: 0 | F94: 0 | G94: 0 | H94: 0 | I94: 0 | J94: 0 | K94: 0
A95: Nature Conservation | C95: 0 | D95: 0 | E95: 0 | F95: 0 | G95: 0 | H95: 0 | I95: 0 | J95: 0 | K95: 0
A96: Pollution Control | C96: 0 | D96: 0 | E96: 0 | F96: 0 | G96: 0 | H96: 0 | I96: 0 | J96: 0 | K96: 0
A97: Soil Conservation | C97: 0 | D97: 0 | E97: 0 | F97: 0 | G97: 0 | H97: 0 | I97: 0 | J97: 0 | K97: 0
A98: Trading services | C98: =C99+C103+C107+C112 -> 192783150 | D98: =D99+D103+D107+D112 -> 435455898.4 | E98: 362116734.3 | F98: 405728613 | G98: 405728613 | H98: 405728613 | I98: 488668158 | J98: 558207672 | K98: =K99+K103+K107+K112 -> 563975266
A99: Energy sources | C99: =SUM(C100:C102) -> 100069172.2 | D99: =SUM(D100:D102) -> 182673027.4 | E99: 191086521 | F99: 275716698 | G99: 275716698 | H99: 275716698 | I99: 288169688 | J99: 298293156 | K99: 304175209
A100: Electricity | C100: 100069172.2 | D100: 182673027.4 | E100: 191086521 | F100: 275716698 | G100: 275716698 | H100: 275716698 | I100: 288169688 | J100: 298293156 | K100: 304175209
A101: Street Lighting and Signal Systems | C101: 0 | D101: 0 | E101: 0 | F101: 0 | G101: 0 | H101: 0 | I101: 0 | J101: 0 | K101: 0
A102: Nonelectric Energy | C102: 0 | D102: 0 | E102: 0 | F102: 0 | G102: 0 | H102: 0 | I102: 0 | J102: 0 | K102: 0
A103: Water management | C103: =SUM(C104:C106) -> 31306825.67 | D103: =SUM(D104:D106) -> 93833999.96 | E103: 116686392.6 | F103: 76674394 | G103: 76674394 | H103: 76674394 | I103: 143961901 | J103: 202239184 | K103: 199529337
A104: Water Treatment | C104: 31306825.67 | D104: 0 | E104: 0 | F104: 1 | G104: 1 | H104: 1 | I104: 0 | J104: 0 | K104: 0
A105: Water Distribution | C105: 0 | D105: 93833999.96 | E105: 116686392.6 | F105: 76674393 | G105: 76674393 | H105: 76674393 | I105: 143961901 | J105: 202239184 | K105: 199529337
A106: Water Storage | C106: 0 | D106: 0 | E106: 0 | F106: 0 | G106: 0 | H106: 0 | I106: 0 | J106: 0 | K106: 0
A107: Waste water management | C107: =SUM(C108:C111) -> 40203232.53 | D107: =SUM(D108:D111) -> 33661741.24 | E107: 33723710.33 | F107: 29347765 | G107: 29347765 | H107: 29347765 | I107: 31108630 | J107: 32477411 | K107: 33938893
A108: Public Toilets | C108: 0 | D108: 0 | E108: 0 | F108: 0 | G108: 0 | H108: 0 | I108: 0 | J108: 0 | K108: 0
A109: Sewerage | C109: 40203232.53 | D109: 33661741.24 | E109: 33723710.33 | F109: 29347765 | G109: 29347765 | H109: 29347765 | I109: 31108630 | J109: 32477411 | K109: 33938893
A110: Storm Water Management | C110: 0 | D110: 0 | E110: 0 | F110: 0 | G110: 0 | H110: 0 | I110: 0 | J110: 0 | K110: 0
A111: Waste Water Treatment | C111: 0 | D111: 0 | E111: 0 | F111: 0 | G111: 0 | H111: 0 | I111: 0 | J111: 0 | K111: 0
A112: Waste management | C112: =SUM(C113:C116) -> 21203919.53 | D112: =SUM(D113:D116) -> 125287129.8 | E112: 20620110.33 | F112: 23989756 | G112: 23989756 | H112: 23989756 | I112: 25427939 | J112: 25197921 | K112: 26331827
A113: Recycling | C113: 0 | D113: 0 | E113: 0 | F113: 0 | G113: 0 | H113: 0 | I113: 0 | J113: 0 | K113: 0
A114: Solid Waste Disposal (Landfill Sites) | C114: 0 | D114: 0 | E114: 0 | F114: 0 | G114: 0 | H114: 0 | I114: 0 | J114: 0 | K114: 0
A115: Solid Waste Removal | C115: 21203919.53 | D115: 125287129.8 | E115: 20620110.33 | F115: 23989756 | G115: 23989756 | H115: 23989756 | I115: 25427939 | J115: 25197921 | K115: 26331827
A116: Street Cleaning | C116: 0 | D116: 0 | E116: 0 | F116: 0 | G116: 0 | H116: 0 | I116: 0 | J116: 0 | K116: 0
A117: Other | C117: =SUM(C118:C123) -> 5644176.79 | D117: =SUM(D118:D123) -> 0 | E117: 0 | F117: 0 | G117: 1 | H117: 1 | I117: 0 | J117: 0 | K117: 0
A118: Abattoirs | C118: 0 | D118: 0 | E118: 0 | F118: 0 | G118: 0 | H118: 0 | I118: 0 | J118: 0 | K118: 0
A119: Air Transport | C119: 0 | D119: 0 | E119: 0 | F119: 0 | G119: 0 | H119: 0 | I119: 0 | J119: 0 | K119: 0
A120: Forestry | C120: 0 | D120: 0 | E120: 0 | F120: 0 | G120: 0 | H120: 0 | I120: 0 | J120: 0 | K120: 0
A121: Licensing and Regulation | C121: 5644176.79 | D121: 0 | E121: 0 | F121: 0 | G121: 1 | H121: 1 | I121: 0 | J121: 0 | K121: 0
A122: Markets | C122: 0 | D122: 0 | E122: 0 | F122: 0 | G122: 0 | H122: 0 | I122: 0 | J122: 0 | K122: 0
A123: Tourism | C123: 0 | D123: 0 | E123: 0 | F123: 0 | G123: 0 | H123: 0 | I123: 0 | J123: 0 | K123: 0
A124: ="Total "&A4 -> Total Revenue - Functional | B124: 2 | C124: =C5+C25+C74+C98+C117 -> 272195796.9 | D124: 586129563.6 | E124: 722488138.2 | F124: 757825088 | G124: 774228197 | H124: 774228197 | I124: 889441962 | J124: 978073887 | K124: 1016115878
A126: Expenditure - Functional
A127: =A5 -> Municipal governance and administration | C127: =C128+C131+C145 -> 32410648.05 | D127: 255575406.6 | E127: 261212830.2 | F127: 201338012 | G127: 299354986 | H127: 299354986 | I127: 251645708 | J127: 265929330 | K127: 279990452
A128: Executive and council | C128: =SUM(C129:C130) -> 16709994.43 | D128: 169399650.8 | E128: 151593501 | F128: 77031788 | G128: 162933130 | H128: 162933130 | I128: 90467091 | J128: 99831103 | K128: 105868539
A129: Mayor and Council | C129: 10304196.3 | D129: 157133183.6 | E129: 50410252.82 | F129: 47529567 | G129: 52688766 | H129: 52688766 | I129: 55793060 | J129: 63637620 | K129: 68047946
A130: Municipal Manager, Town Secretary and Chief Executive | C130: 6405798.13 | D130: 12266467.18 | E130: 101183248.2 | F130: 29502221 | G130: 110244364 | H130: 110244364 | I130: 34674031 | J130: 36193483 | K130: 37820593
A131: Finance and administration | C131: =SUM(C132:C144) -> 14956188.66 | D131: 79919602.28 | E131: 107948094.6 | F131: 122305039 | G131: 133273818 | H131: 133273818 | I131: 158243369 | J131: 163033787 | K131: 170919616
A132: Administrative and Corporate Support | C132: 9268008.47 | D132: 23281129.38 | E132: 31890539.58 | F132: 28728671 | G132: 29326990 | H132: 29326990 | I132: 56988229 | J132: 59341954 | K132: 60471158
A133: Asset Management | C133: 0 | D133: 0 | E133: 0 | F133: 0 | G133: 0 | H133: 0 | I133: 0 | J133: 0 | K133: 0
A134: Finance | C134: 0 | D134: 29504375.7 | E134: 32921672.37 | F134: 47365612 | G134: 55020591 | H134: 55020591 | I134: 50564952 | J134: 52788471 | K134: 55163929
A135: Fleet Management | C135: 0 | D135: 0 | E135: 0 | F135: 0 | G135: 0 | H135: 0 | I135: 0 | J135: 0 | K135: 0
A136: Human Resources | C136: 2932418.9 | D136: 8382193.71 | E136: 9429018.51 | F136: 11135359 | G136: 11533613 | H136: 11533613 | I136: 12115436 | J136: 12648516 | K136: 13217701
A137: Information Technology | C137: 0 | D137: 2562624.23 | E137: 2361061.33 | F137: 4158117 | G137: 4278639 | H137: 4278639 | I137: 4581337 | J137: 4776291 | K137: 4991224
A138: Legal Services | C138: 1180131.12 | D138: 7052510.36 | E138: 11988798.92 | F138: 7031613 | G138: 8243021 | H138: 8243021 | I138: 8551479 | J138: 8927743 | K138: 9329493
A139: Marketing, Customer Relations, Publicity and Media Co-ordination | C139: 0 | D139: 0 | E139: 0 | F139: 0 | G139: 0 | H139: 0 | I139: 0 | J139: 0 | K139: 0
A140: Property Services | C140: 0 | D140: 0 | E140: 0 | F140: 0 | G140: 0 | H140: 0 | I140: 0 | J140: 0 | K140: 0
A141: Risk Management | C141: 35546.53 | D141: 594171.75 | E141: 937983.88 | F141: 875823 | G141: 1174400 | H141: 1174400 | I141: 1898505 | J141: 1982037 | K141: 2071231
A142: Security Services | C142: 0 | D142: 4061905.73 | E142: 13614808.53 | F142: 16751310 | G142: 17817473 | H142: 17817473 | I142: 16915829 | J142: 15660024 | K142: 18454723
A143: Supply Chain Management | C143: 1540083.64 | D143: 4480691.42 | E143: 4804211.5 | F143: 6258534 | G143: 5879091 | H143: 5879091 | I143: 6627602 | J143: 6908751 | K143: 7220157
A144: Valuation Service | C144: 0 | D144: 0 | E144: 0 | F144: 0 | G144: 0 | H144: 0 | I144: 0 | J144: 0 | K144: 0
A145: Internal audit | C145: =SUM(C146:C146) -> 744464.96 | D145: 6256153.56 | E145: 1671234.59 | F145: 2001185 | G145: 3148038 | H145: 3148038 | I145: 2935248 | J145: 3064440 | K145: 3202297
A146: Governance Function | C146: 744464.96 | D146: 6256153.56 | E146: 1671234.59 | F146: 2001185 | G146: 3148038 | H146: 3148038 | I146: 2935248 | J146: 3064440 | K146: 3202297
A147: Community and public safety | C147: =C148+C170+C176+C185+C188 -> 13142701.9 | D147: 44133022.33 | E147: 46208399.53 | F147: 60615745 | G147: 50829262 | H147: 50829262 | I147: 52930376 | J147: 55258237 | K147: 57743761
A148: Community and social services | C148: =SUM(C149:C169) -> 3118373.03 | D148: =SUM(D149:D169) -> 21190088.78 | E148: 21982121.14 | F148: 29520371 | G148: 23786845 | H148: 23786845 | I148: 25194291 | J148: 26302742 | K148: 27486370
A149: Aged Care | C149: 0 | D149: 0 | E149: 0 | F149: 0 | G149: 0 | H149: 0 | I149: 0 | J149: 0 | K149: 0
A150: Agricultural | C150: 0 | D150: 0 | E150: 0 | F150: 0 | G150: 0 | H150: 0 | I150: 0 | J150: 0 | K150: 0
A151: Animal Care and Diseases | C151: 0 | D151: 0 | E151: 0 | F151: 0 | G151: 0 | H151: 0 | I151: 0 | J151: 0 | K151: 0
A152: Cemeteries, Funeral Parlours and Crematoriums | C152: 0 | D152: 12837655.61 | E152: 13165939.66 | F152: 13601870 | G152: 13691248 | H152: 13691248 | I152: 14255746 | J152: 14882997 | K152: 15552738
A153: Child Care Facilities | C153: 0 | D153: 0 | E153: 0 | F153: 0 | G153: 0 | H153: 0 | I153: 0 | J153: 0 | K153: 0
A154: Community Halls and Facilities | C154: 191222.39 | D154: 495658.27 | E154: 726446.96 | F154: 556563 | G154: 556563 | H154: 556563 | I154: 583361 | J154: 608935 | K154: 636335
A155: Consumer Protection | C155: 0 | D155: 0 | E155: 0 | F155: 0 | G155: 0 | H155: 0 | I155: 0 | J155: 0 | K155: 0
A156: Cultural Matters | C156: 0 | D156: 0 | E156: 0 | F156: 0 | G156: 0 | H156: 0 | I156: 0 | J156: 0 | K156: 0
A157: Disaster Management | C157: 0 | D157: 298000 | E157: 377748.2 | F157: 1512500 | G157: 689595 | H157: 689595 | I157: 1081001 | J157: 1128565 | K157: 1179350
A158: Education | C158: 0 | D158: 0 | E158: 0 | F158: 0 | G158: 0 | H158: 0 | I158: 0 | J158: 0 | K158: 0
A159: =A37 -> Indigenous and Customary Law | C159: 0 | D159: 0 | E159: 0 | F159: 0 | G159: 0 | H159: 0 | I159: 0 | J159: 0 | K159: 0
A160: Industrial Promotion | C160: 0 | D160: 0 | E160: 0 | F160: 0 | G160: 0 | H160: 0 | I160: 0 | J160: 0 | K160: 0
A161: Language Policy | C161: 0 | D161: 0 | E161: 0 | F161: 0 | G161: 0 | H161: 0 | I161: 0 | J161: 0 | K161: 0
A162: Libraries and Archives | C162: 2927150.64 | D162: 7558774.9 | E162: 7711986.32 | F162: 13849438 | G162: 8849439 | H162: 8849439 | I162: 9274183 | J162: 9682245 | K162: 10117947
A163: Literacy Programmes | C163: 0 | D163: 0 | E163: 0 | F163: 0 | G163: 0 | H163: 0 | I163: 0 | J163: 0 | K163: 0
A164: Media Services | C164: 0 | D164: 0 | E164: 0 | F164: 0 | G164: 0 | H164: 0 | I164: 0 | J164: 0 | K164: 0
A165: Museums and Art Galleries | C165: 0 | D165: 0 | E165: 0 | F165: 0 | G165: 0 | H165: 0 | I165: 0 | J165: 0 | K165: 0
A166: Population Development | C166: 0 | D166: 0 | E166: 0 | F166: 0 | G166: 0 | H166: 0 | I166: 0 | J166: 0 | K166: 0
A167: Provincial Cultural Matters | C167: 0 | D167: 0 | E167: 0 | F167: 0 | G167: 0 | H167: 0 | I167: 0 | J167: 0 | K167: 0
A168: Theatres | C168: 0 | D168: 0 | E168: 0 | F168: 0 | G168: 0 | H168: 0 | I168: 0 | J168: 0 | K168: 0
A169: Zoo's | C169: 0 | D169: 0 | E169: 0 | F169: 0 | G169: 0 | H169: 0 | I169: 0 | J169: 0 | K169: 0
A170: Sport and recreation | C170: =SUM(C171:C175) -> 4798733.43 | D170: 0 | E170: 50519.96 | F170: 0 | G170: 115529 | H170: 115529 | I170: 250347 | J170: 261362 | K170: 273119
A171: Beaches and Jetties | C171: 0 | D171: 0 | E171: 0 | F171: 0 | G171: 0 | H171: 0 | I171: 0 | J171: 0 | K171: 0
A172: Casinos, Racing, Gambling, Wagering | C172: 0 | D172: 0 | E172: 0 | F172: 0 | G172: 0 | H172: 0 | I172: 0 | J172: 0 | K172: 0
A173: Community Parks (including Nurseries) | C173: 0 | D173: 0 | E173: 0 | F173: 0 | G173: 0 | H173: 0 | I173: 0 | J173: 0 | K173: 0
A174: Recreational Facilities | C174: 0 | D174: 0 | E174: 0 | F174: 0 | G174: 0 | H174: 0 | I174: 0 | J174: 0 | K174: 0
A175: Sports Grounds and Stadiums | C175: 4798733.43 | D175: 0 | E175: 50519.96 | F175: 0 | G175: 115529 | H175: 115529 | I175: 250347 | J175: 261362 | K175: 273119
A176: Public safety | C176: =SUM(C177:C184) -> 3949065.51 | D176: 19677713.27 | E176: 20371279.45 | F176: 26866122 | G176: 22767633 | H176: 22767633 | I176: 23546053 | J176: 24581102 | K176: 25686153
A177: Civil Defence | C177: 0 | D177: 0 | E177: 0 | F177: 0 | G177: 0 | H177: 0 | I177: 0 | J177: 0 | K177: 0
A178: Cleansing | C178: 0 | D178: 0 | E178: 0 | F178: 0 | G178: 0 | H178: 0 | I178: 0 | J178: 0 | K178: 0
A179: =A57 -> Control of Public Nuisances | C179: 0 | D179: 0 | E179: 0 | F179: 0 | G179: 0 | H179: 0 | I179: 0 | J179: 0 | K179: 0
A180: Fencing and Fences | C180: 0 | D180: 0 | E180: 0 | F180: 0 | G180: 0 | H180: 0 | I180: 0 | J180: 0 | K180: 0
A181: Fire Fighting and Protection | C181: 0 | D181: 0 | E181: 0 | F181: 0 | G181: 0 | H181: 0 | I181: 0 | J181: 0 | K181: 0
A182: Licensing and Control of Animals | C182: 3949065.51 | D182: 8925935.88 | E182: 9190573.22 | F182: 11645521 | G182: 11645521 | H182: 11645521 | I182: 12204495 | J182: 12740515 | K182: 13313839
A183: Police Forces, Traffic and Street Parking Control | C183: 0 | D183: 10751777.39 | E183: 11180706.23 | F183: 15220601 | G183: 11122112 | H183: 11122112 | I183: 11341558 | J183: 11840587 | K183: 12372314
A184: Pounds | C184: 0 | D184: 0 | E184: 0 | F184: 0 | G184: 0 | H184: 0 | I184: 0 | J184: 0 | K184: 0
A185: =A63 -> Housing | C185: =SUM(C186:C187) -> 1276529.93 | D185: 3265220.28 | E185: 3804478.98 | F185: 4229252 | G185: 4159255 | H185: 4159255 | I185: 3939685 | J185: 4113031 | K185: 4298119
A186: Housing | C186: 1276529.93 | D186: 3265220.28 | E186: 3804478.98 | F186: 4229252 | G186: 4159255 | H186: 4159255 | I186: 3939685 | J186: 4113031 | K186: 4298119
A187: Informal Settlements | C187: 0 | D187: 0 | E187: 0 | F187: 0 | G187: 0 | H187: 0 | I187: 0 | J187: 0 | K187: 0
A188: Health | C188: =SUM(C189:C195) -> 0 | D188: =SUM(D189:D195) -> 0 | E188: 0 | F188: 0 | G188: 0 | H188: 0 | I188: 0 | J188: 0 | K188: 0
A189: Ambulance | C189: 0 | D189: 0 | E189: 0 | F189: 0 | G189: 0 | H189: 0 | I189: 0 | J189: 0 | K189: 0
A190: Health Services | C190: 0 | D190: 0 | E190: 0 | F190: 0 | G190: 0 | H190: 0 | I190: 0 | J190: 0 | K190: 0
A191: Laboratory Services | C191: 0 | D191: 0 | E191: 0 | F191: 0 | G191: 0 | H191: 0 | I191: 0 | J191: 0 | K191: 0
A192: Food Control | C192: 0 | D192: 0 | E192: 0 | F192: 0 | G192: 0 | H192: 0 | I192: 0 | J192: 0 | K192: 0
A193: Health Surveillance and Prevention of Communicable Diseases including immunizations | C193: 0 | D193: 0 | E193: 0 | F193: 0 | G193: 0 | H193: 0 | I193: 0 | J193: 0 | K193: 0
A194: Vector Control | C194: 0 | D194: 0 | E194: 0 | F194: 0 | G194: 0 | H194: 0 | I194: 0 | J194: 0 | K194: 0
A195: Chemical Safety | C195: 0 | D195: 0 | E195: 0 | F195: 0 | G195: 0 | H195: 0 | I195: 0 | J195: 0 | K195: 0
A196: Economic and environmental services | C196: =C197+C208+C213 -> 11824561.38 | D196: 25304952.07 | E196: 30311492.79 | F196: 74703565 | G196: 42306785 | H196: 42306785 | I196: 79021920 | J196: 84505782 | K196: 86219355
A197: Planning and development | C197: =SUM(C198:C207) -> 6557384.18 | D197: =SUM(D198:D207) -> 14224702.61 | E197: 14407200.73 | F197: 16025076 | G197: 17030855 | H197: 17030855 | I197: 19077619 | J197: 21918500 | K197: 20815643
A198: Billboards | C198: 0 | D198: 0 | E198: 0 | F198: 0 | G198: 0 | H198: 0 | I198: 0 | J198: 0 | K198: 0
A199: Corporate Wide Strategic Planning (IDPs, LEDs) | C199: 0 | D199: 0 | E199: 0 | F199: 0 | G199: 0 | H199: 0 | I199: 0 | J199: 0 | K199: 0
A200: Central City Improvement District | C200: 0 | D200: 0 | E200: 0 | F200: 0 | G200: 0 | H200: 0 | I200: 0 | J200: 0 | K200: 0
A201: Development Facilitation | C201: 0 | D201: 0 | E201: 0 | F201: 0 | G201: 0 | H201: 0 | I201: 0 | J201: 0 | K201: 0
... 53 more rows

Sheet A3-FinPerf V
A1: =muni&" - "&Approve2 -> Choose name from list - Table A3 Budgeted Financial Performance (revenue and expenditure by municipal vote)
A2: =Vdesc -> Vote Description | B2: =head27 -> Ref | C2: =head1b -> 2018/19 | D2: =head1A -> 2019/20 | E2: =Head1 -> 2020/21 | F2: =Head2 -> Current Year 2021/22 | I2: =Head3 -> 2022/23 Medium Term Revenue & Expenditure Framework | L2: =Head4 -> LTFS
A3: R thousand | C3: =Head5 -> Audited Outcome | D3: =Head5 -> Audited Outcome | E3: =Head5 -> Audited Outcome | F3: =Head6 -> Original Budget | G3: =Head7 -> Adjusted Budget | H3: =Head8 -> Full Year Forecast | I3: =Head9 -> Budget Year 2022/23 | J3: =Head10 -> Budget Year +1 2023/24 | K3: =Head11 -> Budget Year +2 2024/25 | L3: =Head12 -> Forecast 2025/26 | M3: =Head13 -> Forecast 2026/27 | N3: =Head14 -> Forecast 2027/28 | O3: =Head15 -> Forecast 2028/29 | P3: =Head16 -> Forecast 2029/30 | Q3: =Head17 -> Forecast 2030/31 | R3: =Head18 -> Forecast 2031/32 | S3: =Head19 -> Forecast 2032/33 | T3: =Head20 -> Forecast 2033/34 | U3: =Head21 -> Forecast 2034/35 | V3: =Head22 -> Forecast 2035/36 | W3: =Head23 -> Forecast 2036/37
A4: Revenue by Vote | B4: 1
A5: =A3A!A5 -> Vote 1 - Office of Municipal Manager | C5: =A3A!C5 -> 6014136.69 | D5: =A3A!D5 -> 19185311.28 | E5: =A3A!E5 -> 190414962.3 | F5: =A3A!F5 -> 567041 | G5: =A3A!G5 -> 604922 | H5: =A3A!H5 -> 604922 | I5: =A3A!I5 -> 641211 | J5: =A3A!J5 -> 669425 | K5: =A3A!K5 -> 699547
A6: =A3A!A16 -> Vote 2 - Budget and Treasury | C6: =A3A!C16 -> 94763026.17 | D6: =A3A!D16 -> 83954511.86 | E6: =A3A!E16 -> 119423016.6 | F6: =A3A!F16 -> 340904847 | G6: =A3A!G16 -> 357307955 | H6: =A3A!H16 -> 357307955 | I6: =A3A!I16 -> 329325518 | J6: =A3A!J16 -> 358347602 | K6: =A3A!K16 -> 387906594
A7: =A3A!A27 -> Vote 3 - Corporate Services | C7: =A3A!C27 -> 120588.7 | D7: =A3A!D27 -> 0 | E7: =A3A!E27 -> 0 | F7: =A3A!F27 -> 1 | G7: =A3A!G27 -> 2 | H7: =A3A!H27 -> 2 | I7: =A3A!I27 -> 0 | J7: =A3A!J27 -> 0 | K7: =A3A!K27 -> 0
A8: =A3A!A38 -> Vote 4 - Social Service | C8: =A3A!C38 -> 46084953.11 | D8: =A3A!D38 -> 132862963.4 | E8: =A3A!E38 -> 30835626.95 | F8: =A3A!F38 -> 32992921 | G8: =A3A!G38 -> 32992921 | H8: =A3A!H38 -> 32992921 | I8: =A3A!I38 -> 34971291 | J8: =A3A!J38 -> 35161180 | K8: =A3A!K38 -> 36743431
A9: =A3A!A49 -> Vote 5 - Technical and Engineering Services | C9: =A3A!C49 -> 173195106.2 | D9: =A3A!D49 -> 349772930.4 | E9: =A3A!E49 -> 381044251.1 | F9: =A3A!F49 -> 382436953 | G9: =A3A!G49 -> 382399072 | H9: =A3A!H49 -> 382399072 | I9: =A3A!I49 -> 523525219 | J9: =A3A!J49 -> 582873893 | K9: =A3A!K49 -> 589698539
A10: =A3A!A60 -> Vote 6 - Property, Planning & Development | C10: =A3A!C60 -> 1013007.21 | D10: =A3A!D60 -> 353846.57 | E10: =A3A!E60 -> 770281.17 | F10: =A3A!F60 -> 923325 | G10: =A3A!G60 -> 923325 | H10: =A3A!H60 -> 923325 | I10: =A3A!I60 -> 978723 | J10: =A3A!J60 -> 1021787 | K10: =A3A!K60 -> 1067767
A11: =A3A!A71 -> Vote 7 - Office of the Mayor/Strategic Office | C11: =A3A!C71 -> 1673820.38 | D11: =A3A!D71 -> 0 | E11: =A3A!E71 -> 0 | F11: =A3A!F71 -> 0 | G11: =A3A!G71 -> 0 | H11: =A3A!H71 -> 0 | I11: =A3A!I71 -> 0 | J11: =A3A!J71 -> 0 | K11: =A3A!K71 -> 0
A12: =A3A!A82 -> Vote 8 - COMMUNITY & SOCIAL SERVICES | C12: =A3A!C82 -> 0 | D12: =A3A!D82 -> 0 | E12: =A3A!E82 -> 0 | F12: =A3A!F82 -> 0 | G12: =A3A!G82 -> 0 | H12: =A3A!H82 -> 0 | I12: =A3A!I82 -> 0 | J12: =A3A!J82 -> 0 | K12: =A3A!K82 -> 0
A13: =A3A!A93 -> Vote 9 - [NAME OF VOTE 9] | C13: =A3A!C93 -> 0 | D13: =A3A!D93 -> 0 | E13: =A3A!E93 -> 0 | F13: =A3A!F93 -> 0 | G13: =A3A!G93 -> 0 | H13: =A3A!H93 -> 0 | I13: =A3A!I93 -> 0 | J13: =A3A!J93 -> 0 | K13: =A3A!K93 -> 0
A14: =A3A!A104 -> Vote 10 - [NAME OF VOTE 10] | C14: =A3A!C104 -> 0 | D14: =A3A!D104 -> 0 | E14: =A3A!E104 -> 0 | F14: =A3A!F104 -> 0 | G14: =A3A!G104 -> 0 | H14: =A3A!H104 -> 0 | I14: =A3A!I104 -> 0 | J14: =A3A!J104 -> 0 | K14: =A3A!K104 -> 0
A15: =A3A!A115 -> Vote 11 - [NAME OF VOTE 11] | C15: =A3A!C115 -> 0 | D15: =A3A!D115 -> 0 | E15: =A3A!E115 -> 0 | F15: =A3A!F115 -> 0 | G15: =A3A!G115 -> 0 | H15: =A3A!H115 -> 0 | I15: =A3A!I115 -> 0 | J15: =A3A!J115 -> 0 | K15: =A3A!K115 -> 0 | L15: =A5A!L115 -> 0
A16: =A3A!A126 -> Vote 12 - [NAME OF VOTE 12] | C16: =A3A!C126 -> 0 | D16: =A3A!D126 -> 0 | E16: =A3A!E126 -> 0 | F16: =A3A!F126 -> 0 | G16: =A3A!G126 -> 0 | H16: =A3A!H126 -> 0 | I16: =A3A!I126 -> 0 | J16: =A3A!J126 -> 0 | K16: =A3A!K126 -> 0 | L16: =A5A!L126 -> 0
A17: =A3A!A137 -> Vote 13 - [NAME OF VOTE 13] | C17: =A3A!C137 -> 0 | D17: =A3A!D137 -> 0 | E17: =A3A!E137 -> 0 | F17: =A3A!F137 -> 0 | G17: =A3A!G137 -> 0 | H17: =A3A!H137 -> 0 | I17: =A3A!I137 -> 0 | J17: =A3A!J137 -> 0 | K17: =A3A!K137 -> 0 | L17: =A5A!L137 -> 0
A18: =A3A!A148 -> Vote 14 - [NAME OF VOTE 14] | C18: =A3A!C148 -> 0 | D18: =A3A!D148 -> 0 | E18: =A3A!E148 -> 0 | F18: =A3A!F148 -> 0 | G18: =A3A!G148 -> 0 | H18: =A3A!H148 -> 0 | I18: =A3A!I148 -> 0 | J18: =A3A!J148 -> 0 | K18: =A3A!K148 -> 0 | L18: =A5A!L148 -> 0
A19: =A3A!A159 -> Vote 15 - [NAME OF VOTE 15] | C19: =A3A!C159 -> 0 | D19: =A3A!D159 -> 0 | E19: =A3A!E159 -> 0 | F19: =A3A!F159 -> 0 | G19: =A3A!G159 -> 0 | H19: =A3A!H159 -> 0 | I19: =A3A!I159 -> 0 | J19: =A3A!J159 -> 0 | K19: =A3A!K159 -> 0 | L19: =A5A!L159 -> 0
A20: Total Revenue by Vote | B20: 2 | C20: =SUM(C5:C19) -> 322864638.4 | D20: =SUM(D5:D19) -> 586129563.6 | E20: 722488138.2 | F20: 757825088 | G20: 774228197 | H20: 774228197 | I20: 889441962 | J20: 978073887 | K20: 1016115878
A22: Expenditure by Vote to be appropriated | B22: 1
A23: =A3A!A173 -> Vote 1 - Office of Municipal Manager | C23: =A3A!C173 -> 17086336.78 | D23: =A3A!D173 -> 169653698.8 | E23: =A3A!E173 -> 143233409.4 | F23: =A3A!F173 -> 54116073 | G23: =A3A!G173 -> 157399925 | H23: =A3A!H173 -> 157399925 | I23: =A3A!I173 -> 67710560 | J23: =A3A!J173 -> 76079529 | K23: =A3A!K173 -> 81048088
A24: =A3A!A184 -> Vote 2 - Budget and Treasury | C24: =A3A!C184 -> 13558743.48 | D24: =A3A!D184 -> 34284420.75 | E24: =A3A!E184 -> 47903443.43 | F24: =A3A!F184 -> 62767064 | G24: =A3A!G184 -> 69669194 | H24: =A3A!H184 -> 69669194 | I24: =A3A!I184 -> 68549720 | J24: =A3A!J184 -> 69554002 | K24: =A3A!K184 -> 74774420
A25: =A3A!A195 -> Vote 3 - Corporate Services | C25: =A3A!C195 -> 8798498.16 | D25: =A3A!D195 -> 28268861.69 | E25: =A3A!E195 -> 34111207.55 | F25: =A3A!F195 -> 36029089 | G25: =A3A!G195 -> 39930094 | H25: =A3A!H195 -> 39930094 | I25: =A3A!I195 -> 47398485 | J25: =A3A!J195 -> 49471133 | K25: =A3A!K195 -> 51697344
A26: =A3A!A206 -> Vote 4 - Social Service | C26: =A3A!C206 -> 27674233.21 | D26: =A3A!D206 -> 63395684.44 | E26: =A3A!E206 -> 76482566.34 | F26: =A3A!F206 -> 97324697 | G26: =A3A!G206 -> 85012365 | H26: =A3A!H206 -> 85012365 | I26: =A3A!I206 -> 90397756 | J26: =A3A!J206 -> 94374262 | K26: =A3A!K206 -> 98619898
A27: =A3A!A217 -> Vote 5 - Technical and Engineering Services | C27: =A3A!C217 -> 82414074.57 | D27: =A3A!D217 -> 222533238.3 | E27: =A3A!E217 -> 262129501.3 | F27: =A3A!F217 -> 377150870 | G27: =A3A!G217 -> 279371690 | H27: =A3A!H217 -> 279371690 | I27: =A3A!I217 -> 425716904 | J27: =A3A!J217 -> 444269083 | K27: =A3A!K217 -> 462454936
A28: =A3A!A228 -> Vote 6 - Property, Planning & Development | C28: =A3A!C228 -> 8351289.09 | D28: =A3A!D228 -> 14851217.98 | E28: =A3A!E228 -> 15433910.27 | F28: =A3A!F228 -> 16659003 | G28: =A3A!G228 -> 16354558 | H28: =A3A!H228 -> 16354558 | I28: =A3A!I228 -> 17593434 | J28: =A3A!J228 -> 20368983 | K28: =A3A!K228 -> 19196438
A29: =A3A!A239 -> Vote 7 - Office of the Mayor/Strategic Office | C29: =A3A!C239 -> 5995773.84 | D29: =A3A!D239 -> 15332898.74 | E29: =A3A!E239 -> 22884253.38 | F29: =A3A!F239 -> 19066564 | G29: =A3A!G239 -> 16773637 | H29: =A3A!H239 -> 16773637 | I29: =A3A!I239 -> 22306330 | J29: =A3A!J239 -> 23370167 | K29: =A3A!K239 -> 24065171
A30: =A3A!A250 -> Vote 8 - COMMUNITY & SOCIAL SERVICES | C30: =A3A!C250 -> 0 | D30: =A3A!D250 -> 0 | E30: =A3A!E250 -> 0 | F30: =A3A!F250 -> 0 | G30: =A3A!G250 -> 0 | H30: =A3A!H250 -> 0 | I30: =A3A!I250 -> 0 | J30: =A3A!J250 -> 0 | K30: =A3A!K250 -> 0
A31: =A3A!A261 -> Vote 9 - [NAME OF VOTE 9] | C31: =A3A!C261 -> 0 | D31: =A3A!D261 -> 0 | E31: =A3A!E261 -> 0 | F31: =A3A!F261 -> 0 | G31: =A3A!G261 -> 0 | H31: =A3A!H261 -> 0 | I31: =A3A!I261 -> 0 | J31: =A3A!J261 -> 0 | K31: =A3A!K261 -> 0
A32: =A3A!A272 -> Vote 10 - [NAME OF VOTE 10] | C32: =A3A!C272 -> 0 | D32: =A3A!D272 -> 0 | E32: =A3A!E272 -> 0 | F32: =A3A!F272 -> 0 | G32: =A3A!G272 -> 0 | H32: =A3A!H272 -> 0 | I32: =A3A!I272 -> 0 | J32: =A3A!J272 -> 0 | K32: =A3A!K272 -> 0
A33: =A3A!A283 -> Vote 11 - [NAME OF VOTE 11] | C33: =A3A!C283 -> 0 | D33: =A3A!D283 -> 0 | E33: =A3A!E283 -> 0 | F33: =A3A!F283 -> 0 | G33: =A3A!G283 -> 0 | H33: =A3A!H283 -> 0 | I33: =A3A!I283 -> 0 | J33: =A3A!J283 -> 0 | K33: =A3A!K283 -> 0 | L33: =A3A!L284 -> 0
A34: =A3A!A294 -> Vote 12 - [NAME OF VOTE 12] | C34: =A3A!C294 -> 0 | D34: =A3A!D294 -> 0 | E34: =A3A!E294 -> 0 | F34: =A3A!F294 -> 0 | G34: =A3A!G294 -> 0 | H34: =A3A!H294 -> 0 | I34: =A3A!I294 -> 0 | J34: =A3A!J294 -> 0 | K34: =A3A!K294 -> 0 | L34: =A3A!L295 -> 0
A35: =A3A!A305 -> Vote 13 - [NAME OF VOTE 13] | C35: =A3A!C305 -> 0 | D35: =A3A!D305 -> 0 | E35: =A3A!E305 -> 0 | F35: =A3A!F305 -> 0 | G35: =A3A!G305 -> 0 | H35: =A3A!H305 -> 0 | I35: =A3A!I305 -> 0 | J35: =A3A!J305 -> 0 | K35: =A3A!K305 -> 0 | L35: =A3A!L306 -> 0
A36: =A3A!A316 -> Vote 14 - [NAME OF VOTE 14] | C36: =A3A!C316 -> 0 | D36: =A3A!D316 -> 0 | E36: =A3A!E316 -> 0 | F36: =A3A!F316 -> 0 | G36: =A3A!G316 -> 0 | H36: =A3A!H316 -> 0 | I36: =A3A!I316 -> 0 | J36: =A3A!J316 -> 0 | K36: =A3A!K316 -> 0 | L36: =A3A!L317 -> 0
A37: =A3A!A327 -> Vote 15 - [NAME OF VOTE 15] | C37: =A3A!C327 -> 0 | D37: =A3A!D327 -> 0 | E37: =A3A!E327 -> 0 | F37: =A3A!F327 -> 0 | G37: =A3A!G327 -> 0 | H37: =A3A!H327 -> 0 | I37: =A3A!I327 -> 0 | J37: =A3A!J327 -> 0 | K37: =A3A!K327 -> 0 | L37: =A3A!L328 -> 0
A38: Total Expenditure by Vote | B38: 2 | C38: =SUM(C23:C37) -> 163878949.1 | D38: =SUM(D23:D37) -> 548320020.6 | E38: 602178291.7 | F38: 663113360 | G38: 664511463 | H38: 664511463 | I38: 739673189 | J38: 777487159 | K38: 811856295 | L38: =SUM(L23:L29) -> 0 | M38: 0 | N38: 0 | O38: 0 | P38: 0 | Q38: 0 | R38: 0 | S38: 0 | T38: 0 | U38: 0 | V38: 0 | W38: 0
A39: =result -> Surplus/(Deficit) for the year | B39: 2 | C39: =C20-C38 -> 158985689.3 | D39: 37809542.94 | E39: 120309846.5 | F39: 94711728 | G39: 109716734 | H39: 109716734 | I39: 149768773 | J39: 200586728 | K39: 204259583 | L39: 0 | M39: 0 | N39: 0 | O39: 0 | P39: 0 | Q39: 0 | R39: 0 | S39: 0 | T39: 0 | U39: 0 | V39: 0 | W39: 0
A40: =head27a -> References
A41: 1. Insert 'Vote'; e.g. department, if different to functional classification structure
A42: 2. Must reconcile to Budgeted Financial Performance (revenue and expenditure)
A43: 3. Assign share in 'associate' to relevant Vote
A45: ="check "&A39 -> check Surplus/(Deficit) for the year | C45: =C39-A3A!C340 -> 0 | D45: =D39-A3A!D340 -> 0 | E45: =E39-A3A!E340 -> 0 | F45: =F39-A3A!F340 -> 0 | G45: =G39-A3A!G340 -> 0 | H45: =H39-A3A!H340 -> 0 | I45: =I39-A3A!I340 -> 0 | J45: =J39-A3A!J340 -> 0 | K45: =K39-A3A!K340 -> 0

Sheet A3A
A1: =muni&" - "&Approve2&"A" -> Choose name from list - Table A3 Budgeted Financial Performance (revenue and expenditure by municipal vote)A
A2: =Vdesc -> Vote Description | B2: =head27 -> Ref | C2: =head1b -> 2018/19 | D2: =head1A -> 2019/20 | E2: =Head1 -> 2020/21 | F2: =Head2 -> Current Year 2021/22 | I2: =Head3 -> 2022/23 Medium Term Revenue & Expenditure Framework | L2: =Head4 -> LTFS
A3: R thousand | C3: =Head5 -> Audited Outcome | D3: =Head5 -> Audited Outcome | E3: =Head5 -> Audited Outcome | F3: =Head6 -> Original Budget | G3: =Head7 -> Adjusted Budget | H3: =Head8 -> Full Year Forecast | I3: =Head9 -> Budget Year 2022/23 | J3: =Head10 -> Budget Year +1 2023/24 | K3: =Head11 -> Budget Year +2 2024/25 | L3: =Head12 -> Forecast 2025/26 | M3: =Head13 -> Forecast 2026/27 | N3: =Head14 -> Forecast 2027/28 | O3: =Head15 -> Forecast 2028/29 | P3: =Head16 -> Forecast 2029/30 | Q3: =Head17 -> Forecast 2030/31 | R3: =Head18 -> Forecast 2031/32 | S3: =Head19 -> Forecast 2032/33 | T3: =Head20 -> Forecast 2033/34 | U3: =Head21 -> Forecast 2034/35 | V3: =Head22 -> Forecast 2035/36 | W3: =Head23 -> Forecast 2036/37
A4: Revenue by Vote | B4: 1
A5: ='Org structure'!A2 -> Vote 1 - Office of Municipal Manager | C5: 6014136.69 | D5: 19185311.28 | E5: 190414962.3 | F5: 567041 | G5: 604922 | H5: 604922 | I5: 641211 | J5: 669425 | K5: 699547
A6: ='Org structure'!E3 -> 1.1 - [Name of sub-vote]
A7: ='Org structure'!E4 -> 0
A8: ='Org structure'!E5 -> 0
A9: ='Org structure'!E6 -> 0
A10: ='Org structure'!E7 -> 0
A11: ='Org structure'!E8 -> 0
A12: ='Org structure'!E9 -> 0
A13: ='Org structure'!E10 -> 0
A14: ='Org structure'!E11 -> 0
A15: ='Org structure'!E12 -> 0
A16: ='Org structure'!A3 -> Vote 2 - Budget and Treasury | C16: 94763026.17 | D16: 83954511.86 | E16: 119423016.6 | F16: 340904847 | G16: 357307955 | H16: 357307955 | I16: 329325518 | J16: 358347602 | K16: 387906594
A17: ='Org structure'!E14 -> 2.1 - [Name of sub-vote]
A18: ='Org structure'!E15 -> 0
A19: ='Org structure'!E16 -> 0
A20: ='Org structure'!E17 -> 0
A21: ='Org structure'!E18 -> 0
A22: ='Org structure'!E19 -> 0
A23: ='Org structure'!E20 -> 0
A24: ='Org structure'!E21 -> 0
A25: ='Org structure'!E22 -> 0
A26: ='Org structure'!E23 -> 0
A27: ='Org structure'!A4 -> Vote 3 - Corporate Services | C27: 120588.7 | D27: 0 | E27: 0 | F27: 1 | G27: 2 | H27: 2 | I27: 0 | J27: 0 | K27: 0
A28: ='Org structure'!E25 -> 3.1 - [Name of sub-vote]
A29: ='Org structure'!E26 -> 0
A30: ='Org structure'!E27 -> 0
A31: ='Org structure'!E28 -> 0
A32: ='Org structure'!E29 -> 0
A33: ='Org structure'!E30 -> 0
A34: ='Org structure'!E31 -> 0
A35: ='Org structure'!E32 -> 0
A36: ='Org structure'!E33 -> 0
A37: ='Org structure'!E34 -> 0
A38: ='Org structure'!A5 -> Vote 4 - Social Service | C38: 46084953.11 | D38: 132862963.4 | E38: 30835626.95 | F38: 32992921 | G38: 32992921 | H38: 32992921 | I38: 34971291 | J38: 35161180 | K38: 36743431
A39: ='Org structure'!E36 -> 4.1 - [Name of sub-vote]
A40: ='Org structure'!E37 -> 0
A41: ='Org structure'!E38 -> 0
A42: ='Org structure'!E39 -> 0
A43: ='Org structure'!E40 -> 0
A44: ='Org structure'!E41 -> 0
A45: ='Org structure'!E42 -> 0
A46: ='Org structure'!E43 -> 0
A47: ='Org structure'!E44 -> 0
A48: ='Org structure'!E45 -> 0
A49: ='Org structure'!A6 -> Vote 5 - Technical and Engineering Services | C49: 173195106.2 | D49: 349772930.4 | E49: 381044251.1 | F49: 382436953 | G49: 382399072 | H49: 382399072 | I49: 523525219 | J49: 582873893 | K49: 589698539
A50: ='Org structure'!E47 -> 5.1 - [Name of sub-vote]
A51: ='Org structure'!E48 -> 0
A52: ='Org structure'!E49 -> 0
A53: ='Org structure'!E50 -> 0
A54: ='Org structure'!E51 -> 0
A55: ='Org structure'!E52 -> 0
A56: ='Org structure'!E53 -> 0
A57: ='Org structure'!E54 -> 0
A58: ='Org structure'!E55 -> 0
A59: ='Org structure'!E56 -> 0
A60: ='Org structure'!A7 -> Vote 6 - Property, Planning & Development | C60: 1013007.21 | D60: 353846.57 | E60: 770281.17 | F60: 923325 | G60: 923325 | H60: 923325 | I60: 978723 | J60: 1021787 | K60: 1067767
A61: ='Org structure'!E58 -> 6.1 - [Name of sub-vote]
A62: ='Org structure'!E59 -> 0
A63: ='Org structure'!E60 -> 0
A64: ='Org structure'!E61 -> 0
A65: ='Org structure'!E62 -> 0
A66: ='Org structure'!E63 -> 0
A67: ='Org structure'!E64 -> 0
A68: ='Org structure'!E65 -> 0
A69: ='Org structure'!E66 -> 0
A70: ='Org structure'!E67 -> 0
A71: ='Org structure'!A8 -> Vote 7 - Office of the Mayor/Strategic Office | C71: 1673820.38 | D71: 0 | E71: 0 | F71: 0 | G71: 0 | H71: 0 | I71: 0 | J71: 0 | K71: 0
A72: ='Org structure'!E69 -> 7.1 - [Name of sub-vote]
A73: ='Org structure'!E70 -> 0
A74: ='Org structure'!E71 -> 0
A75: ='Org structure'!E72 -> 0
A76: ='Org structure'!E73 -> 0
A77: ='Org structure'!E74 -> 0
A78: ='Org structure'!E75 -> 0
A79: ='Org structure'!E76 -> 0
A80: ='Org structure'!E77 -> 0
A81: ='Org structure'!E78 -> 0
A82: ='Org structure'!A9 -> Vote 8 - COMMUNITY & SOCIAL SERVICES | C82: 0 | D82: 0 | E82: 0 | F82: 0 | G82: 0 | H82: 0 | I82: 0 | J82: 0 | K82: 0
A83: ='Org structure'!E80 -> 8.1 - [Name of sub-vote]
A84: ='Org structure'!E81 -> 0
A85: ='Org structure'!E82 -> 0
A86: ='Org structure'!E83 -> 0
A87: ='Org structure'!E84 -> 0
A88: ='Org structure'!E85 -> 0
A89: ='Org structure'!E86 -> 0
A90: ='Org structure'!E87 -> 0
A91: ='Org structure'!E88 -> 0
A92: ='Org structure'!E89 -> 0
A93: ='Org structure'!A10 -> Vote 9 - [NAME OF VOTE 9] | C93: =SUM(C94:C103) -> 0 | D93: =SUM(D94:D103) -> 0 | E93: 0 | F93: 0 | G93: 0 | H93: 0 | I93: 0 | J93: 0 | K93: 0
A94: ='Org structure'!E91 -> 9.1 - [Name of sub-vote]
A95: ='Org structure'!E92 -> 0
A96: ='Org structure'!E93 -> 0
A97: ='Org structure'!E94 -> 0
A98: ='Org structure'!E95 -> 0
A99: ='Org structure'!E96 -> 0
A100: ='Org structure'!E97 -> 0
A101: ='Org structure'!E98 -> 0
A102: ='Org structure'!E99 -> 0
A103: ='Org structure'!E100 -> 0
A104: ='Org structure'!A11 -> Vote 10 - [NAME OF VOTE 10] | C104: =SUM(C105:C114) -> 0 | D104: =SUM(D105:D114) -> 0 | E104: 0 | F104: 0 | G104: 0 | H104: 0 | I104: 0 | J104: 0 | K104: 0
A105: ='Org structure'!E102 -> 10.1 - [Name of sub-vote]
A106: ='Org structure'!E103 -> 0
A107: ='Org structure'!E104 -> 0
A108: ='Org structure'!E105 -> 0
A109: ='Org structure'!E106 -> 0
A110: ='Org structure'!E107 -> 0
A111: ='Org structure'!E108 -> 0
A112: ='Org structure'!E109 -> 0
A113: ='Org structure'!E110 -> 0
A114: ='Org structure'!E111 -> 0
A115: ='Org structure'!A12 -> Vote 11 - [NAME OF VOTE 11] | C115: =SUM(C116:C125) -> 0 | D115: =SUM(D116:D125) -> 0 | E115: 0 | F115: 0 | G115: 0 | H115: 0 | I115: 0 | J115: 0 | K115: 0
A116: ='Org structure'!E113 -> 11.1 - [Name of sub-vote]
A117: ='Org structure'!E114 -> 0
A118: ='Org structure'!E115 -> 0
A119: ='Org structure'!E116 -> 0
A120: ='Org structure'!E117 -> 0
A121: ='Org structure'!E118 -> 0
A122: ='Org structure'!E119 -> 0
A123: ='Org structure'!E120 -> 0
A124: ='Org structure'!E121 -> 0
A125: ='Org structure'!E122 -> 0
A126: ='Org structure'!A13 -> Vote 12 - [NAME OF VOTE 12] | C126: =SUM(C127:C136) -> 0 | D126: =SUM(D127:D136) -> 0 | E126: 0 | F126: 0 | G126: 0 | H126: 0 | I126: 0 | J126: 0 | K126: 0
A127: ='Org structure'!E124 -> 12.1 - [Name of sub-vote]
A128: ='Org structure'!E125 -> 0
A129: ='Org structure'!E126 -> 0
A130: ='Org structure'!E127 -> 0
A131: ='Org structure'!E128 -> 0
A132: ='Org structure'!E129 -> 0
A133: ='Org structure'!E130 -> 0
A134: ='Org structure'!E131 -> 0
A135: ='Org structure'!E132 -> 0
A136: ='Org structure'!E133 -> 0
A137: ='Org structure'!A14 -> Vote 13 - [NAME OF VOTE 13] | C137: =SUM(C138:C147) -> 0 | D137: =SUM(D138:D147) -> 0 | E137: 0 | F137: 0 | G137: 0 | H137: 0 | I137: 0 | J137: 0 | K137: 0
A138: ='Org structure'!E135 -> 13.1 - [Name of sub-vote]
A139: ='Org structure'!E136 -> 0
A140: ='Org structure'!E137 -> 0
A141: ='Org structure'!E138 -> 0
A142: ='Org structure'!E139 -> 0
A143: ='Org structure'!E140 -> 0
A144: ='Org structure'!E141 -> 0
A145: ='Org structure'!E142 -> 0
A146: ='Org structure'!E143 -> 0
A147: ='Org structure'!E144 -> 0
A148: ='Org structure'!A15 -> Vote 14 - [NAME OF VOTE 14] | C148: =SUM(C149:C158) -> 0 | D148: =SUM(D149:D158) -> 0 | E148: 0 | F148: 0 | G148: 0 | H148: 0 | I148: 0 | J148: 0 | K148: 0
A149: ='Org structure'!E146 -> 14.1 - [Name of sub-vote]
A150: ='Org structure'!E147 -> 0
A151: ='Org structure'!E148 -> 0
A152: ='Org structure'!E149 -> 0
A153: ='Org structure'!E150 -> 0
A154: ='Org structure'!E151 -> 0
A155: ='Org structure'!E152 -> 0
A156: ='Org structure'!E153 -> 0
A157: ='Org structure'!E154 -> 0
A158: ='Org structure'!E155 -> 0
A159: ='Org structure'!A16 -> Vote 15 - [NAME OF VOTE 15] | C159: =SUM(C160:C169) -> 0 | D159: =SUM(D160:D169) -> 0 | E159: 0 | F159: 0 | G159: 0 | H159: 0 | I159: 0 | J159: 0 | K159: 0
A160: ='Org structure'!E157 -> 15.1 - [Name of sub-vote]
A161: ='Org structure'!E158 -> 0
A162: ='Org structure'!E159 -> 0
A163: ='Org structure'!E160 -> 0
A164: ='Org structure'!E161 -> 0
A165: ='Org structure'!E162 -> 0
A166: ='Org structure'!E163 -> 0
A167: ='Org structure'!E164 -> 0
A168: ='Org structure'!E165 -> 0
A169: ='Org structure'!E166 -> 0
A170: Total Revenue by Vote | B170: 2 | C170: =C5+C16+C27+C38+C49+C60+C71+C82+C93+C104+C115+C126+C137+C148+C159 -> 322864638.4 | D170: =D5+D16+D27+D38+D49+D60+D71+D82+D93+D104+D115+D126+D137+D148+D159 -> 586129563.6 | E170: =E5+E16+E27+E38+E49+E60+E71+E82+E93+E104+E115+E126+E137+E148+E159 -> 722488138.2 | F170: 757825088 | G170: 774228197 | H170: 774228197 | I170: =I5+I16+I27+I38+I49+I60+I71+I82+I93+I104+I115+I126+I137+I148+I159 -> 889441962 | J170: 978073887 | K170: 1016115878 | L170: =SUM(L78:L81) -> 0 | M170: 0 | N170: 0 | O170: 0 | P170: 0 | Q170: 0 | R170: 0 | S170: 0 | T170: 0 | U170: 0 | V170: 0 | W170: 0
A172: Expenditure by Vote | B172: 1
A173: =A5 -> Vote 1 - Office of Municipal Manager | C173: 17086336.78 | D173: 169653698.8 | E173: 143233409.4 | F173: 54116073 | G173: 157399925 | H173: 157399925 | I173: 67710560 | J173: 76079529 | K173: 81048088
A174: =A6 -> 1.1 - [Name of sub-vote]
A175: 0
A176: 0
A177: 0
A178: 0
A179: 0
A180: 0
A181: 0
A182: 0
A183: 0
A184: =A16 -> Vote 2 - Budget and Treasury | C184: 13558743.48 | D184: 34284420.75 | E184: 47903443.43 | F184: 62767064 | G184: 69669194 | H184: 69669194 | I184: 68549720 | J184: 69554002 | K184: 74774420
A185: =A17 -> 2.1 - [Name of sub-vote]
A186: 0
A187: 0
A188: 0
A189: 0
A190: 0
A191: 0
A192: 0
A193: 0
A194: 0
A195: =A27 -> Vote 3 - Corporate Services | C195: 8798498.16 | D195: 28268861.69 | E195: 34111207.55 | F195: 36029089 | G195: 39930094 | H195: 39930094 | I195: 47398485 | J195: 49471133 | K195: 51697344
A196: 3.1 - [Name of sub-vote]
A197: 0
A198: 0
A199: 0
A200: 0
A201: 0
... 144 more rows

Sheet A4-FinPerf RE
A1: =muni&" - "&Approve4 -> Choose name from list - Table A4 Budgeted Financial Performance (revenue and expenditure)
A2: =desc -> Description | B2: =head27 -> Ref | C2: =head1b -> 2018/19 | D2: =head1A -> 2019/20 | E2: =Head1 -> 2020/21 | F2: =Head2 -> Current Year 2021/22 | J2: =Head3 -> 2022/23 Medium Term Revenue & Expenditure Framework | M2: =Head4 -> LTFS
A3: R thousand | B3: 1 | C3: =Head5 -> Audited Outcome | D3: =Head5 -> Audited Outcome | E3: =Head5 -> Audited Outcome | F3: =Head6 -> Original Budget | G3: =Head7 -> Adjusted Budget | H3: =Head8 -> Full Year Forecast | I3: =Head5b -> Pre-audit outcome | J3: =Head9 -> Budget Year 2022/23 | K3: =Head10 -> Budget Year +1 2023/24 | L3: =Head11 -> Budget Year +2 2024/25 | M3: =Head12 -> Forecast 2025/26 | N3: =Head13 -> Forecast 2026/27 | O3: =Head14 -> Forecast 2027/28 | P3: =Head15 -> Forecast 2028/29 | Q3: =Head16 -> Forecast 2029/30 | R3: =Head17 -> Forecast 2030/31 | S3: =Head18 -> Forecast 2031/32 | T3: =Head19 -> Forecast 2032/33 | U3: =Head20 -> Forecast 2033/34 | V3: =Head21 -> Forecast 2034/35 | W3: =Head22 -> Forecast 2035/36 | X3: =Head23 -> Forecast 2036/37
A4: Revenue By Source
A5: Property rates | B5: 2 | C5: ='SA1'!C9 -> 83321588.71 | D5: ='SA1'!D9 -> 73517010.81 | E5: ='SA1'!E9 -> 101682966.3 | F5: ='SA1'!F9 -> 106591056 | G5: ='SA1'!G9 -> 106591056 | H5: ='SA1'!H9 -> 106591056 | I5: ='SA1'!I9 -> 106591056 | J5: ='SA1'!J9 -> 112986506 | K5: ='SA1'!K9 -> 117957913 | L5: ='SA1'!L9 -> 123266019
A6: Service charges - electricity revenue | B6: 2 | C6: ='SA1'!C15 -> 68200269.38 | D6: ='SA1'!D15 -> 172852516.2 | E6: ='SA1'!E15 -> 174059964 | F6: ='SA1'!F15 -> 237206945 | G6: ='SA1'!G15 -> 237206945 | H6: ='SA1'!H15 -> 237206945 | I6: ='SA1'!I15 -> 239499892 | J6: ='SA1'!J15 -> 251439351 | K6: ='SA1'!K15 -> 262502684 | L6: ='SA1'!L15 -> 274315665
A7: Service charges - water revenue | B7: 2 | C7: ='SA1'!C21 -> 18360185.72 | D7: ='SA1'!D21 -> 47658898.61 | E7: ='SA1'!E21 -> 44700427.59 | F7: ='SA1'!F21 -> 49577895 | G7: ='SA1'!G21 -> 49577895 | H7: ='SA1'!H21 -> 49577895 | I7: ='SA1'!I21 -> 49635115 | J7: ='SA1'!J21 -> 69973913 | K7: ='SA1'!K21 -> 73052765 | L7: ='SA1'!L21 -> 76340139
A8: Service charges - sanitation revenue | B8: 2 | C8: ='SA1'!C27 -> 7680548.53 | D8: ='SA1'!D27 -> 20779891.69 | E8: ='SA1'!E27 -> 29000742.72 | F8: ='SA1'!F27 -> 24387954 | G8: ='SA1'!G27 -> 24387954 | H8: ='SA1'!H27 -> 24387954 | I8: ='SA1'!I27 -> 24462339 | J8: ='SA1'!J27 -> 25851230 | K8: ='SA1'!K27 -> 26988685 | L8: ='SA1'!L27 -> 28203175
A9: Service charges - refuse revenue | B9: 2 | C9: ='SA1'!C34 -> 6106593.28 | D9: ='SA1'!D34 -> 14016125.95 | E9: ='SA1'!E34 -> 14686518.18 | F9: ='SA1'!F34 -> 19491076 | G9: ='SA1'!G34 -> 19491076 | H9: ='SA1'!H34 -> 19491076 | I9: ='SA1'!I34 -> 19573527 | J9: ='SA1'!J34 -> 20660539 | K9: ='SA1'!K34 -> 21569603 | L9: ='SA1'!L34 -> 22540235
A11: Rental of facilities and equipment | C11: 97631.59 | D11: 137260.62 | E11: 144811.85 | F11: 317199 | G11: 317199 | H11: 317199 | I11: 317199 | J11: 329400 | K11: 343894 | L11: 359369
A12: Interest earned - external investments | C12: 300622.03 | D12: 5775874.17 | E12: 4550785.14 | F12: 2168475 | G12: 2168475 | H12: 2168475 | I12: 2168475 | J12: 2298580 | K12: 2399719 | L12: 2507706
A13: Interest earned - outstanding debtors | C13: 9303479.51 | D13: 20826446.42 | E13: 37608761.38 | F13: 34620782 | G13: 34620782 | H13: 34620782 | I13: 34620782 | J13: 36698020 | K13: 38312734 | L13: 40036807
A14: Dividends received | C14: 0 | D14: 0 | E14: 0 | F14: 0 | G14: 0 | H14: 0 | I14: 0 | J14: 0 | K14: 0 | L14: 0
A15: Fines, penalties and forfeits | C15: 60811.3 | D15: 638136.58 | E15: 1038506.8 | F15: 686014 | G15: 686014 | H15: 686014 | I15: 686014 | J15: 727173 | K15: 759170 | L15: 793330
A16: Licences and permits | C16: 5644176.79 | D16: 6589533.79 | E16: 9195083.61 | F16: 8218473 | G16: 8218473 | H16: 8218473 | I16: 8218473 | J16: 8711581 | K16: 9094890 | L16: 9504161
A17: Agency services | C17: 0 | D17: 0 | E17: 0 | F17: 0 | G17: 0 | H17: 0 | I17: 0 | J17: 0 | K17: 0 | L17: 0
A18: Transfers and subsidies | C18: 101053981.5 | D18: 153235440 | E18: 190086687.3 | F18: 179916700 | G18: 191116700 | H18: 191116700 | I18: 191116700 | J18: 207992600 | K18: 227216490 | L18: 250874582
A19: Other revenue | B19: 2 | C19: ='SA1'!C49 -> 5541514.38 | D19: ='SA1'!D49 -> 2825762.45 | E19: ='SA1'!E49 -> 3642077.52 | F19: ='SA1'!F49 -> 3774219 | G19: ='SA1'!G49 -> 3774220 | H19: ='SA1'!H49 -> 3774220 | I19: ='SA1'!I49 -> 3774220 | J19: ='SA1'!J49 -> 4000669 | K19: ='SA1'!K49 -> 4176690 | L19: ='SA1'!L49 -> 4364640
A20: Gains | C20: 0 | D20: 0 | E20: 5670.12 | F20: -1 | G20: -21 | H20: -21 | I20: -21 | J20: 0 | K20: 0 | L20: 0
A21: Total Revenue (excluding capital transfers and contributions) | C21: =SUM(C5:C9)+SUM(C11:C20) -> 305671402.7 | D21: =SUM(D5:D9)+SUM(D11:D20) -> 518852897.3 | E21: 610403002.4 | F21: 666956787 | G21: 678156768 | H21: 678156768 | I21: 680663771 | J21: 741669562 | K21: 784375237 | L21: 833105828 | M21: =SUM(M5:M20) -> 0 | N21: 0 | O21: 0 | P21: 0 | Q21: 0 | R21: 0 | S21: 0 | T21: 0 | U21: 0 | V21: 0 | W21: 0 | X21: 0
A23: Expenditure By Type
A24: Employee related costs | B24: 2 | C24: ='SA1'!C67 -> 72637081.47 | D24: ='SA1'!D67 -> 191557891.4 | E24: ='SA1'!E67 -> 212324457.7 | F24: ='SA1'!F67 -> 228865302 | G24: ='SA1'!G67 -> 225707477 | H24: ='SA1'!H67 -> 225707477 | I24: ='SA1'!I67 -> 225707477 | J24: ='SA1'!J67 -> 236854111 | K24: ='SA1'!K67 -> 247275738 | L24: ='SA1'!L67 -> 258403139
A25: Remuneration of councillors | C25: 4166128.35 | D25: 10922233.46 | E25: 10912366.72 | F25: 11686653 | G25: 12189596 | H25: 12189596 | I25: 12189596 | J25: 12921079 | K25: 13489604 | L25: 14096638
A26: Debt impairment | B26: 3 | C26: 0 | D26: 31808630.26 | E26: 16508748 | F26: 13582902 | G26: 16582795 | H26: 16582795 | I26: 16582795 | J26: 17620352 | K26: 23867648 | L26: 26131692
A27: Depreciation & asset impairment | B27: 2 | C27: ='SA1'!C83 -> 2345634.73 | D27: ='SA1'!D83 -> 91190780.22 | E27: ='SA1'!E83 -> 84394856.93 | F27: ='SA1'!F83 -> 92704836 | G27: ='SA1'!G83 -> 92704906 | H27: ='SA1'!H83 -> 92704906 | I27: ='SA1'!I83 -> 92704906 | J27: ='SA1'!J83 -> 97057059 | K27: ='SA1'!K83 -> 101271206 | L27: ='SA1'!L83 -> 105301370
A28: Finance charges | C28: 3739848.37 | D28: 19407626.48 | E28: 19516753.35 | F28: 19213294 | G28: 16132294 | H28: 16132294 | I28: 16132294 | J28: 14895531 | K28: 15550934 | L28: 16250726
A29: Bulk purchases - electricity | B29: 2 | C29: ='SA1'!C88 -> 48617676.53 | D29: ='SA1'!D88 -> 104983920.7 | E29: ='SA1'!E88 -> 150251370.6 | F29: ='SA1'!F88 -> 148648892 | G29: ='SA1'!G88 -> 133648892 | H29: ='SA1'!H88 -> 133648892 | I29: ='SA1'!I88 -> 133648892 | J29: ='SA1'!J88 -> 146424386 | K29: ='SA1'!K88 -> 152867059 | L29: ='SA1'!L88 -> 159746076
A30: Inventory consumed | B30: 8 | C30: 1396593.74 | D30: 10885324.24 | E30: 12657814.12 | F30: 23153822 | G30: 27754132 | H30: 27754132 | I30: 27754132 | J30: 58864659 | K30: 61545704 | L30: 64220166
A31: Contracted services | C31: ='SA1'!C127 -> 4193427.42 | D31: ='SA1'!D127 -> 36869865.48 | E31: ='SA1'!E127 -> 43459023.79 | F31: ='SA1'!F127 -> 55966030 | G31: ='SA1'!G127 -> 75369698 | H31: ='SA1'!H127 -> 75369698 | I31: ='SA1'!I127 -> 75369698 | J31: ='SA1'!J127 -> 70909224 | K31: ='SA1'!K127 -> 74029229 | L31: ='SA1'!L127 -> 77360545
A32: Transfers and subsidies | C32: ='SA1'!C93 -> 233192.3 | D32: ='SA1'!D93 -> 1433678.2 | E32: ='SA1'!E93 -> 681126.44 | F32: ='SA1'!F93 -> 976879 | G32: ='SA1'!G93 -> 3087298 | H32: ='SA1'!H93 -> 3087298 | I32: ='SA1'!I93 -> 3087298 | J32: ='SA1'!J93 -> 1024086 | K32: ='SA1'!K93 -> 1069148 | L32: ='SA1'!L93 -> 1117259
A33: Other expenditure | B33: 4, 5 | C33: ='SA1'!C157 -> 26549366.22 | D33: ='SA1'!D157 -> 49260070.24 | E33: ='SA1'!E157 -> 51471773.97 | F33: ='SA1'!F157 -> 68314750 | G33: ='SA1'!G157 -> 61334396 | H33: ='SA1'!H157 -> 61334396 | I33: ='SA1'!I157 -> 61334396 | J33: ='SA1'!J157 -> 83102702 | K33: ='SA1'!K157 -> 86520889 | L33: ='SA1'!L157 -> 89228684
A34: Losses | C34: 0 | D34: 0 | E34: 25476.09 | F34: 1 | G34: -13 | H34: -13 | I34: -13 | J34: 0 | K34: 0 | L34: 0
A35: Total Expenditure | C35: =SUM(C24:C34) -> 163878949.1 | D35: =SUM(D24:D34) -> 548320020.6 | E35: 602203767.8 | F35: 663113361 | G35: 664511471 | H35: 664511471 | I35: 664511471 | J35: 739673189 | K35: 777487159 | L35: 811856295 | M35: =SUM(M24:M34) -> 0 | N35: 0 | O35: 0 | P35: 0 | Q35: 0 | R35: 0 | S35: 0 | T35: 0 | U35: 0 | V35: 0 | W35: 0 | X35: 0
A37: Surplus/(Deficit) | C37: =C21-C35 -> 141792453.5 | D37: -29467123.38 | E37: 8199234.66 | F37: 3843426 | G37: 13645297 | H37: 13645297 | I37: 16152300 | J37: 1996373 | K37: 6888078 | L37: 21249533 | M37: =M21+M35 -> 0 | N37: 0 | O37: 0 | P37: 0 | Q37: 0 | R37: 0 | S37: 0 | T37: 0 | U37: 0 | V37: 0 | W37: 0 | X37: 0
A38: Transfers and subsidies - capital (monetary allocations) (National / Provincial and District) | C38: 17193235.74 | D38: 67276666.32 | E38: 112085135.7 | F38: 90868301 | G38: 96071429 | H38: 96071429 | I38: 96071429 | J38: 147772400 | K38: 193698650 | L38: 183010050
A39: Transfers and subsidies - capital (monetary allocations) (National / Provincial Departmental Agencies, Households, Non-profit Institutions, Private Enterprises, Public Corporatons, Higher Educational Institutions) | B39: 6 | C39: 0 | D39: 0 | E39: 0 | F39: 0 | G39: 0 | H39: 0 | I39: 0 | J39: 0 | K39: 0 | L39: 0
A40: Transfers and subsidies - capital (in-kind - all) | C40: 0 | D40: 0 | E40: 0 | F40: 0 | G40: 0 | H40: 0 | I40: 0 | J40: 0 | K40: 0 | L40: 0
A41: Surplus/(Deficit) after capital transfers & contributions | C41: =SUM(C37:C40) -> 158985689.3 | D41: 37809542.94 | E41: 120284370.4 | F41: 94711727 | G41: 109716726 | H41: 109716726 | I41: 112223729 | J41: 149768773 | K41: 200586728 | L41: 204259583
A42: Taxation | C42: 0 | D42: 0 | E42: 0 | F42: 0 | G42: 0 | H42: 0 | I42: 0 | J42: 0 | K42: 0 | L42: 0
A43: Surplus/(Deficit) after taxation | C43: =C41-C42 -> 158985689.3 | D43: 37809542.94 | E43: 120284370.4 | F43: 94711727 | G43: 109716726 | H43: 109716726 | I43: 112223729 | J43: 149768773 | K43: 200586728 | L43: 204259583
A44: Attributable to minorities | C44: 0 | D44: 0 | E44: 0 | F44: 0 | G44: 0 | H44: 0 | I44: 0 | J44: 0 | K44: 0 | L44: 0
A45: Surplus/(Deficit) attributable to municipality | C45: =SUM(C43:C44) -> 158985689.3 | D45: 37809542.94 | E45: 120284370.4 | F45: 94711727 | G45: 109716726 | H45: 109716726 | I45: 112223729 | J45: 149768773 | K45: 200586728 | L45: 204259583
A46: Share of surplus/ (deficit) of associate | B46: 7 | C46: 0 | D46: 0 | E46: 0 | F46: 0 | G46: 0 | H46: 0 | I46: 0 | J46: 0 | K46: 0 | L46: 0
A47: =result -> Surplus/(Deficit) for the year | C47: =SUM(C45:C46) -> 158985689.3 | D47: 37809542.94 | E47: 120284370.4 | F47: 94711727 | G47: 109716726 | H47: 109716726 | I47: 112223729 | J47: 149768773 | K47: 200586728 | L47: 204259583 | M47: =M25+M46 -> 0 | N47: 0 | O47: 0 | P47: 0 | Q47: 0 | R47: 0 | S47: 0 | T47: 0 | U47: 0 | V47: 0 | W47: 0 | X47: 0
A48: =head27a -> References
A49: 1. Classifications are revenue sources and expenditure type
A50: 2. Detail to be provided in Table SA1
A51: 3. Previously described as 'bad or doubtful debts' - amounts shown should reflect the change in the provision for debt impairment
A52: 4. Expenditure type components previously shown under repairs and maintenance should be allocated back to the originating expenditure group/item; e.g. employee costs
A53: 5. Repairs & maintenance detailed in Table A9 and Table SA34c
A54: 6. Contributions are funds provided by external organisations to assist with infrastructure development; e.g. developer contributions (detail to be provided in Table SA1)
A55: 7. Equity method ( Includes Joint Ventures)
A56: 8. All materials not part of 'bulk' e.g road making materials, pipe, cable etc.
A57: check balance | C57: =C45-'A3-FinPerf V'!C39 -> 0 | D57: =D45-'A3-FinPerf V'!D39 -> -1.192092896e-07 | E57: =E45-'A3-FinPerf V'!E39 -> -25476.09 | F57: =F45-'A3-FinPerf V'!F39 -> -1 | G57: =G45-'A3-FinPerf V'!G39 -> -8 | H57: =H45-'A3-FinPerf V'!H39 -> -8 | J57: =J45-'A3-FinPerf V'!I39 -> 0 | K57: =K45-'A3-FinPerf V'!J39 -> 0 | L57: =L45-'A3-FinPerf V'!K39 -> 0
A59: Total revenue | C59: =C21+SUM(C38:C40) -> 322864638.4 | D59: 586129563.6 | E59: 722488138.2 | F59: 757825088 | G59: 774228197 | H59: 774228197 | I59: 776735200 | J59: 889441962 | K59: 978073887 | L59: 1016115878

Sheet A5-Capex
A2: =Vdesc -> Vote Description | B2: =head27 -> Ref | C2: =head1b -> 2018/19 | D2: =head1A -> 2019/20 | E2: =Head1 -> 2020/21 | F2: =Head2 -> Current Year 2021/22 | J2: =Head3 -> 2022/23 Medium Term Revenue & Expenditure Framework
A3: R thousand | B3: 1 | C3: =Head5 -> Audited Outcome | D3: =Head5 -> Audited Outcome | E3: =Head5 -> Audited Outcome | F3: =Head6 -> Original Budget | G3: =Head7 -> Adjusted Budget | H3: =Head8 -> Full Year Forecast | I3: =Head5b -> Pre-audit outcome | J3: =Head9 -> Budget Year 2022/23 | K3: =Head10 -> Budget Year +1 2023/24 | L3: =Head11 -> Budget Year +2 2024/25
A4: Capital expenditure - Vote
A5: Multi-year expenditure to be appropriated | B5: 2
A6: =A5A!A6 -> Vote 1 - Office of Municipal Manager | C6: =A5A!C6 -> 0 | D6: =A5A!D6 -> 0 | E6: =A5A!E6 -> 0 | F6: =A5A!F6 -> 0 | G6: =A5A!G6 -> 0 | H6: =A5A!H6 -> 0 | I6: =A5A!I6 -> 0 | J6: =A5A!J6 -> 0 | K6: =A5A!K6 -> 0 | L6: =A5A!L6 -> 0
A7: =A5A!A17 -> Vote 2 - Budget and Treasury | C7: =A5A!C17 -> 0 | D7: =A5A!D17 -> 0 | E7: =A5A!E17 -> 0 | F7: =A5A!F17 -> 1 | G7: =A5A!G17 -> 1 | H7: =A5A!H17 -> 1 | I7: =A5A!I17 -> 1 | J7: =A5A!J17 -> 0 | K7: =A5A!K17 -> 0 | L7: =A5A!L17 -> 0
A8: =A5A!A28 -> Vote 3 - Corporate Services | C8: =A5A!C28 -> 0 | D8: =A5A!D28 -> 0 | E8: =A5A!E28 -> 0 | F8: =A5A!F28 -> 0 | G8: =A5A!G28 -> 300000 | H8: =A5A!H28 -> 300000 | I8: =A5A!I28 -> 300000 | J8: =A5A!J28 -> 0 | K8: =A5A!K28 -> 0 | L8: =A5A!L28 -> 0
A9: =A5A!A39 -> Vote 4 - Social Service | C9: =A5A!C39 -> 0 | D9: =A5A!D39 -> 0 | E9: =A5A!E39 -> 9758516.51 | F9: =A5A!F39 -> 28622867 | G9: =A5A!G39 -> 2468317 | H9: =A5A!H39 -> 2468317 | I9: =A5A!I39 -> 2468317 | J9: =A5A!J39 -> 0 | K9: =A5A!K39 -> 0 | L9: =A5A!L39 -> 0
A10: =A5A!A50 -> Vote 5 - Technical and Engineering Services | C10: =A5A!C50 -> 17931218.15 | D10: =A5A!D50 -> 23065426.73 | E10: =A5A!E50 -> 40190296.84 | F10: =A5A!F50 -> 26500003 | G10: =A5A!G50 -> 34082744 | H10: =A5A!H50 -> 34082744 | I10: =A5A!I50 -> 34082744 | J10: =A5A!J50 -> 57446251 | K10: =A5A!K50 -> 43232684 | L10: =A5A!L50 -> 15971000
A11: =A5A!A61 -> Vote 6 - Property, Planning & Development | C11: =A5A!C61 -> 1000 | D11: =A5A!D61 -> 0 | E11: =A5A!E61 -> 0 | F11: =A5A!F61 -> 0 | G11: =A5A!G61 -> 0 | H11: =A5A!H61 -> 0 | I11: =A5A!I61 -> 0 | J11: =A5A!J61 -> 600000 | K11: =A5A!K61 -> 0 | L11: =A5A!L61 -> 0
A12: =A5A!A72 -> Vote 7 - Office of the Mayor/Strategic Office | C12: =A5A!C72 -> 0 | D12: =A5A!D72 -> 0 | E12: =A5A!E72 -> 0 | F12: =A5A!F72 -> 0 | G12: =A5A!G72 -> 0 | H12: =A5A!H72 -> 0 | I12: =A5A!I72 -> 0 | J12: =A5A!J72 -> 0 | K12: =A5A!K72 -> 0 | L12: =A5A!L72 -> 0
A13: =A5A!A83 -> Vote 8 - COMMUNITY & SOCIAL SERVICES | C13: =A5A!C83 -> 0 | D13: =A5A!D83 -> 0 | E13: =A5A!E83 -> 0 | F13: =A5A!F83 -> 0 | G13: =A5A!G83 -> 0 | H13: =A5A!H83 -> 0 | I13: =A5A!I83 -> 0 | J13: =A5A!J83 -> 0 | K13: =A5A!K83 -> 0 | L13: =A5A!L83 -> 0
A14: =A5A!A94 -> Vote 9 - [NAME OF VOTE 9] | C14: =A5A!C94 -> 0 | D14: =A5A!D94 -> 0 | E14: =A5A!E94 -> 0 | F14: =A5A!F94 -> 0 | G14: =A5A!G94 -> 0 | H14: =A5A!H94 -> 0 | I14: =A5A!I94 -> 0 | J14: =A5A!J94 -> 0 | K14: =A5A!K94 -> 0 | L14: =A5A!L94 -> 0
A15: =A5A!A105 -> Vote 10 - [NAME OF VOTE 10] | C15: =A5A!C105 -> 0 | D15: =A5A!D105 -> 0 | E15: =A5A!E105 -> 0 | F15: =A5A!F105 -> 0 | G15: =A5A!G105 -> 0 | H15: =A5A!H105 -> 0 | I15: =A5A!I105 -> 0 | J15: =A5A!J105 -> 0 | K15: =A5A!K105 -> 0 | L15: =A5A!L105 -> 0
A16: =A5A!A116 -> Vote 11 - [NAME OF VOTE 11] | C16: =A5A!C116 -> 0 | D16: =A5A!D116 -> 0 | E16: =A5A!E116 -> 0 | F16: =A5A!F116 -> 0 | G16: =A5A!G116 -> 0 | H16: =A5A!H116 -> 0 | I16: =A5A!I116 -> 0 | J16: =A5A!J116 -> 0 | K16: =A5A!K116 -> 0 | L16: =A5A!L116 -> 0
A17: =A5A!A127 -> Vote 12 - [NAME OF VOTE 12] | C17: =A5A!C127 -> 0 | D17: =A5A!D127 -> 0 | E17: =A5A!E127 -> 0 | F17: =A5A!F127 -> 0 | G17: =A5A!G127 -> 0 | H17: =A5A!H127 -> 0 | I17: =A5A!I127 -> 0 | J17: =A5A!J127 -> 0 | K17: =A5A!K127 -> 0 | L17: =A5A!L127 -> 0
A18: =A5A!A138 -> Vote 13 - [NAME OF VOTE 13] | C18: =A5A!C138 -> 0 | D18: =A5A!D138 -> 0 | E18: =A5A!E138 -> 0 | F18: =A5A!F138 -> 0 | G18: =A5A!G138 -> 0 | H18: =A5A!H138 -> 0 | I18: =A5A!I138 -> 0 | J18: =A5A!J138 -> 0 | K18: =A5A!K138 -> 0 | L18: =A5A!L138 -> 0
A19: =A5A!A149 -> Vote 14 - [NAME OF VOTE 14] | C19: =A5A!C149 -> 0 | D19: =A5A!D149 -> 0 | E19: =A5A!E149 -> 0 | F19: =A5A!F149 -> 0 | G19: =A5A!G149 -> 0 | H19: =A5A!H149 -> 0 | I19: =A5A!I149 -> 0 | J19: =A5A!J149 -> 0 | K19: =A5A!K149 -> 0 | L19: =A5A!L149 -> 0
A20: =A5A!A160 -> Vote 15 - [NAME OF VOTE 15] | C20: =A5A!C160 -> 0 | D20: =A5A!D160 -> 0 | E20: =A5A!E160 -> 0 | F20: =A5A!F160 -> 0 | G20: =A5A!G160 -> 0 | H20: =A5A!H160 -> 0 | I20: =A5A!I160 -> 0 | J20: =A5A!J160 -> 0 | K20: =A5A!K160 -> 0 | L20: =A5A!L160 -> 0
A21: Capital multi-year expenditure sub-total | B21: 7 | C21: =SUM(C6:C20) -> 17932218.15 | D21: =SUM(D6:D20) -> 23065426.73 | E21: 49948813.35 | F21: 55122871 | G21: 36851062 | H21: =SUM(H6:H20) -> 36851062 | I21: 36851062 | J21: 58046251 | K21: 43232684 | L21: 15971000
A23: Single-year expenditure to be appropriated | B23: 2
A24: =A6 -> Vote 1 - Office of Municipal Manager | C24: =A5A!C175 -> 0 | D24: =A5A!D175 -> 0 | E24: =A5A!E175 -> 270584 | F24: =A5A!F175 -> 2 | G24: =A5A!G175 -> 0 | H24: =A5A!H175 -> 0 | I24: =A5A!I175 -> 0 | J24: =A5A!J175 -> 560000 | K24: =A5A!K175 -> 0 | L24: =A5A!L175 -> 0
A25: =A7 -> Vote 2 - Budget and Treasury | C25: =A5A!C186 -> 0 | D25: =A5A!D186 -> 0 | E25: =A5A!E186 -> 0 | F25: =A5A!F186 -> 500000 | G25: =A5A!G186 -> 500000 | H25: =A5A!H186 -> 500000 | I25: =A5A!I186 -> 500000 | J25: =A5A!J186 -> 2180000 | K25: =A5A!K186 -> 0 | L25: =A5A!L186 -> 0
A26: Vote 3 - Corporate Services | C26: =A5A!C197 -> 0 | D26: =A5A!D197 -> 4073464.48 | E26: =A5A!E197 -> 11952300.68 | F26: =A5A!F197 -> -420500 | G26: =A5A!G197 -> 3938600 | H26: =A5A!H197 -> 3938600 | I26: =A5A!I197 -> 3938600 | J26: =A5A!J197 -> 1800000 | K26: =A5A!K197 -> 0 | L26: =A5A!L197 -> 0
A27: Vote 4 - Social Service | C27: =A5A!C208 -> 0 | D27: =A5A!D208 -> 3593316.61 | E27: =A5A!E208 -> 1132146.57 | F27: =A5A!F208 -> 500000 | G27: =A5A!G208 -> 19743088 | H27: =A5A!H208 -> 19743088 | I27: =A5A!I208 -> 19743088 | J27: =A5A!J208 -> 16530000 | K27: =A5A!K208 -> 0 | L27: =A5A!L208 -> 0
A28: Vote 5 - Technical and Engineering Services | C28: =A5A!C219 -> 0 | D28: =A5A!D219 -> 32510176.05 | E28: =A5A!E219 -> 48202225.56 | F28: =A5A!F219 -> 47848468 | G28: =A5A!G219 -> 118294174 | H28: =A5A!H219 -> 118294174 | I28: =A5A!I219 -> 118294174 | J28: =A5A!J219 -> 89786148 | K28: =A5A!K219 -> 150465969 | L28: =A5A!L219 -> 167039052
A29: Vote 6 - Property, Planning & Development | C29: =A5A!C230 -> 0 | D29: =A5A!D230 -> 0 | E29: =A5A!E230 -> -299266.25 | F29: =A5A!F230 -> 8925000 | G29: =A5A!G230 -> 3500000 | H29: =A5A!H230 -> 3500000 | I29: =A5A!I230 -> 3500000 | J29: =A5A!J230 -> 9125000 | K29: =A5A!K230 -> 0 | L29: =A5A!L230 -> 0
A30: Vote 7 - Office of the Mayor/Strategic Office | C30: =A5A!C241 -> 0 | D30: =A5A!D241 -> 0 | E30: =A5A!E241 -> 630967.39 | F30: =A5A!F241 -> 1400000 | G30: =A5A!G241 -> 700000 | H30: =A5A!H241 -> 700000 | I30: =A5A!I241 -> 700000 | J30: =A5A!J241 -> 5000000 | K30: =A5A!K241 -> 0 | L30: =A5A!L241 -> 0
A31: Vote 8 - COMMUNITY & SOCIAL SERVICES | C31: =A5A!C252 -> 0 | D31: =A5A!D252 -> 0 | E31: =A5A!E252 -> 0 | F31: =A5A!F252 -> 0 | G31: =A5A!G252 -> 0 | H31: =A5A!H252 -> 0 | I31: =A5A!I252 -> 0 | J31: =A5A!J252 -> 0 | K31: =A5A!K252 -> 0 | L31: =A5A!L252 -> 0
A32: Vote 9 - [NAME OF VOTE 9] | C32: =A5A!C263 -> 0 | D32: =A5A!D263 -> 0 | E32: =A5A!E263 -> 0 | F32: =A5A!F263 -> 0 | G32: =A5A!G263 -> 0 | H32: =A5A!H263 -> 0 | I32: =A5A!I263 -> 0 | J32: =A5A!J263 -> 0 | K32: =A5A!K263 -> 0 | L32: =A5A!L263 -> 0
A33: Vote 10 - [NAME OF VOTE 10] | C33: =A5A!C274 -> 0 | D33: =A5A!D274 -> 0 | E33: =A5A!E274 -> 0 | F33: =A5A!F274 -> 0 | G33: =A5A!G274 -> 0 | H33: =A5A!H274 -> 0 | I33: =A5A!I274 -> 0 | J33: =A5A!J274 -> 0 | K33: =A5A!K274 -> 0 | L33: =A5A!L274 -> 0
A34: Vote 11 - [NAME OF VOTE 11] | C34: =A5A!C285 -> 0 | D34: =A5A!D285 -> 0 | E34: =A5A!E285 -> 0 | F34: =A5A!F285 -> 0 | G34: =A5A!G285 -> 0 | H34: =A5A!H285 -> 0 | I34: =A5A!I285 -> 0 | J34: =A5A!J285 -> 0 | K34: =A5A!K285 -> 0 | L34: =A5A!L285 -> 0
A35: Vote 12 - [NAME OF VOTE 12] | C35: =A5A!C296 -> 0 | D35: =A5A!D296 -> 0 | E35: =A5A!E296 -> 0 | F35: =A5A!F296 -> 0 | G35: =A5A!G296 -> 0 | H35: =A5A!H296 -> 0 | I35: =A5A!I296 -> 0 | J35: =A5A!J296 -> 0 | K35: =A5A!K296 -> 0 | L35: =A5A!L296 -> 0
A36: Vote 13 - [NAME OF VOTE 13] | C36: =A5A!C307 -> 0 | D36: =A5A!D307 -> 0 | E36: =A5A!E307 -> 0 | F36: =A5A!F307 -> 0 | G36: =A5A!G307 -> 0 | H36: =A5A!H307 -> 0 | I36: =A5A!I307 -> 0 | J36: =A5A!J307 -> 0 | K36: =A5A!K307 -> 0 | L36: =A5A!L307 -> 0
A37: Vote 14 - [NAME OF VOTE 14] | C37: =A5A!C318 -> 0 | D37: =A5A!D318 -> 0 | E37: =A5A!E318 -> 0 | F37: =A5A!F318 -> 0 | G37: =A5A!G318 -> 0 | H37: =A5A!H318 -> 0 | I37: =A5A!I318 -> 0 | J37: =A5A!J318 -> 0 | K37: =A5A!K318 -> 0 | L37: =A5A!L318 -> 0
A38: =A20 -> Vote 15 - [NAME OF VOTE 15] | C38: =A5A!C329 -> 0 | D38: =A5A!D329 -> 0 | E38: =A5A!E329 -> 0 | F38: =A5A!F329 -> 0 | G38: =A5A!G329 -> 0 | H38: =A5A!H329 -> 0 | I38: =A5A!I329 -> 0 | J38: =A5A!J329 -> 0 | K38: =A5A!K329 -> 0 | L38: =A5A!L329 -> 0
A39: Capital single-year expenditure sub-total | C39: =SUM(C24:C38) -> 0 | D39: =SUM(D24:D38) -> 40176957.14 | E39: 61888957.95 | F39: 58752970 | G39: 146675862 | H39: 146675862 | I39: 146675862 | J39: 124981148 | K39: 150465969 | L39: 167039052
A40: Total Capital Expenditure - Vote | C40: =C39+C21 -> 17932218.15 | D40: =D39+D21 -> 63242383.87 | E40: 111837771.3 | F40: 113875841 | G40: 183526924 | H40: 183526924 | I40: 183526924 | J40: 183027399 | K40: 193698653 | L40: 183010052
A42: Capital Expenditure - Functional
A43: Governance and administration | C43: =SUM(C44:C46) -> 0 | D43: =SUM(D44:D46) -> 4073464.48 | E43: 18223397.09 | F43: 1900001 | G43: 8725832 | H43: 8725832 | I43: 8725832 | J43: 4640000 | K43: 0 | L43: 0
A44: Executive and council | C44: 0 | D44: 0 | E44: 845801.39 | F44: 1400000 | G44: 700000 | H44: 700000 | I44: 700000 | J44: 0 | K44: 0 | L44: 0
A45: Finance and administration | C45: 0 | D45: 4073464.48 | E45: 17377595.7 | F45: 500001 | G45: 8025832 | H45: 8025832 | I45: 8025832 | J45: 4640000 | K45: 0 | L45: 0
A46: Internal audit | C46: 0 | D46: 0 | E46: 0 | F46: 0 | G46: 0 | H46: 0 | I46: 0 | J46: 0 | K46: 0 | L46: 0
A47: Community and public safety | C47: =SUM(C48:C52) -> 0 | D47: =SUM(D48:D52) -> 474615.92 | E47: 6042041.79 | F47: 1 | G47: 12132321 | H47: 12132321 | I47: 12132321 | J47: 15210000 | K47: 0 | L47: 0
A48: Community and social services | C48: 0 | D48: 474615.92 | E48: 6081649.35 | F48: 1 | G48: 12132321 | H48: 12132321 | I48: 12132321 | J48: 2210000 | K48: 0 | L48: 0
A49: Sport and recreation | C49: 0 | D49: 0 | E49: 0 | F49: 0 | G49: 0 | H49: 0 | I49: 0 | J49: 10000000 | K49: 0 | L49: 0
A50: Public safety | C50: 0 | D50: 0 | E50: -39607.56 | F50: 0 | G50: 0 | H50: 0 | I50: 0 | J50: 3000000 | K50: 0 | L50: 0
A51: Housing | C51: 0 | D51: 0 | E51: 0 | F51: 0 | G51: 0 | H51: 0 | I51: 0 | J51: 0 | K51: 0 | L51: 0
A52: Health | C52: 0 | D52: 0 | E52: 0 | F52: 0 | G52: 0 | H52: 0 | I52: 0 | J52: 0 | K52: 0 | L52: 0
A53: Economic and environmental services | C53: =SUM(C54:C56) -> 10007340.11 | D53: =SUM(D54:D56) -> 26752148.27 | E53: 29218072.72 | F53: 13185002 | G53: 8739658 | H53: 8739658 | I53: 8739658 | J53: 15815000 | K53: 0 | L53: 0
A54: Planning and development | C54: 0 | D54: 0 | E54: -299266.25 | F54: 8925000 | G54: 3500000 | H54: 3500000 | I54: 3500000 | J54: 14725000 | K54: 0 | L54: 0
A55: Road transport | C55: 10007340.11 | D55: 26752148.27 | E55: 29517338.97 | F55: 4260002 | G55: 5239658 | H55: 5239658 | I55: 5239658 | J55: 920000 | K55: 0 | L55: 0
A56: Environmental protection | C56: 0 | D56: 0 | E56: 0 | F56: 0 | G56: 0 | H56: 0 | I56: 0 | J56: 170000 | K56: 0 | L56: 0
A57: Trading services | C57: =SUM(C58:C61) -> 7924878.04 | D57: =SUM(D58:D61) -> 31942155.2 | E57: 63644207.76 | F57: 98576302 | G57: 154214579 | H57: 154214579 | I57: 154214579 | J57: 147112399 | K57: 193698653 | L57: 183010052
A58: Energy sources | C58: 24000 | D58: 238671.93 | E58: 14642168.93 | F58: 45769293 | G58: 41424086 | H58: 41424086 | I58: 41424086 | J58: 24890000 | K58: 22500000 | L58: 15971000
A59: Water management | C59: 7041227.48 | D59: 14850266.74 | E59: 41650838.24 | F59: 20655001 | G59: 68853540 | H59: 68853540 | I59: 68853540 | J59: 91597160 | K59: 171198653 | L59: 167039052
A60: Waste water management | C60: 859650.56 | D60: 13312915.04 | E60: 2552262.66 | F60: 3029141 | G60: 36724601 | H60: 36724601 | I60: 36724601 | J60: 30225239 | K60: 0 | L60: 0
A61: Waste management | C61: 0 | D61: 3540301.49 | E61: 4798937.93 | F61: 29122867 | G61: 7212352 | H61: 7212352 | I61: 7212352 | J61: 400000 | K61: 0 | L61: 0
A62: Other | C62: 0 | D62: 0 | E62: 0 | F62: 0 | G62: 0 | H62: 0 | I62: 0 | J62: 250000 | K62: 0 | L62: 0
A63: Total Capital Expenditure - Functional | B63: 3 | C63: =C43+C47+C53+C57+C62 -> 17932218.15 | D63: =D43+D47+D53+D57+D62 -> 63242383.87 | E63: 117127719.4 | F63: 113661306 | G63: 183812390 | H63: 183812390 | I63: 183812390 | J63: 183027399 | K63: 193698653 | L63: =L43+L47+L53+L57+L62 -> 183010052
A65: Funded by:
A66: National Government | C66: 7924878.04 | D66: 53209802.46 | E66: 88774727.49 | F66: 90868303 | G66: 147384938 | H66: 147384938 | I66: 147384938 | J66: 147772399 | K66: 193698651 | L66: 183010050
A67: Provincial Government | C67: 0 | D67: 0 | E67: 0 | F67: 0 | G67: 0 | H67: 0 | I67: 0 | J67: 0 | K67: 0 | L67: 0
A68: District Municipality | C68: 0 | D68: 0 | E68: 0 | F68: 0 | G68: 0 | H68: 0 | I68: 0 | J68: 0 | K68: 0 | L68: 0
A69: ='A4-FinPerf RE'!A39 -> Transfers and subsidies - capital (monetary allocations) (National / Provincial Departmental Agencies, Households, Non-profit Institutions, Private Enterprises, Public Corporatons, Higher Educational Institutions) | C69: 0 | D69: 0 | E69: 0 | F69: 0 | G69: 0 | H69: 0 | I69: 0 | J69: 0 | K69: 0 | L69: 0
A70: Transfers recognised - capital | B70: 4 | C70: =SUM(C66:C69) -> 7924878.04 | D70: 53209802.46 | E70: 88774727.49 | F70: 90868303 | G70: 147384938 | H70: 147384938 | I70: 147384938 | J70: 147772399 | K70: 193698651 | L70: 183010050
A72: Borrowing | B72: 6 | C72: 0 | D72: 0 | E72: 0 | F72: 0 | G72: 0 | H72: 0 | I72: 0 | J72: 0 | K72: 0 | L72: 0
A73: Internally generated funds | C73: 10007340.11 | D73: 6492279.92 | E73: 28352991.87 | F73: 22793003 | G73: 33162766 | H73: 33162766 | I73: 33162766 | J73: 35255000 | K73: 2 | L73: 2
A74: Total Capital Funding | B74: 7 | C74: =+C70+C72+C73 -> 17932218.15 | D74: =+D70+D72+D73 -> 59702082.38 | E74: 117127719.4 | F74: 113661306 | G74: 180547704 | H74: 180547704 | I74: 180547704 | J74: 183027399 | K74: 193698653 | L74: 183010052
A75: =head27a -> References
A76: 1. Municipalities may choose to appropriate for capital expenditure for three years or for one year (if one year appropriation projected expenditure required for yr2 and yr3).
A77: 2. Include capital component of PPP unitary payment. Note that capital transfers are only appropriated to municipalities for the budget year
A78: 3. Capital expenditure by functional classification must reconcile to the appropriations by vote
A79: 4. Must reconcile to supporting table SA20 and to Budgeted Financial Performance (revenue and expenditure)
A81: 6. Include finance leases and PPP capital funding component of unitary payment - total borrowing/repayments to reconcile to changes in Table SA17
A82: 7. Total Capital Funding must balance with Total Capital Expenditure
A83: 8. Include any capitalised interest (MFMA section 46) as part of relevant capital budget
A85: check balance | C85: =IF((C63-C74)=0,0,"Unbalanced") -> 0 | D85: =IF((D63-D74)=0,0,"Unbalanced") -> Unbalanced | E85: Unbalanced | F85: 0 | G85: Unbalanced | H85: Unbalanced | I85: Unbalanced | J85: 0 | K85: 0 | L85: 0

Sheet A5A
A1: =muni&" - "&Approve5 -> Choose name from list - Table A5 Budgeted Capital Expenditure by vote, functional classification and funding
A2: =Vdesc -> Vote Description | B2: =head27 -> Ref | C2: =head1b -> 2018/19 | D2: =head1A -> 2019/20 | E2: =Head1 -> 2020/21 | F2: =Head2 -> Current Year 2021/22 | J2: =Head3 -> 2022/23 Medium Term Revenue & Expenditure Framework | N2: ="Multi-year appropriation for "&Head9& " in the "&Head2A&" Annual Budget" -> Multi-year appropriation for Budget Year 2022/23 in the 2021/22 Annual Budget | R2: ="Multi-year appropriation for "&RIGHT(Head10,7)& " in the "&Head2A&" Annual Budget" -> Multi-year appropriation for 2023/24 in the 2021/22 Annual Budget | V2: New multi-year appropriations (funds for new and existing projects)
A3: R thousand | B3: 1 | C3: =Head5 -> Audited Outcome | D3: =Head5 -> Audited Outcome | E3: =Head5 -> Audited Outcome | F3: =Head6 -> Original Budget | G3: =Head7 -> Adjusted Budget | H3: =Head8 -> Full Year Forecast | I3: =Head5b -> Pre-audit outcome | J3: =Head9 -> Budget Year 2022/23 | K3: =Head10 -> Budget Year +1 2023/24 | L3: =Head11 -> Budget Year +2 2024/25 | N3: ="Appropriation for "&RIGHT(Head9,7) -> Appropriation for 2022/23 | O3: ="Adjustments in "&Head2A -> Adjustments in 2021/22 | P3: ="Downward adjustments for "&RIGHT(Head9,7) -> Downward adjustments for 2022/23 | Q3: Appropriation carried forward | R3: ="Appropriation for "&RIGHT(Head9,7) -> Appropriation for 2022/23 | S3: ="Adjustments in "&Head2A -> Adjustments in 2021/22 | T3: ="Downward adjustments for "&RIGHT(Head9,7) -> Downward adjustments for 2022/23 | U3: Appropriation carried forward | V3: =Head9 -> Budget Year 2022/23 | W3: =Head10 -> Budget Year +1 2023/24 | X3: =Head11 -> Budget Year +2 2024/25
A4: Capital expenditure - Municipal Vote
A5: Multi-year expenditure appropriation | B5: 2
A6: ='Org structure'!A2 -> Vote 1 - Office of Municipal Manager | C6: 0 | D6: 0 | E6: 0 | F6: 0 | G6: 0 | H6: 0 | I6: 0 | J6: 0 | K6: 0 | L6: 0 | N6: =SUM(N7:N16) -> 0 | O6: 0 | P6: 0 | Q6: 0 | R6: 0 | S6: 0 | T6: 0 | U6: 0 | V6: =SUM(V7:V16) -> 0 | W6: =SUM(W7:W16) -> 0 | X6: =SUM(X7:X16) -> 0
A7: ='Org structure'!E3 -> 1.1 - [Name of sub-vote] | J7: =Q7+V7 -> 0 | K7: =U7+W7 -> 0 | L7: =X7 -> 0 | Q7: =SUM(N7:P7) -> 0 | U7: =SUM(R7:T7) -> 0
A8: ='Org structure'!E4 -> 0 | J8: =Q8+V8 -> 0 | K8: =U8+W8 -> 0 | L8: =X8 -> 0 | Q8: =SUM(N8:P8) -> 0 | U8: =SUM(R8:T8) -> 0
A9: ='Org structure'!E5 -> 0 | J9: =Q9+V9 -> 0 | K9: =U9+W9 -> 0 | L9: 0 | Q9: 0 | U9: 0
A10: ='Org structure'!E6 -> 0 | J10: 0 | K10: 0 | L10: 0 | Q10: 0 | U10: 0
A11: ='Org structure'!E7 -> 0 | J11: 0 | K11: 0 | L11: =X11 -> 0 | Q11: 0 | U11: 0
A12: ='Org structure'!E8 -> 0 | J12: 0 | K12: 0 | L12: 0 | Q12: 0 | U12: 0
A13: ='Org structure'!E9 -> 0 | J13: 0 | K13: 0 | L13: 0 | Q13: 0 | U13: 0
A14: ='Org structure'!E10 -> 0 | J14: 0 | K14: 0 | L14: 0 | Q14: 0 | U14: 0
A15: ='Org structure'!E11 -> 0 | J15: 0 | K15: 0 | L15: 0 | Q15: 0 | U15: 0
A16: ='Org structure'!E12 -> 0 | J16: 0 | K16: 0 | L16: 0 | Q16: 0 | U16: 0
A17: ='Org structure'!A3 -> Vote 2 - Budget and Treasury | C17: 0 | D17: 0 | E17: 0 | F17: 1 | G17: 1 | H17: 1 | I17: 1 | J17: 0 | K17: 0 | L17: 0 | N17: =SUM(N18:N27) -> 0 | O17: 0 | P17: 0 | Q17: 0 | R17: 0 | S17: 0 | T17: 0 | U17: 0 | V17: 0 | W17: 0 | X17: 0
A18: ='Org structure'!E14 -> 2.1 - [Name of sub-vote] | J18: =Q18+V18 -> 0 | K18: =U18+W18 -> 0 | L18: =X18 -> 0 | Q18: =SUM(N18:P18) -> 0 | U18: 0
A19: ='Org structure'!E15 -> 0 | J19: =Q19+V19 -> 0 | K19: =U19+W19 -> 0 | L19: 0 | Q19: 0 | U19: 0
A20: ='Org structure'!E16 -> 0 | J20: 0 | K20: 0 | L20: 0 | Q20: 0 | U20: 0
A21: ='Org structure'!E17 -> 0 | J21: 0 | K21: =U21+W21 -> 0 | L21: 0 | Q21: 0 | U21: 0
A22: ='Org structure'!E18 -> 0 | J22: 0 | K22: 0 | L22: 0 | Q22: 0 | U22: 0
A23: ='Org structure'!E19 -> 0 | J23: 0 | K23: 0 | L23: 0 | Q23: 0 | U23: 0
A24: ='Org structure'!E20 -> 0 | J24: 0 | K24: 0 | L24: 0 | Q24: 0 | U24: 0
A25: ='Org structure'!E21 -> 0 | J25: 0 | K25: 0 | L25: 0 | Q25: 0 | U25: 0
A26: ='Org structure'!E22 -> 0 | J26: 0 | K26: 0 | L26: 0 | Q26: 0 | U26: 0
A27: ='Org structure'!E23 -> 0 | J27: 0 | K27: 0 | L27: 0 | Q27: 0 | U27: 0
A28: ='Org structure'!A4 -> Vote 3 - Corporate Services | C28: 0 | D28: 0 | E28: 0 | F28: 0 | G28: 300000 | H28: 300000 | I28: 300000 | J28: 0 | K28: 0 | L28: 0 | N28: =SUM(N29:N38) -> 0 | O28: 0 | P28: 0 | Q28: 0 | R28: 0 | S28: 0 | T28: 0 | U28: 0 | V28: 0 | W28: 0 | X28: 0
A29: ='Org structure'!E25 -> 3.1 - [Name of sub-vote] | J29: =Q29+V29 -> 0 | K29: =U29+W29 -> 0 | L29: =X29 -> 0 | Q29: =SUM(N29:P29) -> 0 | U29: 0
A30: ='Org structure'!E26 -> 0 | J30: 0 | K30: 0 | L30: 0 | Q30: 0 | U30: 0
A31: ='Org structure'!E27 -> 0 | J31: 0 | K31: 0 | L31: 0 | Q31: 0 | U31: =SUM(R31:T31) -> 0
A32: ='Org structure'!E28 -> 0 | J32: 0 | K32: =U32+W32 -> 0 | L32: 0 | Q32: 0 | U32: 0
A33: ='Org structure'!E29 -> 0 | J33: =Q33+V33 -> 0 | K33: 0 | L33: 0 | Q33: 0 | U33: 0
A34: ='Org structure'!E30 -> 0 | J34: 0 | K34: 0 | L34: 0 | Q34: 0 | U34: 0
A35: ='Org structure'!E31 -> 0 | J35: 0 | K35: 0 | L35: 0 | Q35: 0 | U35: 0
A36: ='Org structure'!E32 -> 0 | J36: 0 | K36: 0 | L36: 0 | Q36: 0 | U36: 0
A37: ='Org structure'!E33 -> 0 | J37: 0 | K37: 0 | L37: 0 | Q37: 0 | U37: 0
A38: ='Org structure'!E34 -> 0 | J38: 0 | K38: 0 | L38: 0 | Q38: 0 | U38: 0
A39: ='Org structure'!A5 -> Vote 4 - Social Service | C39: 0 | D39: 0 | E39: 9758516.51 | F39: 28622867 | G39: 2468317 | H39: 2468317 | I39: 2468317 | J39: 0 | K39: 0 | L39: 0 | N39: =SUM(N40:N49) -> 0 | O39: 0 | P39: 0 | Q39: 0 | R39: 0 | S39: 0 | T39: 0 | U39: 0 | V39: 0 | W39: 0 | X39: 0
A40: ='Org structure'!E36 -> 4.1 - [Name of sub-vote] | J40: =Q40+V40 -> 0 | K40: =U40+W40 -> 0 | L40: =X40 -> 0 | Q40: =SUM(N40:P40) -> 0 | U40: 0
A41: ='Org structure'!E37 -> 0 | J41: 0 | K41: 0 | L41: 0 | Q41: 0 | U41: 0
A42: ='Org structure'!E38 -> 0 | J42: 0 | K42: 0 | L42: 0 | Q42: 0 | U42: 0
A43: ='Org structure'!E39 -> 0 | J43: 0 | K43: 0 | L43: 0 | Q43: 0 | U43: 0
A44: ='Org structure'!E40 -> 0 | J44: 0 | K44: 0 | L44: 0 | Q44: 0 | U44: 0
A45: ='Org structure'!E41 -> 0 | J45: 0 | K45: 0 | L45: 0 | Q45: 0 | U45: 0
A46: ='Org structure'!E42 -> 0 | J46: 0 | K46: 0 | L46: 0 | Q46: 0 | U46: 0
A47: ='Org structure'!E43 -> 0 | J47: 0 | K47: 0 | L47: 0 | Q47: 0 | U47: 0
A48: ='Org structure'!E44 -> 0 | J48: 0 | K48: 0 | L48: 0 | Q48: 0 | U48: 0
A49: ='Org structure'!E45 -> 0 | J49: 0 | K49: 0 | L49: 0 | Q49: 0 | U49: 0
A50: ='Org structure'!A6 -> Vote 5 - Technical and Engineering Services | C50: 17931218.15 | D50: 23065426.73 | E50: 40190296.84 | F50: 26500003 | G50: 34082744 | H50: 34082744 | I50: 34082744 | J50: 57446251 | K50: 43232684 | L50: 15971000 | N50: =SUM(N51:N60) -> 0 | O50: 0 | P50: 0 | Q50: 0 | R50: 0 | S50: 0 | T50: 0 | U50: 0 | V50: 0 | W50: 0 | X50: 0
A51: ='Org structure'!E47 -> 5.1 - [Name of sub-vote] | J51: =Q51+V51 -> 0 | K51: =U51+W51 -> 0 | L51: =X51 -> 0 | Q51: =SUM(N51:P51) -> 0 | U51: 0
A52: ='Org structure'!E48 -> 0 | J52: 0 | K52: 0 | L52: 0 | Q52: 0 | U52: 0
A53: ='Org structure'!E49 -> 0 | J53: 0 | K53: 0 | L53: 0 | Q53: 0 | U53: 0
A54: ='Org structure'!E50 -> 0 | J54: 0 | K54: 0 | L54: 0 | Q54: 0 | U54: 0
A55: ='Org structure'!E51 -> 0 | J55: 0 | K55: 0 | L55: 0 | Q55: 0 | U55: 0
A56: ='Org structure'!E52 -> 0 | J56: 0 | K56: 0 | L56: 0 | Q56: 0 | U56: 0
A57: ='Org structure'!E53 -> 0 | J57: 0 | K57: 0 | L57: 0 | Q57: 0 | U57: 0
A58: ='Org structure'!E54 -> 0 | J58: 0 | K58: 0 | L58: 0 | Q58: 0 | U58: 0
A59: ='Org structure'!E55 -> 0 | J59: 0 | K59: 0 | L59: 0 | Q59: 0 | U59: 0
A60: ='Org structure'!E56 -> 0 | J60: 0 | K60: 0 | L60: 0 | Q60: 0 | U60: 0
A61: ='Org structure'!A7 -> Vote 6 - Property, Planning & Development | C61: 1000 | D61: 0 | E61: 0 | F61: 0 | G61: 0 | H61: 0 | I61: 0 | J61: 600000 | K61: 0 | L61: 0 | N61: =SUM(N62:N71) -> 0 | O61: 0 | P61: 0 | Q61: 0 | R61: 0 | S61: 0 | T61: 0 | U61: 0 | V61: 0 | W61: 0 | X61: 0
A62: ='Org structure'!E58 -> 6.1 - [Name of sub-vote] | J62: =Q62+V62 -> 0 | K62: =U62+W62 -> 0 | L62: =X62 -> 0 | Q62: =SUM(N62:P62) -> 0 | U62: 0
A63: ='Org structure'!E59 -> 0 | J63: 0 | K63: 0 | L63: 0 | Q63: 0 | U63: 0
A64: ='Org structure'!E60 -> 0 | J64: 0 | K64: 0 | L64: 0 | Q64: 0 | U64: 0
A65: ='Org structure'!E61 -> 0 | J65: 0 | K65: 0 | L65: 0 | Q65: 0 | U65: 0
A66: ='Org structure'!E62 -> 0 | J66: 0 | K66: 0 | L66: 0 | Q66: 0 | U66: 0
A67: ='Org structure'!E63 -> 0 | J67: 0 | K67: 0 | L67: 0 | Q67: 0 | U67: 0
A68: ='Org structure'!E64 -> 0 | J68: 0 | K68: 0 | L68: 0 | Q68: 0 | U68: 0
A69: ='Org structure'!E65 -> 0 | J69: 0 | K69: 0 | L69: 0 | Q69: 0 | U69: 0
A70: ='Org structure'!E66 -> 0 | J70: 0 | K70: 0 | L70: 0 | Q70: 0 | U70: 0
A71: ='Org structure'!E67 -> 0 | J71: 0 | K71: 0 | L71: 0 | Q71: 0 | U71: 0
A72: ='Org structure'!A8 -> Vote 7 - Office of the Mayor/Strategic Office | C72: 0 | D72: 0 | E72: 0 | F72: 0 | G72: 0 | H72: 0 | I72: 0 | J72: 0 | K72: 0 | L72: 0 | N72: =SUM(N73:N82) -> 0 | O72: 0 | P72: 0 | Q72: 0 | R72: 0 | S72: 0 | T72: 0 | U72: 0 | V72: 0 | W72: 0 | X72: 0
A73: ='Org structure'!E69 -> 7.1 - [Name of sub-vote] | J73: =Q73+V73 -> 0 | K73: =U73+W73 -> 0 | L73: =X73 -> 0 | Q73: =SUM(N73:P73) -> 0 | U73: =SUM(R73:T73) -> 0
A74: ='Org structure'!E70 -> 0 | J74: 0 | K74: 0 | L74: 0 | Q74: 0 | U74: 0
A75: ='Org structure'!E71 -> 0 | J75: 0 | K75: 0 | L75: 0 | Q75: 0 | U75: 0
A76: ='Org structure'!E72 -> 0 | J76: 0 | K76: 0 | L76: 0 | Q76: 0 | U76: 0
A77: ='Org structure'!E73 -> 0 | J77: 0 | K77: 0 | L77: 0 | Q77: 0 | U77: 0
A78: ='Org structure'!E74 -> 0 | J78: 0 | K78: 0 | L78: 0 | Q78: 0 | U78: 0
A79: ='Org structure'!E75 -> 0 | J79: 0 | K79: 0 | L79: 0 | Q79: 0 | U79: 0
A80: ='Org structure'!E76 -> 0 | J80: 0 | K80: 0 | L80: 0 | Q80: 0 | U80: 0
A81: ='Org structure'!E77 -> 0 | J81: 0 | K81: 0 | L81: 0 | Q81: 0 | U81: 0
A82: ='Org structure'!E78 -> 0 | J82: 0 | K82: 0 | L82: 0 | Q82: 0 | U82: 0
A83: ='Org structure'!A9 -> Vote 8 - COMMUNITY & SOCIAL SERVICES | C83: 0 | D83: 0 | E83: 0 | F83: 0 | G83: 0 | H83: 0 | I83: 0 | J83: 0 | K83: 0 | L83: 0 | N83: =SUM(N84:N93) -> 0 | O83: 0 | P83: 0 | Q83: 0 | R83: 0 | S83: 0 | T83: 0 | U83: 0 | V83: 0 | W83: 0 | X83: 0
A84: ='Org structure'!E80 -> 8.1 - [Name of sub-vote] | J84: =Q84+V84 -> 0 | K84: =U84+W84 -> 0 | L84: =X84 -> 0 | Q84: =SUM(N84:P84) -> 0 | U84: 0
A85: ='Org structure'!E81 -> 0 | J85: 0 | K85: 0 | L85: 0 | Q85: 0 | U85: 0
A86: ='Org structure'!E82 -> 0 | J86: 0 | K86: 0 | L86: 0 | Q86: 0 | U86: 0
A87: ='Org structure'!E83 -> 0 | J87: 0 | K87: 0 | L87: 0 | Q87: 0 | U87: 0
A88: ='Org structure'!E84 -> 0 | J88: 0 | K88: 0 | L88: 0 | Q88: 0 | U88: 0
A89: ='Org structure'!E85 -> 0 | J89: 0 | K89: 0 | L89: 0 | Q89: 0 | U89: 0
A90: ='Org structure'!E86 -> 0 | J90: 0 | K90: 0 | L90: 0 | Q90: 0 | U90: 0
A91: ='Org structure'!E87 -> 0 | J91: 0 | K91: 0 | L91: 0 | Q91: 0 | U91: 0
A92: ='Org structure'!E88 -> 0 | J92: 0 | K92: 0 | L92: 0 | Q92: 0 | U92: 0
A93: ='Org structure'!E89 -> 0 | J93: 0 | K93: 0 | L93: 0 | Q93: 0 | U93: 0
A94: ='Org structure'!A10 -> Vote 9 - [NAME OF VOTE 9] | C94: =SUM(C95:C104) -> 0 | D94: =SUM(D95:D104) -> 0 | E94: 0 | F94: 0 | G94: 0 | H94: 0 | I94: 0 | J94: 0 | K94: 0 | L94: 0 | N94: =SUM(N95:N104) -> 0 | O94: 0 | P94: 0 | Q94: 0 | R94: 0 | S94: 0 | T94: 0 | U94: 0 | V94: 0 | W94: 0 | X94: 0
A95: ='Org structure'!E91 -> 9.1 - [Name of sub-vote] | J95: =Q95+V95 -> 0 | K95: =U95+W95 -> 0 | L95: =X95 -> 0 | Q95: =SUM(N95:P95) -> 0 | U95: 0
A96: ='Org structure'!E92 -> 0 | J96: 0 | K96: 0 | L96: 0 | Q96: 0 | U96: 0
A97: ='Org structure'!E93 -> 0 | J97: 0 | K97: 0 | L97: 0 | Q97: 0 | U97: 0
A98: ='Org structure'!E94 -> 0 | J98: 0 | K98: 0 | L98: 0 | Q98: 0 | U98: 0
A99: ='Org structure'!E95 -> 0 | J99: 0 | K99: 0 | L99: 0 | Q99: 0 | U99: 0
A100: ='Org structure'!E96 -> 0 | J100: 0 | K100: 0 | L100: 0 | Q100: 0 | U100: 0
A101: ='Org structure'!E97 -> 0 | J101: 0 | K101: 0 | L101: 0 | Q101: 0 | U101: 0
A102: ='Org structure'!E98 -> 0 | J102: 0 | K102: 0 | L102: 0 | Q102: 0 | U102: 0
A103: ='Org structure'!E99 -> 0 | J103: 0 | K103: 0 | L103: 0 | Q103: 0 | U103: 0
A104: ='Org structure'!E100 -> 0 | J104: 0 | K104: 0 | L104: 0 | Q104: 0 | U104: 0
A105: ='Org structure'!A11 -> Vote 10 - [NAME OF VOTE 10] | C105: =SUM(C106:C115) -> 0 | D105: =SUM(D106:D115) -> 0 | E105: 0 | F105: 0 | G105: 0 | H105: 0 | I105: 0 | J105: 0 | K105: 0 | L105: 0 | N105: =SUM(N106:N115) -> 0 | O105: 0 | P105: 0 | Q105: 0 | R105: 0 | S105: 0 | T105: 0 | U105: 0 | V105: 0 | W105: 0 | X105: 0
A106: ='Org structure'!E102 -> 10.1 - [Name of sub-vote] | J106: =Q106+V106 -> 0 | K106: =U106+W106 -> 0 | L106: =X106 -> 0 | Q106: =SUM(N106:P106) -> 0 | U106: 0
A107: ='Org structure'!E103 -> 0 | J107: 0 | K107: 0 | L107: 0 | Q107: 0 | U107: 0
A108: ='Org structure'!E104 -> 0 | J108: 0 | K108: 0 | L108: 0 | Q108: 0 | U108: 0
A109: ='Org structure'!E105 -> 0 | J109: 0 | K109: 0 | L109: 0 | Q109: 0 | U109: 0
A110: ='Org structure'!E106 -> 0 | J110: 0 | K110: 0 | L110: 0 | Q110: 0 | U110: 0
A111: ='Org structure'!E107 -> 0 | J111: 0 | K111: 0 | L111: 0 | Q111: 0 | U111: 0
A112: ='Org structure'!E108 -> 0 | J112: 0 | K112: 0 | L112: 0 | Q112: 0 | U112: 0
A113: ='Org structure'!E109 -> 0 | J113: 0 | K113: 0 | L113: 0 | Q113: 0 | U113: 0
A114: ='Org structure'!E110 -> 0 | J114: 0 | K114: 0 | L114: 0 | Q114: 0 | U114: 0
A115: ='Org structure'!E111 -> 0 | J115: 0 | K115: 0 | L115: 0 | Q115: 0 | U115: 0
A116: ='Org structure'!A12 -> Vote 11 - [NAME OF VOTE 11] | C116: =SUM(C117:C126) -> 0 | D116: 0 | E116: 0 | F116: 0 | G116: 0 | H116: 0 | I116: 0 | J116: 0 | K116: 0 | L116: 0 | N116: =SUM(N117:N126) -> 0 | O116: 0 | P116: 0 | Q116: 0 | R116: 0 | S116: 0 | T116: 0 | U116: 0 | V116: 0 | W116: 0 | X116: 0
A117: ='Org structure'!E113 -> 11.1 - [Name of sub-vote] | J117: =Q117+V117 -> 0 | K117: =U117+W117 -> 0 | L117: =X117 -> 0 | Q117: =SUM(N117:P117) -> 0 | U117: 0
A118: ='Org structure'!E114 -> 0 | J118: 0 | K118: 0 | L118: 0 | Q118: 0 | U118: 0
A119: ='Org structure'!E115 -> 0 | J119: 0 | K119: 0 | L119: 0 | Q119: 0 | U119: 0
A120: ='Org structure'!E116 -> 0 | J120: 0 | K120: 0 | L120: 0 | Q120: 0 | U120: 0
A121: ='Org structure'!E117 -> 0 | J121: 0 | K121: 0 | L121: 0 | Q121: 0 | U121: 0
A122: ='Org structure'!E118 -> 0 | J122: 0 | K122: 0 | L122: 0 | Q122: 0 | U122: 0
A123: ='Org structure'!E119 -> 0 | J123: 0 | K123: 0 | L123: 0 | Q123: 0 | U123: 0
A124: ='Org structure'!E120 -> 0 | J124: 0 | K124: 0 | L124: 0 | Q124: 0 | U124: 0
A125: ='Org structure'!E121 -> 0 | J125: 0 | K125: 0 | L125: 0 | Q125: 0 | U125: 0
A126: ='Org structure'!E122 -> 0 | J126: 0 | K126: 0 | L126: 0 | Q126: 0 | U126: 0
A127: ='Org structure'!A13 -> Vote 12 - [NAME OF VOTE 12] | C127: =SUM(C128:C137) -> 0 | D127: 0 | E127: 0 | F127: 0 | G127: 0 | H127: 0 | I127: 0 | J127: 0 | K127: 0 | L127: 0 | N127: =SUM(N128:N137) -> 0 | O127: 0 | P127: 0 | Q127: 0 | R127: 0 | S127: 0 | T127: 0 | U127: 0 | V127: 0 | W127: 0 | X127: 0
A128: ='Org structure'!E124 -> 12.1 - [Name of sub-vote] | J128: =Q128+V128 -> 0 | K128: =U128+W128 -> 0 | L128: =X128 -> 0 | Q128: =SUM(N128:P128) -> 0 | U128: 0
A129: ='Org structure'!E125 -> 0 | J129: 0 | K129: 0 | L129: 0 | Q129: 0 | U129: 0
A130: ='Org structure'!E126 -> 0 | J130: 0 | K130: 0 | L130: 0 | Q130: 0 | U130: 0
A131: ='Org structure'!E127 -> 0 | J131: 0 | K131: 0 | L131: 0 | Q131: 0 | U131: 0
A132: ='Org structure'!E128 -> 0 | J132: 0 | K132: 0 | L132: 0 | Q132: 0 | U132: 0
A133: ='Org structure'!E129 -> 0 | J133: =Q133+V133 -> 0 | K133: 0 | L133: 0 | Q133: 0 | U133: 0
A134: ='Org structure'!E130 -> 0 | J134: 0 | K134: 0 | L134: 0 | Q134: 0 | U134: 0
A135: ='Org structure'!E131 -> 0 | J135: 0 | K135: 0 | L135: 0 | Q135: 0 | U135: 0
A136: ='Org structure'!E132 -> 0 | J136: 0 | K136: 0 | L136: 0 | Q136: 0 | U136: =SUM(R136:T136) -> 0
A137: ='Org structure'!E133 -> 0 | J137: 0 | K137: 0 | L137: 0 | Q137: 0 | U137: 0
A138: ='Org structure'!A14 -> Vote 13 - [NAME OF VOTE 13] | C138: =SUM(C139:C148) -> 0 | D138: 0 | E138: 0 | F138: 0 | G138: 0 | H138: 0 | I138: 0 | J138: 0 | K138: 0 | L138: 0 | N138: =SUM(N139:N148) -> 0 | O138: 0 | P138: 0 | Q138: 0 | R138: 0 | S138: 0 | T138: 0 | U138: 0 | V138: 0 | W138: 0 | X138: 0
A139: ='Org structure'!E135 -> 13.1 - [Name of sub-vote] | J139: =Q139+V139 -> 0 | K139: =U139+W139 -> 0 | L139: =X139 -> 0 | Q139: =SUM(N139:P139) -> 0 | U139: 0
A140: ='Org structure'!E136 -> 0 | J140: 0 | K140: 0 | L140: 0 | Q140: 0 | U140: 0
A141: ='Org structure'!E137 -> 0 | J141: 0 | K141: 0 | L141: 0 | Q141: 0 | U141: 0
A142: ='Org structure'!E138 -> 0 | J142: 0 | K142: 0 | L142: 0 | Q142: 0 | U142: 0
A143: ='Org structure'!E139 -> 0 | J143: 0 | K143: 0 | L143: 0 | Q143: 0 | U143: 0
A144: ='Org structure'!E140 -> 0 | J144: 0 | K144: 0 | L144: 0 | Q144: 0 | U144: 0
A145: ='Org structure'!E141 -> 0 | J145: 0 | K145: 0 | L145: 0 | Q145: 0 | U145: 0
A146: ='Org structure'!E142 -> 0 | J146: 0 | K146: 0 | L146: 0 | Q146: 0 | U146: 0
A147: ='Org structure'!E143 -> 0 | J147: 0 | K147: 0 | L147: 0 | Q147: 0 | U147: 0
A148: ='Org structure'!E144 -> 0 | J148: 0 | K148: 0 | L148: 0 | Q148: 0 | U148: 0
A149: ='Org structure'!A15 -> Vote 14 - [NAME OF VOTE 14] | C149: =SUM(C150:C159) -> 0 | D149: 0 | E149: 0 | F149: 0 | G149: 0 | H149: 0 | I149: 0 | J149: 0 | K149: 0 | L149: 0 | N149: =SUM(N150:N159) -> 0 | O149: 0 | P149: 0 | Q149: 0 | R149: 0 | S149: 0 | T149: 0 | U149: 0 | V149: 0 | W149: 0 | X149: 0
A150: ='Org structure'!E146 -> 14.1 - [Name of sub-vote] | J150: =Q150+V150 -> 0 | K150: =U150+W150 -> 0 | L150: =X150 -> 0 | Q150: =SUM(N150:P150) -> 0 | U150: 0
A151: ='Org structure'!E147 -> 0 | J151: 0 | K151: 0 | L151: 0 | Q151: 0 | U151: 0
A152: ='Org structure'!E148 -> 0 | J152: 0 | K152: 0 | L152: 0 | Q152: 0 | U152: 0
A153: ='Org structure'!E149 -> 0 | J153: 0 | K153: 0 | L153: 0 | Q153: 0 | U153: 0
A154: ='Org structure'!E150 -> 0 | J154: 0 | K154: 0 | L154: 0 | Q154: 0 | U154: 0
A155: ='Org structure'!E151 -> 0 | J155: 0 | K155: 0 | L155: 0 | Q155: 0 | U155: 0
A156: ='Org structure'!E152 -> 0 | J156: 0 | K156: 0 | L156: 0 | Q156: 0 | U156: 0
A157: ='Org structure'!E153 -> 0 | J157: 0 | K157: 0 | L157: 0 | Q157: 0 | U157: 0
A158: ='Org structure'!E154 -> 0 | J158: 0 | K158: 0 | L158: 0 | Q158: 0 | U158: 0
A159: ='Org structure'!E155 -> 0 | J159: 0 | K159: 0 | L159: 0 | Q159: 0 | U159: 0
A160: ='Org structure'!A16 -> Vote 15 - [NAME OF VOTE 15] | C160: =SUM(C161:C170) -> 0 | D160: 0 | E160: 0 | F160: 0 | G160: 0 | H160: 0 | I160: 0 | J160: 0 | K160: 0 | L160: 0 | N160: =SUM(N161:N170) -> 0 | O160: 0 | P160: 0 | Q160: 0 | R160: 0 | S160: 0 | T160: 0 | U160: 0 | V160: 0 | W160: 0 | X160: 0
A161: ='Org structure'!E157 -> 15.1 - [Name of sub-vote] | J161: =Q161+V161 -> 0 | K161: =U161+W161 -> 0 | L161: =X161 -> 0 | Q161: =SUM(N161:P161) -> 0 | U161: 0
A162: ='Org structure'!E158 -> 0 | J162: 0 | K162: 0 | L162: 0 | Q162: 0 | U162: 0
A163: ='Org structure'!E159 -> 0 | J163: 0 | K163: 0 | L163: 0 | Q163: 0 | U163: 0
A164: ='Org structure'!E160 -> 0 | J164: 0 | K164: 0 | L164: 0 | Q164: 0 | U164: 0
A165: ='Org structure'!E161 -> 0 | J165: 0 | K165: 0 | L165: 0 | Q165: 0 | U165: 0
A166: ='Org structure'!E162 -> 0 | J166: 0 | K166: 0 | L166: 0 | Q166: 0 | U166: 0
A167: ='Org structure'!E163 -> 0 | J167: 0 | K167: 0 | L167: 0 | Q167: 0 | U167: 0
A168: ='Org structure'!E164 -> 0 | J168: 0 | K168: 0 | L168: 0 | Q168: 0 | U168: 0
A169: ='Org structure'!E165 -> 0 | J169: 0 | K169: 0 | L169: 0 | Q169: 0 | U169: 0
A170: ='Org structure'!E166 -> 0 | J170: 0 | K170: 0 | L170: 0 | Q170: 0 | U170: 0
A171: Capital multi-year expenditure sub-total | C171: =C6+C17+C28+C39+C50+C61+C72+C83+C94+C105+C116+C127+C138+C149+C160 -> 17932218.15 | D171: =D6+D17+D28+D39+D50+D61+D72+D83+D94+D105+D116+D127+D138+D149+D160 -> 23065426.73 | E171: 49948813.35 | F171: 55122871 | G171: 36851062 | H171: 36851062 | I171: 36851062 | J171: 58046251 | K171: 43232684 | L171: 15971000 | N171: =N6+N17+N28+N39+N50+N61+N72+N83+N94+N105+N116+N127+N138+N149+N160 -> 0 | O171: 0 | P171: 0 | Q171: 0 | R171: 0 | S171: 0 | U171: 0 | V171: =V6+V17+V28+V39+V50+V61+V72+V83+V94+V105+V116+V127+V138+V149+V160 -> 0 | W171: =W6+W17+W28+W39+W50+W61+W72+W83+W94+W105+W116+W127+W138+W149+W160 -> 0
A173: Capital expenditure - Municipal Vote
A174: Single-year expenditure appropriation | B174: 2
A175: =A6 -> Vote 1 - Office of Municipal Manager | C175: 0 | D175: 0 | E175: 270584 | F175: 2 | G175: 0 | H175: 0 | I175: 0 | J175: 560000 | K175: 0 | L175: 0
A176: =A7 -> 1.1 - [Name of sub-vote]
A177: 0
A178: 0
A179: 0
A180: 0
A181: 0
A182: 0
A183: 0
A184: 0
A185: 0
A186: Vote 2 - Budget and Treasury | C186: 0 | D186: 0 | E186: 0 | F186: 500000 | G186: 500000 | H186: 500000 | I186: 500000 | J186: 2180000 | K186: 0 | L186: 0
A187: 2.1 - [Name of sub-vote]
A188: 0
A189: 0
A190: 0
A191: 0
A192: 0
A193: 0
A194: 0
A195: 0
A196: 0
A197: Vote 3 - Corporate Services | C197: 0 | D197: 4073464.48 | E197: 11952300.68 | F197: -420500 | G197: 3938600 | H197: 3938600 | I197: 3938600 | J197: 1800000 | K197: 0 | L197: 0
A198: 3.1 - [Name of sub-vote]
A199: 0
A200: 0
A201: 0
... 140 more rows

Sheet A6-FinPos
A1: =muni&" - "&Approve6 -> Choose name from list - Table A6 Budgeted Financial Position
A2: =desc -> Description | B2: =head27 -> Ref | C2: =head1b -> 2018/19 | D2: =head1A -> 2019/20 | E2: =Head1 -> 2020/21 | F2: =Head2 -> Current Year 2021/22 | J2: =Head3 -> 2022/23 Medium Term Revenue & Expenditure Framework
A3: R thousand | C3: =Head5 -> Audited Outcome | D3: =Head5 -> Audited Outcome | E3: =Head5 -> Audited Outcome | F3: =Head6 -> Original Budget | G3: =Head7 -> Adjusted Budget | H3: =Head8 -> Full Year Forecast | I3: =Head5b -> Pre-audit outcome | J3: =Head9 -> Budget Year 2022/23 | K3: =Head10 -> Budget Year +1 2023/24 | L3: =Head11 -> Budget Year +2 2024/25
A4: ASSETS
A5: Current assets
A6: Cash | C6: 69362255.08 | D6: -50902477.24 | E6: -151735849.4 | F6: 83744653 | G6: 154544654 | H6: 154544654 | I6: 154544654 | J6: 219468266 | K6: 269958334 | L6: 335981277
A7: Call investment deposits | B7: 1 | C7: 0 | D7: 102406509.2 | E7: 244690299.4 | F7: 45000049 | G7: 45000049 | H7: 45000049 | I7: 45000049 | J7: 47160000 | K7: 49235040 | L7: 51450617
A8: Consumer debtors | B8: 1 | C8: ='SA3'!C14 -> 50998119.55 | D8: ='SA3'!D14 -> 223224135.6 | E8: ='SA3'!E14 -> 210109474.5 | F8: ='SA3'!F14 -> 191907153 | G8: ='SA3'!G14 -> 191907153 | H8: ='SA3'!H14 -> 191907153 | I8: ='SA3'!I14 -> 191907153 | J8: ='SA3'!J14 -> 251520000 | K8: ='SA3'!K14 -> 262586879 | L8: ='SA3'!L14 -> 274403289
A9: Other debtors | C9: 27579776.91 | D9: 54125504.46 | E9: 52449403.65 | F9: 10557365 | G9: 10557365 | H9: 10557365 | I9: 10557365 | J9: 13434201 | K9: 13443425 | L9: 13453272
A10: Current portion of long-term receivables | C10: 0 | D10: 0 | E10: 0 | F10: 7819515 | G10: 7819515 | H10: 7819515 | I10: 7819515 | J10: 2096000 | K10: 2188224 | L10: 2286694
A11: Inventory | B11: 2 | C11: 633477.58 | D11: 1416588.59 | E11: 2129429.69 | F11: 14975127 | G11: 14975135 | H11: 14975135 | I11: 14975135 | J11: 2500000 | K11: 2500001 | L11: 2500002
A12: Total current assets | C12: =SUM(C6:C11) -> 148573629.1 | D12: 330270260.6 | E12: 357642757.9 | F12: 354003862 | G12: 424803871 | H12: 424803871 | I12: 424803871 | J12: 536178467 | K12: 599911903 | L12: 680075151
A14: Non current assets
A15: Long-term receivables | C15: 0 | D15: 0 | E15: 0 | F15: 3 | G15: 3 | H15: 3 | I15: 3 | J15: 0 | K15: 0 | L15: 0
A16: Investments | C16: -65522250.71 | D16: 33031711.3 | E16: 0 | F16: 0 | G16: 3600000 | H16: 3600000 | I16: 3600000 | J16: 0 | K16: 0 | L16: 0
A17: Investment property | C17: 0 | D17: 0 | E17: 0 | F17: 0 | G17: 0 | H17: 0 | I17: 0 | J17: 0 | K17: 0 | L17: 0
A18: Investment in Associate | C18: 0 | D18: 0 | E18: 0 | F18: 0 | G18: 0 | H18: 0 | I18: 0 | J18: 0 | K18: 0 | L18: 0
A19: Property, plant and equipment | B19: 3 | C19: ='SA3'!C121 -> 13150384.75 | D19: ='SA3'!D121 -> 1469698871 | E19: ='SA3'!E121 -> 1478560986 | F19: ='SA3'!F121 -> 1651591270 | G19: ='SA3'!G121 -> 1721742291 | H19: ='SA3'!H121 -> 1721742291 | I19: ='SA3'!I121 -> 1721742291 | J19: ='SA3'!J121 -> 1560912038 | K19: ='SA3'!K121 -> 1501326878 | L19: ='SA3'!L121 -> 1644985415
A21: Biological | C21: 0 | D21: 0 | E21: 0 | F21: 0 | G21: 0 | H21: 0 | I21: 0 | J21: 0 | K21: 0 | L21: 0
A22: Intangible | C22: 12014824.47 | D22: 978288.75 | E22: 626666.55 | F22: 879003 | G22: 879003 | H22: 879003 | I22: 879003 | J22: 4596000 | K22: 2188223 | L22: 2286693
A23: Other non-current assets | C23: 0 | D23: 77000 | E23: 77000 | F23: 329364 | G23: 329366 | H23: 329366 | I23: 329366 | J23: 0 | K23: 0 | L23: 0
A24: Total non current assets | C24: =SUM(C15:C19)+SUM(C21:C23) -> -40357041.49 | D24: =SUM(D15:D19)+SUM(D21:D23) -> 1503785871 | E24: 1479264652 | F24: 1652799640 | G24: 1726550663 | H24: 1726550663 | I24: 1726550663 | J24: 1565508038 | K24: 1503515101 | L24: 1647272108
A25: TOTAL ASSETS | C25: =C12+C24 -> 108216587.6 | D25: =D12+D24 -> 1834056132 | E25: =E12+E24 -> 1836907410 | F25: =F12+F24 -> 2006803502 | G25: 2151354534 | H25: 2151354534 | I25: 2151354534 | J25: 2101686505 | K25: 2103427004 | L25: 2327347259
A27: LIABILITIES
A28: Current liabilities
A29: Bank overdraft | B29: 1 | C29: 0 | D29: 0 | E29: 0 | F29: 0 | G29: 0 | H29: 0 | I29: 0 | J29: 0 | K29: 0 | L29: 0
A30: Borrowing | B30: 4 | C30: ='SA3'!C127 -> -2544433.97 | D30: ='SA3'!D127 -> 7058915.1 | E30: ='SA3'!E127 -> 8742854.65 | F30: ='SA3'!F127 -> 7334303 | G30: ='SA3'!G127 -> 7334303 | H30: ='SA3'!H127 -> 7334303 | I30: ='SA3'!I127 -> 7334303 | J30: ='SA3'!J127 -> 2170000 | K30: ='SA3'!K127 -> 2237480 | L30: ='SA3'!L127 -> 2316158
A31: Consumer deposits | C31: 0 | D31: 21442563.28 | E31: 9817767.87 | F31: 11076002 | G31: 11076002 | H31: 11076002 | I31: 11076002 | J31: 11528000 | K31: 12035233 | L31: 12576818
A32: Trade and other payables | B32: 4 | C32: ='SA3'!C134 -> 21937716.98 | D32: ='SA3'!D134 -> 129314505.3 | E32: ='SA3'!E134 -> 130183545.1 | F32: ='SA3'!F134 -> 33639977 | G32: ='SA3'!G134 -> 274251980 | H32: ='SA3'!H134 -> 274251980 | I32: ='SA3'!I134 -> 274251980 | J32: ='SA3'!J134 -> 280999993 | K32: ='SA3'!K134 -> 294487996 | L32: ='SA3'!L134 -> 308623420
A33: Provisions | C33: 0 | D33: 3459000 | E33: 2875000 | F33: 3956494 | G33: 3956494 | H33: 3956494 | I33: 3956494 | J33: 3668000 | K33: 3829392 | L33: 4001715
A34: Total current liabilities | C34: =SUM(C29:C33) -> 19393283.01 | D34: 161274983.7 | E34: 151619167.7 | F34: 56006776 | G34: 296618779 | H34: 296618779 | I34: 296618779 | J34: 298365993 | K34: 312590101 | L34: 327518111
A36: Non current liabilities
A37: Borrowing | C37: ='SA3'!C139 -> -6962724.51 | D37: ='SA3'!D139 -> 62701246.41 | E37: ='SA3'!E139 -> 53945496.18 | F37: ='SA3'!F139 -> 72646461 | G37: ='SA3'!G139 -> 72646461 | H37: ='SA3'!H139 -> 72646461 | I37: ='SA3'!I139 -> 72646461 | J37: ='SA3'!J139 -> 52400000 | K37: ='SA3'!K139 -> 54705598 | L37: ='SA3'!L139 -> 57167347
A38: Provisions | C38: ='SA3'!C146 -> -63199669.09 | D38: ='SA3'!D146 -> 166894173.5 | E38: ='SA3'!E146 -> 144825620.4 | F38: ='SA3'!F146 -> 103910378 | G38: ='SA3'!G146 -> 103910378 | H38: ='SA3'!H146 -> 103910378 | I38: ='SA3'!I146 -> 103910378 | J38: ='SA3'!J146 -> 141480000 | K38: ='SA3'!K146 -> 147705120 | L38: ='SA3'!L146 -> 154351850
A39: Total non current liabilities | C39: =SUM(C37:C38) -> -70162393.6 | D39: =SUM(D37:D38) -> 229595419.9 | E39: =SUM(E37:E38) -> 198771116.6 | F39: =SUM(F37:F38) -> 176556839 | G39: 176556839 | H39: 176556839 | I39: 176556839 | J39: 193880000 | K39: =SUM(K37:K38) -> 202410718 | L39: 211519197
A40: TOTAL LIABILITIES | C40: =C34+C39 -> -50769110.59 | D40: =D34+D39 -> 390870403.6 | E40: =E34+E39 -> 350390284.3 | F40: =F34+F39 -> 232563615 | G40: 473175618 | H40: 473175618 | I40: 473175618 | J40: 492245993 | K40: =K34+K39 -> 515000819 | L40: 539037308
A42: NET ASSETS | B42: 5 | C42: =C25-C40 -> 158985698.2 | D42: 1443185728 | E42: 1486517126 | F42: 1774239887 | G42: 1678178916 | H42: 1678178916 | I42: 1678178916 | J42: 1609440512 | K42: 1588426185 | L42: 1788309951
A44: COMMUNITY WEALTH/EQUITY
A45: Accumulated Surplus/(Deficit) | C45: 158985689.3 | D45: 2380376.09 | E45: 1456866924 | F45: 1743069818 | G45: 1758074817 | H45: 1758074817 | I45: 1758074817 | J45: 1556215863 | K45: 1535201539 | L45: 1735085308
A46: Reserves | B46: 4 | C46: ='SA3'!C165 -> 0 | D46: ='SA3'!D165 -> 0 | E46: ='SA3'!E165 -> 0 | F46: ='SA3'!F165 -> 31170000 | G46: ='SA3'!G165 -> 31170000 | H46: ='SA3'!H165 -> 31170000 | I46: ='SA3'!I165 -> 31170000 | J46: ='SA3'!J165 -> 40000000 | K46: ='SA3'!K165 -> 40000000 | L46: ='SA3'!L165 -> 40000000
A48: TOTAL COMMUNITY WEALTH/EQUITY | B48: 5 | C48: =SUM(C45:C46) -> 158985689.3 | D48: =SUM(D45:D46) -> 2380376.09 | E48: 1456866924 | F48: 1774239818 | G48: 1789244817 | H48: 1789244817 | I48: 1789244817 | J48: 1596215863 | K48: 1575201539 | L48: 1775085308
A49: =head27a -> References
A50: 1. Detail to be provided in Table SA3
A51: 2. Include completed low cost housing to be transferred to beneficiaries within 12 months
A52: 3. Include 'Construction-work-in-progress' (disclosed separately in annual financial statements)
A53: 4. Detail to be provided in Table SA3. Includes reserves to be funded by statute.
A54: 5. Net assets must balance with Total Community Wealth/Equity
A55: check balance | C55: =IF((C42-C48)=0,0,"Unbalanced") -> Unbalanced | D55: =IF((D42-D48)=0,0,"Unbalanced") -> Unbalanced | E55: Unbalanced | F55: Unbalanced | G55: Unbalanced | H55: Unbalanced | I55: Unbalanced | J55: Unbalanced | K55: Unbalanced | L55: Unbalanced

Sheet A7-CFlow
A1: =muni&" - "&Approve7 -> Choose name from list - Table A7 Budgeted Cash Flows
A2: =desc -> Description | B2: =head27 -> Ref | C2: =head1b -> 2018/19 | D2: =head1A -> 2019/20 | E2: =Head1 -> 2020/21 | F2: =Head2 -> Current Year 2021/22 | J2: =Head3 -> 2022/23 Medium Term Revenue & Expenditure Framework
A3: R thousand | C3: =Head5 -> Audited Outcome | D3: =Head5 -> Audited Outcome | E3: =Head5 -> Audited Outcome | F3: =Head6 -> Original Budget | G3: =Head7 -> Adjusted Budget | H3: =Head8 -> Full Year Forecast | I3: =Head5b -> Pre-audit outcome | J3: =Head9 -> Budget Year 2022/23 | K3: =Head10 -> Budget Year +1 2023/24 | L3: =Head11 -> Budget Year +2 2024/25
A4: CASH FLOW FROM OPERATING ACTIVITIES
A5: Receipts
A6: Property rates | C6: 0 | D6: 0 | E6: 0 | F6: 90602387 | G6: 90602387 | H6: 90602387 | I6: 90602387 | J6: ='SA30'!N5 -> 96038531 | K6: ='SA30'!O5 -> 100264226 | L6: ='SA30'!P5 -> 104776116
A7: Service charges | C7: 0 | D7: 0 | E7: 0 | F7: 280614274 | G7: 280614274 | H7: 280614274 | I7: 280614274 | J7: ='SA30'!N6+'SA30'!N7+'SA30'!N8+'SA30'!N9 -> 320058621 | K7: ='SA30'!O6+'SA30'!O7+'SA30'!O8+'SA30'!O9 -> 334141201 | L7: ='SA30'!P6+'SA30'!P7+'SA30'!P8+'SA30'!P9 -> 349177554
A8: Other revenue | C8: 0 | D8: 0 | E8: 42021531.62 | F8: 12980037 | G8: 12980037 | H8: 12980037 | I8: 12980037 | J8: ='SA30'!N11+'SA30'!N15+'SA30'!N16+'SA30'!N17+'SA30'!N19 -> 13768816 | K8: ='SA30'!O11+'SA30'!O15+'SA30'!O16+'SA30'!O17+'SA30'!O19 -> 14374644 | L8: ='SA30'!P11+'SA30'!P15+'SA30'!P16+'SA30'!P17+'SA30'!P19 -> 15021502
A9: Transfers and Subsidies - Operational | B9: 1 | C9: 0 | D9: 0 | E9: 77638825.69 | F9: 179917000 | G9: 179917000 | H9: 179917000 | I9: 179917000 | J9: ='SA30'!N18 -> 207992700 | K9: ='SA30'!O18 -> 227556500 | L9: ='SA30'!P18 -> 251227100
A10: Transfers and Subsidies - Capital | B10: 1 | C10: 0 | D10: 0 | E10: 0 | F10: 90868000 | G10: 161668000 | H10: 161668000 | I10: 161668000 | J10: ='SA30'!N23+'SA30'!N24 -> 147772400 | K10: ='SA30'!O23+'SA30'!O24 -> 193698650 | L10: ='SA30'!P23+'SA30'!P24 -> 183010050
A11: Interest | C11: 0 | D11: 0 | E11: 0 | F11: 3668461 | G11: 3668461 | H11: 3668461 | I11: 3668461 | J11: ='SA30'!N12+'SA30'!N13 -> 27298581 | K11: ='SA30'!O12+'SA30'!O13 -> 27399719 | L11: ='SA30'!P12+'SA30'!P13 -> 27507706
A12: Dividends | C12: 0 | D12: 0 | E12: 0 | F12: 0 | G12: 0 | H12: 0 | I12: 0 | J12: ='SA30'!N14 -> 0 | K12: ='SA30'!O14 -> 0 | L12: ='SA30'!P14 -> 0
A13: Payments
A14: Suppliers and employees | C14: -448565.5 | D14: 0 | E14: 56.73 | F14: -480669820 | G14: -485357820 | H14: -485357820 | I14: -485357820 | J14: =-('SA30'!N35+'SA30'!N36+'SA30'!N38+'SA30'!N39+'SA30'!N40+'SA30'!N41+'SA30'!N44+'SA30'!N50) -> -610100249 | K14: =-('SA30'!O35+'SA30'!O36+'SA30'!O38+'SA30'!O39+'SA30'!O40+'SA30'!O41+'SA30'!O44+'SA30'!O50) -> -636797371 | L14: =-('SA30'!P35+'SA30'!P36+'SA30'!P38+'SA30'!P39+'SA30'!P40+'SA30'!P41+'SA30'!P44+'SA30'!P50) -> -664172507
A15: Finance charges | C15: 0 | D15: 0 | E15: 0 | F15: -19213293 | G15: -19213293 | H15: -19213293 | I15: -19213293 | J15: =-('SA30'!N37) -> -14895531 | K15: =-('SA30'!O37) -> -15550934 | L15: =-('SA30'!P37) -> -16250726
A16: Transfers and Grants | B16: 1 | C16: 0 | D16: 0 | E16: 0 | F16: -976879 | G16: -976879 | H16: -976879 | I16: -976879 | J16: =-('SA30'!N42+'SA30'!N43) -> -1024088 | K16: =-('SA30'!O42+'SA30'!O43) -> -1069149 | L16: =-('SA30'!P42+'SA30'!P43) -> -1117260
A17: NET CASH FROM/(USED) OPERATING ACTIVITIES | C17: =SUM(C6:C12)+SUM(C14:C16) -> -448565.5 | D17: 0 | E17: 119660414 | F17: 157790167 | G17: 223902167 | H17: 223902167 | I17: 223902167 | J17: 186909781 | K17: 244017486 | L17: 249179535
A19: CASH FLOWS FROM INVESTING ACTIVITIES
A20: Receipts
A21: Proceeds on disposal of PPE | C21: 0 | D21: 0 | E21: 0 | F21: 0 | G21: 0 | H21: 0 | I21: 0 | J21: ='SA30'!N25 -> 0 | K21: ='SA30'!O25 -> 0 | L21: ='SA30'!P25 -> 0
C22: 0 | D22: 0 | E22: 0 | F22: 0 | G22: 0 | H22: 0 | I22: 0
A23: Decrease (increase) in non-current receivables | C23: 0 | D23: 0 | E23: 0 | F23: 12000 | G23: 12000 | H23: 12000 | I23: 12000 | J23: ='SA30'!N30 -> -2 | K23: ='SA30'!O30 -> 0 | L23: ='SA30'!P30 -> 0
A24: Decrease (increase) in non-current investments | C24: 0 | D24: 0 | E24: 0 | F24: 0 | G24: 3600000 | H24: 3600000 | I24: 3600000 | J24: ='SA30'!N31 -> -3600000 | K24: ='SA30'!O31 -> 0 | L24: ='SA30'!P31 -> 0
A25: Payments
A26: Capital assets | C26: 0 | D26: 0 | E26: -90135 | F26: -113661300 | G26: -113661299 | H26: -113661299 | I26: -113661299 | J26: =-('SA30'!N48) -> -183027399 | K26: =-('SA30'!O48) -> -193698650 | L26: =-('SA30'!P48) -> -183010050
A27: NET CASH FROM/(USED) INVESTING ACTIVITIES | C27: =+C21+C23+C24+C26 -> 0 | D27: =+D21+D23+D24+D26 -> 0 | E27: -90135 | F27: -113649300 | G27: -110049299 | H27: -110049299 | I27: -110049299 | J27: -186627401 | K27: -193698650 | L27: -183010050
A29: CASH FLOWS FROM FINANCING ACTIVITIES
A30: Receipts
A31: Short term loans | C31: 0 | D31: 0 | E31: 0 | F31: 0 | G31: 0 | H31: 0 | I31: 0 | J31: ='SA30'!N26 -> 0 | K31: ='SA30'!O26 -> 0 | L31: ='SA30'!P26 -> 0
A32: Borrowing long term/refinancing | C32: 0 | D32: 0 | E32: 0 | F32: 0 | G32: 0 | H32: 0 | I32: 0 | J32: ='SA30'!N27 -> 7000000 | K32: ='SA30'!O27 -> 7000000 | L32: ='SA30'!P27 -> 7000000
A33: Increase (decrease) in consumer deposits | C33: 0 | D33: 0 | E33: 0 | F33: 0 | G33: 0 | H33: 0 | I33: 0 | J33: ='SA30'!N28 -> 451998 | K33: ='SA30'!O28 -> 507233 | L33: ='SA30'!P28 -> 541585
A34: Payments
A35: Repayment of borrowing | C35: 0 | D35: -4896181.95 | E35: -7095328.01 | F35: -19058950 | G35: -19058950 | H35: -19058950 | I35: -19058950 | J35: =-('SA30'!N49) -> -7000000 | K35: =-('SA30'!O49) -> -7336000 | L35: =-('SA30'!P49) -> -7688128
A36: NET CASH FROM/(USED) FINANCING ACTIVITIES | C36: =SUM(C31:C33)+C35 -> 0 | D36: =SUM(D31:D33)+D35 -> -4896181.95 | E36: -7095328.01 | F36: -19058950 | G36: -19058950 | H36: -19058950 | I36: -19058950 | J36: 451998 | K36: 171233 | L36: -146543
A38: NET INCREASE/ (DECREASE) IN CASH HELD | C38: =C17+C27+C36 -> -448565.5 | D38: =D17+D27+D36 -> -4896181.95 | E38: 112474951 | F38: 25081917 | G38: 94793918 | H38: 94793918 | I38: 94793918 | J38: 734378 | K38: 50490069 | L38: 66022942
A39: Cash/cash equivalents at the year begin: | B39: 2 | C39: 69422280.22 | D39: 8758770 | E39: 84516210.52 | F39: 148564253 | G39: 148564253 | H39: 148564253 | I39: 148564253 | J39: ='SA30'!N54 -> 218733888 | K39: =J40 -> 219468266 | L39: =K40 -> 269958335
A40: Cash/cash equivalents at the year end: | B40: 2 | C40: =C38+C39 -> 68973714.72 | D40: =D38+D39 -> 3862588.05 | E40: =E38+E39 -> 196991161.6 | F40: =F38+F39 -> 173646170 | G40: 243358171 | H40: 243358171 | I40: 243358171 | J40: 219468266 | K40: 269958335 | L40: 335981277
A41: =head27a -> References
A42: 1. Local/District municipalities to include transfers from/to District/Local Municipalities
A43: 2. Cash equivalents includes investments with maturities of 3 months or less
A44: 3. The MTREF is populated directly from SA30.
A45: Total receipts | C45: =SUM(C6:C12)+SUM(C21:C23) -> 0 | D45: 0 | E45: 119660357.3 | F45: 658662159 | G45: 729462159 | H45: 729462159 | I45: 729462159 | J45: 812929647 | K45: 897434940 | L45: 930720028
A46: Total payments | C46: =SUM(C14:C16)+C26 -> -448565.5 | D46: =SUM(D14:D16)+D26 -> 0 | E46: -90078.27 | F46: -614521292 | G46: -619209291 | H46: -619209291 | I46: -619209291 | J46: -809047267 | K46: -847116104 | L46: -864550543
C47: =C45+C46 -> -448565.5 | D47: =D45+D46 -> 0 | E47: 119570279 | F47: 44140867 | G47: 110252868 | H47: 110252868 | I47: 110252868 | J47: 3882380 | K47: 50318836 | L47: 66169485
A48: Borrowings & investments & c.deposits | C48: =C24+C32+C33 -> 0 | D48: =D24+D32+D33 -> 0 | E48: 0 | F48: 0 | G48: 3600000 | H48: 3600000 | I48: 3600000 | J48: 3851998 | K48: 7507233 | L48: 7541585
A49: =A35 -> Repayment of borrowing | C49: =C35 -> 0 | D49: =D35 -> -4896181.95 | E49: -7095328.01 | F49: -19058950 | G49: -19058950 | H49: -19058950 | I49: =I35 -> -19058950 | J49: -7000000 | K49: -7336000 | L49: -7688128
C50: =C47+C48+C49 -> -448565.5 | D50: =D47+D48+D49 -> -4896181.95 | E50: 112474951 | F50: 25081917 | G50: 94793918 | H50: 94793918 | I50: 94793918 | J50: 734378 | K50: 50490069 | L50: 66022942
C51: =C38-C50 -> 0 | D51: 0 | E51: 0 | F51: 0 | G51: 0 | H51: 0 | I51: 0 | J51: 0 | K51: 0 | L51: 0

Sheet A8-ResRecon
A1: =muni&" - "&Approve8 -> Choose name from list - Table A8 Cash backed reserves/accumulated surplus reconciliation
A2: =desc -> Description | B2: =head27 -> Ref | C2: =head1b -> 2018/19 | D2: =head1A -> 2019/20 | E2: =Head1 -> 2020/21 | F2: =Head2 -> Current Year 2021/22 | J2: =Head3 -> 2022/23 Medium Term Revenue & Expenditure Framework
A3: R thousand | C3: =Head5 -> Audited Outcome | D3: =Head5 -> Audited Outcome | E3: =Head5 -> Audited Outcome | F3: =Head6 -> Original Budget | G3: =Head7 -> Adjusted Budget | H3: =Head8 -> Full Year Forecast | I3: =Head5b -> Pre-audit outcome | J3: =Head9 -> Budget Year 2022/23 | K3: =Head10 -> Budget Year +1 2023/24 | L3: =Head11 -> Budget Year +2 2024/25
A4: Cash and investments available
A5: =LEFT('A7-CFlow'!A40,37) -> Cash/cash equivalents at the year end | B5: 1 | C5: ='A7-CFlow'!C40 -> 68973714.72 | D5: ='A7-CFlow'!D40 -> 3862588.05 | E5: ='A7-CFlow'!E40 -> 196991161.6 | F5: ='A7-CFlow'!F40 -> 173646170 | G5: ='A7-CFlow'!G40 -> 243358171 | H5: ='A7-CFlow'!H40 -> 243358171 | I5: ='A7-CFlow'!I40 -> 243358171 | J5: ='A7-CFlow'!J40 -> 219468266 | K5: ='A7-CFlow'!K40 -> 269958335 | L5: ='A7-CFlow'!L40 -> 335981277
A6: Other current investments > 90 days | C6: ='A6-FinPos'!C6+'A6-FinPos'!C7-'A6-FinPos'!C29-'A8-ResRecon'!C5 -> 388540.36 | D6: ='A6-FinPos'!D6+'A6-FinPos'!D7-'A6-FinPos'!D29-'A8-ResRecon'!D5 -> 47641443.9 | E6: ='A6-FinPos'!E6+'A6-FinPos'!E7-'A6-FinPos'!E29-'A8-ResRecon'!E5 -> -104036711.5 | F6: ='A6-FinPos'!F6+'A6-FinPos'!F7-'A6-FinPos'!F29-'A8-ResRecon'!F5 -> -44901468 | G6: ='A6-FinPos'!G6+'A6-FinPos'!G7-'A6-FinPos'!G29-'A8-ResRecon'!G5 -> -43813468 | H6: ='A6-FinPos'!H6+'A6-FinPos'!H7-'A6-FinPos'!H29-'A8-ResRecon'!H5 -> -43813468 | I6: ='A6-FinPos'!I6+'A6-FinPos'!I7-'A6-FinPos'!I29-'A8-ResRecon'!I5 -> -43813468 | J6: ='A6-FinPos'!J6+'A6-FinPos'!J7-'A6-FinPos'!J29-'A8-ResRecon'!J5 -> 47160000 | K6: ='A6-FinPos'!K6+'A6-FinPos'!K7-'A6-FinPos'!K29-'A8-ResRecon'!K5 -> 49235039 | L6: ='A6-FinPos'!L6+'A6-FinPos'!L7-'A6-FinPos'!L29-'A8-ResRecon'!L5 -> 51450617
A7: ='A6-FinPos'!A14&" - "&'A6-FinPos'!A16 -> Non current assets - Investments | B7: 1 | C7: ='A6-FinPos'!C16 -> -65522250.71 | D7: ='A6-FinPos'!D16 -> 33031711.3 | E7: ='A6-FinPos'!E16 -> 0 | F7: ='A6-FinPos'!F16 -> 0 | G7: ='A6-FinPos'!G16 -> 3600000 | H7: ='A6-FinPos'!H16 -> 3600000 | I7: ='A6-FinPos'!I16 -> 3600000 | J7: ='A6-FinPos'!J16 -> 0 | K7: ='A6-FinPos'!K16 -> 0 | L7: ='A6-FinPos'!L16 -> 0
A8: Cash and investments available: | C8: =SUM(C5:C7) -> 3840004.37 | D8: =SUM(D5:D7) -> 84535743.25 | E8: 92954450.05 | F8: 128744702 | G8: 203144703 | H8: 203144703 | I8: 203144703 | J8: 266628266 | K8: 319193374 | L8: 387431894
A10: Application of cash and investments
A11: ='SA3'!A132 -> Unspent conditional transfers | C11: ='SA3'!C132 -> 27288550.95 | D11: ='SA3'!D132 -> 44410555.47 | E11: ='SA3'!E132 -> 16296745.3 | F11: ='SA3'!F132 -> 64852077 | G11: ='SA3'!G132 -> 70152076 | H11: ='SA3'!H132 -> 70152076 | I11: ='SA3'!I132 -> 70152076 | J11: ='SA3'!J132 -> -11300265 | K11: ='SA3'!K132 -> -9745353 | L11: ='SA3'!L132 -> -9745353
A12: Unspent borrowing | C12: 0 | D12: 0 | E12: 0 | F12: 0 | G12: 0 | H12: 0 | I12: 0 | J12: 0 | K12: 0 | L12: 0
A13: Statutory requirements | B13: 2
A14: Other working capital requirements | B14: 3 | C14: =-C32 -> -1086876.16 | D14: =-D32 -> 49366286.37 | E14: 38097189.73 | F14: =-F32 -> -183138107 | G14: 52173897 | H14: 52173897 | I14: 52998897 | J14: 86404490 | K14: 89393582 | L14: 93963006
A15: Other provisions
A16: Long term investments committed | B16: 4 | C16: =C52 -> 0 | D16: =D52 -> 0 | E16: 0 | F16: 0 | G16: 0 | H16: 0 | I16: 0 | J16: 0 | K16: 0 | L16: 0
A17: Reserves to be backed by cash/investments | B17: 5
A18: ="Total "&A10&":" -> Total Application of cash and investments: | C18: =SUM(C11:C17) -> 26201674.79 | D18: =SUM(D11:D17) -> 93776841.84 | E18: 54393935.03 | F18: -118286030 | G18: 122325973 | H18: 122325973 | I18: 123150973 | J18: 75104225 | K18: 79648229 | L18: 84217653
A19: Surplus(shortfall) | C19: =C8-C18 -> -22361670.42 | D19: =D8-D18 -> -9241098.59 | E19: 38560515.02 | F19: 247030732 | G19: 80818730 | H19: 80818730 | I19: 79993730 | J19: 191524041 | K19: 239545145 | L19: 303214241
A20: =head27a -> References
A21: 1. Must reconcile with Budgeted Cash Flows
A22: 2. For example: VAT, taxation
A23: 3. Council approval for policy required - include sufficient working capital (e.g. allowing for a % of current debtors > 90 days as uncollectable)
A24: 4. For example: sinking fund requirements for borrowing
A25: 5. Council approval required for each reserve created and basis of cash backing of reserves
A28: Other working capital requirements
A29: Debtors | C29: =IF(ISERROR(ROUND(C35*C36,-3)),0,(ROUND(C35*C36,-3))) -> 0 | D29: =IF(ISERROR(ROUND(D35*D36,-3)),0,(ROUND(D35*D36,-3))) -> 0 | E29: 26537000 | F29: 160426000 | G29: 160426000 | H29: 160426000 | I29: 159601000 | J29: 214338000 | K29: 223299000 | L29: 232865000
A31: Creditors due | C31: ='SA3'!C130+'SA3'!C131 -> -1086876.16 | D31: ='SA3'!D130+'SA3'!D131 -> 49366286.37 | E31: ='SA3'!E130+'SA3'!E131 -> 64634189.73 | F31: ='SA3'!F130+'SA3'!F131 -> -22712107 | G31: ='SA3'!G130+'SA3'!G131 -> 212599897 | H31: ='SA3'!H130+'SA3'!H131 -> 212599897 | I31: ='SA3'!I130+'SA3'!I131 -> 212599897 | J31: ='SA3'!J130+'SA3'!J131 -> 300742490 | K31: ='SA3'!K130+'SA3'!K131 -> 312692582 | L31: ='SA3'!L130+'SA3'!L131 -> 326828006
A32: Total | C32: =C29-C31 -> 1086876.16 | D32: =D29-D31 -> -49366286.37 | E32: -38097189.73 | F32: 183138107 | G32: -52173897 | H32: -52173897 | I32: -52998897 | J32: -86404490 | K32: -89393582 | L32: -93963006
A34: Debtors collection assumptions
A35: Balance outstanding - debtors | C35: ='A6-FinPos'!C8+'A6-FinPos'!C9+'A6-FinPos'!C15 -> 78577896.46 | D35: ='A6-FinPos'!D8+'A6-FinPos'!D9+'A6-FinPos'!D15 -> 277349640.1 | E35: ='A6-FinPos'!E8+'A6-FinPos'!E9+'A6-FinPos'!E15 -> 262558878.1 | F35: ='A6-FinPos'!F8+'A6-FinPos'!F9+'A6-FinPos'!F15 -> 202464521 | G35: ='A6-FinPos'!G8+'A6-FinPos'!G9+'A6-FinPos'!G15 -> 202464521 | H35: ='A6-FinPos'!H8+'A6-FinPos'!H9+'A6-FinPos'!H15 -> 202464521 | I35: ='A6-FinPos'!I8+'A6-FinPos'!I9+'A6-FinPos'!I15 -> 202464521 | J35: ='A6-FinPos'!J8+'A6-FinPos'!J9+'A6-FinPos'!J15 -> 264954201 | K35: ='A6-FinPos'!K8+'A6-FinPos'!K9+'A6-FinPos'!K15 -> 276030304 | L35: ='A6-FinPos'!L8+'A6-FinPos'!L9+'A6-FinPos'!L15 -> 287856561
A36: Estimate of debtors collection rate | C36: =IF(ISERROR('SA10'!D10),0,('SA10'!D10)) -> 0 | D36: =IF(ISERROR('SA10'!E10),0,('SA10'!E10)) -> 0 | E36: =IF(ISERROR('SA10'!F10),0,('SA10'!F10)) -> 0.1010716418 | F36: =IF(ISERROR('SA10'!G10),0,('SA10'!G10)) -> 0.7923678922 | G36: =IF(ISERROR('SA10'!H10),0,('SA10'!H10)) -> 0.7923678906 | H36: =IF(ISERROR('SA10'!I10),0,('SA10'!I10)) -> 0.7923678906 | I36: =IF(ISERROR('SA10'!J10),0,('SA10'!J10)) -> 0.7882920682 | J36: =IF(ISERROR('SA10'!K10),0,('SA10'!K10)) -> 0.8089639748 | K36: =IF(ISERROR('SA10'!L10),0,('SA10'!L10)) -> 0.8089639796 | L36: =IF(ISERROR('SA10'!M10),0,('SA10'!M10)) -> 0.8089634794
K39: `
A40: =A16 -> Long term investments committed
A41: Balance (Insert description; eg sinking fund) | C41: 0 | D41: 0 | E41: 0 | F41: 0 | G41: 0 | H41: 0 | I41: 0 | J41: 0 | K41: 0 | L41: 0
C52: =SUM(C41:C51) -> 0 | D52: =SUM(D41:D51) -> 0 | E52: 0 | F52: 0 | G52: 0 | H52: 0 | I52: 0 | J52: 0 | K52: 0 | L52: 0
A53: =A17 -> Reserves to be backed by cash/investments
A54: ='SA3'!A160 -> Housing Development Fund | C54: ='SA3'!C160 -> 0 | D54: ='SA3'!D160 -> 0 | E54: ='SA3'!E160 -> 0 | F54: ='SA3'!F160 -> 0 | G54: ='SA3'!G160 -> 0 | H54: ='SA3'!H160 -> 0 | I54: ='SA3'!I160 -> 0 | J54: ='SA3'!J160 -> 0 | K54: ='SA3'!K160 -> 0 | L54: ='SA3'!L160 -> 0
A55: ='SA3'!A161 -> Capital replacement
A56: ='SA3'!A162 -> Self-insurance
A57: Other (list)
C67: =SUM(C54:C65) -> 0 | D67: 0 | E67: 0 | F67: 0 | G67: 0 | H67: 0 | I67: 0 | J67: 0 | K67: 0 | L67: 0

Sheet A9-Asset
A1: =muni&" - "&Approve9 -> Choose name from list - Table A9 Asset Management
A2: =desc -> Description | B2: =head27 -> Ref | C2: =head1b -> 2018/19 | D2: =head1A -> 2019/20 | E2: =Head1 -> 2020/21 | F2: =Head2 -> Current Year 2021/22 | I2: =Head3 -> 2022/23 Medium Term Revenue & Expenditure Framework
A3: R thousand | C3: =Head5 -> Audited Outcome | D3: =Head5 -> Audited Outcome | E3: =Head5 -> Audited Outcome | F3: =Head6 -> Original Budget | G3: =Head7 -> Adjusted Budget | H3: =Head8 -> Full Year Forecast | I3: =Head9 -> Budget Year 2022/23 | J3: =Head10 -> Budget Year +1 2023/24 | K3: =Head11 -> Budget Year +2 2024/25
A4: CAPITAL EXPENDITURE
A5: Total New Assets | B5: 1 | C5: =C15+C18+C19+C22+C25+C26+SUM(C29:C35) -> 10031340.11 | D5: =D15+D18+D19+D22+D25+D26+SUM(D29:D35) -> 55979146.47 | E5: 110940483.6 | F5: 113875839 | G5: 183526922 | H5: 183526922 | I5: 176627399 | J5: 193698653 | K5: 183010052
A6: Roads Infrastructure | C6: =SA34a!C7 -> 0 | D6: =SA34a!D7 -> 26752148.75 | E6: =SA34a!E7 -> 28480227.74 | F6: =SA34a!F7 -> 1000001 | G6: =SA34a!G7 -> 3129657 | H6: =SA34a!H7 -> 3129657 | I6: =SA34a!I7 -> 200000 | J6: =SA34a!J7 -> 0 | K6: =SA34a!K7 -> 0
A7: Storm water Infrastructure | C7: =SA34a!C12 -> 0 | D7: =SA34a!D12 -> 0 | E7: =SA34a!E12 -> 0 | F7: =SA34a!F12 -> 0 | G7: =SA34a!G12 -> 0 | H7: =SA34a!H12 -> 0 | I7: =SA34a!I12 -> 0 | J7: =SA34a!J12 -> 0 | K7: =SA34a!K12 -> 0
A8: Electrical Infrastructure | C8: =SA34a!C16 -> 24000 | D8: =SA34a!D16 -> 238671.93 | E8: =SA34a!E16 -> 14642168.93 | F8: =SA34a!F16 -> 42259293 | G8: =SA34a!G16 -> 38614085 | H8: =SA34a!H16 -> 38614085 | I8: =SA34a!I16 -> 24000000 | J8: =SA34a!J16 -> 22500000 | K8: =SA34a!K16 -> 15971000
A9: Water Supply Infrastructure | C9: =SA34a!C26 -> 0 | D9: =SA34a!D26 -> 18955744.38 | E9: =SA34a!E26 -> 42838844.54 | F9: =SA34a!F26 -> 21290035 | G9: =SA34a!G26 -> 69148574 | H9: =SA34a!H26 -> 69148574 | I9: =SA34a!I26 -> 90447160 | J9: =SA34a!J26 -> 171198653 | K9: =SA34a!K26 -> 167039052
A10: Sanitation Infrastructure | C10: =SA34a!C37 -> 0 | D10: =SA34a!D37 -> 0 | E10: =SA34a!E37 -> -29913.6 | F10: =SA34a!F37 -> 2281141 | G10: =SA34a!G37 -> 35816601 | H10: =SA34a!H37 -> 35816601 | I10: =SA34a!I37 -> 23825239 | J10: =SA34a!J37 -> 0 | K10: =SA34a!K37 -> 0
A11: Solid Waste Infrastructure | C11: =SA34a!C44 -> 0 | D11: =SA34a!D44 -> 3540301.49 | E11: =SA34a!E44 -> 5333214.24 | F11: =SA34a!F44 -> 28622867 | G11: =SA34a!G44 -> 2375765 | H11: =SA34a!H44 -> 2375765 | I11: =SA34a!I44 -> 0 | J11: =SA34a!J44 -> 0 | K11: =SA34a!K44 -> 0
A12: Rail Infrastructure | C12: =SA34a!C52 -> 0 | D12: =SA34a!D52 -> 0 | E12: =SA34a!E52 -> 0 | F12: =SA34a!F52 -> 0 | G12: =SA34a!G52 -> 0 | H12: =SA34a!H52 -> 0 | I12: =SA34a!I52 -> 0 | J12: =SA34a!J52 -> 0 | K12: =SA34a!K52 -> 0
A13: Coastal Infrastructure | C13: =SA34a!C62 -> 0 | D13: =SA34a!D62 -> 0 | E13: =SA34a!E62 -> 0 | F13: =SA34a!F62 -> 0 | G13: =SA34a!G62 -> 0 | H13: =SA34a!H62 -> 0 | I13: =SA34a!I62 -> 0 | J13: =SA34a!J62 -> 0 | K13: =SA34a!K62 -> 0
A14: Information and Communication Infrastructure | C14: =SA34a!C68 -> 0 | D14: =SA34a!D68 -> 0 | E14: =SA34a!E68 -> 0 | F14: =SA34a!F68 -> 0 | G14: =SA34a!G68 -> 0 | H14: =SA34a!H68 -> 0 | I14: =SA34a!I68 -> 10680000 | J14: =SA34a!J68 -> 0 | K14: =SA34a!K68 -> 0
A15: Infrastructure | C15: =SUM(C6:C14) -> 24000 | D15: =SUM(D6:D14) -> 49486866.55 | E15: 91264541.85 | F15: 95453337 | G15: 149084682 | H15: 149084682 | I15: 149152399 | J15: 193698653 | K15: 183010052
A16: Community Facilities | C16: =SA34a!C75 -> 0 | D16: =SA34a!D75 -> 421600.7 | E16: =SA34a!E75 -> 5334895.97 | F16: =SA34a!F75 -> 1 | G16: =SA34a!G75 -> 11982321 | H16: =SA34a!H75 -> 11982321 | I16: =SA34a!I75 -> 2600000 | J16: =SA34a!J75 -> 0 | K16: =SA34a!K75 -> 0
A17: Sport and Recreation Facilities | C17: =SA34a!C98 -> 0 | D17: =SA34a!D98 -> 0 | E17: =SA34a!E98 -> 0 | F17: =SA34a!F98 -> 0 | G17: =SA34a!G98 -> 0 | H17: =SA34a!H98 -> 0 | I17: =SA34a!I98 -> 10000000 | J17: =SA34a!J98 -> 0 | K17: =SA34a!K98 -> 0
A18: Community Assets | C18: =SUM(C16:C17) -> 0 | D18: =SUM(D16:D17) -> 421600.7 | E18: 5334895.97 | F18: 1 | G18: 11982321 | H18: 11982321 | I18: 12600000 | J18: 0 | K18: 0
A19: Heritage Assets | C19: =SA34a!C103 -> 0 | D19: =SA34a!D103 -> 0 | E19: =SA34a!E103 -> 0 | F19: =SA34a!F103 -> 0 | G19: =SA34a!G103 -> 0 | H19: =SA34a!H103 -> 0 | I19: =SA34a!I103 -> 0 | J19: =SA34a!J103 -> 0 | K19: =SA34a!K103 -> 0
A20: Revenue Generating | C20: =SA34a!C111 -> 0 | D20: =SA34a!D111 -> 0 | E20: =SA34a!E111 -> 0 | F20: =SA34a!F111 -> 0 | G20: =SA34a!G111 -> 0 | H20: =SA34a!H111 -> 0 | I20: =SA34a!I111 -> 0 | J20: =SA34a!J111 -> 0 | K20: =SA34a!K111 -> 0
A21: Non-revenue Generating | C21: =SA34a!C114 -> 0 | D21: =SA34a!D114 -> 0 | E21: =SA34a!E114 -> 0 | F21: =SA34a!F114 -> 0 | G21: =SA34a!G114 -> 0 | H21: =SA34a!H114 -> 0 | I21: =SA34a!I114 -> 0 | J21: =SA34a!J114 -> 0 | K21: =SA34a!K114 -> 0
A22: Investment properties | C22: =SUM(C20:C21) -> 0 | D22: =SUM(D20:D21) -> 0 | E22: 0 | F22: 0 | G22: 0 | H22: 0 | I22: 0 | J22: 0 | K22: 0
A23: Operational Buildings | C23: =SA34a!C119 -> 0 | D23: =SA34a!D119 -> 0 | E23: =SA34a!E119 -> 866423.16 | F23: =SA34a!F119 -> 500000 | G23: =SA34a!G119 -> 2201482 | H23: =SA34a!H119 -> 2201482 | I23: =SA34a!I119 -> 2200000 | J23: =SA34a!J119 -> 0 | K23: =SA34a!K119 -> 0
A24: Housing | C24: =SA34a!C131 -> 0 | D24: =SA34a!D131 -> 0 | E24: =SA34a!E131 -> 0 | F24: =SA34a!F131 -> 0 | G24: =SA34a!G131 -> 0 | H24: =SA34a!H131 -> 0 | I24: =SA34a!I131 -> 0 | J24: =SA34a!J131 -> 0 | K24: =SA34a!K131 -> 0
A25: Other Assets | C25: =SUM(C23:C24) -> 0 | D25: =SUM(D23:D24) -> 0 | E25: 866423.16 | F25: 500000 | G25: 2201482 | H25: 2201482 | I25: 2200000 | J25: 0 | K25: 0
A26: Biological or Cultivated Assets | C26: =SA34a!C136 -> 0 | D26: =SA34a!D136 -> 0 | E26: =SA34a!E136 -> 0 | F26: =SA34a!F136 -> 0 | G26: =SA34a!G136 -> 0 | H26: =SA34a!H136 -> 0 | I26: =SA34a!I136 -> 0 | J26: =SA34a!J136 -> 0 | K26: =SA34a!K136 -> 0
A27: Servitudes | C27: =SA34a!C140 -> 0 | D27: =SA34a!D140 -> 0 | E27: =SA34a!E140 -> 0 | F27: =SA34a!F140 -> 1 | G27: =SA34a!G140 -> 1 | H27: =SA34a!H140 -> 1 | I27: =SA34a!I140 -> 0 | J27: =SA34a!J140 -> 0 | K27: =SA34a!K140 -> 0
A28: Licences and Rights | C28: =SA34a!C141 -> 10007340.11 | D28: =SA34a!D141 -> 0 | E28: =SA34a!E141 -> 0 | F28: =SA34a!F141 -> 0 | G28: =SA34a!G141 -> 0 | H28: =SA34a!H141 -> 0 | I28: =SA34a!I141 -> 2500000 | J28: =SA34a!J141 -> 0 | K28: =SA34a!K141 -> 0
A29: Intangible Assets | C29: =SUM(C27:C28) -> 10007340.11 | D29: =SUM(D27:D28) -> 0 | E29: 0 | F29: 1 | G29: 1 | H29: 1 | I29: 2500000 | J29: 0 | K29: 0
A30: Computer Equipment | C30: =SA34a!C149 -> 0 | D30: =SA34a!D149 -> 207014.43 | E30: =SA34a!E149 -> 155600.43 | F30: =SA34a!F149 -> 0 | G30: =SA34a!G149 -> 810000 | H30: =SA34a!H149 -> 810000 | I30: =SA34a!I149 -> 300000 | J30: =SA34a!J149 -> 0 | K30: =SA34a!K149 -> 0
A31: Furniture and Office Equipment | C31: =SA34a!C152 -> 0 | D31: =SA34a!D152 -> 1748330.82 | E31: =SA34a!E152 -> 87602.55 | F31: =SA34a!F152 -> 0 | G31: =SA34a!G152 -> 421979 | H31: =SA34a!H152 -> 421979 | I31: =SA34a!I152 -> 500000 | J31: =SA34a!J152 -> 0 | K31: =SA34a!K152 -> 0
A32: Machinery and Equipment | C32: =SA34a!C155 -> 0 | D32: =SA34a!D155 -> 1564715.74 | E32: =SA34a!E155 -> 2412077.76 | F32: =SA34a!F155 -> 4237500 | G32: =SA34a!G155 -> 10401770 | H32: =SA34a!H155 -> 10401770 | I32: =SA34a!I155 -> 3340000 | J32: =SA34a!J155 -> 0 | K32: =SA34a!K155 -> 0
A33: Transport Assets | C33: =SA34a!C158 -> 0 | D33: =SA34a!D158 -> 2550618.23 | E33: =SA34a!E158 -> 10819341.85 | F33: =SA34a!F158 -> 8260000 | G33: =SA34a!G158 -> 8624687 | H33: =SA34a!H158 -> 8624687 | I33: =SA34a!I158 -> 610000 | J33: =SA34a!J158 -> 0 | K33: =SA34a!K158 -> 0
A34: Land | C34: =SA34a!C161 -> 0 | D34: =SA34a!D161 -> 0 | E34: =SA34a!E161 -> 0 | F34: =SA34a!F161 -> 5425000 | G34: =SA34a!G161 -> 0 | H34: =SA34a!H161 -> 0 | I34: =SA34a!I161 -> 5425000 | J34: =SA34a!J161 -> 0 | K34: =SA34a!K161 -> 0
A35: Zoo's, Marine and Non-biological Animals | C35: =SA34a!C164 -> 0 | D35: =SA34a!D164 -> 0 | E35: =SA34a!E164 -> 0 | F35: =SA34a!F164 -> 0 | G35: =SA34a!G164 -> 0 | H35: =SA34a!H164 -> 0 | I35: =SA34a!I164 -> 0 | J35: =SA34a!J164 -> 0 | K35: =SA34a!K164 -> 0
A37: Total Renewal of Existing Assets | B37: 2 | C37: =C47+C50+C51+C54+C57+C58+SUM(C61:C67) -> 7900878.04 | D37: =D47+D50+D51+D54+D57+D58+SUM(D61:D67) -> 7263237.4 | E37: 819473.65 | F37: 1 | G37: 1 | H37: 1 | I37: 3000000 | J37: 0 | K37: 0
A38: Roads Infrastructure | C38: =SA34b!C7 -> 0 | D38: =SA34b!D7 -> 0 | E38: =SA34b!E7 -> 0 | F38: =SA34b!F7 -> 0 | G38: =SA34b!G7 -> 0 | H38: =SA34b!H7 -> 0 | I38: =SA34b!I7 -> 0 | J38: =SA34b!J7 -> 0 | K38: =SA34b!K7 -> 0
A39: Storm water Infrastructure | C39: =SA34b!C12 -> 0 | D39: =SA34b!D12 -> 0 | E39: =SA34b!E12 -> 0 | F39: =SA34b!F12 -> 0 | G39: =SA34b!G12 -> 0 | H39: =SA34b!H12 -> 0 | I39: =SA34b!I12 -> 0 | J39: =SA34b!J12 -> 0 | K39: =SA34b!K12 -> 0
A40: Electrical Infrastructure | C40: =SA34b!C16 -> 0 | D40: =SA34b!D16 -> 0 | E40: =SA34b!E16 -> 0 | F40: =SA34b!F16 -> 0 | G40: =SA34b!G16 -> 0 | H40: =SA34b!H16 -> 0 | I40: =SA34b!I16 -> 0 | J40: =SA34b!J16 -> 0 | K40: =SA34b!K16 -> 0
A41: Water Supply Infrastructure | C41: =SA34b!C26 -> 7900878.04 | D41: =SA34b!D26 -> 0 | E41: =SA34b!E26 -> 0 | F41: =SA34b!F26 -> 1 | G41: =SA34b!G26 -> 1 | H41: =SA34b!H26 -> 1 | I41: =SA34b!I26 -> 0 | J41: =SA34b!J26 -> 0 | K41: =SA34b!K26 -> 0
A42: Sanitation Infrastructure | C42: =SA34b!C37 -> 0 | D42: =SA34b!D37 -> 7263237.4 | E42: =SA34b!E37 -> 819473.65 | F42: =SA34b!F37 -> 0 | G42: =SA34b!G37 -> 0 | H42: =SA34b!H37 -> 0 | I42: =SA34b!I37 -> 3000000 | J42: =SA34b!J37 -> 0 | K42: =SA34b!K37 -> 0
A43: Solid Waste Infrastructure | C43: =SA34b!C44 -> 0 | D43: =SA34b!D44 -> 0 | E43: =SA34b!E44 -> 0 | F43: =SA34b!F44 -> 0 | G43: =SA34b!G44 -> 0 | H43: =SA34b!H44 -> 0 | I43: =SA34b!I44 -> 0 | J43: =SA34b!J44 -> 0 | K43: =SA34b!K44 -> 0
A44: Rail Infrastructure | C44: =SA34b!C52 -> 0 | D44: =SA34b!D52 -> 0 | E44: =SA34b!E52 -> 0 | F44: =SA34b!F52 -> 0 | G44: =SA34b!G52 -> 0 | H44: =SA34b!H52 -> 0 | I44: =SA34b!I52 -> 0 | J44: =SA34b!J52 -> 0 | K44: =SA34b!K52 -> 0
A45: Coastal Infrastructure | C45: =SA34b!C62 -> 0 | D45: =SA34b!D62 -> 0 | E45: =SA34b!E62 -> 0 | F45: =SA34b!F62 -> 0 | G45: =SA34b!G62 -> 0 | H45: =SA34b!H62 -> 0 | I45: =SA34b!I62 -> 0 | J45: =SA34b!J62 -> 0 | K45: =SA34b!K62 -> 0
A46: Information and Communication Infrastructure | C46: =SA34b!C68 -> 0 | D46: =SA34b!D68 -> 0 | E46: =SA34b!E68 -> 0 | F46: =SA34b!F68 -> 0 | G46: =SA34b!G68 -> 0 | H46: =SA34b!H68 -> 0 | I46: =SA34b!I68 -> 0 | J46: =SA34b!J68 -> 0 | K46: =SA34b!K68 -> 0
A47: Infrastructure | C47: =SUM(C38:C46) -> 7900878.04 | D47: =SUM(D38:D46) -> 7263237.4 | E47: 819473.65 | F47: 1 | G47: 1 | H47: 1 | I47: 3000000 | J47: 0 | K47: 0
A48: Community Facilities | C48: =SA34b!C75 -> 0 | D48: =SA34b!D75 -> 0 | E48: =SA34b!E75 -> 0 | F48: =SA34b!F75 -> 0 | G48: =SA34b!G75 -> 0 | H48: =SA34b!H75 -> 0 | I48: =SA34b!I75 -> 0 | J48: =SA34b!J75 -> 0 | K48: =SA34b!K75 -> 0
A49: Sport and Recreation Facilities | C49: =SA34b!C98 -> 0 | D49: =SA34b!D98 -> 0 | E49: =SA34b!E98 -> 0 | F49: =SA34b!F98 -> 0 | G49: =SA34b!G98 -> 0 | H49: =SA34b!H98 -> 0 | I49: =SA34b!I98 -> 0 | J49: =SA34b!J98 -> 0 | K49: =SA34b!K98 -> 0
A50: Community Assets | C50: =SUM(C48:C49) -> 0 | D50: =SUM(D48:D49) -> 0 | E50: 0 | F50: 0 | G50: 0 | H50: 0 | I50: 0 | J50: 0 | K50: 0
A51: Heritage Assets | C51: =SA34b!C103 -> 0 | D51: =SA34b!D103 -> 0 | E51: =SA34b!E103 -> 0 | F51: =SA34b!F103 -> 0 | G51: =SA34b!G103 -> 0 | H51: =SA34b!H103 -> 0 | I51: =SA34b!I103 -> 0 | J51: =SA34b!J103 -> 0 | K51: =SA34b!K103 -> 0
A52: Revenue Generating | C52: =SA34b!C111 -> 0 | D52: =SA34b!D111 -> 0 | E52: =SA34b!E111 -> 0 | F52: =SA34b!F111 -> 0 | G52: =SA34b!G111 -> 0 | H52: =SA34b!H111 -> 0 | I52: =SA34b!I111 -> 0 | J52: =SA34b!J111 -> 0 | K52: =SA34b!K111 -> 0
A53: Non-revenue Generating | C53: =SA34b!C114 -> 0 | D53: =SA34b!D114 -> 0 | E53: =SA34b!E114 -> 0 | F53: =SA34b!F114 -> 0 | G53: =SA34b!G114 -> 0 | H53: =SA34b!H114 -> 0 | I53: =SA34b!I114 -> 0 | J53: =SA34b!J114 -> 0 | K53: =SA34b!K114 -> 0
A54: Investment properties | C54: =SUM(C52:C53) -> 0 | D54: =SUM(D52:D53) -> 0 | E54: 0 | F54: 0 | G54: 0 | H54: 0 | I54: 0 | J54: 0 | K54: 0
A55: Operational Buildings | C55: =SA34b!C119 -> 0 | D55: =SA34b!D119 -> 0 | E55: =SA34b!E119 -> 0 | F55: =SA34b!F119 -> 0 | G55: =SA34b!G119 -> 0 | H55: =SA34b!H119 -> 0 | I55: =SA34b!I119 -> 0 | J55: =SA34b!J119 -> 0 | K55: =SA34b!K119 -> 0
A56: Housing | C56: =SA34b!C131 -> 0 | D56: =SA34b!D131 -> 0 | E56: =SA34b!E131 -> 0 | F56: =SA34b!F131 -> 0 | G56: =SA34b!G131 -> 0 | H56: =SA34b!H131 -> 0 | I56: =SA34b!I131 -> 0 | J56: =SA34b!J131 -> 0 | K56: =SA34b!K131 -> 0
A57: Other Assets | C57: =SUM(C55:C56) -> 0 | D57: =SUM(D55:D56) -> 0 | E57: 0 | F57: 0 | G57: 0 | H57: 0 | I57: 0 | J57: 0 | K57: 0
A58: Biological or Cultivated Assets | C58: =SA34b!C136 -> 0 | D58: =SA34b!D136 -> 0 | E58: =SA34b!E136 -> 0 | F58: =SA34b!F136 -> 0 | G58: =SA34b!G136 -> 0 | H58: =SA34b!H136 -> 0 | I58: =SA34b!I136 -> 0 | J58: =SA34b!J136 -> 0 | K58: =SA34b!K136 -> 0
A59: Servitudes | C59: =SA34b!C140 -> 0 | D59: =SA34b!D140 -> 0 | E59: =SA34b!E140 -> 0 | F59: =SA34b!F140 -> 0 | G59: =SA34b!G140 -> 0 | H59: =SA34b!H140 -> 0 | I59: =SA34b!I140 -> 0 | J59: =SA34b!J140 -> 0 | K59: =SA34b!K140 -> 0
A60: Licences and Rights | C60: =SA34b!C141 -> 0 | D60: =SA34b!D141 -> 0 | E60: =SA34b!E141 -> 0 | F60: =SA34b!F141 -> 0 | G60: =SA34b!G141 -> 0 | H60: =SA34b!H141 -> 0 | I60: =SA34b!I141 -> 0 | J60: =SA34b!J141 -> 0 | K60: =SA34b!K141 -> 0
A61: Intangible Assets | C61: =SUM(C59:C60) -> 0 | D61: =SUM(D59:D60) -> 0 | E61: 0 | F61: 0 | G61: 0 | H61: 0 | I61: 0 | J61: 0 | K61: 0
A62: Computer Equipment | C62: =SA34b!C149 -> 0 | D62: =SA34b!D149 -> 0 | E62: =SA34b!E149 -> 0 | F62: =SA34b!F149 -> 0 | G62: =SA34b!G149 -> 0 | H62: =SA34b!H149 -> 0 | I62: =SA34b!I149 -> 0 | J62: =SA34b!J149 -> 0 | K62: =SA34b!K149 -> 0
A63: Furniture and Office Equipment | C63: =SA34b!C152 -> 0 | D63: =SA34b!D152 -> 0 | E63: =SA34b!E152 -> 0 | F63: =SA34b!F152 -> 0 | G63: =SA34b!G152 -> 0 | H63: =SA34b!H152 -> 0 | I63: =SA34b!I152 -> 0 | J63: =SA34b!J152 -> 0 | K63: =SA34b!K152 -> 0
A64: Machinery and Equipment | C64: =SA34b!C155 -> 0 | D64: =SA34b!D155 -> 0 | E64: =SA34b!E155 -> 0 | F64: =SA34b!F155 -> 0 | G64: =SA34b!G155 -> 0 | H64: =SA34b!H155 -> 0 | I64: =SA34b!I155 -> 0 | J64: =SA34b!J155 -> 0 | K64: =SA34b!K155 -> 0
A65: Transport Assets | C65: =SA34b!C158 -> 0 | D65: =SA34b!D158 -> 0 | E65: =SA34b!E158 -> 0 | F65: =SA34b!F158 -> 0 | G65: =SA34b!G158 -> 0 | H65: =SA34b!H158 -> 0 | I65: =SA34b!I158 -> 0 | J65: =SA34b!J158 -> 0 | K65: =SA34b!K158 -> 0
A66: Land | C66: =SA34b!C161 -> 0 | D66: =SA34b!D161 -> 0 | E66: =SA34b!E161 -> 0 | F66: =SA34b!F161 -> 0 | G66: =SA34b!G161 -> 0 | H66: =SA34b!H161 -> 0 | I66: =SA34b!I161 -> 0 | J66: =SA34b!J161 -> 0 | K66: =SA34b!K161 -> 0
A67: Zoo's, Marine and Non-biological Animals | C67: =SA34b!C164 -> 0 | D67: =SA34b!D164 -> 0 | E67: =SA34b!E164 -> 0 | F67: =SA34b!F164 -> 0 | G67: =SA34b!G164 -> 0 | H67: =SA34b!H164 -> 0 | I67: =SA34b!I164 -> 0 | J67: =SA34b!J164 -> 0 | K67: =SA34b!K164 -> 0
A69: Total Upgrading of Existing Assets | B69: 6 | C69: =C79+C82+C83+C86+C89+C90+SUM(C93:C99) -> 0 | D69: =D79+D82+D83+D86+D89+D90+SUM(D93:D99) -> 0 | E69: 0 | F69: 1 | G69: 1 | H69: 1 | I69: 3400000 | J69: 0 | K69: 0
A70: Roads Infrastructure | C70: =SA34e!C7 -> 0 | D70: =SA34e!D7 -> 0 | E70: =SA34e!E7 -> 0 | F70: =SA34e!F7 -> 0 | G70: =SA34e!G7 -> 0 | H70: =SA34e!H7 -> 0 | I70: =SA34e!I7 -> 0 | J70: =SA34e!J7 -> 0 | K70: =SA34e!K7 -> 0
A71: Storm water Infrastructure | C71: =SA34e!C12 -> 0 | D71: =SA34e!D12 -> 0 | E71: =SA34e!E12 -> 0 | F71: =SA34e!F12 -> 0 | G71: =SA34e!G12 -> 0 | H71: =SA34e!H12 -> 0 | I71: =SA34e!I12 -> 0 | J71: =SA34e!J12 -> 0 | K71: =SA34e!K12 -> 0
A72: Electrical Infrastructure | C72: =SA34e!C16 -> 0 | D72: =SA34e!D16 -> 0 | E72: =SA34e!E16 -> 0 | F72: =SA34e!F16 -> 0 | G72: =SA34e!G16 -> 0 | H72: =SA34e!H16 -> 0 | I72: =SA34e!I16 -> 0 | J72: =SA34e!J16 -> 0 | K72: =SA34e!K16 -> 0
A73: Water Supply Infrastructure | C73: =SA34e!C26 -> 0 | D73: =SA34e!D26 -> 0 | E73: =SA34e!E26 -> 0 | F73: =SA34e!F26 -> 0 | G73: =SA34e!G26 -> 0 | H73: =SA34e!H26 -> 0 | I73: =SA34e!I26 -> 0 | J73: =SA34e!J26 -> 0 | K73: =SA34e!K26 -> 0
A74: Sanitation Infrastructure | C74: =SA34e!C37 -> 0 | D74: =SA34e!D37 -> 0 | E74: =SA34e!E37 -> 0 | F74: =SA34e!F37 -> 0 | G74: =SA34e!G37 -> 0 | H74: =SA34e!H37 -> 0 | I74: =SA34e!I37 -> 3400000 | J74: =SA34e!J37 -> 0 | K74: =SA34e!K37 -> 0
A75: Solid Waste Infrastructure | C75: =SA34e!C44 -> 0 | D75: =SA34e!D44 -> 0 | E75: =SA34e!E44 -> 0 | F75: =SA34e!F44 -> 0 | G75: =SA34e!G44 -> 0 | H75: =SA34e!H44 -> 0 | I75: =SA34e!I44 -> 0 | J75: =SA34e!J44 -> 0 | K75: =SA34e!K44 -> 0
A76: Rail Infrastructure | C76: =SA34e!C52 -> 0 | D76: =SA34e!D52 -> 0 | E76: =SA34e!E52 -> 0 | F76: =SA34e!F52 -> 0 | G76: =SA34e!G52 -> 0 | H76: =SA34e!H52 -> 0 | I76: =SA34e!I52 -> 0 | J76: =SA34e!J52 -> 0 | K76: =SA34e!K52 -> 0
A77: Coastal Infrastructure | C77: =SA34e!C62 -> 0 | D77: =SA34e!D62 -> 0 | E77: =SA34e!E62 -> 0 | F77: =SA34e!F62 -> 0 | G77: =SA34e!G62 -> 0 | H77: =SA34e!H62 -> 0 | I77: =SA34e!I62 -> 0 | J77: =SA34e!J62 -> 0 | K77: =SA34e!K62 -> 0
A78: Information and Communication Infrastructure | C78: =SA34e!C68 -> 0 | D78: =SA34e!D68 -> 0 | E78: =SA34e!E68 -> 0 | F78: =SA34e!F68 -> 0 | G78: =SA34e!G68 -> 0 | H78: =SA34e!H68 -> 0 | I78: =SA34e!I68 -> 0 | J78: =SA34e!J68 -> 0 | K78: =SA34e!K68 -> 0
A79: Infrastructure | C79: =SUM(C70:C78) -> 0 | D79: 0 | E79: 0 | F79: 0 | G79: 0 | H79: 0 | I79: 3400000 | J79: 0 | K79: 0
A80: Community Facilities | C80: =SA34e!C75 -> 0 | D80: =SA34e!D75 -> 0 | E80: =SA34e!E75 -> 0 | F80: =SA34e!F75 -> 0 | G80: =SA34e!G75 -> 0 | H80: =SA34e!H75 -> 0 | I80: =SA34e!I75 -> 0 | J80: =SA34e!J75 -> 0 | K80: =SA34e!K75 -> 0
A81: Sport and Recreation Facilities | C81: =SA34e!C98 -> 0 | D81: =SA34e!D98 -> 0 | E81: =SA34e!E98 -> 0 | F81: =SA34e!F98 -> 0 | G81: =SA34e!G98 -> 0 | H81: =SA34e!H98 -> 0 | I81: =SA34e!I98 -> 0 | J81: =SA34e!J98 -> 0 | K81: =SA34e!K98 -> 0
A82: Community Assets | C82: =SUM(C80:C81) -> 0 | D82: 0 | E82: 0 | F82: 0 | G82: 0 | H82: 0 | I82: 0 | J82: 0 | K82: 0
A83: Heritage Assets | C83: =SA34e!C103 -> 0 | D83: =SA34e!D103 -> 0 | E83: =SA34e!E103 -> 0 | F83: =SA34e!F103 -> 0 | G83: =SA34e!G103 -> 0 | H83: =SA34e!H103 -> 0 | I83: =SA34e!I103 -> 0 | J83: =SA34e!J103 -> 0 | K83: =SA34e!K103 -> 0
A84: Revenue Generating | C84: =SA34e!C111 -> 0 | D84: =SA34e!D111 -> 0 | E84: =SA34e!E111 -> 0 | F84: =SA34e!F111 -> 0 | G84: =SA34e!G111 -> 0 | H84: =SA34e!H111 -> 0 | I84: =SA34e!I111 -> 0 | J84: =SA34e!J111 -> 0 | K84: =SA34e!K111 -> 0
A85: Non-revenue Generating | C85: =SA34e!C114 -> 0 | D85: =SA34e!D114 -> 0 | E85: =SA34e!E114 -> 0 | F85: =SA34e!F114 -> 0 | G85: =SA34e!G114 -> 0 | H85: =SA34e!H114 -> 0 | I85: =SA34e!I114 -> 0 | J85: =SA34e!J114 -> 0 | K85: =SA34e!K114 -> 0
A86: Investment properties | C86: =SUM(C84:C85) -> 0 | D86: 0 | E86: 0 | F86: 0 | G86: 0 | H86: 0 | I86: 0 | J86: 0 | K86: 0
A87: Operational Buildings | C87: =SA34e!C119 -> 0 | D87: =SA34e!D119 -> 0 | E87: =SA34e!E119 -> 0 | F87: =SA34e!F119 -> 0 | G87: =SA34e!G119 -> 0 | H87: =SA34e!H119 -> 0 | I87: =SA34e!I119 -> 0 | J87: =SA34e!J119 -> 0 | K87: =SA34e!K119 -> 0
A88: Housing | C88: =SA34e!C131 -> 0 | D88: =SA34e!D131 -> 0 | E88: =SA34e!E131 -> 0 | F88: =SA34e!F131 -> 0 | G88: =SA34e!G131 -> 0 | H88: =SA34e!H131 -> 0 | I88: =SA34e!I131 -> 0 | J88: =SA34e!J131 -> 0 | K88: =SA34e!K131 -> 0
A89: Other Assets | C89: =SUM(C87:C88) -> 0 | D89: 0 | E89: 0 | F89: 0 | G89: 0 | H89: 0 | I89: 0 | J89: 0 | K89: 0
A90: Biological or Cultivated Assets | C90: =SA34e!C136 -> 0 | D90: =SA34e!D136 -> 0 | E90: =SA34e!E136 -> 0 | F90: =SA34e!F136 -> 0 | G90: =SA34e!G136 -> 0 | H90: =SA34e!H136 -> 0 | I90: =SA34e!I136 -> 0 | J90: =SA34e!J136 -> 0 | K90: =SA34e!K136 -> 0
A91: Servitudes | C91: =SA34e!C140 -> 0 | D91: =SA34e!D140 -> 0 | E91: =SA34e!E140 -> 0 | F91: =SA34e!F140 -> 0 | G91: =SA34e!G140 -> 0 | H91: =SA34e!H140 -> 0 | I91: =SA34e!I140 -> 0 | J91: =SA34e!J140 -> 0 | K91: =SA34e!K140 -> 0
A92: Licences and Rights | C92: =SA34e!C141 -> 0 | D92: =SA34e!D141 -> 0 | E92: =SA34e!E141 -> 0 | F92: =SA34e!F141 -> 0 | G92: =SA34e!G141 -> 0 | H92: =SA34e!H141 -> 0 | I92: =SA34e!I141 -> 0 | J92: =SA34e!J141 -> 0 | K92: =SA34e!K141 -> 0
A93: Intangible Assets | C93: =SUM(C91:C92) -> 0 | D93: 0 | E93: 0 | F93: 0 | G93: 0 | H93: 0 | I93: 0 | J93: 0 | K93: 0
A94: Computer Equipment | C94: =SA34e!C149 -> 0 | D94: =SA34e!D149 -> 0 | E94: =SA34e!E149 -> 0 | F94: =SA34e!F149 -> 0 | G94: =SA34e!G149 -> 0 | H94: =SA34e!H149 -> 0 | I94: =SA34e!I149 -> 0 | J94: =SA34e!J149 -> 0 | K94: =SA34e!K149 -> 0
A95: Furniture and Office Equipment | C95: =SA34e!C152 -> 0 | D95: =SA34e!D152 -> 0 | E95: =SA34e!E152 -> 0 | F95: =SA34e!F152 -> 0 | G95: =SA34e!G152 -> 0 | H95: =SA34e!H152 -> 0 | I95: =SA34e!I152 -> 0 | J95: =SA34e!J152 -> 0 | K95: =SA34e!K152 -> 0
A96: Machinery and Equipment | C96: =SA34e!C155 -> 0 | D96: =SA34e!D155 -> 0 | E96: =SA34e!E155 -> 0 | F96: =SA34e!F155 -> 1 | G96: =SA34e!G155 -> 1 | H96: =SA34e!H155 -> 1 | I96: =SA34e!I155 -> 0 | J96: =SA34e!J155 -> 0 | K96: =SA34e!K155 -> 0
A97: Transport Assets | C97: =SA34e!C158 -> 0 | D97: =SA34e!D158 -> 0 | E97: =SA34e!E158 -> 0 | F97: =SA34e!F158 -> 0 | G97: =SA34e!G158 -> 0 | H97: =SA34e!H158 -> 0 | I97: =SA34e!I158 -> 0 | J97: =SA34e!J158 -> 0 | K97: =SA34e!K158 -> 0
A98: Land | C98: =SA34e!C161 -> 0 | D98: =SA34e!D161 -> 0 | E98: =SA34e!E161 -> 0 | F98: =SA34e!F161 -> 0 | G98: =SA34e!G161 -> 0 | H98: =SA34e!H161 -> 0 | I98: =SA34e!I161 -> 0 | J98: =SA34e!J161 -> 0 | K98: =SA34e!K161 -> 0
A99: Zoo's, Marine and Non-biological Animals | C99: =SA34e!C164 -> 0 | D99: =SA34e!D164 -> 0 | E99: =SA34e!E164 -> 0 | F99: =SA34e!F164 -> 0 | G99: =SA34e!G164 -> 0 | H99: =SA34e!H164 -> 0 | I99: =SA34e!I164 -> 0 | J99: =SA34e!J164 -> 0 | K99: =SA34e!K164 -> 0
A101: Total Capital Expenditure | B101: 4 | C101: =+C5+C37+C69 -> 17932218.15 | D101: =+D5+D37+D69 -> 63242383.87 | E101: 111759957.2 | F101: 113875841 | G101: 183526924 | H101: 183526924 | I101: 183027399 | J101: 193698653 | K101: 183010052
A102: Roads Infrastructure | C102: =+C6+C38+C70 -> 0 | D102: =+D6+D38+D70 -> 26752148.75 | E102: 28480227.74 | F102: 1000001 | G102: 3129657 | H102: 3129657 | I102: 200000 | J102: 0 | K102: 0
A103: Storm water Infrastructure | C103: =+C7+C39+C71 -> 0 | D103: 0 | E103: 0 | F103: 0 | G103: 0 | H103: 0 | I103: 0 | J103: 0 | K103: 0
A104: Electrical Infrastructure | C104: 24000 | D104: 238671.93 | E104: 14642168.93 | F104: 42259293 | G104: 38614085 | H104: 38614085 | I104: 24000000 | J104: 22500000 | K104: 15971000
A105: Water Supply Infrastructure | C105: 7900878.04 | D105: 18955744.38 | E105: 42838844.54 | F105: 21290036 | G105: 69148575 | H105: 69148575 | I105: 90447160 | J105: 171198653 | K105: 167039052
A106: Sanitation Infrastructure | C106: 0 | D106: 7263237.4 | E106: 789560.05 | F106: 2281141 | G106: 35816601 | H106: 35816601 | I106: 30225239 | J106: 0 | K106: 0
A107: Solid Waste Infrastructure | C107: 0 | D107: 3540301.49 | E107: 5333214.24 | F107: 28622867 | G107: 2375765 | H107: 2375765 | I107: 0 | J107: 0 | K107: 0
A108: Rail Infrastructure | C108: 0 | D108: 0 | E108: 0 | F108: 0 | G108: 0 | H108: 0 | I108: 0 | J108: 0 | K108: 0
A109: Coastal Infrastructure | C109: 0 | D109: 0 | E109: 0 | F109: 0 | G109: 0 | H109: 0 | I109: 0 | J109: 0 | K109: 0
A110: Information and Communication Infrastructure | C110: 0 | D110: 0 | E110: 0 | F110: 0 | G110: 0 | H110: 0 | I110: 10680000 | J110: 0 | K110: 0
A111: Infrastructure | C111: =SUM(C102:C110) -> 7924878.04 | D111: =SUM(D102:D110) -> 56750103.95 | E111: 92084015.5 | F111: 95453338 | G111: 149084683 | H111: 149084683 | I111: 155552399 | J111: 193698653 | K111: 183010052
A112: Community Facilities | C112: =+C16+C48+C80 -> 0 | D112: =+D16+D48+D80 -> 421600.7 | E112: 5334895.97 | F112: 1 | G112: 11982321 | H112: 11982321 | I112: 2600000 | J112: 0 | K112: 0
A113: Sport and Recreation Facilities | C113: =+C17+C49+C81 -> 0 | D113: =+D17+D49+D81 -> 0 | E113: 0 | F113: 0 | G113: 0 | H113: 0 | I113: 10000000 | J113: 0 | K113: 0
A114: Community Assets | C114: =SUM(C112:C113) -> 0 | D114: =SUM(D112:D113) -> 421600.7 | E114: 5334895.97 | F114: 1 | G114: 11982321 | H114: 11982321 | I114: 12600000 | J114: 0 | K114: 0
A115: Heritage Assets | C115: =+C19+C51+C83 -> 0 | D115: =+D19+D51+D83 -> 0 | E115: 0 | F115: 0 | G115: 0 | H115: 0 | I115: 0 | J115: 0 | K115: 0
A116: Revenue Generating | C116: =+C20+C52+C84 -> 0 | D116: =+D20+D52+D84 -> 0 | E116: 0 | F116: 0 | G116: 0 | H116: 0 | I116: 0 | J116: 0 | K116: 0
A117: Non-revenue Generating | C117: =+C21+C53+C85 -> 0 | D117: =+D21+D53+D85 -> 0 | E117: 0 | F117: 0 | G117: 0 | H117: 0 | I117: 0 | J117: 0 | K117: 0
A118: Investment properties | C118: =SUM(C116:C117) -> 0 | D118: =SUM(D116:D117) -> 0 | E118: 0 | F118: 0 | G118: 0 | H118: 0 | I118: 0 | J118: 0 | K118: 0
A119: Operational Buildings | C119: =+C23+C55+C87 -> 0 | D119: =+D23+D55+D87 -> 0 | E119: 866423.16 | F119: 500000 | G119: 2201482 | H119: 2201482 | I119: 2200000 | J119: 0 | K119: 0
A120: Housing | C120: =+C24+C56+C88 -> 0 | D120: =+D24+D56+D88 -> 0 | E120: 0 | F120: 0 | G120: 0 | H120: 0 | I120: 0 | J120: 0 | K120: 0
A121: Other Assets | C121: =SUM(C119:C120) -> 0 | D121: 0 | E121: 866423.16 | F121: 500000 | G121: 2201482 | H121: 2201482 | I121: 2200000 | J121: 0 | K121: 0
A122: Biological or Cultivated Assets | C122: =+C26+C58+C90 -> 0 | D122: =+D26+D58+D90 -> 0 | E122: 0 | F122: 0 | G122: 0 | H122: 0 | I122: 0 | J122: 0 | K122: 0
A123: Servitudes | C123: =+C27+C59+C91 -> 0 | D123: =+D27+D59+D91 -> 0 | E123: 0 | F123: 1 | G123: 1 | H123: 1 | I123: 0 | J123: 0 | K123: 0
A124: Licences and Rights | C124: =+C28+C60+C92 -> 10007340.11 | D124: =+D28+D60+D92 -> 0 | E124: 0 | F124: 0 | G124: 0 | H124: 0 | I124: 2500000 | J124: 0 | K124: 0
A125: Intangible Assets | C125: =SUM(C123:C124) -> 10007340.11 | D125: =SUM(D123:D124) -> 0 | E125: 0 | F125: 1 | G125: 1 | H125: 1 | I125: 2500000 | J125: 0 | K125: 0
A126: Computer Equipment | C126: =+C30+C62+C94 -> 0 | D126: =+D30+D62+D94 -> 207014.43 | E126: 155600.43 | F126: 0 | G126: 810000 | H126: 810000 | I126: 300000 | J126: 0 | K126: 0
A127: Furniture and Office Equipment | C127: =+C31+C63+C95 -> 0 | D127: 1748330.82 | E127: 87602.55 | F127: 0 | G127: 421979 | H127: 421979 | I127: 500000 | J127: 0 | K127: 0
A128: Machinery and Equipment | C128: 0 | D128: 1564715.74 | E128: 2412077.76 | F128: 4237501 | G128: 10401771 | H128: 10401771 | I128: 3340000 | J128: 0 | K128: 0
A129: Transport Assets | C129: 0 | D129: 2550618.23 | E129: 10819341.85 | F129: 8260000 | G129: 8624687 | H129: 8624687 | I129: 610000 | J129: 0 | K129: 0
A130: Land | C130: 0 | D130: 0 | E130: 0 | F130: 5425000 | G130: 0 | H130: 0 | I130: 5425000 | J130: 0 | K130: 0
A131: Zoo's, Marine and Non-biological Animals | C131: 0 | D131: 0 | E131: 0 | F131: 0 | G131: 0 | H131: 0 | I131: 0 | J131: 0 | K131: 0
A132: TOTAL CAPITAL EXPENDITURE - Asset class | C132: =+C5+C37+C69 -> 17932218.15 | D132: =+D5+D37+D69 -> 63242383.87 | E132: 111759957.2 | F132: 113875841 | G132: 183526924 | H132: 183526924 | I132: 183027399 | J132: 193698653 | K132: 183010052
A134: ASSET REGISTER SUMMARY - PPE (WDV) | B134: 5 | C134: =C144+C147+C148+C151+C154+C155+C158+C159+C160+C161+C162+C163+C164 -> 25165209.22 | D134: =D144+D147+D148+D151+D154+D155+D158+D159+D160+D161+D162+D163+D164 -> 1351501105 | E134: 1319015878 | F134: 114869674 | G134: 185020696 | H134: 185020696 | I134: -78489940 | J134: -67726455 | K134: -78316585
A135: Roads Infrastructure | C135: 0 | D135: 26752148.27 | E135: 28480227.74 | F135: 1000000 | G135: 3129652 | H135: 3129652 | I135: 355000 | J135: 155000 | K135: 155000
A136: Storm water Infrastructure | C136: 0 | D136: 0 | E136: 0 | F136: 0 | G136: -5 | H136: -5 | I136: -155000 | J136: -155000 | K136: -155000
A137: Electrical Infrastructure | C137: 24000 | D137: 1050603959 | E137: 1026881854 | F137: 42409296 | G137: 38614066 | H137: 38614066 | I137: 25982042 | J137: 23632042 | K137: 17103042
A138: Water Supply Infrastructure | C138: 13126384.75 | D138: 18955744.38 | E138: 42898764.54 | F138: 20655000 | G138: 68853525 | H138: 68853525 | I138: 90472160 | J138: 170423653 | K138: 166264052
A139: Sanitation Infrastructure | C139: 0 | D139: 7263237.4 | E139: 1123936.36 | F139: 2281140 | G139: 34617828 | H139: 34617828 | I139: 30380239 | J139: 155000 | K139: 155000
A140: Solid Waste Infrastructure | C140: 0 | D140: 3540301.49 | E140: 4998837.93 | F140: 28622867 | G140: 3447664 | H140: 3447664 | I140: 155000 | J140: 155000 | K140: 155000
A141: Rail Infrastructure | C141: 0 | D141: 0 | E141: 0 | F141: 0 | G141: 0 | H141: 0 | I141: 200000 | J141: 0 | K141: 0
A142: Coastal Infrastructure | C142: 0 | D142: 0 | E142: 0 | F142: 0 | G142: 0 | H142: 0 | I142: 0 | J142: 0 | K142: 0
A143: Information and Communication Infrastructure | C143: 0 | D143: 420500 | E143: 0 | F143: 0 | G143: 0 | H143: 0 | I143: 7480000 | J143: 0 | K143: 0
A144: Infrastructure | C144: =SUM(C135:C143) -> 13150384.75 | D144: =SUM(D135:D143) -> 1107535891 | E144: 1104383621 | F144: 94968303 | G144: 148662730 | H144: 148662730 | I144: 154869441 | J144: 194365695 | K144: 183677094
A147: Community Assets | C147: 0 | D147: 134842103.7 | E147: 108788019 | F147: 1 | G147: 11982317 | H147: 11982317 | I147: 145138803 | J147: 132406803 | K147: 132406803
A148: Heritage Assets | C148: 0 | D148: 77000 | E148: 77000 | F148: 329364 | G148: 329366 | H148: 329366 | I148: 0 | J148: 0 | K148: 0
A151: Investment properties | C151: 0 | D151: 0 | E151: 0 | F151: 0 | G151: 0 | H151: 0 | I151: 0 | J151: 0 | K151: 0
A154: Other Assets | C154: 0 | D154: 2478137.36 | E154: 2421333.39 | F154: 500001 | G154: 6943849 | H154: 6943849 | I154: -557262918 | J154: -562162910 | K154: -562162909
A155: Biological or Cultivated Assets | C155: 0 | D155: 0 | E155: 0 | F155: 0 | G155: 0 | H155: 0 | I155: 0 | J155: 0 | K155: 0
A158: Intangible Assets | C158: 12014824.47 | D158: 978288.75 | E158: 626666.55 | F158: 879003 | G158: 879003 | H158: 879003 | I158: 4596000 | J158: 2188223 | K158: 2286693
A159: Computer Equipment | C159: 0 | D159: 3445722.57 | E159: 4339157.37 | F159: 0 | G159: 809997 | H159: 809997 | I159: 94387367 | J159: 94087367 | K159: 94087367
A160: Furniture and Office Equipment | C160: 0 | D160: 1838664.24 | E160: 3192865.55 | F160: 0 | G160: 421974 | H160: 421974 | I160: 345000 | J160: -155000 | K160: -155000
A161: Machinery and Equipment | C161: 0 | D161: 3191958.8 | E161: 2941889.66 | F161: 4508004 | G161: 5008003 | H161: 5008003 | I161: 1873000 | J161: -155000 | K161: -155000
A162: Transport Assets | C162: 0 | D162: 15934831.96 | E162: 23157468.94 | F162: 8260000 | G162: 9983457 | H162: 9983457 | I162: -6331890 | J162: -6771890 | K162: -6771890
A163: Land | C163: 0 | D163: 81178507.42 | E163: 69087856.76 | F163: 5424998 | G163: 0 | H163: 0 | I163: 83895257 | J163: 78470257 | K163: 78470257
A164: Zoo's, Marine and Non-biological Animals | C164: 0 | D164: 0 | E164: 0 | F164: 0 | G164: 0 | H164: 0 | I164: 0 | J164: 0 | K164: 0
A165: TOTAL ASSET REGISTER SUMMARY - PPE (WDV) | B165: 5 | C165: =C144+C147+C148+C151+C154+C155+C158+C159+C160+C161+C162+C163+C164 -> 25165209.22 | D165: =D144+D147+D148+D151+D154+D155+D158+D159+D160+D161+D162+D163+D164 -> 1351501105 | E165: 1319015878 | F165: 114869674 | G165: 185020696 | H165: 185020696 | I165: -78489940 | J165: -67726455 | K165: -78316585
A167: EXPENDITURE OTHER ITEMS | C167: =SUM(C168:C169) -> 7848260.2 | D167: =SUM(D168:D169) -> 94915861.09 | E167: 87999575.48 | F167: 116857578 | G167: 121420791 | H167: 121420791 | I167: 124082317 | J167: 129502115 | K167: 134802772
A168: Depreciation | B168: 7 | C168: =SA34d!C167 -> 2345634.73 | D168: =SA34d!D167 -> 91190780.22 | E168: =SA34d!E167 -> 84394856.93 | F168: =SA34d!F167 -> 92704836 | G168: =SA34d!G167 -> 92704878 | H168: =SA34d!H167 -> 92704878 | I168: =SA34d!I167 -> 97057059 | J168: =SA34d!J167 -> 101271206 | K168: =SA34d!K167 -> 105301370
A169: Repairs and Maintenance by Asset Class | B169: 3 | C169: =C179+C182+C183+C186+C189+C190+SUM(C193:C199) -> 5502625.47 | D169: =D179+D182+D183+D186+D189+D190+SUM(D193:D199) -> 3725080.87 | E169: 3604718.55 | F169: 24152742 | G169: 28715913 | H169: 28715913 | I169: 27025258 | J169: 28230909 | K169: 29501402
A170: Roads Infrastructure | C170: =SA34c!C7 -> 308985.94 | D170: =SA34c!D7 -> 172025 | E170: =SA34c!E7 -> 1219330.28 | F170: =SA34c!F7 -> 3315769 | G170: =SA34c!G7 -> 3492681 | H170: =SA34c!H7 -> 3492681 | I170: =SA34c!I7 -> 3546668 | J170: =SA34c!J7 -> 3702721 | K170: =SA34c!K7 -> 3869344
A171: Storm water Infrastructure | C171: =SA34c!C12 -> 0 | D171: =SA34c!D12 -> 0 | E171: =SA34c!E12 -> 0 | F171: =SA34c!F12 -> 548154 | G171: =SA34c!G12 -> 190000 | H171: =SA34c!H12 -> 190000 | I171: =SA34c!I12 -> 157200 | J171: =SA34c!J12 -> 164117 | K171: =SA34c!K12 -> 171502
A172: Electrical Infrastructure | C172: =SA34c!C16 -> 98621.19 | D172: =SA34c!D16 -> 7890.82 | E172: =SA34c!E16 -> 0 | F172: =SA34c!F16 -> 2948597 | G172: =SA34c!G16 -> 4008848 | H172: =SA34c!H16 -> 4008848 | I172: =SA34c!I16 -> 4201272 | J172: =SA34c!J16 -> 4385728 | K172: =SA34c!K16 -> 4583505
A173: Water Supply Infrastructure | C173: =SA34c!C26 -> 1974115.34 | D173: =SA34c!D26 -> -726935.85 | E173: =SA34c!E26 -> 1828517.99 | F173: =SA34c!F26 -> 3503852 | G173: =SA34c!G26 -> 3383852 | H173: =SA34c!H26 -> 3383852 | I173: =SA34c!I26 -> 3672136 | J173: =SA34c!J26 -> 3833755 | K173: =SA34c!K26 -> 4006267
A174: Sanitation Infrastructure | C174: =SA34c!C37 -> 0 | D174: =SA34c!D37 -> 0 | E174: =SA34c!E37 -> -2063293.38 | F174: =SA34c!F37 -> 4691346 | G174: =SA34c!G37 -> 3831536 | H174: =SA34c!H37 -> 3831536 | I174: =SA34c!I37 -> 6359392 | J174: =SA34c!J37 -> 6656107 | K174: =SA34c!K37 -> 6955321
A175: Solid Waste Infrastructure | C175: =SA34c!C44 -> 0 | D175: =SA34c!D44 -> 0 | E175: =SA34c!E44 -> 0 | F175: =SA34c!F44 -> 0 | G175: =SA34c!G44 -> 0 | H175: =SA34c!H44 -> 0 | I175: =SA34c!I44 -> 0 | J175: =SA34c!J44 -> 0 | K175: =SA34c!K44 -> 0
A176: Rail Infrastructure | C176: =SA34c!C52 -> 0 | D176: =SA34c!D52 -> 0 | E176: =SA34c!E52 -> 0 | F176: =SA34c!F52 -> 0 | G176: =SA34c!G52 -> 0 | H176: =SA34c!H52 -> 0 | I176: =SA34c!I52 -> 0 | J176: =SA34c!J52 -> 0 | K176: =SA34c!K52 -> 0
A177: Coastal Infrastructure | C177: =SA34c!C62 -> 0 | D177: =SA34c!D62 -> 0 | E177: =SA34c!E62 -> 0 | F177: =SA34c!F62 -> 0 | G177: =SA34c!G62 -> 0 | H177: =SA34c!H62 -> 0 | I177: =SA34c!I62 -> 0 | J177: =SA34c!J62 -> 0 | K177: =SA34c!K62 -> 0
A178: Information and Communication Infrastructure | C178: =SA34c!C68 -> 0 | D178: =SA34c!D68 -> 0 | E178: =SA34c!E68 -> 0 | F178: =SA34c!F68 -> 0 | G178: =SA34c!G68 -> 0 | H178: =SA34c!H68 -> 0 | I178: =SA34c!I68 -> 0 | J178: =SA34c!J68 -> 0 | K178: =SA34c!K68 -> 0
A179: Infrastructure | C179: =SUM(C170:C178) -> 2381722.47 | D179: =SUM(D170:D178) -> -547020.03 | E179: 984554.89 | F179: 15007718 | G179: 14906917 | H179: 14906917 | I179: 17936668 | J179: 18742428 | K179: 19585939
A180: Community Facilities | C180: =SA34c!C75 -> 0 | D180: =SA34c!D75 -> 174.78 | E180: =SA34c!E75 -> 36911.37 | F180: =SA34c!F75 -> 105788 | G180: =SA34c!G75 -> 105788 | H180: =SA34c!H75 -> 105788 | I180: =SA34c!I75 -> 110865 | J180: =SA34c!J75 -> 115743 | K180: =SA34c!K75 -> 120951
A181: Sport and Recreation Facilities | C181: =SA34c!C98 -> 0 | D181: =SA34c!D98 -> 15392.19 | E181: =SA34c!E98 -> 78355.32 | F181: =SA34c!F98 -> 1 | G181: =SA34c!G98 -> 104906 | H181: =SA34c!H98 -> 104906 | I181: =SA34c!I98 -> 62482 | J181: =SA34c!J98 -> 65229 | K181: =SA34c!K98 -> 68165
A182: Community Assets | C182: =SUM(C180:C181) -> 0 | D182: 15566.97 | E182: 115266.69 | F182: 105789 | G182: 210694 | H182: 210694 | I182: 173347 | J182: 180972 | K182: 189116
A183: Heritage Assets | C183: =SA34c!C103 -> 0 | D183: =SA34c!D103 -> 0 | E183: =SA34c!E103 -> 0 | F183: =SA34c!F103 -> 0 | G183: =SA34c!G103 -> 0 | H183: =SA34c!H103 -> 0 | I183: =SA34c!I103 -> 0 | J183: =SA34c!J103 -> 0 | K183: =SA34c!K103 -> 0
A184: Revenue Generating | C184: =SA34c!C111 -> 0 | D184: =SA34c!D111 -> 0 | E184: =SA34c!E111 -> 0 | F184: =SA34c!F111 -> 0 | G184: =SA34c!G111 -> 0 | H184: =SA34c!H111 -> 0 | I184: =SA34c!I111 -> 0 | J184: =SA34c!J111 -> 0 | K184: =SA34c!K111 -> 0
A185: Non-revenue Generating | C185: =SA34c!C114 -> 0 | D185: =SA34c!D114 -> 0 | E185: =SA34c!E114 -> 0 | F185: =SA34c!F114 -> 0 | G185: =SA34c!G114 -> 0 | H185: =SA34c!H114 -> 0 | I185: =SA34c!I114 -> 0 | J185: =SA34c!J114 -> 0 | K185: =SA34c!K114 -> 0
A186: Investment properties | C186: =SUM(C184:C185) -> 0 | D186: 0 | E186: 0 | F186: 0 | G186: 0 | H186: 0 | I186: 0 | J186: 0 | K186: 0
A187: Operational Buildings | C187: =SA34c!C119 -> 32912.22 | D187: =SA34c!D119 -> 0 | E187: =SA34c!E119 -> 104260.35 | F187: =SA34c!F119 -> 27 | G187: =SA34c!G119 -> 572126 | H187: =SA34c!H119 -> 572126 | I187: =SA34c!I119 -> 599561 | J187: =SA34c!J119 -> 625942 | K187: =SA34c!K119 -> 654109
A188: Housing | C188: =SA34c!C131 -> 0 | D188: =SA34c!D131 -> 0 | E188: =SA34c!E131 -> 0 | F188: =SA34c!F131 -> 0 | G188: =SA34c!G131 -> 0 | H188: =SA34c!H131 -> 0 | I188: =SA34c!I131 -> 0 | J188: =SA34c!J131 -> 0 | K188: =SA34c!K131 -> 0
A189: Other Assets | C189: =SUM(C187:C188) -> 32912.22 | D189: 0 | E189: 104260.35 | F189: 27 | G189: 572126 | H189: 572126 | I189: 599561 | J189: 625942 | K189: 654109
A190: Biological or Cultivated Assets | C190: =SA34c!C136 -> 0 | D190: =SA34c!D136 -> 0 | E190: =SA34c!E136 -> 0 | F190: =SA34c!F136 -> 0 | G190: =SA34c!G136 -> 0 | H190: =SA34c!H136 -> 0 | I190: =SA34c!I136 -> 0 | J190: =SA34c!J136 -> 0 | K190: =SA34c!K136 -> 0
A191: Servitudes | C191: =SA34c!C140 -> 0 | D191: =SA34c!D140 -> 0 | E191: =SA34c!E140 -> 0 | F191: =SA34c!F140 -> 0 | G191: =SA34c!G140 -> 0 | H191: =SA34c!H140 -> 0 | I191: =SA34c!I140 -> 0 | J191: =SA34c!J140 -> 0 | K191: =SA34c!K140 -> 0
A192: Licences and Rights | C192: =SA34c!C141 -> 0 | D192: =SA34c!D141 -> 0 | E192: =SA34c!E141 -> 0 | F192: =SA34c!F141 -> 0 | G192: =SA34c!G141 -> 0 | H192: =SA34c!H141 -> 0 | I192: =SA34c!I141 -> 0 | J192: =SA34c!J141 -> 0 | K192: =SA34c!K141 -> 0
A193: Intangible Assets | C193: =SUM(C191:C192) -> 0 | D193: 0 | E193: 0 | F193: 0 | G193: 0 | H193: 0 | I193: 0 | J193: 0 | K193: 0
A194: Computer Equipment | C194: =SA34c!C149 -> 0 | D194: =SA34c!D149 -> 0 | E194: =SA34c!E149 -> 0 | F194: =SA34c!F149 -> 0 | G194: =SA34c!G149 -> 0 | H194: =SA34c!H149 -> 0 | I194: =SA34c!I149 -> 0 | J194: =SA34c!J149 -> 0 | K194: =SA34c!K149 -> 0
A195: Furniture and Office Equipment | C195: =SA34c!C152 -> 60094.52 | D195: =SA34c!D152 -> 10037.89 | E195: =SA34c!E152 -> 80581.68 | F195: =SA34c!F152 -> 6 | G195: =SA34c!G152 -> 2000006 | H195: =SA34c!H152 -> 2000006 | I195: =SA34c!I152 -> 326155 | J195: =SA34c!J152 -> 340506 | K195: =SA34c!K152 -> 355829
A196: Machinery and Equipment | C196: =SA34c!C155 -> 1541691.76 | D196: =SA34c!D155 -> 0 | E196: =SA34c!E155 -> 1515468.43 | F196: =SA34c!F155 -> 5 | G196: =SA34c!G155 -> 1602263 | H196: =SA34c!H155 -> 1602263 | I196: =SA34c!I155 -> 649185 | J196: =SA34c!J155 -> 677749 | K196: =SA34c!K155 -> 708248
A197: Transport Assets | C197: =SA34c!C158 -> 1486204.5 | D197: =SA34c!D158 -> 4246496.04 | E197: =SA34c!E158 -> 804586.51 | F197: =SA34c!F158 -> 9039197 | G197: =SA34c!G158 -> 9423907 | H197: =SA34c!H158 -> 9423907 | I197: =SA34c!I158 -> 7340342 | J197: =SA34c!J158 -> 7663312 | K197: =SA34c!K158 -> 8008161
A198: Land | C198: =SA34c!C161 -> 0 | D198: =SA34c!D161 -> 0 | E198: =SA34c!E161 -> 0 | F198: =SA34c!F161 -> 0 | G198: =SA34c!G161 -> 0 | H198: =SA34c!H161 -> 0 | I198: =SA34c!I161 -> 0 | J198: =SA34c!J161 -> 0 | K198: =SA34c!K161 -> 0
A199: Zoo's, Marine and Non-biological Animals | C199: =SA34c!C164 -> 0 | D199: =SA34c!D164 -> 0 | E199: =SA34c!E164 -> 0 | F199: =SA34c!F164 -> 0 | G199: =SA34c!G164 -> 0 | H199: =SA34c!H164 -> 0 | I199: =SA34c!I164 -> 0 | J199: =SA34c!J164 -> 0 | K199: =SA34c!K164 -> 0
A201: TOTAL EXPENDITURE OTHER ITEMS | C201: =SUM(C168:C169) -> 7848260.2 | D201: 94915861.09 | E201: 87999575.48 | F201: 116857578 | G201: 121420791 | H201: 121420791 | I201: 124082317 | J201: 129502115 | K201: 134802772
A203: Renewal and upgrading of Existing Assets as % of total capex | C203: =IF(ISERROR((C37+C69)/C132),0,((C37+C69)/C132)) -> 0.4405968059 | D203: =IF(ISERROR((D37+D69)/D132),0,((D37+D69)/D132)) -> 0.114847622 | E203: 0.007332444199 | F203: 1.756298775e-08 | G203: 1.089758362e-08 | H203: 1.089758362e-08 | I203: 0.03496744222 | J203: 0 | K203: 0
A204: Renewal and upgrading of Existing Assets as % of deprecn | C204: =IF(ISERROR((C37+C69)/C168),0,((C37+C69)/C168)) -> 3.368332647 | D204: =IF(ISERROR((D37+D69)/D168),0,((D37+D69)/D168)) -> 0.07964881299 | E204: 0.009709995133 | F204: 2.157384756e-08 | G204: 2.157383779e-08 | H204: 2.157383779e-08 | I204: 0.06594059274 | J204: 0 | K204: 0
A205: R&M as a % of PPE | C205: =IF(ISERROR(ROUND(C169/'A6-FinPos'!C19,3)),0,(ROUND(C169/'A6-FinPos'!C19,3))) -> 0.418 | D205: =IF(ISERROR(ROUND(D169/'A6-FinPos'!D19,3)),0,(ROUND(D169/'A6-FinPos'!D19,3))) -> 0.003 | E205: =IF(ISERROR(ROUND(E169/'A6-FinPos'!E19,3)),0,(ROUND(E169/'A6-FinPos'!E19,3))) -> 0.002 | F205: =IF(ISERROR(ROUND(F169/'A6-FinPos'!F19,3)),0,(ROUND(F169/'A6-FinPos'!F19,3))) -> 0.015 | G205: =IF(ISERROR(ROUND(G169/'A6-FinPos'!G19,3)),0,(ROUND(G169/'A6-FinPos'!G19,3))) -> 0.017 | H205: =IF(ISERROR(ROUND(H169/'A6-FinPos'!H19,3)),0,(ROUND(H169/'A6-FinPos'!H19,3))) -> 0.017 | I205: =IF(ISERROR(ROUND(I169/'A6-FinPos'!J19,3)),0,(ROUND(I169/'A6-FinPos'!J19,3))) -> 0.017 | J205: =IF(ISERROR(ROUND(J169/'A6-FinPos'!K19,3)),0,(ROUND(J169/'A6-FinPos'!K19,3))) -> 0.019 | K205: =IF(ISERROR(ROUND(K169/'A6-FinPos'!L19,3)),0,(ROUND(K169/'A6-FinPos'!L19,3))) -> 0.018
A206: Renewal and upgrading and R&M as a % of PPE | C206: =IF(ISERROR(ROUND((C37+C69+C169)/C165,2)),0,(ROUND((C37+C69+C169)/C165,2))) -> 0.53 | D206: =IF(ISERROR(ROUND((D37+D69+D169)/D165,2)),0,(ROUND((D37+D69+D169)/D165,2))) -> 0.01 | E206: 0 | F206: 0.21 | G206: 0.16 | H206: 0.16 | I206: -0.43 | J206: -0.42 | K206: -0.38
A208: =head27a -> References
A209: 1. Detail of new assets provided in Table SA34a
A210: 2. Detail of renewal of existing assets provided in Table SA34b
A211: 3. Detail of Repairs and Maintenance by Asset Class provided in Table SA34c
A212: 4. Must reconcile to total capital expenditure on Budgeted Capital Expenditure
A213: 5. Must reconcile to 'Budgeted Financial Position' (written down value)
A214: 6. Detail of upgrading of existing assets provided in Table SA34e
A215: 7. Detail of depreciation provided in Table SA34d
A217: Check balance to A6 | C217: =C165-'A6-FinPos'!D17-'A6-FinPos'!D19-'A6-FinPos'!D20-'A6-FinPos'!D21-'A6-FinPos'!D22-C148 -> -1445511951 | D217: =D165-'A6-FinPos'!E17-'A6-FinPos'!E19-'A6-FinPos'!E20-'A6-FinPos'!E21-'A6-FinPos'!E22-D148 -> -127763546.9 | E217: =E165-'A6-FinPos'!F17-'A6-FinPos'!F19-'A6-FinPos'!F20-'A6-FinPos'!F21-'A6-FinPos'!F22-E148 -> -333531395.1 | F217: =F165-'A6-FinPos'!G17-'A6-FinPos'!G19-'A6-FinPos'!G20-'A6-FinPos'!G21-'A6-FinPos'!G22-F148 -> -1608080984 | G217: =G165-'A6-FinPos'!H17-'A6-FinPos'!H19-'A6-FinPos'!H20-'A6-FinPos'!H21-'A6-FinPos'!H22-G148 -> -1537929964 | H217: =H165-'A6-FinPos'!I17-'A6-FinPos'!I19-'A6-FinPos'!I20-'A6-FinPos'!I21-'A6-FinPos'!I22-H148 -> -1537929964 | I217: =I165-'A6-FinPos'!J17-'A6-FinPos'!J19-'A6-FinPos'!J20-'A6-FinPos'!J21-'A6-FinPos'!J22-I148 -> -1643997978 | J217: =J165-'A6-FinPos'!K17-'A6-FinPos'!K19-'A6-FinPos'!K20-'A6-FinPos'!K21-'A6-FinPos'!K22-J148 -> -1571241556 | K217: =K165-'A6-FinPos'!L17-'A6-FinPos'!L19-'A6-FinPos'!L20-'A6-FinPos'!L21-'A6-FinPos'!L22-K148 -> -1725588693

Sheet A10-SerDel
A1: =muni&" - "&Approve10 -> Choose name from list - Table A10 Basic service delivery measurement
A2: =desc -> Description | B2: =head27 -> Ref | C2: =head1b -> 2018/19 | D2: =head1A -> 2019/20 | E2: =Head1 -> 2020/21 | F2: =Head2 -> Current Year 2021/22 | I2: =Head3 -> 2022/23 Medium Term Revenue & Expenditure Framework
C3: =Head5A -> Outcome | D3: =Head5A -> Outcome | E3: =Head5A -> Outcome | F3: =Head6 -> Original Budget | G3: =Head7 -> Adjusted Budget | H3: =Head8 -> Full Year Forecast | I3: =Head9 -> Budget Year 2022/23 | J3: =Head10 -> Budget Year +1 2023/24 | K3: =Head11 -> Budget Year +2 2024/25
A4: Household service targets | B4: 1
A5: Water:
A6: Piped water inside dwelling | C6: 10229 | D6: 10229 | E6: 10229 | F6: 10229 | G6: 10229 | H6: 10229 | I6: 10229 | J6: 10229 | K6: 10229
A7: Piped water inside yard (but not in dwelling) | C7: 4731 | D7: 4731 | E7: 4731 | F7: 4731 | G7: 4731 | H7: 4731 | I7: 4731 | J7: 4731 | K7: 4731
A8: Using public tap (at least min.service level) | B8: 2 | C8: 0 | D8: 0 | E8: 0 | F8: 0 | G8: 0 | H8: 0 | I8: 0 | J8: 0 | K8: 0
A9: Other water supply (at least min.service level) | B9: 4 | C9: 0 | D9: 0 | E9: 0 | F9: 0 | G9: 0 | H9: 0 | I9: 0 | J9: 0 | K9: 0
A10: Minimum Service Level and Above sub-total | C10: 53687 | D10: 53687 | E10: 53687 | F10: 53687 | G10: 53687 | H10: 53687 | I10: 53687 | J10: 53687 | K10: 53687
A11: Using public tap (< min.service level) | B11: 3 | C11: 10229 | D11: 10229 | E11: 10229 | F11: 10229 | G11: 10229 | H11: 10229 | I11: 10229 | J11: 10229 | K11: 10229
A12: Other water supply (< min.service level) | B12: =B9 -> 4 | C12: 4731 | D12: 4731 | E12: 4731 | F12: 4731 | G12: 4731 | H12: 4731 | I12: 4731 | J12: 4731 | K12: 4731
A13: No water supply | C13: 451 | D13: 451 | E13: 451 | F13: 451 | G13: 451 | H13: 451 | I13: 451 | J13: 451 | K13: 451
A14: Below Minimum Service Level sub-total | C14: 66299 | D14: 66299 | E14: 90399 | F14: 66299 | G14: 90399 | H14: 90399 | I14: 90399 | J14: 92479 | K14: 95119
A15: Total number of households | B15: 5 | C15: 119986 | D15: 119986 | E15: 144086 | F15: 119986 | G15: 144086 | H15: 144086 | I15: 144086 | J15: 146166 | K15: 148806
A16: Sanitation/sewerage:
A17: Flush toilet (connected to sewerage) | C17: 18536 | D17: 18536 | E17: 18536 | F17: 18536 | G17: 18536 | H17: 18536 | I17: 18536 | J17: 18536 | K17: 18536
A18: Flush toilet (with septic tank) | C18: 859 | D18: 859 | E18: 859 | F18: 859 | G18: 859 | H18: 859 | I18: 859 | J18: 859 | K18: 859
A19: Chemical toilet | C19: 952 | D19: 952 | E19: 952 | F19: 952 | G19: 952 | H19: 952 | I19: 952 | J19: 952 | K19: 952
A20: Pit toilet (ventilated) | C20: 8326 | D20: 8326 | E20: 8326 | F20: 8326 | G20: 8326 | H20: 8326 | I20: 8326 | J20: 8326 | K20: 8326
A21: Other toilet provisions (> min.service level) | C21: 10054 | D21: 10054 | E21: 10054 | F21: 10054 | G21: 10054 | H21: 10054 | I21: 10054 | J21: 10054 | K21: 10054
A22: =$A$10 -> Minimum Service Level and Above sub-total | C22: 53687 | D22: 53687 | E22: 53687 | F22: 53687 | G22: 53687 | H22: 53687 | I22: 53687 | J22: 53687 | K22: 53687
A23: Bucket toilet | C23: 74 | D23: 74 | E23: 74 | F23: 74 | G23: 74 | H23: 74 | I23: 74 | J23: 74 | K23: 74
A24: Other toilet provisions (< min.service level) | C24: 520 | D24: 520 | E24: 520 | F24: 520 | G24: 520 | H24: 520 | I24: 520 | J24: 520 | K24: 520
A25: No toilet provisions | C25: 3582 | D25: 3582 | E25: 3582 | F25: 3582 | G25: 3582 | H25: 3582 | I25: 3582 | J25: 3582 | K25: 3582
A26: =$A$14 -> Below Minimum Service Level sub-total | C26: 66299 | D26: 66299 | E26: 90399 | F26: 66299 | G26: 90399 | H26: 90399 | I26: 90399 | J26: 92479 | K26: 95119
A27: =$A$15 -> Total number of households | B27: =$B$15 -> 5 | C27: 119986 | D27: 119986 | E27: 144086 | F27: 119986 | G27: 144086 | H27: 144086 | I27: 144086 | J27: 146166 | K27: 148806
A28: Energy:
A29: Electricity (at least min.service level) | C29: 0 | D29: 0 | E29: 0 | F29: 0 | G29: 0 | H29: 0 | I29: 0 | J29: 0 | K29: 0
A30: Electricity - prepaid (min.service level) | C30: 0 | D30: 0 | E30: 0 | F30: 0 | G30: 0 | H30: 0 | I30: 0 | J30: 0 | K30: 0
A31: =$A$10 -> Minimum Service Level and Above sub-total | C31: 53687 | D31: 53687 | E31: 53687 | F31: 53687 | G31: 53687 | H31: 53687 | I31: 53687 | J31: 53687 | K31: 53687
A32: Electricity (< min.service level) | C32: 0 | D32: 0 | E32: 0 | F32: 0 | G32: 0 | H32: 0 | I32: 0 | J32: 0 | K32: 0
A33: Electricity - prepaid (< min. service level) | C33: 0 | D33: 0 | E33: 0 | F33: 0 | G33: 0 | H33: 0 | I33: 0 | J33: 0 | K33: 0
A34: Other energy sources | C34: 0 | D34: 0 | E34: 0 | F34: 0 | G34: 0 | H34: 0 | I34: 0 | J34: 0 | K34: 0
A35: =$A$14 -> Below Minimum Service Level sub-total | C35: 66299 | D35: 66299 | E35: 90399 | F35: 66299 | G35: 90399 | H35: 90399 | I35: 90399 | J35: 92479 | K35: 95119
A36: =$A$15 -> Total number of households | B36: =$B$15 -> 5 | C36: 119986 | D36: 119986 | E36: 144086 | F36: 119986 | G36: 144086 | H36: 144086 | I36: 144086 | J36: 146166 | K36: 148806
A37: Refuse:
A38: Removed at least once a week | C38: 24100 | D38: 24100 | E38: 24100 | F38: 24100 | G38: 24100 | H38: 24100 | I38: 24100 | J38: 25281 | K38: 26613
A39: =$A$10 -> Minimum Service Level and Above sub-total | C39: 53687 | D39: 53687 | E39: 53687 | F39: 53687 | G39: 53687 | H39: 53687 | I39: 53687 | J39: 53687 | K39: 53687
A40: Removed less frequently than once a week | C40: 0 | D40: 0 | E40: 0 | F40: 0 | G40: 0 | H40: 0 | I40: 0 | J40: 0 | K40: 0
A41: Using communal refuse dump | C41: 0 | D41: 0 | E41: 0 | F41: 0 | G41: 0 | H41: 0 | I41: 0 | J41: 0 | K41: 0
A42: Using own refuse dump | C42: 0 | D42: 0 | E42: 0 | F42: 0 | G42: 0 | H42: 0 | I42: 0 | J42: 0 | K42: 0
A43: Other rubbish disposal | C43: 46712 | D43: 46712 | E43: 46712 | F43: 46712 | G43: 46712 | H43: 46712 | I43: 46712 | J43: 47611 | K43: 48919
A44: No rubbish disposal | C44: 0 | D44: 0 | E44: 0 | F44: 0 | G44: 0 | H44: 0 | I44: 0 | J44: 0 | K44: 0
A45: =$A$14 -> Below Minimum Service Level sub-total | C45: 66299 | D45: 66299 | E45: 90399 | F45: 66299 | G45: 90399 | H45: 90399 | I45: 90399 | J45: 92479 | K45: 95119
A46: =$A$15 -> Total number of households | B46: =$B$15 -> 5 | C46: 119986 | D46: 119986 | E46: 144086 | F46: 119986 | G46: 144086 | H46: 144086 | I46: 144086 | J46: 146166 | K46: 148806
A48: Households receiving Free Basic Service | B48: 7
A49: Water (6 kilolitres per household per month) | C49: 0 | D49: 0 | E49: 0 | F49: 0 | G49: 0 | H49: 0 | I49: 0 | J49: 0 | K49: 0
A50: Sanitation (free minimum level service) | C50: 0 | D50: 0 | E50: 0 | F50: 0 | G50: 0 | H50: 0 | I50: 0 | J50: 0 | K50: 0
A51: Electricity/other energy (50kwh per household per month) | C51: 0 | D51: 0 | E51: 0 | F51: 0 | G51: 0 | H51: 0 | I51: 0 | J51: 0 | K51: 0
A52: Refuse (removed at least once a week) | C52: 0 | D52: 0 | E52: 0 | F52: 0 | G52: 0 | H52: 0 | I52: 0 | J52: 0 | K52: 0
A54: Cost of Free Basic Services provided - Formal Settlements (R'000) | B54: 8
A55: Water (6 kilolitres per indigent household per month) | C55: 0 | D55: 0 | E55: 0 | F55: 0 | G55: 0 | H55: 0 | I55: 0 | J55: 0 | K55: 0
A56: Sanitation (free sanitation service to indigent households) | C56: 0 | D56: 0 | E56: 0 | F56: 0 | G56: 0 | H56: 0 | I56: 0 | J56: 0 | K56: 0
A57: Electricity/other energy (50kwh per indigent household per month) | C57: 0 | D57: 0 | E57: 0 | F57: 0 | G57: 0 | H57: 0 | I57: 0 | J57: 0 | K57: 0
A58: Refuse (removed once a week for indigent households) | C58: 0 | D58: 0 | E58: 0 | F58: 0 | G58: 0 | H58: 0 | I58: 0 | J58: 0 | K58: 0
A59: Cost of Free Basic Services provided - Informal Formal Settlements (R'000) | C59: 0 | D59: 0 | E59: 0 | F59: 0 | G59: 0 | H59: 0 | I59: 0 | J59: 0 | K59: 0
A60: Total cost of FBS provided | C60: 0 | D60: 0 | E60: 0 | F60: 0 | G60: 0 | H60: 0 | I60: 0 | J60: 0 | K60: 0
A62: Highest level of free service provided per household
A63: Property rates (R value threshold) | C63: 0 | D63: 0 | E63: 0 | F63: 0 | G63: 0 | H63: 0 | I63: 0 | J63: 0 | K63: 0
A64: Water (kilolitres per household per month) | C64: 0 | D64: 0 | E64: 0 | F64: 0 | G64: 0 | H64: 0 | I64: 0 | J64: 0 | K64: 0
A65: Sanitation (kilolitres per household per month) | C65: 0 | D65: 0 | E65: 0 | F65: 0 | G65: 0 | H65: 0 | I65: 0 | J65: 0 | K65: 0
A66: Sanitation (Rand per household per month) | C66: 0 | D66: 0 | E66: 0 | F66: 0 | G66: 0 | H66: 0 | I66: 0 | J66: 0 | K66: 0
A67: Electricity (kwh per household per month) | C67: 0 | D67: 0 | E67: 0 | F67: 0 | G67: 0 | H67: 0 | I67: 0 | J67: 0 | K67: 0
A68: Refuse (average litres per week) | C68: 0 | D68: 0 | E68: 0 | F68: 0 | G68: 0 | H68: 0 | I68: 0 | J68: 0 | K68: 0
A69: Revenue cost of subsidised services provided (R'000) | B69: 9
A70: Property rates (tariff adjustment) ( impermissable values per section 17 of MPRA) | C70: 0 | D70: 0 | E70: 0 | F70: 0 | G70: 0 | H70: 0 | I70: 0 | J70: 0 | K70: 0
A71: Property rates exemptions, reductions and rebates and impermissable values in excess of section 17 of MPRA) | C71: 0 | D71: 0 | E71: 0 | F71: 0 | G71: 0 | H71: 0 | I71: 0 | J71: 0 | K71: 0
A72: Water (in excess of 6 kilolitres per indigent household per month) | C72: 0 | D72: 0 | E72: 0 | F72: 0 | G72: 0 | H72: 0 | I72: 0 | J72: 0 | K72: 0
A73: Sanitation (in excess of free sanitation service to indigent households) | C73: 0 | D73: 0 | E73: 0 | F73: 0 | G73: 0 | H73: 0 | I73: 0 | J73: 0 | K73: 0
A74: Electricity/other energy (in excess of 50 kwh per indigent household per month) | C74: 0 | D74: 0 | E74: 0 | F74: 0 | G74: 0 | H74: 0 | I74: 0 | J74: 0 | K74: 0
A75: Refuse (in excess of one removal a week for indigent households) | C75: 0 | D75: 0 | E75: 0 | F75: 0 | G75: 0 | H75: 0 | I75: 0 | J75: 0 | K75: 0
A76: Municipal Housing - rental rebates | C76: 0 | D76: 0 | E76: 0 | F76: 0 | G76: 0 | H76: 0 | I76: 0 | J76: 0 | K76: 0
A77: Housing - top structure subsidies | B77: 6 | C77: 0 | D77: 0 | E77: 0 | F77: 0 | G77: 0 | H77: 0 | I77: 0 | J77: 0 | K77: 0
A78: Other | C78: 0 | D78: 0 | E78: 0 | F78: 0 | G78: 0 | H78: 0 | I78: 0 | J78: 0 | K78: 0
A79: Total revenue cost of subsidised services provided | C79: 0 | D79: 0 | E79: 0 | F79: 0 | G79: 0 | H79: 0 | I79: 0 | J79: 0 | K79: 0
A80: =head27a -> References
A81: 1. Include services provided by another entity; e.g. Eskom
A82: 2. Stand distance <= 200m from dwelling
A83: 3. Stand distance > 200m from dwelling
A84: 4. Borehole, spring, rain-water tank etc.
A85: 5. Must agree to total number of households in municipal area (informal settlements receiving services must be included)
A86: 6. Include value of subsidy provided by municipality above provincial subsidy level
A87: 7. Show number of households receiving at least these levels of services completely free (informal settlements must be included)
A88: 8. Must reflect the cost to the municipality of providing the Free Basic Service
A89: 9. Reflect the cost to the municipality in terms of 'revenue foregone' of providing free services (note this will not equal 'Revenue Foregone' on SA1)

Sheet SA1
A1: =muni&" - "&TableA1 -> Choose name from list - Supporting Table SA1 Supportinging detail to 'Budgeted Financial Performance'
A2: =desc -> Description | B2: =head27 -> Ref | C2: =head1b -> 2018/19 | D2: =head1A -> 2019/20 | E2: =Head1 -> 2020/21 | F2: =Head2 -> Current Year 2021/22 | J2: =Head3 -> 2022/23 Medium Term Revenue & Expenditure Framework
C3: =Head5 -> Audited Outcome | D3: =Head5 -> Audited Outcome | E3: =Head5 -> Audited Outcome | F3: =Head6 -> Original Budget | G3: =Head7 -> Adjusted Budget | H3: =Head8 -> Full Year Forecast | I3: =Head5b -> Pre-audit outcome | J3: =Head9 -> Budget Year 2022/23 | K3: =Head10 -> Budget Year +1 2023/24 | L3: =Head11 -> Budget Year +2 2024/25
A4: R thousand
A5: REVENUE ITEMS:
A6: ='A4-FinPerf RE'!A5 -> Property rates | B6: 6
A7: Total Property Rates | C7: 96633204.74 | D7: 73517010.81 | E7: 101856808.6 | F7: 134591056 | G7: 134591056 | H7: 134591056 | I7: 134591056 | J7: 142246506 | K7: 148534614 | L7: 153842720
A8: Less Revenue Foregone (exemptions, reductions and rebates and impermissable values in excess of section 17 of MPRA) | C8: 13311616.03 | D8: 0 | E8: 173842.37 | F8: 28000000 | G8: 28000000 | H8: 28000000 | I8: 28000000 | J8: 29260000 | K8: 30576701 | L8: 30576701
A9: Net Property Rates | C9: =C7-C8 -> 83321588.71 | D9: =D7-D8 -> 73517010.81 | E9: 101682966.3 | F9: 106591056 | G9: 106591056 | H9: 106591056 | I9: 106591056 | J9: 112986506 | K9: 117957913 | L9: 123266019
A11: ='A4-FinPerf RE'!A6 -> Service charges - electricity revenue | B11: 6
A12: ="Total "&A11 -> Total Service charges - electricity revenue | C12: 68200269.38 | D12: 174962816 | E12: 174059964 | F12: 239499892 | G12: 239499892 | H12: 239499892 | I12: 239499892 | J12: 253869874 | K12: 265040150 | L12: 276967317
A13: Less Revenue Foregone (in excess of 50 kwh per indigent household per month) | C13: 0 | D13: 0 | E13: 0 | F13: 0 | G13: 0 | H13: 0 | I13: 0 | J13: 0 | K13: 0 | L13: 0
A14: Less Cost of Free Basis Services (50 kwh per indigent household per month) | C14: ='SA9'!E250 -> 0 | D14: ='SA9'!F250 -> 2110299.83 | E14: ='SA9'!G250 -> 0 | F14: ='SA9'!H250 -> 2292947 | G14: ='SA9'!I250 -> 2292947 | H14: ='SA9'!J250 -> 2292947 | J14: ='SA9'!K250 -> 2430523 | K14: ='SA9'!L250 -> 2537466 | L14: ='SA9'!M250 -> 2651652
A15: ="Net "& A11 -> Net Service charges - electricity revenue | C15: =C12-C13-C14 -> 68200269.38 | D15: =D12-D13-D14 -> 172852516.2 | E15: 174059964 | F15: 237206945 | G15: 237206945 | H15: 237206945 | I15: 239499892 | J15: 251439351 | K15: 262502684 | L15: 274315665
A17: ='A4-FinPerf RE'!A7 -> Service charges - water revenue | B17: 6
A18: ="Total "&A17 -> Total Service charges - water revenue | C18: 18360185.72 | D18: 47658898.61 | E18: 30261082.03 | F18: 49635115 | G18: 49635115 | H18: 49635115 | I18: 49635115 | J18: 70034565 | K18: 73116086 | L18: 76406309
A19: Less Revenue Foregone (in excess of 6 kilolitres per indigent household per month) | C19: 0 | D19: 0 | E19: 0 | F19: 0 | G19: 0 | H19: 0 | I19: 0 | J19: 0 | K19: 0 | L19: 0
A20: Less Cost of Free Basis Services (6 kilolitres per indigent household per month) | C20: ='SA9'!E262 -> 0 | D20: ='SA9'!F262 -> 0 | E20: ='SA9'!G262 -> -14439345.56 | F20: ='SA9'!H262 -> 57220 | G20: ='SA9'!I262 -> 57220 | H20: ='SA9'!J262 -> 57220 | J20: ='SA9'!K262 -> 60652 | K20: ='SA9'!L262 -> 63321 | L20: ='SA9'!M262 -> 66170
A21: ="Net "& A17 -> Net Service charges - water revenue | C21: =C18-C19-C20 -> 18360185.72 | D21: =D18-D19-D20 -> 47658898.61 | E21: 44700427.59 | F21: 49577895 | G21: 49577895 | H21: 49577895 | I21: 49635115 | J21: 69973913 | K21: 73052765 | L21: 76340139
A23: ='A4-FinPerf RE'!A8 -> Service charges - sanitation revenue
A24: ="Total "&A23 -> Total Service charges - sanitation revenue | C24: 7680548.53 | D24: 20779891.69 | E24: 29000742.72 | F24: 24462339 | G24: 24462339 | H24: 24462339 | I24: 24462339 | J24: 25930078 | K24: 27071002 | L24: 28289197
A25: Less Revenue Foregone (in excess of free sanitation service to indigent households) | C25: 0 | D25: 0 | E25: 0 | F25: 0 | G25: 0 | H25: 0 | I25: 0 | J25: 0 | K25: 0 | L25: 0
A26: Less Cost of Free Basis Services (free sanitation service to indigent households) | C26: ='SA9'!E274 -> 0 | D26: ='SA9'!F274 -> 0 | E26: ='SA9'!G274 -> 0 | F26: ='SA9'!H274 -> 74385 | G26: ='SA9'!I274 -> 74385 | H26: ='SA9'!J274 -> 74385 | J26: ='SA9'!K274 -> 78848 | K26: ='SA9'!L274 -> 82317 | L26: ='SA9'!M274 -> 86022
A27: ="Net "& A23 -> Net Service charges - sanitation revenue | C27: =C24-C25-C26 -> 7680548.53 | D27: =D24-D25-D26 -> 20779891.69 | E27: 29000742.72 | F27: 24387954 | G27: 24387954 | H27: 24387954 | I27: 24462339 | J27: 25851230 | K27: 26988685 | L27: 28203175
A29: ='A4-FinPerf RE'!A9 -> Service charges - refuse revenue | B29: 6
A30: Total refuse removal revenue | C30: 6106593.28 | D30: 14016125.95 | E30: 13929304.74 | F30: 19573527 | G30: 19573527 | H30: 19573527 | I30: 19573527 | J30: 20747937 | K30: 21660846 | L30: 22635584
A31: Total landfill revenue | C31: 0 | D31: 0 | E31: 0 | F31: 0 | G31: 0 | H31: 0 | I31: 0 | J31: 0 | K31: 0 | L31: 0
A32: Less Revenue Foregone (in excess of one removal a week to indigent households) | C32: 0 | D32: 0 | E32: 0 | F32: 0 | G32: 0 | H32: 0 | I32: 0 | J32: 0 | K32: 0 | L32: 0
A33: Less Cost of Free Basis Services (removed once a week to indigent households) | C33: ='SA9'!E286 -> 0 | D33: ='SA9'!F286 -> 0 | E33: ='SA9'!G286 -> -757213.44 | F33: ='SA9'!H286 -> 82451 | G33: ='SA9'!I286 -> 82451 | H33: ='SA9'!J286 -> 82451 | J33: ='SA9'!K286 -> 87398 | K33: ='SA9'!L286 -> 91243 | L33: ='SA9'!M286 -> 95349
A34: ="Net "& A29 -> Net Service charges - refuse revenue | C34: =SUM(C30:C31)-C32-C33 -> 6106593.28 | D34: =SUM(D30:D31)-D32-D33 -> 14016125.95 | E34: 14686518.18 | F34: 19491076 | G34: 19491076 | H34: 19491076 | I34: 19573527 | J34: 20660539 | K34: 21569603 | L34: 22540235
A36: Other Revenue by source
A37: Fuel Levy | C37: 0 | D37: 0 | E37: 0 | F37: 0 | G37: 0 | H37: 0 | I37: 0 | J37: 0 | K37: 0 | L37: 0
A38: Other Revenue | C38: 5541514.38 | D38: 2825762.45 | E38: 3642077.52 | F38: 3774219 | G38: 3774220 | H38: 3774220 | I38: 3774220 | J38: 4000669 | K38: 4176690 | L38: 4364640
A49: Total 'Other' Revenue | B49: 1 | C49: =SUM(C37:C38) -> 5541514.38 | D49: =SUM(D37:D38) -> 2825762.45 | E49: =SUM(E37:E38) -> 3642077.52 | F49: 3774219 | G49: 3774220 | H49: 3774220 | I49: 3774220 | J49: 4000669 | K49: 4176690 | L49: 4364640
A51: EXPENDITURE ITEMS:
A52: ='A4-FinPerf RE'!A24 -> Employee related costs
A53: Basic Salaries and Wages | B53: 2 | C53: 43411592.47 | D53: 110862026.8 | E53: 123800383.9 | F53: 140410091 | G53: 134738600 | H53: 134738600 | I53: 134738600 | J53: 145648364 | K53: 152058373 | L53: 158901828
A54: Pension and UIF Contributions | C54: 8964328.53 | D54: 22636842.27 | E54: 24483765.81 | F54: 31079196 | G54: 29026703 | H54: 29026703 | I54: 29026703 | J54: 32973978 | K54: 34424742 | L54: 35973855
A55: Medical Aid Contributions | C55: 3498430.25 | D55: 9526633.72 | E55: 10650325.07 | F55: 9807061 | G55: 10485487 | H55: 10485487 | I55: 10485487 | J55: 10452980 | K55: 10912821 | L55: 11403899
A56: Overtime | C56: 0 | D56: 0 | E56: 0 | F56: 0 | G56: 0 | H56: 0 | I56: 0 | J56: 0 | K56: 0 | L56: 0
A57: Performance Bonus | C57: 3019930.19 | D57: 8881528.16 | E57: 9976648.26 | F57: 11778380 | G57: 11703114 | H57: 11703114 | I57: 11703114 | J57: 12490297 | K57: 13039381 | L57: 13626668
A58: Motor Vehicle Allowance | C58: 4442598.56 | D58: 11033068.18 | E58: 11231550.97 | F58: 12248965 | G58: 11694409 | H58: 11694409 | I58: 11694409 | J58: 13099697 | K58: 13681516 | L58: 14297204
A59: Cellphone Allowance | C59: 525398.66 | D59: 1268063.52 | E59: 1314186 | F59: 1459138 | G59: 1394389 | H59: 1394389 | I59: 1394389 | J59: 1561464 | K59: 1623963 | L59: 1697039
A60: Housing Allowances | C60: 136137.2 | D60: 337423.23 | E60: 365561.7 | F60: 938205 | G60: 1121301 | H60: 1121301 | I60: 1121301 | J60: 1007643 | K60: 1051985 | L60: 1099224
A61: Other benefits and allowances | C61: 6170844.37 | D61: 18902439.62 | E61: 17381883.6 | F61: 13524801 | G61: 17501938 | H61: 17501938 | I61: 17501938 | J61: 11332802 | K61: 11831446 | L61: 12364205
A62: Payments in lieu of leave | C62: 2467821.24 | D62: 8109865.91 | E62: 11423346.34 | F62: 6154583 | G62: 6389672 | H62: 6389672 | I62: 6389672 | J62: 6531834 | K62: 6819236 | L62: 7124489
A63: Long service awards | C63: 0 | D63: 0 | E63: 0 | F63: 0 | G63: 0 | H63: 0 | I63: 0 | J63: 0 | K63: 0 | L63: 0
A64: Post-retirement benefit obligations | B64: 4 | C64: 0 | D64: 0 | E64: 1696806.09 | F64: 1327849 | G64: 1537638 | H64: 1537638 | I64: 1537638 | J64: 1611444 | K64: 1682348 | L64: 1758053
A65: sub-total | B65: 5 | C65: =SUM(C53:C64) -> 72637081.47 | D65: =SUM(D53:D64) -> 191557891.4 | E65: 212324457.7 | F65: 228728269 | G65: 225593251 | H65: 225593251 | I65: 225593251 | J65: 236710503 | K65: 247125811 | L65: 258246464
A66: Less: Employees costs capitalised to PPE | C66: 0 | D66: 0 | E66: 0 | F66: -137033 | G66: -114226 | H66: -114226 | I66: -114226 | J66: -143608 | K66: -149927 | L66: -156675
A67: ="Total "&A52 -> Total Employee related costs | B67: 1 | C67: =C65-C66 -> 72637081.47 | D67: =D65-D66 -> 191557891.4 | E67: 212324457.7 | F67: 228865302 | G67: 225707477 | H67: 225707477 | I67: 225707477 | J67: 236854111 | K67: 247275738 | L67: 258403139
A78: ='A4-FinPerf RE'!A27 -> Depreciation & asset impairment
A79: Depreciation of Property, Plant & Equipment | C79: 2345634.73 | D79: 91190780.22 | E79: 84394856.93 | F79: 92704836 | G79: 92704878 | H79: 92704878 | I79: 92704878 | J79: 97057059 | K79: 101271206 | L79: 105301370
A80: Lease amortisation | C80: 0 | D80: 0 | E80: 0 | F80: 0 | G80: 0 | H80: 0 | I80: 0 | J80: 0 | K80: 0 | L80: 0
A81: Capital asset impairment | C81: 0 | D81: 0 | E81: 0 | F81: 0 | G81: 28 | H81: 28 | I81: 28 | J81: 0 | K81: 0 | L81: 0
A83: ="Total "&LEFT(A78,35) -> Total Depreciation & asset impairment | B83: 1 | C83: =SUM(C79:C81) -> 2345634.73 | D83: =SUM(D79:D81) -> 91190780.22 | E83: 84394856.93 | F83: 92704836 | G83: 92704906 | H83: 92704906 | I83: 92704906 | J83: 97057059 | K83: 101271206 | L83: 105301370
A85: Bulk purchases - electricity
A86: Electricity bulk purchases | C86: 44904980.12 | D86: 95324807.44 | E86: 135302084.9 | F86: 148648892 | G86: 133648892 | H86: 133648892 | I86: 133648892 | J86: 146424386 | K86: 152867059 | L86: 159746076
C87: 3712696.41 | D87: 9659113.21 | E87: 14949285.68 | F87: 0 | G87: 0 | H87: 0 | I87: 0 | J87: 0 | K87: 0 | L87: 0
A88: Total bulk purchases | B88: 1 | C88: =SUM(C86:C87) -> 48617676.53 | D88: =SUM(D86:D87) -> 104983920.7 | E88: 150251370.6 | F88: 148648892 | G88: 133648892 | H88: 133648892 | I88: 133648892 | J88: 146424386 | K88: 152867059 | L88: 159746076
A90: Transfers and grants
A91: Cash transfers and grants | C91: ='SA21'!C32 -> 233192.3 | D91: ='SA21'!D32 -> 183503.99 | E91: ='SA21'!E32 -> 681126.44 | F91: ='SA21'!F32 -> 976879 | G91: ='SA21'!G32 -> 3087298 | H91: ='SA21'!H32 -> 3087298 | I91: ='SA21'!I32 -> 3087298 | J91: ='SA21'!J32 -> 1024086 | K91: ='SA21'!K32 -> 1069148 | L91: ='SA21'!L32 -> 1117259
A92: Non-cash transfers and grants | C92: ='SA21'!C63 -> 0 | D92: ='SA21'!D63 -> 1250174.21 | E92: ='SA21'!E63 -> 0 | F92: ='SA21'!F63 -> 0 | G92: ='SA21'!G63 -> 0 | H92: ='SA21'!H63 -> 0 | I92: ='SA21'!I63 -> 0 | J92: ='SA21'!J63 -> 0 | K92: ='SA21'!K63 -> 0 | L92: ='SA21'!L63 -> 0
A93: Total transfers and grants | B93: 1 | C93: =SUM(C91:C92) -> 233192.3 | D93: =SUM(D91:D92) -> 1433678.2 | E93: 681126.44 | F93: 976879 | G93: 3087298 | H93: 3087298 | I93: 3087298 | J93: 1024086 | K93: 1069148 | L93: 1117259
A95: ='A4-FinPerf RE'!A31 -> Contracted services
A96: Outsourced Services | C96: 1392151.57 | D96: 23145640.76 | E96: 28040333.57 | F96: 14109137 | G96: 19146463 | H96: 19146463 | I96: 19146463 | J96: 16649938 | K96: 17382536 | L96: 18164748
A97: Consultants and Professional Services | C97: 864669.73 | D97: 6932145.9 | E97: 10319254.37 | F97: 13457314 | G97: 19999078 | H97: 19999078 | I97: 19999078 | J97: 20177898 | K97: 20526949 | L97: 21450660
A98: Contractors | C98: 1936606.12 | D98: 6792078.82 | E98: 5099435.85 | F98: 28399579 | G98: 36224157 | H98: 36224157 | I98: 36224157 | J98: 34081388 | K98: 36119744 | L98: 37745137
A127: Total contracted services | C127: =SUM(C96:C98) -> 4193427.42 | D127: =SUM(D96:D98) -> 36869865.48 | E127: 43459023.79 | F127: 55966030 | G127: 75369698 | H127: 75369698 | I127: 75369698 | J127: 70909224 | K127: 74029229 | L127: 77360545
A129: Other Expenditure By Type
A130: Collection costs | C130: 0 | D130: 0 | E130: 0 | F130: 0 | G130: 0 | H130: 0 | I130: 0 | J130: 0 | K130: 0 | L130: 0
A131: Contributions to 'other' provisions | C131: 0 | D131: 0 | E131: 0 | F131: 0 | G131: 0 | H131: 0 | I131: 0 | J131: 0 | K131: 0 | L131: 0
A133: Audit fees | C133: 0 | D133: 5138087.61 | E133: 5410601.13 | F133: 5508866 | G133: 4758866 | H133: 4758866 | I133: 4758866 | J133: 5773291 | K133: 6027316 | L133: 6298545
A136: General expenses | C136: 26549366.22 | D136: 44121982.63 | E136: 46061172.84 | F136: 62805884 | G136: 56575530 | H136: 56575530 | I136: 56575530 | J136: 77329411 | K136: 80493573 | L136: 82930139
A157: Total 'Other' Expenditure | B157: 1 | C157: =+C130+C131+C133+C136 -> 26549366.22 | D157: =+D130+D131+D133+D136 -> 49260070.24 | E157: 51471773.97 | F157: 68314750 | G157: 61334396 | H157: 61334396 | I157: 61334396 | J157: 83102702 | K157: 86520889 | L157: 89228684
A159: Repairs and Maintenance by Expenditure Item | B159: 8
A160: Employee related costs | C160: 0 | D160: 0 | E160: 0 | F160: 0 | G160: 0 | H160: 0 | I160: 0 | J160: 0 | K160: 0 | L160: 0
A161: Inventory Consumed (Project Maintenance) | C161: 98621.19 | D161: 319432.55 | E161: 466122.51 | F161: 20900 | G161: 7459652 | H161: 7459652 | I161: 7459652 | J161: 12977606 | K161: 13565121 | L161: 14175658
A162: Contracted Services | C162: 4626.09 | D162: 4203245.75 | E162: 2800132.05 | F162: 17882535 | G162: 14958912 | H162: 14958912 | I162: 14958912 | J162: 9050522 | K162: 9448790 | L162: 9873980
A163: Other Expenditure | C163: 5399378.19 | D163: -797597.43 | E163: 338463.99 | F163: 6249307 | G163: 6297349 | H163: 6297349 | I163: 6297349 | J163: 4997130 | K163: 5216998 | L163: 5451764
A164: Total Repairs and Maintenance Expenditure | B164: 9 | C164: =SUM(C160:C163) -> 5502625.47 | D164: =SUM(D160:D163) -> 3725080.87 | E164: 3604718.55 | F164: 24152742 | G164: 28715913 | H164: 28715913 | I164: 28715913 | J164: 27025258 | K164: 28230909 | L164: 29501402
A166: Inventory Consumed
A167: Inventory Consumed - Water | C167: =-'SA3'!C29 -> 0 | D167: =-'SA3'!D29 -> 0 | E167: =-'SA3'!E29 -> 0 | F167: =-'SA3'!F29 -> 0 | G167: =-'SA3'!G29 -> 0 | H167: =-'SA3'!H29 -> 0 | I167: =-'SA3'!I29 -> 0 | J167: =-'SA3'!J29 -> -14163000 | K167: =-'SA3'!K29 -> -14896000 | L167: =-'SA3'!L29 -> -15679000
A168: Inventory Consumed - Other | C168: =-'SA3'!C58-'SA3'!C67-'SA3'!C74-'SA3'!C82-'SA3'!C90 -> 0 | D168: =-'SA3'!D58-'SA3'!D67-'SA3'!D74-'SA3'!D82-'SA3'!D90 -> 0 | E168: =-'SA3'!E58-'SA3'!E67-'SA3'!E74-'SA3'!E82-'SA3'!E90 -> 0 | F168: =-'SA3'!F58-'SA3'!F67-'SA3'!F74-'SA3'!F82-'SA3'!F90 -> 0 | G168: =-'SA3'!G58-'SA3'!G67-'SA3'!G74-'SA3'!G82-'SA3'!G90 -> 0 | H168: =-'SA3'!H58-'SA3'!H67-'SA3'!H74-'SA3'!H82-'SA3'!H90 -> 0 | I168: =-'SA3'!I58-'SA3'!I67-'SA3'!I74-'SA3'!I82-'SA3'!I90 -> 0 | J168: =-'SA3'!J58-'SA3'!J67-'SA3'!J74-'SA3'!J82-'SA3'!J90 -> 0 | K168: =-'SA3'!K58-'SA3'!K67-'SA3'!K74-'SA3'!K82-'SA3'!K90 -> 0 | L168: =-'SA3'!L58-'SA3'!L67-'SA3'!L74-'SA3'!L82-'SA3'!L90 -> 0
A169: Total Inventory Consumed & Other Material | C169: =SUM(C167:C168) -> 0 | D169: 0 | E169: 0 | F169: 0 | G169: 0 | H169: 0 | I169: 0 | J169: -14163000 | K169: -14896000 | L169: -15679000
A171: check | C171: =C164-SA34c!C167 -> 0 | D171: =D164-SA34c!D167 -> 0 | E171: =E164-SA34c!E167 -> 0 | F171: =F164-SA34c!F167 -> 0 | G171: =G164-SA34c!G167 -> 0 | H171: =H164-SA34c!H167 -> 0 | J171: =J164-SA34c!I167 -> 0 | K171: =K164-SA34c!J167 -> 0 | L171: =L164-SA34c!K167 -> 0
A172: =head27a -> References
